Workbook

Sheet MAIN
F8: =IF(COUNTIF('SCORES LOAD STATUS'!$A:$A,$A$42)>0,"Standings After Week of "&TEXT(A41,"mm/dd/yy"),"Final Standings") -> Standings After Week of 08/23/17 | N8: ="Match Results - Week of "&TEXT(A41,"mm/dd/yy") -> Match Results - Week of 08/23/17 | T8: ="Current Handicaps After Week of "& TEXT(A41, "mm/dd/yy") -> Current Handicaps After Week of 08/23/17
F10: Rank | G10: Team | L10: Points | N10: =IF(HLOOKUP($A$41,'MATCH RESULTS - 2017'!$C$10:$AZ$28,2,FALSE)="","",HLOOKUP($A$41,'MATCH RESULTS - 2017'!$C$10:$AZ$28,2,FALSE)) -> Gamache/Bouvier d. Pavone/Beliveau, 6.0 - 3.0 | T10: 1A | U10: =IFERROR(VLOOKUP(T10,'LEAGUE MEMBERSHIP'!$B:$F,5,FALSE),"") -> John Normandin | W10: =IFERROR(VLOOKUP(T10,'LEAGUE MEMBERSHIP'!$B:$G,6,FALSE),"") -> 18 | Y10: 1B | Z10: =IFERROR(VLOOKUP(Y10,'LEAGUE MEMBERSHIP'!$B:$F,5,FALSE),"") -> Pete Normandin | AB10: =IFERROR(VLOOKUP(Y10,'LEAGUE MEMBERSHIP'!$B:$G,6,FALSE),"") -> 17
F11: =IF(SUM('POINTS - 2017'!$D$11:$D$50)>0,'STANDINGS - 2017'!D50,'STANDINGS - 2017'!D11) -> 1 | G11: =IF(SUM('POINTS - 2017'!$D$11:$D$50)>0,'STANDINGS - 2017'!E50,'STANDINGS - 2017'!E11) -> Team 10 | H11: =IF(SUM('POINTS - 2017'!$D$11:$D$50)>0,'STANDINGS - 2017'!F50,'STANDINGS - 2017'!F11) -> - Ron Ekstrom / Beth Romano | L11: =IF(SUM('POINTS - 2017'!$D$11:$D$50)>0,'STANDINGS - 2017'!J50,'STANDINGS - 2017'!J11) -> 44 | N11: =IF(HLOOKUP($A$41,'MATCH RESULTS - 2017'!$C$10:$AZ$28,3,FALSE)="","",HLOOKUP($A$41,'MATCH RESULTS - 2017'!$C$10:$AZ$28,3,FALSE)) -> Haskins/Conte d. Normandin/Normandin, 6.0 - 3.0 | T11: 2A | U11: =IFERROR(VLOOKUP(T11,'LEAGUE MEMBERSHIP'!$B:$F,5,FALSE),"") -> Jono Normandin | W11: =IFERROR(VLOOKUP(T11,'LEAGUE MEMBERSHIP'!$B:$G,6,FALSE),"") -> 7 | Y11: 2B | Z11: =IFERROR(VLOOKUP(Y11,'LEAGUE MEMBERSHIP'!$B:$F,5,FALSE),"") -> Nathan Wallace | AB11: =IFERROR(VLOOKUP(Y11,'LEAGUE MEMBERSHIP'!$B:$G,6,FALSE),"") -> 11
F12: =IF(SUM('POINTS - 2017'!$D$11:$D$50)>0,'STANDINGS - 2017'!D51,'STANDINGS - 2017'!D12) -> 2T | G12: =IF(SUM('POINTS - 2017'!$D$11:$D$50)>0,'STANDINGS - 2017'!E51,'STANDINGS - 2017'!E12) -> Team 11 | H12: =IF(SUM('POINTS - 2017'!$D$11:$D$50)>0,'STANDINGS - 2017'!F51,'STANDINGS - 2017'!F12) -> - Jim Haskins / Anthony Conte | L12: =IF(SUM('POINTS - 2017'!$D$11:$D$50)>0,'STANDINGS - 2017'!J51,'STANDINGS - 2017'!J12) -> 37 | N12: =IF(HLOOKUP($A$41,'MATCH RESULTS - 2017'!$C$10:$AZ$28,4,FALSE)="","",HLOOKUP($A$41,'MATCH RESULTS - 2017'!$C$10:$AZ$28,4,FALSE)) -> Fontaine/Romano III d. Lawrence/Benson, 7.5 - 1.5 | T12: 3A | U12: =IFERROR(VLOOKUP(T12,'LEAGUE MEMBERSHIP'!$B:$F,5,FALSE),"") -> Pete Romano | W12: =IFERROR(VLOOKUP(T12,'LEAGUE MEMBERSHIP'!$B:$G,6,FALSE),"") -> 17 | Y12: 3B | Z12: =IFERROR(VLOOKUP(Y12,'LEAGUE MEMBERSHIP'!$B:$F,5,FALSE),"") -> Don Frigoletto | AB12: =IFERROR(VLOOKUP(Y12,'LEAGUE MEMBERSHIP'!$B:$G,6,FALSE),"") -> 14
F13: =IF(SUM('POINTS - 2017'!$D$11:$D$50)>0,'STANDINGS - 2017'!D52,'STANDINGS - 2017'!D13) -> 2T | G13: =IF(SUM('POINTS - 2017'!$D$11:$D$50)>0,'STANDINGS - 2017'!E52,'STANDINGS - 2017'!E13) -> Team 14 | H13: =IF(SUM('POINTS - 2017'!$D$11:$D$50)>0,'STANDINGS - 2017'!F52,'STANDINGS - 2017'!F13) -> - Paul Fontaine / Ralph Romano III | L13: =IF(SUM('POINTS - 2017'!$D$11:$D$50)>0,'STANDINGS - 2017'!J52,'STANDINGS - 2017'!J13) -> 37 | N13: =IF(HLOOKUP($A$41,'MATCH RESULTS - 2017'!$C$10:$AZ$28,5,FALSE)="","",HLOOKUP($A$41,'MATCH RESULTS - 2017'!$C$10:$AZ$28,5,FALSE)) -> Leavenworth/Leavenworth d. Doane/Cassin, 7.5 - 1.5 | T13: 4A | U13: =IFERROR(VLOOKUP(T13,'LEAGUE MEMBERSHIP'!$B:$F,5,FALSE),"") -> Peg Romano | W13: =IFERROR(VLOOKUP(T13,'LEAGUE MEMBERSHIP'!$B:$G,6,FALSE),"") -> 13 | Y13: 4B | Z13: =IFERROR(VLOOKUP(Y13,'LEAGUE MEMBERSHIP'!$B:$F,5,FALSE),"") -> Lynn Laroche | AB13: =IFERROR(VLOOKUP(Y13,'LEAGUE MEMBERSHIP'!$B:$G,6,FALSE),"") -> 18
F14: =IF(SUM('POINTS - 2017'!$D$11:$D$50)>0,'STANDINGS - 2017'!D53,'STANDINGS - 2017'!D14) -> 4T | G14: =IF(SUM('POINTS - 2017'!$D$11:$D$50)>0,'STANDINGS - 2017'!E53,'STANDINGS - 2017'!E14) -> Team 07 | H14: =IF(SUM('POINTS - 2017'!$D$11:$D$50)>0,'STANDINGS - 2017'!F53,'STANDINGS - 2017'!F14) -> - John Fairbanks / Debbie Fairbanks | L14: =IF(SUM('POINTS - 2017'!$D$11:$D$50)>0,'STANDINGS - 2017'!J53,'STANDINGS - 2017'!J14) -> 36.5 | N14: =IF(HLOOKUP($A$41,'MATCH RESULTS - 2017'!$C$10:$AZ$28,6,FALSE)="","",HLOOKUP($A$41,'MATCH RESULTS - 2017'!$C$10:$AZ$28,6,FALSE)) -> Ekstrom/Romano d. O'Loughlin/Romano, 7.5 - 1.5 | T14: 5A | U14: =IFERROR(VLOOKUP(T14,'LEAGUE MEMBERSHIP'!$B:$F,5,FALSE),"") -> Dennis Normandin | W14: =IFERROR(VLOOKUP(T14,'LEAGUE MEMBERSHIP'!$B:$G,6,FALSE),"") -> 10 | Y14: 5B | Z14: =IFERROR(VLOOKUP(Y14,'LEAGUE MEMBERSHIP'!$B:$F,5,FALSE),"") -> Mark Normandin | AB14: =IFERROR(VLOOKUP(Y14,'LEAGUE MEMBERSHIP'!$B:$G,6,FALSE),"") -> 6
F15: =IF(SUM('POINTS - 2017'!$D$11:$D$50)>0,'STANDINGS - 2017'!D54,'STANDINGS - 2017'!D15) -> 4T | G15: =IF(SUM('POINTS - 2017'!$D$11:$D$50)>0,'STANDINGS - 2017'!E54,'STANDINGS - 2017'!E15) -> Team 15 | H15: =IF(SUM('POINTS - 2017'!$D$11:$D$50)>0,'STANDINGS - 2017'!F54,'STANDINGS - 2017'!F15) -> - Gary Leavenworth / Patty Leavenworth | L15: =IF(SUM('POINTS - 2017'!$D$11:$D$50)>0,'STANDINGS - 2017'!J54,'STANDINGS - 2017'!J15) -> 36.5 | N15: =IF(HLOOKUP($A$41,'MATCH RESULTS - 2017'!$C$10:$AZ$28,7,FALSE)="","",HLOOKUP($A$41,'MATCH RESULTS - 2017'!$C$10:$AZ$28,7,FALSE)) -> Normandin/Wallace d. Romano/Laroche, 6.0 - 3.0 | T15: 6A | U15: =IFERROR(VLOOKUP(T15,'LEAGUE MEMBERSHIP'!$B:$F,5,FALSE),"") -> Vance Butterfield | W15: =IFERROR(VLOOKUP(T15,'LEAGUE MEMBERSHIP'!$B:$G,6,FALSE),"") -> 6 | Y15: 6B | Z15: =IFERROR(VLOOKUP(Y15,'LEAGUE MEMBERSHIP'!$B:$F,5,FALSE),"") -> Bob Schleyer | AB15: =IFERROR(VLOOKUP(Y15,'LEAGUE MEMBERSHIP'!$B:$G,6,FALSE),"") -> 8
F16: =IF(SUM('POINTS - 2017'!$D$11:$D$50)>0,'STANDINGS - 2017'!D55,'STANDINGS - 2017'!D16) -> 6T | G16: =IF(SUM('POINTS - 2017'!$D$11:$D$50)>0,'STANDINGS - 2017'!E55,'STANDINGS - 2017'!E16) -> Team 08 | H16: =IF(SUM('POINTS - 2017'!$D$11:$D$50)>0,'STANDINGS - 2017'!F55,'STANDINGS - 2017'!F16) -> - Steve Lawrence / Mike Benson | L16: =IF(SUM('POINTS - 2017'!$D$11:$D$50)>0,'STANDINGS - 2017'!J55,'STANDINGS - 2017'!J16) -> 32 | N16: =IF(HLOOKUP($A$41,'MATCH RESULTS - 2017'!$C$10:$AZ$28,8,FALSE)="","",HLOOKUP($A$41,'MATCH RESULTS - 2017'!$C$10:$AZ$28,8,FALSE)) -> Fairbanks/Fairbanks d. Hurley/Drake, 6.5 - 2.5 | T16: 7A | U16: =IFERROR(VLOOKUP(T16,'LEAGUE MEMBERSHIP'!$B:$F,5,FALSE),"") -> John Fairbanks | W16: =IFERROR(VLOOKUP(T16,'LEAGUE MEMBERSHIP'!$B:$G,6,FALSE),"") -> 8 | Y16: 7B | Z16: =IFERROR(VLOOKUP(Y16,'LEAGUE MEMBERSHIP'!$B:$F,5,FALSE),"") -> Debbie Fairbanks | AB16: =IFERROR(VLOOKUP(Y16,'LEAGUE MEMBERSHIP'!$B:$G,6,FALSE),"") -> 14
F17: =IF(SUM('POINTS - 2017'!$D$11:$D$50)>0,'STANDINGS - 2017'!D56,'STANDINGS - 2017'!D17) -> 6T | G17: =IF(SUM('POINTS - 2017'!$D$11:$D$50)>0,'STANDINGS - 2017'!E56,'STANDINGS - 2017'!E17) -> Team 13 | H17: =IF(SUM('POINTS - 2017'!$D$11:$D$50)>0,'STANDINGS - 2017'!F56,'STANDINGS - 2017'!F17) -> - Tim Hurley / Walter Drake | L17: =IF(SUM('POINTS - 2017'!$D$11:$D$50)>0,'STANDINGS - 2017'!J56,'STANDINGS - 2017'!J17) -> 32 | N17: =IF(HLOOKUP($A$41,'MATCH RESULTS - 2017'!$C$10:$AZ$28,9,FALSE)="","",HLOOKUP($A$41,'MATCH RESULTS - 2017'!$C$10:$AZ$28,9,FALSE)) -> Normandin/Normandin d. Romano/Frigoletto, 5.5 - 3.5 | T17: 8A | U17: =IFERROR(VLOOKUP(T17,'LEAGUE MEMBERSHIP'!$B:$F,5,FALSE),"") -> Steve Lawrence | W17: =IFERROR(VLOOKUP(T17,'LEAGUE MEMBERSHIP'!$B:$G,6,FALSE),"") -> 5 | Y17: 8B | Z17: =IFERROR(VLOOKUP(Y17,'LEAGUE MEMBERSHIP'!$B:$F,5,FALSE),"") -> Mike Benson | AB17: =IFERROR(VLOOKUP(Y17,'LEAGUE MEMBERSHIP'!$B:$G,6,FALSE),"") -> 17
F18: =IF(SUM('POINTS - 2017'!$D$11:$D$50)>0,'STANDINGS - 2017'!D57,'STANDINGS - 2017'!D18) -> 6T | G18: =IF(SUM('POINTS - 2017'!$D$11:$D$50)>0,'STANDINGS - 2017'!E57,'STANDINGS - 2017'!E18) -> Team 20 | H18: =IF(SUM('POINTS - 2017'!$D$11:$D$50)>0,'STANDINGS - 2017'!F57,'STANDINGS - 2017'!F18) -> - Sheila Sundstrom / Ray Hoy | L18: =IF(SUM('POINTS - 2017'!$D$11:$D$50)>0,'STANDINGS - 2017'!J57,'STANDINGS - 2017'!J18) -> 32 | N18: =IF(HLOOKUP($A$41,'MATCH RESULTS - 2017'!$C$10:$AZ$28,10,FALSE)="","",HLOOKUP($A$41,'MATCH RESULTS - 2017'!$C$10:$AZ$28,10,FALSE)) -> Sundstrom/Hoy d. Ekstrom/Dauphinais, 5.5 - 3.5 | T18: 9A | U18: =IFERROR(VLOOKUP(T18,'LEAGUE MEMBERSHIP'!$B:$F,5,FALSE),"") -> Mike Doane | W18: =IFERROR(VLOOKUP(T18,'LEAGUE MEMBERSHIP'!$B:$G,6,FALSE),"") -> 16 | Y18: 9B | Z18: =IFERROR(VLOOKUP(Y18,'LEAGUE MEMBERSHIP'!$B:$F,5,FALSE),"") -> John Cassin | AB18: =IFERROR(VLOOKUP(Y18,'LEAGUE MEMBERSHIP'!$B:$G,6,FALSE),"") -> 10
F19: =IF(SUM('POINTS - 2017'!$D$11:$D$50)>0,'STANDINGS - 2017'!D58,'STANDINGS - 2017'!D19) -> 9 | G19: =IF(SUM('POINTS - 2017'!$D$11:$D$50)>0,'STANDINGS - 2017'!E58,'STANDINGS - 2017'!E19) -> Team 06 | H19: =IF(SUM('POINTS - 2017'!$D$11:$D$50)>0,'STANDINGS - 2017'!F58,'STANDINGS - 2017'!F19) -> - Vance Butterfield / Bob Schleyer | L19: =IF(SUM('POINTS - 2017'!$D$11:$D$50)>0,'STANDINGS - 2017'!J58,'STANDINGS - 2017'!J19) -> 31.5 | N19: =IF(HLOOKUP($A$41,'MATCH RESULTS - 2017'!$C$10:$AZ$28,11,FALSE)="","",HLOOKUP($A$41,'MATCH RESULTS - 2017'!$C$10:$AZ$28,11,FALSE)) -> Butterfield/Schleyer d. Ciufetti/Nivala, 5.0 - 0.0 | T19: 10A | U19: =IFERROR(VLOOKUP(T19,'LEAGUE MEMBERSHIP'!$B:$F,5,FALSE),"") -> Ron Ekstrom | W19: =IFERROR(VLOOKUP(T19,'LEAGUE MEMBERSHIP'!$B:$G,6,FALSE),"") -> 1 | Y19: 10B | Z19: =IFERROR(VLOOKUP(Y19,'LEAGUE MEMBERSHIP'!$B:$F,5,FALSE),"") -> Beth Romano | AB19: =IFERROR(VLOOKUP(Y19,'LEAGUE MEMBERSHIP'!$B:$G,6,FALSE),"") -> 10
F20: =IF(SUM('POINTS - 2017'!$D$11:$D$50)>0,'STANDINGS - 2017'!D59,'STANDINGS - 2017'!D20) -> 10T | G20: =IF(SUM('POINTS - 2017'!$D$11:$D$50)>0,'STANDINGS - 2017'!E59,'STANDINGS - 2017'!E20) -> Team 03 | H20: =IF(SUM('POINTS - 2017'!$D$11:$D$50)>0,'STANDINGS - 2017'!F59,'STANDINGS - 2017'!F20) -> - Pete Romano / Don Frigoletto | L20: =IF(SUM('POINTS - 2017'!$D$11:$D$50)>0,'STANDINGS - 2017'!J59,'STANDINGS - 2017'!J20) -> 31 | T20: 11A | U20: =IFERROR(VLOOKUP(T20,'LEAGUE MEMBERSHIP'!$B:$F,5,FALSE),"") -> Jim Haskins | W20: =IFERROR(VLOOKUP(T20,'LEAGUE MEMBERSHIP'!$B:$G,6,FALSE),"") -> 9 | Y20: 11B | Z20: =IFERROR(VLOOKUP(Y20,'LEAGUE MEMBERSHIP'!$B:$F,5,FALSE),"") -> Anthony Conte | AB20: =IFERROR(VLOOKUP(Y20,'LEAGUE MEMBERSHIP'!$B:$G,6,FALSE),"") -> 13
F21: =IF(SUM('POINTS - 2017'!$D$11:$D$50)>0,'STANDINGS - 2017'!D60,'STANDINGS - 2017'!D21) -> 10T | G21: =IF(SUM('POINTS - 2017'!$D$11:$D$50)>0,'STANDINGS - 2017'!E60,'STANDINGS - 2017'!E21) -> Team 05 | H21: =IF(SUM('POINTS - 2017'!$D$11:$D$50)>0,'STANDINGS - 2017'!F60,'STANDINGS - 2017'!F21) -> - Dennis Normandin / Mark Normandin | L21: =IF(SUM('POINTS - 2017'!$D$11:$D$50)>0,'STANDINGS - 2017'!J60,'STANDINGS - 2017'!J21) -> 31 | N21: ="Five Lowest Rounds - Week of "&TEXT(A41,"mm/dd/yy") -> Five Lowest Rounds - Week of 08/23/17 | T21: 12A | U21: =IFERROR(VLOOKUP(T21,'LEAGUE MEMBERSHIP'!$B:$F,5,FALSE),"") -> Sal Ciufetti | W21: =IFERROR(VLOOKUP(T21,'LEAGUE MEMBERSHIP'!$B:$G,6,FALSE),"") -> 12 | Y21: 12B | Z21: =IFERROR(VLOOKUP(Y21,'LEAGUE MEMBERSHIP'!$B:$F,5,FALSE),"") -> Kevin Nivala | AB21: =IFERROR(VLOOKUP(Y21,'LEAGUE MEMBERSHIP'!$B:$G,6,FALSE),"") -> 10
F22: =IF(SUM('POINTS - 2017'!$D$11:$D$50)>0,'STANDINGS - 2017'!D61,'STANDINGS - 2017'!D22) -> 12 | G22: =IF(SUM('POINTS - 2017'!$D$11:$D$50)>0,'STANDINGS - 2017'!E61,'STANDINGS - 2017'!E22) -> Team 17 | H22: =IF(SUM('POINTS - 2017'!$D$11:$D$50)>0,'STANDINGS - 2017'!F61,'STANDINGS - 2017'!F22) -> - Carol Ekstrom / Mike Dauphinais | L22: =IF(SUM('POINTS - 2017'!$D$11:$D$50)>0,'STANDINGS - 2017'!J61,'STANDINGS - 2017'!J22) -> 28.5 | N22: Women | T22: 13A | U22: =IFERROR(VLOOKUP(T22,'LEAGUE MEMBERSHIP'!$B:$F,5,FALSE),"") -> Tim Hurley | W22: =IFERROR(VLOOKUP(T22,'LEAGUE MEMBERSHIP'!$B:$G,6,FALSE),"") -> 8 | Y22: 13B | Z22: =IFERROR(VLOOKUP(Y22,'LEAGUE MEMBERSHIP'!$B:$F,5,FALSE),"") -> Walter Drake | AB22: =IFERROR(VLOOKUP(Y22,'LEAGUE MEMBERSHIP'!$B:$G,6,FALSE),"") -> 15
F23: =IF(SUM('POINTS - 2017'!$D$11:$D$50)>0,'STANDINGS - 2017'!D62,'STANDINGS - 2017'!D23) -> 13 | G23: =IF(SUM('POINTS - 2017'!$D$11:$D$50)>0,'STANDINGS - 2017'!E62,'STANDINGS - 2017'!E23) -> Team 02 | H23: =IF(SUM('POINTS - 2017'!$D$11:$D$50)>0,'STANDINGS - 2017'!F62,'STANDINGS - 2017'!F23) -> - Jono Normandin / Nathan Wallace | L23: =IF(SUM('POINTS - 2017'!$D$11:$D$50)>0,'STANDINGS - 2017'!J62,'STANDINGS - 2017'!J23) -> 28 | N23: Patty Leavenworth - 42 | T23: 14A | U23: =IFERROR(VLOOKUP(T23,'LEAGUE MEMBERSHIP'!$B:$F,5,FALSE),"") -> Paul Fontaine | W23: =IFERROR(VLOOKUP(T23,'LEAGUE MEMBERSHIP'!$B:$G,6,FALSE),"") -> 3 | Y23: 14B | Z23: =IFERROR(VLOOKUP(Y23,'LEAGUE MEMBERSHIP'!$B:$F,5,FALSE),"") -> Ralph Romano III | AB23: =IFERROR(VLOOKUP(Y23,'LEAGUE MEMBERSHIP'!$B:$G,6,FALSE),"") -> 8
F24: =IF(SUM('POINTS - 2017'!$D$11:$D$50)>0,'STANDINGS - 2017'!D63,'STANDINGS - 2017'!D24) -> 14T | G24: =IF(SUM('POINTS - 2017'!$D$11:$D$50)>0,'STANDINGS - 2017'!E63,'STANDINGS - 2017'!E24) -> Team 01 | H24: =IF(SUM('POINTS - 2017'!$D$11:$D$50)>0,'STANDINGS - 2017'!F63,'STANDINGS - 2017'!F24) -> - John Normandin / Pete Normandin | L24: =IF(SUM('POINTS - 2017'!$D$11:$D$50)>0,'STANDINGS - 2017'!J63,'STANDINGS - 2017'!J24) -> 27.5 | N24: Beth Romano - 46 | T24: 15A | U24: =IFERROR(VLOOKUP(T24,'LEAGUE MEMBERSHIP'!$B:$F,5,FALSE),"") -> Gary Leavenworth | W24: =IFERROR(VLOOKUP(T24,'LEAGUE MEMBERSHIP'!$B:$G,6,FALSE),"") -> 5 | Y24: 15B | Z24: =IFERROR(VLOOKUP(Y24,'LEAGUE MEMBERSHIP'!$B:$F,5,FALSE),"") -> Patty Leavenworth | AB24: =IFERROR(VLOOKUP(Y24,'LEAGUE MEMBERSHIP'!$B:$G,6,FALSE),"") -> 8
F25: =IF(SUM('POINTS - 2017'!$D$11:$D$50)>0,'STANDINGS - 2017'!D64,'STANDINGS - 2017'!D25) -> 14T | G25: =IF(SUM('POINTS - 2017'!$D$11:$D$50)>0,'STANDINGS - 2017'!E64,'STANDINGS - 2017'!E25) -> Team 16 | H25: =IF(SUM('POINTS - 2017'!$D$11:$D$50)>0,'STANDINGS - 2017'!F64,'STANDINGS - 2017'!F25) -> - Kevin O'Loughlin / Mike Romano | L25: =IF(SUM('POINTS - 2017'!$D$11:$D$50)>0,'STANDINGS - 2017'!J64,'STANDINGS - 2017'!J25) -> 27.5 | N25: Sheila Sundstrom - 48 | T25: 16A | U25: =IFERROR(VLOOKUP(T25,'LEAGUE MEMBERSHIP'!$B:$F,5,FALSE),"") -> Kevin O'Loughlin | W25: =IFERROR(VLOOKUP(T25,'LEAGUE MEMBERSHIP'!$B:$G,6,FALSE),"") -> 18 | Y25: 16B | Z25: =IFERROR(VLOOKUP(Y25,'LEAGUE MEMBERSHIP'!$B:$F,5,FALSE),"") -> Mike Romano | AB25: =IFERROR(VLOOKUP(Y25,'LEAGUE MEMBERSHIP'!$B:$G,6,FALSE),"") -> 13
F26: =IF(SUM('POINTS - 2017'!$D$11:$D$50)>0,'STANDINGS - 2017'!D65,'STANDINGS - 2017'!D26) -> 16T | G26: =IF(SUM('POINTS - 2017'!$D$11:$D$50)>0,'STANDINGS - 2017'!E65,'STANDINGS - 2017'!E26) -> Team 09 | H26: =IF(SUM('POINTS - 2017'!$D$11:$D$50)>0,'STANDINGS - 2017'!F65,'STANDINGS - 2017'!F26) -> - Mike Doane / John Cassin | L26: =IF(SUM('POINTS - 2017'!$D$11:$D$50)>0,'STANDINGS - 2017'!J65,'STANDINGS - 2017'!J26) -> 26.5 | N26: Debbie Fairbanks - 50 | T26: 17A | U26: =IFERROR(VLOOKUP(T26,'LEAGUE MEMBERSHIP'!$B:$F,5,FALSE),"") -> Carol Ekstrom | W26: =IFERROR(VLOOKUP(T26,'LEAGUE MEMBERSHIP'!$B:$G,6,FALSE),"") -> 14 | Y26: 17B | Z26: =IFERROR(VLOOKUP(Y26,'LEAGUE MEMBERSHIP'!$B:$F,5,FALSE),"") -> Mike Dauphinais | AB26: =IFERROR(VLOOKUP(Y26,'LEAGUE MEMBERSHIP'!$B:$G,6,FALSE),"") -> 9
F27: =IF(SUM('POINTS - 2017'!$D$11:$D$50)>0,'STANDINGS - 2017'!D66,'STANDINGS - 2017'!D27) -> 16T | G27: =IF(SUM('POINTS - 2017'!$D$11:$D$50)>0,'STANDINGS - 2017'!E66,'STANDINGS - 2017'!E27) -> Team 19 | H27: =IF(SUM('POINTS - 2017'!$D$11:$D$50)>0,'STANDINGS - 2017'!F66,'STANDINGS - 2017'!F27) -> - John Pavone / Ernie Beliveau | L27: =IF(SUM('POINTS - 2017'!$D$11:$D$50)>0,'STANDINGS - 2017'!J66,'STANDINGS - 2017'!J27) -> 26.5 | N27: Peg Romano - 53 | T27: 18A | U27: =IFERROR(VLOOKUP(T27,'LEAGUE MEMBERSHIP'!$B:$F,5,FALSE),"") -> Norm Gamache | W27: =IFERROR(VLOOKUP(T27,'LEAGUE MEMBERSHIP'!$B:$G,6,FALSE),"") -> 11 | Y27: 18B | Z27: =IFERROR(VLOOKUP(Y27,'LEAGUE MEMBERSHIP'!$B:$F,5,FALSE),"") -> Michelle Bouvier | AB27: =IFERROR(VLOOKUP(Y27,'LEAGUE MEMBERSHIP'!$B:$G,6,FALSE),"") -> 23
F28: =IF(SUM('POINTS - 2017'!$D$11:$D$50)>0,'STANDINGS - 2017'!D67,'STANDINGS - 2017'!D28) -> 18 | G28: =IF(SUM('POINTS - 2017'!$D$11:$D$50)>0,'STANDINGS - 2017'!E67,'STANDINGS - 2017'!E28) -> Team 04 | H28: =IF(SUM('POINTS - 2017'!$D$11:$D$50)>0,'STANDINGS - 2017'!F67,'STANDINGS - 2017'!F28) -> - Peg Romano / Lynn Laroche | L28: =IF(SUM('POINTS - 2017'!$D$11:$D$50)>0,'STANDINGS - 2017'!J67,'STANDINGS - 2017'!J28) -> 26 | N28: Men | T28: 19A | U28: =IFERROR(VLOOKUP(T28,'LEAGUE MEMBERSHIP'!$B:$F,5,FALSE),"") -> John Pavone | W28: =IFERROR(VLOOKUP(T28,'LEAGUE MEMBERSHIP'!$B:$G,6,FALSE),"") -> 15 | Y28: 19B | Z28: =IFERROR(VLOOKUP(Y28,'LEAGUE MEMBERSHIP'!$B:$F,5,FALSE),"") -> Ernie Beliveau | AB28: =IFERROR(VLOOKUP(Y28,'LEAGUE MEMBERSHIP'!$B:$G,6,FALSE),"") -> 18
F29: =IF(SUM('POINTS - 2017'!$D$11:$D$50)>0,'STANDINGS - 2017'!D68,'STANDINGS - 2017'!D29) -> 19 | G29: =IF(SUM('POINTS - 2017'!$D$11:$D$50)>0,'STANDINGS - 2017'!E68,'STANDINGS - 2017'!E29) -> Team 18 | H29: =IF(SUM('POINTS - 2017'!$D$11:$D$50)>0,'STANDINGS - 2017'!F68,'STANDINGS - 2017'!F29) -> - Norm Gamache / Michelle Bouvier | L29: =IF(SUM('POINTS - 2017'!$D$11:$D$50)>0,'STANDINGS - 2017'!J68,'STANDINGS - 2017'!J29) -> 24.5 | N29: Paul Fontaine - 35 | T29: 20A | U29: =IFERROR(VLOOKUP(T29,'LEAGUE MEMBERSHIP'!$B:$F,5,FALSE),"") -> Sheila Sundstrom | W29: =IFERROR(VLOOKUP(T29,'LEAGUE MEMBERSHIP'!$B:$G,6,FALSE),"") -> 13 | Y29: 20B | Z29: =IFERROR(VLOOKUP(Y29,'LEAGUE MEMBERSHIP'!$B:$F,5,FALSE),"") -> Ray Hoy | AB29: =IFERROR(VLOOKUP(Y29,'LEAGUE MEMBERSHIP'!$B:$G,6,FALSE),"") -> 10
F30: =IF(SUM('POINTS - 2017'!$D$11:$D$50)>0,'STANDINGS - 2017'!D69,'STANDINGS - 2017'!D30) -> 20 | G30: =IF(SUM('POINTS - 2017'!$D$11:$D$50)>0,'STANDINGS - 2017'!E69,'STANDINGS - 2017'!E30) -> Team 12 | H30: =IF(SUM('POINTS - 2017'!$D$11:$D$50)>0,'STANDINGS - 2017'!F69,'STANDINGS - 2017'!F30) -> - Sal Ciufetti / Kevin Nivala | L30: =IF(SUM('POINTS - 2017'!$D$11:$D$50)>0,'STANDINGS - 2017'!J69,'STANDINGS - 2017'!J30) -> 13 | N30: Gary Leavenworth - 39 | AB30: =IFERROR(VLOOKUP(Y30,'LEAGUE MEMBERSHIP'!$B:$G,6,FALSE),"") -> 
N31: Ron Ekstrom - 41 | U31: =IFERROR(VLOOKUP(T31,'LEAGUE MEMBERSHIP'!$B:$F,5,FALSE),"") ->  | W31: =IFERROR(VLOOKUP(T31,'LEAGUE MEMBERSHIP'!$B:$G,6,FALSE),"") ->  | Z31: =IFERROR(VLOOKUP(Y31,'LEAGUE MEMBERSHIP'!$B:$F,5,FALSE),"") ->  | AB31: =IFERROR(VLOOKUP(Y31,'LEAGUE MEMBERSHIP'!$B:$G,6,FALSE),"") -> 
F32: ="Closest to the Pin - Week of "&TEXT(A41,"mm/dd/yy") -> Closest to the Pin - Week of 08/23/17 | N32: Jono Normandin - 43 | T32: Sub1 | U32: =IFERROR(VLOOKUP(T32,'LEAGUE MEMBERSHIP'!$B:$F,5,FALSE),"") -> P.J. Romano | W32: =IFERROR(VLOOKUP(T32,'LEAGUE MEMBERSHIP'!$B:$G,6,FALSE),"") -> 12 | Y32: Sub16 | Z32: =IFERROR(VLOOKUP(Y32,'LEAGUE MEMBERSHIP'!$B:$F,5,FALSE),"") -> Becky Bartkus | AB32: =IFERROR(VLOOKUP(Y32,'LEAGUE MEMBERSHIP'!$B:$G,6,FALSE),"") -> 9
F33: Sub17 - Dave Cormier - 22' 1-3/4" | N33: Bob Schleyer - 43 | T33: Sub2 | U33: =IFERROR(VLOOKUP(T33,'LEAGUE MEMBERSHIP'!$B:$F,5,FALSE),"") -> PJ Fontaine | W33: =IFERROR(VLOOKUP(T33,'LEAGUE MEMBERSHIP'!$B:$G,6,FALSE),"") -> 1 | Y33: Sub17 | Z33: =IFERROR(VLOOKUP(Y33,'LEAGUE MEMBERSHIP'!$B:$F,5,FALSE),"") -> Dave Cormier | AB33: =IFERROR(VLOOKUP(Y33,'LEAGUE MEMBERSHIP'!$B:$G,6,FALSE),"") -> 7
T34: Sub3 | U34: =IFERROR(VLOOKUP(T34,'LEAGUE MEMBERSHIP'!$B:$F,5,FALSE),"") -> Jim Hedlund | W34: =IFERROR(VLOOKUP(T34,'LEAGUE MEMBERSHIP'!$B:$G,6,FALSE),"") -> 16 | Y34: Sub18 | Z34: =IFERROR(VLOOKUP(Y34,'LEAGUE MEMBERSHIP'!$B:$F,5,FALSE),"") -> Doug Cormier | AB34: =IFERROR(VLOOKUP(Y34,'LEAGUE MEMBERSHIP'!$B:$G,6,FALSE),"") -> 8
L35: =IF(COUNTIF('SCORES LOAD STATUS'!$A:$A,$A$42)>0," Schedule - Week of " & TEXT($A$42, "mm/dd/yy"),"Season's Over") -> Schedule - Week of 08/30/17 | T35: Sub4 | U35: =IFERROR(VLOOKUP(T35,'LEAGUE MEMBERSHIP'!$B:$F,5,FALSE),"") -> Don Shank | W35: =IFERROR(VLOOKUP(T35,'LEAGUE MEMBERSHIP'!$B:$G,6,FALSE),"") -> 4 | Y35: Sub19 | Z35: =IFERROR(VLOOKUP(Y35,'LEAGUE MEMBERSHIP'!$B:$F,5,FALSE),"") -> Ed Robbins | AB35: =IFERROR(VLOOKUP(Y35,'LEAGUE MEMBERSHIP'!$B:$G,6,FALSE),"") -> 1
F36: Tee Time | L36: Teams | T36: Sub5 | U36: =IFERROR(VLOOKUP(T36,'LEAGUE MEMBERSHIP'!$B:$F,5,FALSE),"") -> Tom Farias | W36: =IFERROR(VLOOKUP(T36,'LEAGUE MEMBERSHIP'!$B:$G,6,FALSE),"") -> 6 | Y36: Sub20 | Z36: =IFERROR(VLOOKUP(Y36,'LEAGUE MEMBERSHIP'!$B:$F,5,FALSE),"") -> Mark Louney | AB36: =IFERROR(VLOOKUP(Y36,'LEAGUE MEMBERSHIP'!$B:$G,6,FALSE),"") -> 10
B37: =IFERROR(IF(HLOOKUP($A$42,'SCORES LOAD STATUS'!$A$1:$AK$21,4,FALSE)="","",HLOOKUP($A$42,'SCORES LOAD STATUS'!$A$1:$AK$21,4,FALSE)),"") -> 17 v 4 | C37: =IFERROR(IF(FIND(" v ",$B37)=3,LEFT($B37,2),LEFT($B37,1)),"") -> 17 | D37: =IFERROR(IF(LEFT(RIGHT($B37,2),1)<>" ",RIGHT($B37,2),RIGHT($B37,1)),"") -> 4 | E37: =IFERROR(IF(LEN(RIGHT(C37,LEN(C37)-FIND("v ",C37)-1))=1,"0"&RIGHT(C37,LEN(C37)-FIND("v ",C37)-1),RIGHT(C37,LEN(C37)-FIND("v ",C37)-1)),"") ->  | F37: ='SCORES LOAD STATUS'!$A4 -> 4:00 PM | G37: =IF(C37<>"","Team "&C37,"") -> Team 17 | H37: =IFERROR("- "&VLOOKUP(C37&"A",'LEAGUE MEMBERSHIP'!B:G,5,FALSE)&" ("&VLOOKUP(C37&"A",'LEAGUE MEMBERSHIP'!B:G,6,FALSE)&") / "&VLOOKUP(C37&"B",'LEAGUE MEMBERSHIP'!B:G,5,FALSE)&" ("&VLOOKUP(C37&"B",'LEAGUE MEMBERSHIP'!B:G,6,FALSE)&")","") -> - Carol Ekstrom (14) / Mike Dauphinais (9) | L37: ="vs." -> vs. | M37: =IFERROR("Team "&D37&IF(LEN(D37) = 1," - "," - ")&VLOOKUP(D37&"A",'LEAGUE MEMBERSHIP'!B:G,5,FALSE)&" ("&VLOOKUP(D37&"A",'LEAGUE MEMBERSHIP'!B:G,6,FALSE)&") / "&VLOOKUP(D37&"B",'LEAGUE MEMBERSHIP'!B:G,5,FALSE)&" ("&VLOOKUP(D37&"B",'LEAGUE MEMBERSHIP'!B:G,6,FALSE)&")","") -> Team 4 - Peg Romano (13) / Lynn Laroche (18) | T37: Sub6 | U37: =IFERROR(VLOOKUP(T37,'LEAGUE MEMBERSHIP'!$B:$F,5,FALSE),"") -> Joe Pearson | W37: =IFERROR(VLOOKUP(T37,'LEAGUE MEMBERSHIP'!$B:$G,6,FALSE),"") -> 12 | Y37: Sub21 | Z37: =IFERROR(VLOOKUP(Y37,'LEAGUE MEMBERSHIP'!$B:$F,5,FALSE),"") -> Paul Stedman | AB37: =IFERROR(VLOOKUP(Y37,'LEAGUE MEMBERSHIP'!$B:$G,6,FALSE),"") -> 4
B38: =IFERROR(IF(HLOOKUP($A$42,'SCORES LOAD STATUS'!$A$1:$AK$21,5,FALSE)="","",HLOOKUP($A$42,'SCORES LOAD STATUS'!$A$1:$AK$21,5,FALSE)),"") -> 1 v 9 | C38: 1 | D38: =IFERROR(IF(LEFT(RIGHT($B38,2),1)<>" ",RIGHT($B38,2),RIGHT($B38,1)),"") -> 9 | F38: ='SCORES LOAD STATUS'!$A5 -> 4:08 PM | G38: =IF(C38<>"","Team "&C38,"") -> Team 1 | H38: =IFERROR("- "&VLOOKUP(C38&"A",'LEAGUE MEMBERSHIP'!B:G,5,FALSE)&" ("&VLOOKUP(C38&"A",'LEAGUE MEMBERSHIP'!B:G,6,FALSE)&") / "&VLOOKUP(C38&"B",'LEAGUE MEMBERSHIP'!B:G,5,FALSE)&" ("&VLOOKUP(C38&"B",'LEAGUE MEMBERSHIP'!B:G,6,FALSE)&")","") -> - John Normandin (18) / Pete Normandin (17) | L38: ="vs." -> vs. | M38: =IFERROR("Team "&D38&IF(LEN(D38) = 1," - "," - ")&VLOOKUP(D38&"A",'LEAGUE MEMBERSHIP'!B:G,5,FALSE)&" ("&VLOOKUP(D38&"A",'LEAGUE MEMBERSHIP'!B:G,6,FALSE)&") / "&VLOOKUP(D38&"B",'LEAGUE MEMBERSHIP'!B:G,5,FALSE)&" ("&VLOOKUP(D38&"B",'LEAGUE MEMBERSHIP'!B:G,6,FALSE)&")","") -> Team 9 - Mike Doane (16) / John Cassin (10) | T38: Sub7 | U38: =IFERROR(VLOOKUP(T38,'LEAGUE MEMBERSHIP'!$B:$F,5,FALSE),"") -> Dennis St. Jean | W38: =IFERROR(VLOOKUP(T38,'LEAGUE MEMBERSHIP'!$B:$G,6,FALSE),"") -> 7 | Y38: Sub22 | Z38: =IFERROR(VLOOKUP(Y38,'LEAGUE MEMBERSHIP'!$B:$F,5,FALSE),"") -> Jan Hedlund | AB38: =IFERROR(VLOOKUP(Y38,'LEAGUE MEMBERSHIP'!$B:$G,6,FALSE),"") -> 15
B39: =IFERROR(IF(HLOOKUP($A$42,'SCORES LOAD STATUS'!$A$1:$AK$21,6,FALSE)="","",HLOOKUP($A$42,'SCORES LOAD STATUS'!$A$1:$AK$21,6,FALSE)),"") -> 19 v 6 | C39: 19 | D39: =IFERROR(IF(LEFT(RIGHT($B39,2),1)<>" ",RIGHT($B39,2),RIGHT($B39,1)),"") -> 6 | E39: =IFERROR(IF(LEN(RIGHT(C39,LEN(C39)-FIND("v ",C39)-1))=1,"0"&RIGHT(C39,LEN(C39)-FIND("v ",C39)-1),RIGHT(C39,LEN(C39)-FIND("v ",C39)-1)),"") ->  | F39: ='SCORES LOAD STATUS'!$A6 -> 4:16 PM | G39: Team 19 | H39: =IFERROR("- "&VLOOKUP(C39&"A",'LEAGUE MEMBERSHIP'!B:G,5,FALSE)&" ("&VLOOKUP(C39&"A",'LEAGUE MEMBERSHIP'!B:G,6,FALSE)&") / "&VLOOKUP(C39&"B",'LEAGUE MEMBERSHIP'!B:G,5,FALSE)&" ("&VLOOKUP(C39&"B",'LEAGUE MEMBERSHIP'!B:G,6,FALSE)&")","") -> - John Pavone (15) / Ernie Beliveau (18) | L39: vs. | M39: =IFERROR("Team "&D39&IF(LEN(D39) = 1," - "," - ")&VLOOKUP(D39&"A",'LEAGUE MEMBERSHIP'!B:G,5,FALSE)&" ("&VLOOKUP(D39&"A",'LEAGUE MEMBERSHIP'!B:G,6,FALSE)&") / "&VLOOKUP(D39&"B",'LEAGUE MEMBERSHIP'!B:G,5,FALSE)&" ("&VLOOKUP(D39&"B",'LEAGUE MEMBERSHIP'!B:G,6,FALSE)&")","") -> Team 6 - Vance Butterfield (6) / Bob Schleyer (8) | T39: Sub8 | U39: =IFERROR(VLOOKUP(T39,'LEAGUE MEMBERSHIP'!$B:$F,5,FALSE),"") -> Joe Fratticelli | W39: =IFERROR(VLOOKUP(T39,'LEAGUE MEMBERSHIP'!$B:$G,6,FALSE),"") -> 15 | Y39: Sub23 | Z39: =IFERROR(VLOOKUP(Y39,'LEAGUE MEMBERSHIP'!$B:$F,5,FALSE),"") -> Brenda Louney | AB39: =IFERROR(VLOOKUP(Y39,'LEAGUE MEMBERSHIP'!$B:$G,6,FALSE),"") -> 13
A40: Week 8 | B40: =IFERROR(IF(HLOOKUP($A$42,'SCORES LOAD STATUS'!$A$1:$AK$21,7,FALSE)="","",HLOOKUP($A$42,'SCORES LOAD STATUS'!$A$1:$AK$21,7,FALSE)),"") -> 18 v 5 | C40: 18 | D40: 5 | F40: ='SCORES LOAD STATUS'!$A7 -> 4:24 PM | G40: Team 18 | H40: =IFERROR("- "&VLOOKUP(C40&"A",'LEAGUE MEMBERSHIP'!B:G,5,FALSE)&" ("&VLOOKUP(C40&"A",'LEAGUE MEMBERSHIP'!B:G,6,FALSE)&") / "&VLOOKUP(C40&"B",'LEAGUE MEMBERSHIP'!B:G,5,FALSE)&" ("&VLOOKUP(C40&"B",'LEAGUE MEMBERSHIP'!B:G,6,FALSE)&")","") -> - Norm Gamache (11) / Michelle Bouvier (23) | L40: vs. | M40: =IFERROR("Team "&D40&IF(LEN(D40) = 1," - "," - ")&VLOOKUP(D40&"A",'LEAGUE MEMBERSHIP'!B:G,5,FALSE)&" ("&VLOOKUP(D40&"A",'LEAGUE MEMBERSHIP'!B:G,6,FALSE)&") / "&VLOOKUP(D40&"B",'LEAGUE MEMBERSHIP'!B:G,5,FALSE)&" ("&VLOOKUP(D40&"B",'LEAGUE MEMBERSHIP'!B:G,6,FALSE)&")","") -> Team 5 - Dennis Normandin (10) / Mark Normandin (6) | T40: Sub9 | U40: =IFERROR(VLOOKUP(T40,'LEAGUE MEMBERSHIP'!$B:$F,5,FALSE),"") -> Pete Collette | W40: =IFERROR(VLOOKUP(T40,'LEAGUE MEMBERSHIP'!$B:$G,6,FALSE),"") -> 6 | Y40: Sub24 | Z40: =IFERROR(VLOOKUP(Y40,'LEAGUE MEMBERSHIP'!$B:$F,5,FALSE),"") -> Kyle Butterfield | AB40: =IFERROR(VLOOKUP(Y40,'LEAGUE MEMBERSHIP'!$B:$G,6,FALSE),"") -> 13
A41: 08/23/17 | B41: =IFERROR(IF(HLOOKUP($A$42,'SCORES LOAD STATUS'!$A$1:$AK$21,8,FALSE)="","",HLOOKUP($A$42,'SCORES LOAD STATUS'!$A$1:$AK$21,8,FALSE)),"") -> 15 v 2 | C41: 15 | D41: 2 | F41: ='SCORES LOAD STATUS'!$A8 -> 4:32 PM | G41: Team 15 | H41: =IFERROR("- "&VLOOKUP(C41&"A",'LEAGUE MEMBERSHIP'!B:G,5,FALSE)&" ("&VLOOKUP(C41&"A",'LEAGUE MEMBERSHIP'!B:G,6,FALSE)&") / "&VLOOKUP(C41&"B",'LEAGUE MEMBERSHIP'!B:G,5,FALSE)&" ("&VLOOKUP(C41&"B",'LEAGUE MEMBERSHIP'!B:G,6,FALSE)&")","") -> - Gary Leavenworth (5) / Patty Leavenworth (8) | L41: vs. | M41: =IFERROR("Team "&D41&IF(LEN(D41) = 1," - "," - ")&VLOOKUP(D41&"A",'LEAGUE MEMBERSHIP'!B:G,5,FALSE)&" ("&VLOOKUP(D41&"A",'LEAGUE MEMBERSHIP'!B:G,6,FALSE)&") / "&VLOOKUP(D41&"B",'LEAGUE MEMBERSHIP'!B:G,5,FALSE)&" ("&VLOOKUP(D41&"B",'LEAGUE MEMBERSHIP'!B:G,6,FALSE)&")","") -> Team 2 - Jono Normandin (7) / Nathan Wallace (11) | T41: Sub10 | U41: =IFERROR(VLOOKUP(T41,'LEAGUE MEMBERSHIP'!$B:$F,5,FALSE),"") -> Ray Henderson | W41: =IFERROR(VLOOKUP(T41,'LEAGUE MEMBERSHIP'!$B:$G,6,FALSE),"") -> 5 | Y41: Sub25 | Z41: =IFERROR(VLOOKUP(Y41,'LEAGUE MEMBERSHIP'!$B:$F,5,FALSE),"") -> Dave Flood | AB41: =IFERROR(VLOOKUP(Y41,'LEAGUE MEMBERSHIP'!$B:$G,6,FALSE),"") -> 8
A42: =IF(A40<> "Week 1",TEXT(A41 + 7, "mm/dd/yy"),TEXT(A41, "mm/dd/yy")) -> 08/30/17 | B42: =IFERROR(IF(HLOOKUP($A$42,'SCORES LOAD STATUS'!$A$1:$AK$21,9,FALSE)="","",HLOOKUP($A$42,'SCORES LOAD STATUS'!$A$1:$AK$21,9,FALSE)),"") -> 14 v 11 | C42: 14 | D42: 11 | F42: ='SCORES LOAD STATUS'!$A9 -> 4:40 PM | G42: Team 14 | H42: =IFERROR("- "&VLOOKUP(C42&"A",'LEAGUE MEMBERSHIP'!B:G,5,FALSE)&" ("&VLOOKUP(C42&"A",'LEAGUE MEMBERSHIP'!B:G,6,FALSE)&") / "&VLOOKUP(C42&"B",'LEAGUE MEMBERSHIP'!B:G,5,FALSE)&" ("&VLOOKUP(C42&"B",'LEAGUE MEMBERSHIP'!B:G,6,FALSE)&")","") -> - Paul Fontaine (3) / Ralph Romano III (8) | L42: vs. | M42: =IFERROR("Team "&D42&IF(LEN(D42) = 1," - "," - ")&VLOOKUP(D42&"A",'LEAGUE MEMBERSHIP'!B:G,5,FALSE)&" ("&VLOOKUP(D42&"A",'LEAGUE MEMBERSHIP'!B:G,6,FALSE)&") / "&VLOOKUP(D42&"B",'LEAGUE MEMBERSHIP'!B:G,5,FALSE)&" ("&VLOOKUP(D42&"B",'LEAGUE MEMBERSHIP'!B:G,6,FALSE)&")","") -> Team 11 - Jim Haskins (9) / Anthony Conte (13) | T42: Sub11 | U42: =IFERROR(VLOOKUP(T42,'LEAGUE MEMBERSHIP'!$B:$F,5,FALSE),"") -> Pete K Normandin | W42: =IFERROR(VLOOKUP(T42,'LEAGUE MEMBERSHIP'!$B:$G,6,FALSE),"") -> 0 | Y42: Sub26 | Z42: =IFERROR(VLOOKUP(Y42,'LEAGUE MEMBERSHIP'!$B:$F,5,FALSE),"") -> Ann Goodwin | AB42: =IFERROR(VLOOKUP(Y42,'LEAGUE MEMBERSHIP'!$B:$G,6,FALSE),"") -> 15
A43: =TEXT(A41, "mm/dd/yy") -> 08/23/17 | B43: =IFERROR(IF(HLOOKUP($A$42,'SCORES LOAD STATUS'!$A$1:$AK$21,10,FALSE)="","",HLOOKUP($A$42,'SCORES LOAD STATUS'!$A$1:$AK$21,10,FALSE)),"") -> 16 v 3 | C43: 16 | D43: 3 | F43: ='SCORES LOAD STATUS'!$A10 -> 4:48 PM | G43: Team 16 | H43: =IFERROR("- "&VLOOKUP(C43&"A",'LEAGUE MEMBERSHIP'!B:G,5,FALSE)&" ("&VLOOKUP(C43&"A",'LEAGUE MEMBERSHIP'!B:G,6,FALSE)&") / "&VLOOKUP(C43&"B",'LEAGUE MEMBERSHIP'!B:G,5,FALSE)&" ("&VLOOKUP(C43&"B",'LEAGUE MEMBERSHIP'!B:G,6,FALSE)&")","") -> - Kevin O'Loughlin (18) / Mike Romano (13) | L43: vs. | M43: =IFERROR("Team "&D43&IF(LEN(D43) = 1," - "," - ")&VLOOKUP(D43&"A",'LEAGUE MEMBERSHIP'!B:G,5,FALSE)&" ("&VLOOKUP(D43&"A",'LEAGUE MEMBERSHIP'!B:G,6,FALSE)&") / "&VLOOKUP(D43&"B",'LEAGUE MEMBERSHIP'!B:G,5,FALSE)&" ("&VLOOKUP(D43&"B",'LEAGUE MEMBERSHIP'!B:G,6,FALSE)&")","") -> Team 3 - Pete Romano (17) / Don Frigoletto (14) | T43: Sub12 | U43: =IFERROR(VLOOKUP(T43,'LEAGUE MEMBERSHIP'!$B:$F,5,FALSE),"") -> Ron Brassard | W43: =IFERROR(VLOOKUP(T43,'LEAGUE MEMBERSHIP'!$B:$G,6,FALSE),"") -> 7 | Y43: Sub27 | Z43: =IFERROR(VLOOKUP(Y43,'LEAGUE MEMBERSHIP'!$B:$F,5,FALSE),"") -> Gary Bittner | AB43: =IFERROR(VLOOKUP(Y43,'LEAGUE MEMBERSHIP'!$B:$G,6,FALSE),"") -> 12
B44: =IFERROR(IF(HLOOKUP($A$42,'SCORES LOAD STATUS'!$A$1:$AK$21,11,FALSE)="","",HLOOKUP($A$42,'SCORES LOAD STATUS'!$A$1:$AK$21,11,FALSE)),"") -> 13 v 12 | C44: 13 | D44: 12 | F44: ='SCORES LOAD STATUS'!$A11 -> 4:56 PM | G44: Team 13 | H44: =IFERROR("- "&VLOOKUP(C44&"A",'LEAGUE MEMBERSHIP'!B:G,5,FALSE)&" ("&VLOOKUP(C44&"A",'LEAGUE MEMBERSHIP'!B:G,6,FALSE)&") / "&VLOOKUP(C44&"B",'LEAGUE MEMBERSHIP'!B:G,5,FALSE)&" ("&VLOOKUP(C44&"B",'LEAGUE MEMBERSHIP'!B:G,6,FALSE)&")","") -> - Tim Hurley (8) / Walter Drake (15) | L44: vs. | M44: =IFERROR("Team "&D44&IF(LEN(D44) = 1," - "," - ")&VLOOKUP(D44&"A",'LEAGUE MEMBERSHIP'!B:G,5,FALSE)&" ("&VLOOKUP(D44&"A",'LEAGUE MEMBERSHIP'!B:G,6,FALSE)&") / "&VLOOKUP(D44&"B",'LEAGUE MEMBERSHIP'!B:G,5,FALSE)&" ("&VLOOKUP(D44&"B",'LEAGUE MEMBERSHIP'!B:G,6,FALSE)&")","") -> Team 12 - Sal Ciufetti (12) / Kevin Nivala (10) | T44: Sub13 | U44: =IFERROR(VLOOKUP(T44,'LEAGUE MEMBERSHIP'!$B:$F,5,FALSE),"") -> Genie Ray Richard | W44: =IFERROR(VLOOKUP(T44,'LEAGUE MEMBERSHIP'!$B:$G,6,FALSE),"") -> 4 | Y44: Sub28 | Z44: =IFERROR(VLOOKUP(Y44,'LEAGUE MEMBERSHIP'!$B:$F,5,FALSE),"") -> Scott Leavenworth | AB44: =IFERROR(VLOOKUP(Y44,'LEAGUE MEMBERSHIP'!$B:$G,6,FALSE),"") -> 18
B45: =IFERROR(IF(HLOOKUP($A$42,'SCORES LOAD STATUS'!$A$1:$AK$21,12,FALSE)="","",HLOOKUP($A$42,'SCORES LOAD STATUS'!$A$1:$AK$21,12,FALSE)),"") -> 20 v 7 | C45: 20 | D45: 7 | F45: ='SCORES LOAD STATUS'!$A12 -> 5:04 PM | G45: Team 20 | H45: =IFERROR("- "&VLOOKUP(C45&"A",'LEAGUE MEMBERSHIP'!B:G,5,FALSE)&" ("&VLOOKUP(C45&"A",'LEAGUE MEMBERSHIP'!B:G,6,FALSE)&") / "&VLOOKUP(C45&"B",'LEAGUE MEMBERSHIP'!B:G,5,FALSE)&" ("&VLOOKUP(C45&"B",'LEAGUE MEMBERSHIP'!B:G,6,FALSE)&")","") -> - Sheila Sundstrom (13) / Ray Hoy (10) | L45: vs. | M45: =IFERROR("Team "&D45&IF(LEN(D45) = 1," - "," - ")&VLOOKUP(D45&"A",'LEAGUE MEMBERSHIP'!B:G,5,FALSE)&" ("&VLOOKUP(D45&"A",'LEAGUE MEMBERSHIP'!B:G,6,FALSE)&") / "&VLOOKUP(D45&"B",'LEAGUE MEMBERSHIP'!B:G,5,FALSE)&" ("&VLOOKUP(D45&"B",'LEAGUE MEMBERSHIP'!B:G,6,FALSE)&")","") -> Team 7 - John Fairbanks (8) / Debbie Fairbanks (14) | T45: Sub14 | U45: =IFERROR(VLOOKUP(T45,'LEAGUE MEMBERSHIP'!$B:$F,5,FALSE),"") -> John MacDonald | W45: =IFERROR(VLOOKUP(T45,'LEAGUE MEMBERSHIP'!$B:$G,6,FALSE),"") -> 10 | Y45: Sub29 | Z45: =IFERROR(VLOOKUP(Y45,'LEAGUE MEMBERSHIP'!$B:$F,5,FALSE),"") -> Dave DiGiovanni | AB45: =IFERROR(VLOOKUP(Y45,'LEAGUE MEMBERSHIP'!$B:$G,6,FALSE),"") -> 5
B46: =IFERROR(IF(HLOOKUP($A$42,'SCORES LOAD STATUS'!$A$1:$AK$21,13,FALSE)="","",HLOOKUP($A$42,'SCORES LOAD STATUS'!$A$1:$AK$21,13,FALSE)),"") -> 10 v 8 | C46: 10 | D46: =IFERROR(IF(LEFT(RIGHT($B46,2),1)<>" ",RIGHT($B46,2),RIGHT($B46,1)),"") -> 8 | F46: ='SCORES LOAD STATUS'!$A13 -> 5:12 PM | G46: Team 10 | H46: =IFERROR("- "&VLOOKUP(C46&"A",'LEAGUE MEMBERSHIP'!B:G,5,FALSE)&" ("&VLOOKUP(C46&"A",'LEAGUE MEMBERSHIP'!B:G,6,FALSE)&") / "&VLOOKUP(C46&"B",'LEAGUE MEMBERSHIP'!B:G,5,FALSE)&" ("&VLOOKUP(C46&"B",'LEAGUE MEMBERSHIP'!B:G,6,FALSE)&")","") -> - Ron Ekstrom (1) / Beth Romano (10) | L46: vs. | M46: =IFERROR("Team "&D46&IF(LEN(D46) = 1," - "," - ")&VLOOKUP(D46&"A",'LEAGUE MEMBERSHIP'!B:G,5,FALSE)&" ("&VLOOKUP(D46&"A",'LEAGUE MEMBERSHIP'!B:G,6,FALSE)&") / "&VLOOKUP(D46&"B",'LEAGUE MEMBERSHIP'!B:G,5,FALSE)&" ("&VLOOKUP(D46&"B",'LEAGUE MEMBERSHIP'!B:G,6,FALSE)&")","") -> Team 8 - Steve Lawrence (5) / Mike Benson (17) | T46: Sub15 | U46: =IFERROR(VLOOKUP(T46,'LEAGUE MEMBERSHIP'!$B:$F,5,FALSE),"") -> Darryl Gagne | W46: =IFERROR(VLOOKUP(T46,'LEAGUE MEMBERSHIP'!$B:$G,6,FALSE),"") -> 8 | Y46: Sub30 | Z46: =IFERROR(VLOOKUP(Y46,'LEAGUE MEMBERSHIP'!$B:$F,5,FALSE),"") -> Alessandro Conte | AB46: =IFERROR(VLOOKUP(Y46,'LEAGUE MEMBERSHIP'!$B:$G,6,FALSE),"") -> 6
B49: Messages: Another gorgeous day for golf, although I did not do well.
A100: STANDINGS - 2016
A101: POINTS - 2016
A102: MATCH RESULTS - 2016

Sheet LOGIN (hidden)
A1: UserName/Password
A3: Pete Romano
A4: Gary Bittner
A6: Pete Romano/PRSquare23
A7: Gary Bittner/123

Sheet LEAGUE RULES
M7: SPECIFIC HOLE RULES
D8: ='COURSE & LEAGUE DETAILS'!$A$23 -> 1. USGA and local rules apply. | K8: ='COURSE & LEAGUE DETAILS'!$A57 -> SPECIFIC HOLE RULES
D9: ='COURSE & LEAGUE DETAILS'!$A$24 -> 2. Teams are responsible for being prompt. Matches should | K9: ='COURSE & LEAGUE DETAILS'!$A58 -> 1. No free drop
D10: ='COURSE & LEAGUE DETAILS'!$A$25 -> begin at their specified time. If the second match following | K10: ='COURSE & LEAGUE DETAILS'!$A59 -> 2. No free drop
D11: ='COURSE & LEAGUE DETAILS'!$A$26 -> yours tees off, the team that is missing shall forfeit unless | K11: ='COURSE & LEAGUE DETAILS'!$A60 -> 3. No free drop. (new change)
D12: ='COURSE & LEAGUE DETAILS'!$A$27 -> prior arrangements have been made. (see rule 3) | K12: ='COURSE & LEAGUE DETAILS'!$A61 -> 4. Free drop if ball lands in ditch on left of fairway.
D13: ='COURSE & LEAGUE DETAILS'!$A$28 -> 3. If a team cannot make a match, it is their responsibility to | K13: ='COURSE & LEAGUE DETAILS'!$A62 -> 5. No free drop
D14: ='COURSE & LEAGUE DETAILS'!$A$29 -> make other arrangements with approval of their opponents | K14: ='COURSE & LEAGUE DETAILS'!$A63 -> 6. No free drop
D15: ='COURSE & LEAGUE DETAILS'!$A$30 -> 4. One member of the team must be present for the match. | K15: ='COURSE & LEAGUE DETAILS'!$A64 -> 7. If first tee shot lands in pond, ball must be placed on fairway at point of entry. If second shot
D16: ='COURSE & LEAGUE DETAILS'!$A$31 -> (one substitution is allowed, not two) | K16: ='COURSE & LEAGUE DETAILS'!$A65 -> enters pond, ball can be placed in drop area on far side of pond to the left of the cart path.
D17: ='COURSE & LEAGUE DETAILS'!$A$32 -> 5. Lost ball/quick play rule - all lost balls are played as lateral | K17: ='COURSE & LEAGUE DETAILS'!$A66 -> Must take a stroke.
D18: ='COURSE & LEAGUE DETAILS'!$A$33 -> hazards. 2 MIN. TIME LIMIT! Play "ready golf". | K18: ='COURSE & LEAGUE DETAILS'!$A67 -> 8. No free drop
D19: ='COURSE & LEAGUE DETAILS'!$A$34 -> 6. Handicaps are based on league performance - 80% of the | K19: ='COURSE & LEAGUE DETAILS'!$A68 -> 9. No free drop
D20: ='COURSE & LEAGUE DETAILS'!$A$35 -> prior 5 weeks of play is used. Maximum strokes: Zero | K20: ='COURSE & LEAGUE DETAILS'!$A69 -> 10. No free drop
D21: ='COURSE & LEAGUE DETAILS'!$A$36 -> given on par 3's, two strokes for par 4's and 5's. Maximum | K21: ='COURSE & LEAGUE DETAILS'!$A70 -> 11. Free drop if ball lands in ditch just ahead of the tee area.
D22: ='COURSE & LEAGUE DETAILS'!$A$37 -> golf score per hole for handicap purposes = 2 times par. | K22: ='COURSE & LEAGUE DETAILS'!$A71 -> 12. If tee shot lands in the pond, drop zone is to the left side of the pond between the pond
D23: ='COURSE & LEAGUE DETAILS'!$A$38 -> New league members without handicaps were assigned a | K23: ='COURSE & LEAGUE DETAILS'!$A72 -> and the bend in the cart path. Must take a stroke.
D24: ='COURSE & LEAGUE DETAILS'!$A$39 -> ZERO handicap. As those individuals post scores, the | K24: ='COURSE & LEAGUE DETAILS'!$A73 -> 13. No free drop
D25: ='COURSE & LEAGUE DETAILS'!$A$40 -> assigned handicap will be adjusted. | K25: ='COURSE & LEAGUE DETAILS'!$A74 -> 14. No free drop
D26: ='COURSE & LEAGUE DETAILS'!$A$41 -> 7. Scoring - Best ball, 1 point per hole, halves are 1/2 point. | K26: ='COURSE & LEAGUE DETAILS'!$A75 -> 15. No free drop
D27: ='COURSE & LEAGUE DETAILS'!$A$42 -> 8. No opponent - when playing for points with no opponent, | K27: ='COURSE & LEAGUE DETAILS'!$A76 -> 16. No free drop
D28: ='COURSE & LEAGUE DETAILS'!$A$43 -> points are awarded as follows: net birdie = 1 point, net par | K28: ='COURSE & LEAGUE DETAILS'!$A77 -> 17. No free drop
D29: ='COURSE & LEAGUE DETAILS'!$A$44 -> = 1/2 point. | K29: ='COURSE & LEAGUE DETAILS'!$A78 -> 18. Free drop if ball lands in ditch left of fairway.
D30: ='COURSE & LEAGUE DETAILS'!$A$45 -> 9. Preferred lies everywhere but HAZARDS.

Sheet COURSE & LEAGUE DETAILS
A2: League Name: | B2: Romano Golf League | E2: Year: | F2: 2017
A3: Course Name: | B3: Woods at Westminster
A4: Course Details:
A5: Hole | B5: 1 | C5: 2 | D5: 3 | E5: 4 | F5: 5 | G5: 6 | H5: 7 | I5: 8 | J5: 9 | K5: OUT
A6: FRONT - Yardage - White | B6: 460 | C6: 275 | D6: 525 | E6: 295 | F6: 345 | G6: 175 | H6: 405 | I6: 145 | J6: 320 | K6: =SUM(B6:J6) -> 2945
A7: FRONT - Par - White | B7: 5 | C7: 4 | D7: 5 | E7: 4 | F7: 4 | G7: 3 | H7: 4 | I7: 3 | J7: 4 | K7: =SUM(B7:J7) -> 36
A8: FRONT - Mens' Hcp. | B8: 5 | C8: 7 | D8: 3 | E8: 9 | F8: 11 | G8: 17 | H8: 1 | I8: 15 | J8: 13
A9: FRONT - Yardage - Red | B9: 375 | C9: 250 | D9: 475 | E9: 255 | F9: 325 | G9: 155 | H9: 375 | I9: 130 | J9: 290 | K9: =SUM(B9:J9) -> 2630
A10: FRONT - Par - Red | B10: 5 | C10: 4 | D10: 5 | E10: 4 | F10: 4 | G10: 3 | H10: 5 | I10: 3 | J10: 4 | K10: =SUM(B10:J10) -> 37
A11: FRONT - Womens' Hcp. | B11: 5 | C11: 7 | D11: 3 | E11: 9 | F11: 11 | G11: 17 | H11: 1 | I11: 15 | J11: 13
A13: Hole | B13: 10 | C13: 11 | D13: 12 | E13: 13 | F13: 14 | G13: 15 | H13: 16 | I13: 17 | J13: 18 | K13: IN
A14: BACK - Yardage - White | B14: 345 | C14: 220 | D14: 330 | E14: 435 | F14: 145 | G14: 315 | H14: 130 | I14: 300 | J14: 340 | K14: =SUM(B14:J14) -> 2560
A15: BACK - Par - White | B15: 5 | C15: 4 | D15: 4 | E15: 5 | F15: 3 | G15: 4 | H15: 3 | I15: 4 | J15: 4 | K15: =SUM(B15:J15) -> 36
A16: BACK - Mens' Hcp. | B16: 6 | C16: 10 | D16: 8 | E16: 4 | F16: 16 | G16: 12 | H16: 18 | I16: 14 | J16: 2
A17: BACK - Yardage - Red | B17: 290 | C17: 200 | D17: 205 | E17: 350 | F17: 140 | G17: 290 | H17: 125 | I17: 255 | J17: 280 | K17: =SUM(B17:J17) -> 2135
A18: BACK - Par - Red | B18: 4 | C18: 4 | D18: 4 | E18: 5 | F18: 3 | G18: 4 | H18: 3 | I18: 4 | J18: 4 | K18: =SUM(B18:J18) -> 35
A19: BACK - Womens' Hcp. | B19: 4 | C19: 2 | D19: 8 | E19: 6 | F19: 16 | G19: 12 | H19: 18 | I19: 14 | J19: 10
A22: League Rules:
A23: 1. USGA and local rules apply.
A24: 2. Teams are responsible for being prompt. Matches should
A25: begin at their specified time. If the second match following
A26: yours tees off, the team that is missing shall forfeit unless
A27: prior arrangements have been made. (see rule 3)
A28: 3. If a team cannot make a match, it is their responsibility to
A29: make other arrangements with approval of their opponents
A30: 4. One member of the team must be present for the match.
A31: (one substitution is allowed, not two)
A32: 5. Lost ball/quick play rule - all lost balls are played as lateral
A33: hazards. 2 MIN. TIME LIMIT! Play "ready golf".
A34: 6. Handicaps are based on league performance - 80% of the
A35: prior 5 weeks of play is used. Maximum strokes: Zero
A36: given on par 3's, two strokes for par 4's and 5's. Maximum
A37: golf score per hole for handicap purposes = 2 times par.
A38: New league members without handicaps were assigned a
A39: ZERO handicap. As those individuals post scores, the
A40: assigned handicap will be adjusted.
A41: 7. Scoring - Best ball, 1 point per hole, halves are 1/2 point.
A42: 8. No opponent - when playing for points with no opponent,
A43: points are awarded as follows: net birdie = 1 point, net par
A44: = 1/2 point.
A45: 9. Preferred lies everywhere but HAZARDS.
A48: Scoresheet Footer:
A49: ="To view scores, handicaps, etc., go to http://www.rromano.com and click on the " & 'COURSE & LEAGUE DETAILS'!B2 & " " & 'COURSE & LEAGUE DETAILS'!F2 & " Spreadsheet" -> To view scores, handicaps, etc., go to http://www.rromano.com and click on the Romano Golf League 2017 Spreadsheet
A52: Handicap Formula:
A54: Handicaps are calculated by averaging a player's prior 5 weeks scores and taking 80% of the difference between the average score and par. Strokes are given against the player with the lowest handicap in the match, no strokes given on par 3's, maximum two strokes on par 4's and 5's. Maximum golf score for handicap purposes = 2 times par.
A57: SPECIFIC HOLE RULES
A58: 1. No free drop
A59: 2. No free drop
A60: 3. No free drop. (new change)
A61: 4. Free drop if ball lands in ditch on left of fairway.
A62: 5. No free drop
A63: 6. No free drop
A64: 7. If first tee shot lands in pond, ball must be placed on fairway at point of entry. If second shot
A65: enters pond, ball can be placed in drop area on far side of pond to the left of the cart path.
A66: Must take a stroke.
A67: 8. No free drop
A68: 9. No free drop
A69: 10. No free drop
A70: 11. Free drop if ball lands in ditch just ahead of the tee area.
A71: 12. If tee shot lands in the pond, drop zone is to the left side of the pond between the pond
A72: and the bend in the cart path. Must take a stroke.
A73: 13. No free drop
A74: 14. No free drop
A75: 15. No free drop
A76: 16. No free drop
A77: 17. No free drop
A78: 18. Free drop if ball lands in ditch left of fairway.

Sheet LEAGUE MEMBERSHIP
AB1: 9999999999
AD2: CT | AE2: Yes
AD3: MA | AE3: No
AD4: NH
R5: M | S5: Y | AD5: RI
A6: League Members | R6: F | S6: N
A7: Player ID | B7: Player/Team No. | C7: Last Name | D7: First Name | E7: M / F | F7: FirstName/LastName | G7: Handicap | H7: Team | I7: RGL No. | J7: Tel. No. | K7: Email | L7: Address1 | M7: Address2 | N7: City | O7: State | P7: Zip | Q7: ='COURSE & LEAGUE DETAILS'!F2&" Dues Pd?" -> 2017 Dues Pd?
A8: RGL-066 | B8: Sub16 | C8: Bartkus | D8: Becky | E8: F | F8: =IF(C8<>"",CONCATENATE(D8&" "&C8),"") -> Becky Bartkus | G8: 9 | H8: =IF(B8 = "", "",IF(LEFT(B8,3)="Sub","",IF(LEN(B8)=2,"Team "&LEFT(B8,1),"Team "&LEFT(B8,2)))) ->  | I8: =A8 -> RGL-066 | J8: 9783407865
A9: RGL-051 | B9: 19B | C9: Beliveau | D9: Ernie | E9: M | F9: Ernie Beliveau | G9: 18 | H9: Team 19 | I9: RGL-051 | J9: 9784237256 | K9: ebeliveau@makicorp.com
A10: RGL-024 | B10: 8B | C10: Benson | D10: Mike | E10: M | F10: Mike Benson | G10: 17 | H10: Team 8 | I10: RGL-024
A11: RGL-025 | B11: Sub27 | C11: Bittner | D11: Gary | E11: M | F11: Gary Bittner | G11: 12 | I11: RGL-025 | J11: 9788742642 | K11: gary.bittner2@comcast.net
A12: RGL-045 | B12: 18B | C12: Bouvier | D12: Michelle | E12: F | F12: Michelle Bouvier | G12: 23 | H12: Team 18 | I12: RGL-045 | J12: 9786600581 | K12: bmochachip5@comcast.net
A13: RGL-064 | B13: Sub12 | C13: Brassard | D13: Ron | E13: M | F13: Ron Brassard | G13: 7 | I13: RGL-064
A14: RGL-059 | B14: Sub24 | C14: Butterfield | D14: Kyle | E14: M | F14: Kyle Butterfield | G14: 13 | I14: RGL-059 | J14: 7743647442 | K14: kylesbutterfield@gmail.com
A15: RGL-006 | B15: 6A | C15: Butterfield | D15: Vance | E15: M | F15: Vance Butterfield | G15: 6 | H15: Team 6 | I15: RGL-006 | J15: 9788740213 | K15: vbutterfield@comcast.net
A16: RGL-005 | B16: 9B | C16: Cassin | D16: John | E16: M | F16: John Cassin | G16: 10 | H16: Team 9 | I16: RGL-005 | J16: 6172242313
A17: RGL-046 | B17: 12A | C17: Ciufetti | D17: Sal | E17: M | F17: Sal Ciufetti | G17: 12 | H17: Team 12 | I17: RGL-046
A18: RGL-052 | B18: Sub9 | C18: Collette | D18: Pete | E18: M | F18: Pete Collette | G18: 6 | I18: RGL-052
A19: RGL-042 | B19: Sub30 | C19: Conte | D19: Alessandro | E19: M | F19: Alessandro Conte | G19: 6 | I19: RGL-042
A20: RGL-040 | B20: 11B | C20: Conte | D20: Anthony | E20: M | F20: Anthony Conte | G20: 13 | H20: Team 11 | I20: RGL-040 | J20: 7742620385 | K20: contecarpentry1@yahoo.com
A21: RGL-008 | B21: Sub17 | C21: Cormier | D21: Dave | E21: M | F21: Dave Cormier | G21: 7 | I21: RGL-008
A22: RGL-031 | B22: Sub18 | C22: Cormier | D22: Doug | E22: M | F22: Doug Cormier | G22: 8 | I22: RGL-031
A23: RGL-009 | B23: 17B | C23: Dauphinais | D23: Mike | E23: M | F23: Mike Dauphinais | G23: 9 | H23: Team 17 | I23: RGL-009 | J23: 9788740487 | K23: MikeDauphinais@aol.com
A24: RGL-004 | B24: Sub29 | C24: DiGiovanni | D24: Dave | E24: M | F24: Dave DiGiovanni | G24: 5 | I24: RGL-004
A25: RGL-015 | B25: 9A | C25: Doane | D25: Mike | E25: M | F25: Mike Doane | G25: 16 | H25: Team 9 | I25: RGL-015
A26: RGL-010 | B26: 13B | C26: Drake | D26: Walter | E26: M | F26: Walter Drake | G26: 15 | H26: Team 13 | I26: RGL-010 | J26: 9789284028
A27: RGL-053 | B27: 17A | C27: Ekstrom | D27: Carol | E27: F | F27: Carol Ekstrom | G27: 14 | H27: Team 17 | I27: RGL-053
A28: RGL-050 | B28: 10A | C28: Ekstrom | D28: Ron | E28: M | F28: Ron Ekstrom | G28: 1 | H28: Team 10 | I28: RGL-050
A29: RGL-036 | B29: 7B | C29: Fairbanks | D29: Debbie | E29: F | F29: Debbie Fairbanks | G29: 14 | H29: Team 7 | I29: RGL-036 | J29: 9788740462 | K29: jffairbanks@aol.com
A30: RGL-020 | B30: 7A | C30: Fairbanks | D30: John | E30: M | F30: John Fairbanks | G30: 8 | H30: Team 7 | I30: RGL-020 | J30: 9788740462 | K30: jffairbanks@aol.com
A31: RGL-011 | B31: Sub5 | C31: Farias | D31: Tom | E31: M | F31: Tom Farias | G31: 6 | I31: RGL-011
A32: RGL-047 | B32: Sub25 | C32: Flood | D32: Dave | E32: M | F32: Dave Flood | G32: 8 | I32: RGL-047 | J32: 9785491525
A33: RGL-055 | B33: 14A | C33: Fontaine | D33: Paul | E33: M | F33: Paul Fontaine | G33: 3 | H33: Team 14 | I33: RGL-055 | J33: 9783434384
A34: RGL-056 | B34: Sub2 | C34: Fontaine | D34: PJ | E34: M | F34: PJ Fontaine | G34: 1 | I34: RGL-056 | J34: 9788553266
A35: RGL-049 | B35: Sub8 | C35: Fratticelli | D35: Joe | E35: M | F35: Joe Fratticelli | G35: 15 | I35: RGL-049
A36: RGL-014 | B36: 3B | C36: Frigoletto | D36: Don | E36: M | F36: Don Frigoletto | G36: 14 | H36: Team 3 | I36: RGL-014 | J36: 9785373772
A37: RGL-002 | B37: Sub15 | C37: Gagne | D37: Darryl | E37: M | F37: Darryl Gagne | G37: 8 | I37: RGL-002 | J37: 9784919071 | K37: dgagne@simplistix.com
A38: RGL-016 | B38: 18A | C38: Gamache | D38: Norm | E38: M | F38: Norm Gamache | G38: 11 | H38: Team 18 | I38: RGL-016 | J38: 9788157886 | K38: normgamach33@live.com
A39: RGL-070 | B39: Sub26 | C39: Goodwin | D39: Ann | E39: F | F39: Ann Goodwin | G39: 15 | I39: RGL-070 | J39: 9788740880 | K39: amgkk48@tiac.net
A40: RGL-038 | B40: 11A | C40: Haskins | D40: Jim | E40: M | F40: =IF(C40<>"",CONCATENATE(D40&" "&C40),"") -> Jim Haskins | G40: 9 | H40: =IF(B40 = "", "",IF(LEFT(B40,3)="Sub","",IF(LEN(B40)=2,"Team "&LEFT(B40,1),"Team "&LEFT(B40,2)))) -> Team 11 | I40: =A40 -> RGL-038 | J40: 9788154501 | K40: jhaskins@makicorp.com
A41: RGL-012 | B41: Sub22 | C41: Hedlund | D41: Jan | E41: F | F41: Jan Hedlund | G41: 15 | I41: RGL-012
A42: RGL-065 | B42: Sub3 | C42: Hedlund | D42: Jim | E42: M | F42: Jim Hedlund | G42: 16 | I42: RGL-065 | J42: 9786685183
A43: RGL-018 | B43: Sub10 | C43: Henderson | D43: Ray | E43: M | F43: Ray Henderson | G43: 5 | I43: RGL-018 | J43: 9786325543
A44: RGL-054 | B44: 20B | C44: Hoy | D44: Ray | E44: M | F44: Ray Hoy | G44: 10 | H44: Team 20 | I44: RGL-054
A45: RGL-019 | B45: 13A | C45: Hurley | D45: Tim | E45: M | F45: Tim Hurley | G45: 8 | H45: Team 13 | I45: RGL-019 | J45: 9785005882
A46: RGL-021 | B46: 4B | C46: Laroche | D46: Lynn | E46: F | F46: Lynn Laroche | G46: 18 | H46: Team 4 | I46: RGL-021 | J46: 9788741239
A47: RGL-003 | B47: 8A | C47: Lawrence | D47: Steve | E47: M | F47: Steve Lawrence | G47: 5 | H47: Team 8 | I47: RGL-003 | J47: 6037270642 | K47: slawrence@componentrunner.com
A48: RGL-022 | B48: 15A | C48: Leavenworth | D48: Gary | E48: M | F48: Gary Leavenworth | G48: 5 | H48: Team 15 | I48: RGL-022 | J48: 9788740322
A49: RGL-023 | B49: 15B | C49: Leavenworth | D49: Patty | E49: F | F49: Patty Leavenworth | G49: 8 | H49: Team 15 | I49: RGL-023 | J49: 9788740322
A50: RGL-044 | B50: Sub28 | C50: Leavenworth | D50: Scott | E50: M | F50: Scott Leavenworth | G50: 18 | I50: RGL-044
A51: RGL-067 | B51: Sub23 | C51: Louney | D51: Brenda | E51: F | F51: Brenda Louney | G51: 13 | I51: RGL-067
A52: RGL-068 | B52: Sub20 | C52: Louney | D52: Mark | E52: M | F52: Mark Louney | G52: 10 | I52: RGL-068 | J52: 9783423503
A53: RGL-048 | B53: Sub14 | C53: MacDonald | D53: John | E53: M | F53: John MacDonald | G53: 10 | I53: RGL-048 | J53: 7812544212
A54: RGL-007 | B54: 12B | C54: Nivala | D54: Kevin | E54: M | F54: Kevin Nivala | G54: 10 | H54: Team 12 | I54: RGL-007 | K54: knivala@westminster-ma.gov
A55: RGL-026 | B55: 5A | C55: Normandin | D55: Dennis | E55: M | F55: Dennis Normandin | G55: 10 | H55: Team 5 | I55: RGL-026 | J55: 9788742854 | K55: DennisPN@aol.com
A56: RGL-063 | B56: 1A | C56: Normandin | D56: John | E56: M | F56: John Normandin | G56: 18 | H56: Team 1 | I56: RGL-063
A57: RGL-057 | B57: 2A | C57: Normandin | D57: Jono | E57: M | F57: Jono Normandin | G57: 7 | H57: Team 2 | I57: RGL-057
A58: RGL-027 | B58: 5B | C58: Normandin | D58: Mark | E58: M | F58: Mark Normandin | G58: 6 | H58: Team 5 | I58: RGL-027 | J58: 9785826259 | K58: mjkn88@comcast.net
A59: RGL-028 | B59: 1B | C59: Normandin | D59: Pete | E59: M | F59: Pete Normandin | G59: 17 | H59: Team 1 | I59: RGL-028 | J59: 9788740664
A60: RGL-035 | B60: Sub11 | C60: Normandin | D60: Pete K | E60: M | F60: Pete K Normandin | G60: 0 | I60: RGL-035 | J60: 9788742642
A61: RGL-029 | B61: 16A | C61: O'Loughlin | D61: Kevin | E61: M | F61: Kevin O'Loughlin | G61: 18 | H61: Team 16 | I61: RGL-029
A62: RGL-043 | B62: 19A | C62: Pavone | D62: John | E62: M | F62: John Pavone | G62: 15 | H62: Team 19 | I62: RGL-043 | J62: 9788154504 | K62: jpavone@makicorp.com
A63: RGL-030 | B63: Sub6 | C63: Pearson | D63: Joe | E63: M | F63: Joe Pearson | G63: 12 | I63: RGL-030 | J63: 9783406277
A64: RGL-001 | B64: Sub13 | C64: Richard | D64: Genie Ray | E64: F | F64: Genie Ray Richard | G64: 4 | I64: RGL-001
A65: RGL-017 | B65: Sub19 | C65: Robbins | D65: Ed | E65: M | F65: Ed Robbins | G65: 1 | I65: RGL-017
A66: RGL-060 | B66: 10B | C66: Romano | D66: Beth | E66: F | F66: Beth Romano | G66: 10 | H66: Team 10 | I66: RGL-060 | J66: 9783433681
A67: RGL-061 | B67: 16B | C67: Romano | D67: Mike | E67: M | F67: Mike Romano | G67: 13 | H67: Team 16 | I67: RGL-061 | J67: 9783437225
A68: RGL-062 | B68: Sub1 | C68: Romano | D68: P.J. | E68: M | F68: P.J. Romano | G68: 12 | I68: RGL-062 | J68: 9788271453 | K68: pjromano@comcast.net
A69: RGL-032 | B69: 4A | C69: Romano | D69: Peg | E69: F | F69: Peg Romano | G69: 13 | H69: Team 4 | I69: RGL-032 | J69: 9788740478
A70: RGL-033 | B70: 3A | C70: Romano | D70: Pete | E70: M | F70: Pete Romano | G70: 17 | H70: Team 3 | I70: RGL-033 | J70: 9788740478 | K70: prsquare@verizon.net
A71: RGL-034 | B71: 14B | C71: Romano III | D71: Ralph | E71: M | F71: Ralph Romano III | G71: 8 | H71: Team 14 | I71: RGL-034 | J71: 9783452614 | K71: ralph@rromano.com
A72: RGL-037 | B72: 6B | C72: Schleyer | D72: Bob | E72: M | F72: =IF(C72<>"",CONCATENATE(D72&" "&C72),"") -> Bob Schleyer | G72: 8 | H72: =IF(B72 = "", "",IF(LEFT(B72,3)="Sub","",IF(LEN(B72)=2,"Team "&LEFT(B72,1),"Team "&LEFT(B72,2)))) -> Team 6 | I72: =A72 -> RGL-037 | J72: 9788741224
A73: RGL-041 | B73: Sub4 | C73: Shank | D73: Don | E73: M | F73: Don Shank | G73: 4 | I73: RGL-041
A74: RGL-039 | B74: Sub7 | C74: St. Jean | D74: Dennis | E74: M | F74: Dennis St. Jean | G74: 7 | I74: RGL-039 | J74: 9788742835 | K74: dennis.stjean@verizon.net
A75: RGL-058 | B75: Sub21 | C75: Stedman | D75: Paul | E75: M | F75: Paul Stedman | G75: 4 | I75: RGL-058
A76: RGL-069 | B76: 20A | C76: Sundstrom | D76: Sheila | E76: F | F76: Sheila Sundstrom | G76: 13 | H76: Team 20 | I76: RGL-069 | J76: 9784237290 | K76: ssundstrom@makicorp.com
A77: RGL-013 | B77: 2B | C77: Wallace | D77: Nathan | E77: M | F77: Nathan Wallace | G77: 11 | H77: Team 2 | I77: RGL-013 | J77: 9785495255 | K77: nwal21@live.com
A78: RGL-071 | I78: RGL-071
A79: RGL-072 | I79: RGL-072
A80: RGL-073 | G80: =IFERROR(VLOOKUP(A80 & "F",'INDIVIDUAL SCORES DATA'!A:P,16,FALSE),"") ->  | I80: RGL-073
A81: RGL-074 | G81: =IFERROR(VLOOKUP(A81 & "F",'INDIVIDUAL SCORES DATA'!A:P,16,FALSE),"") ->  | I81: RGL-074
A82: RGL-075 | G82: =IFERROR(VLOOKUP(A82 & "F",'INDIVIDUAL SCORES DATA'!A:P,16,FALSE),"") ->  | I82: RGL-075
A83: RGL-076 | G83: =IFERROR(VLOOKUP(A83 & "F",'INDIVIDUAL SCORES DATA'!A:P,16,FALSE),"") ->  | I83: RGL-076
A84: RGL-077 | G84: =IFERROR(VLOOKUP(A84 & "F",'INDIVIDUAL SCORES DATA'!A:P,16,FALSE),"") ->  | I84: RGL-077
A85: RGL-078 | G85: =IFERROR(VLOOKUP(A85 & "F",'INDIVIDUAL SCORES DATA'!A:P,16,FALSE),"") ->  | I85: RGL-078
A86: RGL-079 | G86: =IFERROR(VLOOKUP(A86 & "F",'INDIVIDUAL SCORES DATA'!A:P,16,FALSE),"") ->  | I86: RGL-079
A87: RGL-080 | G87: =IFERROR(VLOOKUP(A87 & "F",'INDIVIDUAL SCORES DATA'!A:P,16,FALSE),"") ->  | I87: RGL-080
A88: RGL-081 | G88: =IFERROR(VLOOKUP(A88 & "F",'INDIVIDUAL SCORES DATA'!A:P,16,FALSE),"") ->  | I88: RGL-081
A89: RGL-082 | G89: =IFERROR(VLOOKUP(A89 & "F",'INDIVIDUAL SCORES DATA'!A:P,16,FALSE),"") ->  | I89: RGL-082
A90: RGL-083 | G90: =IFERROR(VLOOKUP(A90 & "F",'INDIVIDUAL SCORES DATA'!A:P,16,FALSE),"") ->  | I90: RGL-083
A91: RGL-084 | G91: =IFERROR(VLOOKUP(A91 & "F",'INDIVIDUAL SCORES DATA'!A:P,16,FALSE),"") ->  | I91: RGL-084
A92: RGL-085 | G92: =IFERROR(VLOOKUP(A92 & "F",'INDIVIDUAL SCORES DATA'!A:P,16,FALSE),"") ->  | I92: RGL-085
A93: RGL-086 | G93: =IFERROR(VLOOKUP(A93 & "F",'INDIVIDUAL SCORES DATA'!A:P,16,FALSE),"") ->  | I93: RGL-086
A94: RGL-087 | G94: =IFERROR(VLOOKUP(A94 & "F",'INDIVIDUAL SCORES DATA'!A:P,16,FALSE),"") ->  | I94: RGL-087
A95: RGL-088 | G95: =IFERROR(VLOOKUP(A95 & "F",'INDIVIDUAL SCORES DATA'!A:P,16,FALSE),"") ->  | I95: RGL-088
A96: RGL-089 | G96: =IFERROR(VLOOKUP(A96 & "F",'INDIVIDUAL SCORES DATA'!A:P,16,FALSE),"") ->  | I96: RGL-089
A97: RGL-090 | G97: =IFERROR(VLOOKUP(A97 & "F",'INDIVIDUAL SCORES DATA'!A:P,16,FALSE),"") ->  | I97: RGL-090
A98: RGL-091 | G98: =IFERROR(VLOOKUP(A98 & "F",'INDIVIDUAL SCORES DATA'!A:P,16,FALSE),"") ->  | I98: RGL-091
A99: RGL-092 | G99: =IFERROR(VLOOKUP(A99 & "F",'INDIVIDUAL SCORES DATA'!A:P,16,FALSE),"") ->  | I99: RGL-092
A100: RGL-093 | G100: =IFERROR(VLOOKUP(A100 & "F",'INDIVIDUAL SCORES DATA'!A:P,16,FALSE),"") ->  | I100: RGL-093
A101: RGL-094 | G101: =IFERROR(VLOOKUP(A101 & "F",'INDIVIDUAL SCORES DATA'!A:P,16,FALSE),"") ->  | I101: RGL-094
A102: RGL-095 | G102: =IFERROR(VLOOKUP(A102 & "F",'INDIVIDUAL SCORES DATA'!A:P,16,FALSE),"") ->  | I102: RGL-095
A103: RGL-096 | G103: =IFERROR(VLOOKUP(A103 & "F",'INDIVIDUAL SCORES DATA'!A:P,16,FALSE),"") ->  | I103: RGL-096
A104: RGL-097 | G104: =IFERROR(VLOOKUP(A104 & "F",'INDIVIDUAL SCORES DATA'!A:P,16,FALSE),"") ->  | I104: RGL-097
A105: RGL-098 | G105: =IFERROR(VLOOKUP(A105 & "F",'INDIVIDUAL SCORES DATA'!A:P,16,FALSE),"") ->  | I105: RGL-098
A106: RGL-099 | B106: Course | C106: Course | E106: M | F106: =IF(C106<>"",CONCATENATE(D106&" "&C106),"") -> Course | G106: 0 | I106: =A106 -> RGL-099
A107: RGL-100 | B107: DNP | C107: Partner Did Not Play | E107: M | F107: Partner Did Not Play | G107: 0 | I107: RGL-100
L108: 10A | M108: =IFERROR(VLOOKUP(L108,$F$8:$F$105,2,FALSE),"") -> 
L109: 10B
A110: =IFERROR(VLOOKUP("Course",$B$7:$B$107,1,FALSE),"") -> Course | B110: =IFERROR(VLOOKUP(A110,$B$7:$F$107,5,FALSE),"") -> Course | D110: =IFERROR(VLOOKUP("1A",$B$7:$B$107,1,FALSE),"") -> 1A | E110: =IFERROR(VLOOKUP(D110,$B$7:$F$107,5,FALSE),"") -> John Normandin | G110: =D110 & " - " & E110 -> 1A - John Normandin | L110: 11A
A111: =IFERROR(VLOOKUP("DNP",$B$7:$B$107,1,FALSE),"") -> DNP | B111: =IFERROR(VLOOKUP(A111,$B$7:$F$107,5,FALSE),"") -> Partner Did Not Play | D111: =IFERROR(VLOOKUP("1B",$B$7:$B$107,1,FALSE),"") -> 1B | E111: Pete Normandin | G111: =D111 & " - " & E111 -> 1B - Pete Normandin | L111: 11B
A112: =IFERROR(VLOOKUP("Sub1",$B$7:$B$107,1,FALSE),"") -> Sub1 | B112: P.J. Romano | D112: =IFERROR(VLOOKUP("2A",$B$7:$B$107,1,FALSE),"") -> 2A | E112: Jono Normandin | G112: 2A - Jono Normandin | L112: 12A
A113: =IFERROR(VLOOKUP("Sub2",$B$7:$B$107,1,FALSE),"") -> Sub2 | B113: PJ Fontaine | D113: =IFERROR(VLOOKUP("2B",$B$7:$B$107,1,FALSE),"") -> 2B | E113: Nathan Wallace | G113: 2B - Nathan Wallace | L113: 12B
A114: =IFERROR(VLOOKUP("Sub3",$B$7:$B$107,1,FALSE),"") -> Sub3 | B114: Jim Hedlund | D114: =IFERROR(VLOOKUP("3A",$B$7:$B$107,1,FALSE),"") -> 3A | E114: Pete Romano | G114: 3A - Pete Romano | L114: 13A
A115: =IFERROR(VLOOKUP("Sub4",$B$7:$B$107,1,FALSE),"") -> Sub4 | B115: Don Shank | D115: =IFERROR(VLOOKUP("3B",$B$7:$B$107,1,FALSE),"") -> 3B | E115: Don Frigoletto | G115: 3B - Don Frigoletto | L115: 13B
A116: =IFERROR(VLOOKUP("Sub5",$B$7:$B$107,1,FALSE),"") -> Sub5 | B116: Tom Farias | D116: =IFERROR(VLOOKUP("4A",$B$7:$B$107,1,FALSE),"") -> 4A | E116: Peg Romano | G116: 4A - Peg Romano | L116: 14A
A117: =IFERROR(VLOOKUP("Sub6",$B$7:$B$107,1,FALSE),"") -> Sub6 | B117: Joe Pearson | D117: =IFERROR(VLOOKUP("4B",$B$7:$B$107,1,FALSE),"") -> 4B | E117: Lynn Laroche | G117: 4B - Lynn Laroche | L117: 14B
A118: =IFERROR(VLOOKUP("Sub7",$B$7:$B$107,1,FALSE),"") -> Sub7 | B118: Dennis St. Jean | D118: =IFERROR(VLOOKUP("5A",$B$7:$B$107,1,FALSE),"") -> 5A | E118: Dennis Normandin | G118: 5A - Dennis Normandin | L118: 15A
A119: =IFERROR(VLOOKUP("Sub8",$B$7:$B$107,1,FALSE),"") -> Sub8 | B119: Joe Fratticelli | D119: =IFERROR(VLOOKUP("5B",$B$7:$B$107,1,FALSE),"") -> 5B | E119: Mark Normandin | G119: 5B - Mark Normandin | L119: 15B
A120: =IFERROR(VLOOKUP("Sub9",$B$7:$B$107,1,FALSE),"") -> Sub9 | B120: Pete Collette | D120: =IFERROR(VLOOKUP("6A",$B$7:$B$107,1,FALSE),"") -> 6A | E120: Vance Butterfield | G120: 6A - Vance Butterfield | L120: 16A
A121: =IFERROR(VLOOKUP("Sub10",$B$7:$B$107,1,FALSE),"") -> Sub10 | B121: Ray Henderson | D121: =IFERROR(VLOOKUP("6B",$B$7:$B$107,1,FALSE),"") -> 6B | E121: Bob Schleyer | G121: 6B - Bob Schleyer | L121: 16B
A122: =IFERROR(VLOOKUP("Sub11",$B$7:$B$107,1,FALSE),"") -> Sub11 | B122: Pete K Normandin | D122: =IFERROR(VLOOKUP("7A",$B$7:$B$107,1,FALSE),"") -> 7A | E122: John Fairbanks | G122: 7A - John Fairbanks | L122: 17A
A123: =IFERROR(VLOOKUP("Sub12",$B$7:$B$107,1,FALSE),"") -> Sub12 | B123: Ron Brassard | D123: =IFERROR(VLOOKUP("7B",$B$7:$B$107,1,FALSE),"") -> 7B | E123: Debbie Fairbanks | G123: 7B - Debbie Fairbanks | L123: 17B
A124: =IFERROR(VLOOKUP("Sub13",$B$7:$B$107,1,FALSE),"") -> Sub13 | B124: Genie Ray Richard | D124: =IFERROR(VLOOKUP("8A",$B$7:$B$107,1,FALSE),"") -> 8A | E124: Steve Lawrence | G124: 8A - Steve Lawrence | L124: 18A
A125: =IFERROR(VLOOKUP("Sub14",$B$7:$B$107,1,FALSE),"") -> Sub14 | B125: John MacDonald | D125: =IFERROR(VLOOKUP("8B",$B$7:$B$107,1,FALSE),"") -> 8B | E125: Mike Benson | G125: 8B - Mike Benson | L125: 18B
A126: =IFERROR(VLOOKUP("Sub15",$B$7:$B$107,1,FALSE),"") -> Sub15 | B126: Darryl Gagne | D126: =IFERROR(VLOOKUP("9A",$B$7:$B$107,1,FALSE),"") -> 9A | E126: Mike Doane | G126: 9A - Mike Doane | L126: 19A
A127: =IFERROR(VLOOKUP("Sub16",$B$7:$B$107,1,FALSE),"") -> Sub16 | B127: Becky Bartkus | D127: =IFERROR(VLOOKUP("9B",$B$7:$B$107,1,FALSE),"") -> 9B | E127: John Cassin | G127: 9B - John Cassin | L127: 19B
A128: =IFERROR(VLOOKUP("Sub17",$B$7:$B$107,1,FALSE),"") -> Sub17 | B128: Dave Cormier | D128: =IFERROR(VLOOKUP("10A",$B$7:$B$107,1,FALSE),"") -> 10A | E128: Ron Ekstrom | G128: 10A - Ron Ekstrom | L128: 20A
A129: =IFERROR(VLOOKUP("Sub18",$B$7:$B$107,1,FALSE),"") -> Sub18 | B129: Doug Cormier | D129: =IFERROR(VLOOKUP("10B",$B$7:$B$107,1,FALSE),"") -> 10B | E129: Beth Romano | G129: 10B - Beth Romano | L129: 20B
A130: =IFERROR(VLOOKUP("Sub19",$B$7:$B$107,1,FALSE),"") -> Sub19 | B130: Ed Robbins | D130: =IFERROR(VLOOKUP("11A",$B$7:$B$107,1,FALSE),"") -> 11A | E130: Jim Haskins | G130: 11A - Jim Haskins | L130: 21A
A131: =IFERROR(VLOOKUP("Sub20",$B$7:$B$107,1,FALSE),"") -> Sub20 | B131: Mark Louney | D131: =IFERROR(VLOOKUP("11B",$B$7:$B$107,1,FALSE),"") -> 11B | E131: Anthony Conte | G131: 11B - Anthony Conte | L131: 21B
A132: =IFERROR(VLOOKUP("Sub21",$B$7:$B$107,1,FALSE),"") -> Sub21 | B132: Paul Stedman | D132: =IFERROR(VLOOKUP("12A",$B$7:$B$107,1,FALSE),"") -> 12A | E132: Sal Ciufetti | G132: 12A - Sal Ciufetti | L132: 22A
A133: =IFERROR(VLOOKUP("Sub22",$B$7:$B$107,1,FALSE),"") -> Sub22 | B133: Jan Hedlund | D133: =IFERROR(VLOOKUP("12B",$B$7:$B$107,1,FALSE),"") -> 12B | E133: Kevin Nivala | G133: 12B - Kevin Nivala | L133: 22B
A134: =IFERROR(VLOOKUP("Sub23",$B$7:$B$107,1,FALSE),"") -> Sub23 | B134: Brenda Louney | D134: =IFERROR(VLOOKUP("13A",$B$7:$B$107,1,FALSE),"") -> 13A | E134: Tim Hurley | G134: 13A - Tim Hurley | L134: 23A
A135: =IFERROR(VLOOKUP("Sub24",$B$7:$B$107,1,FALSE),"") -> Sub24 | B135: Kyle Butterfield | D135: =IFERROR(VLOOKUP("13B",$B$7:$B$107,1,FALSE),"") -> 13B | E135: Walter Drake | G135: 13B - Walter Drake | L135: 23B
A136: =IFERROR(VLOOKUP("Sub25",$B$7:$B$107,1,FALSE),"") -> Sub25 | B136: Dave Flood | D136: =IFERROR(VLOOKUP("14A",$B$7:$B$107,1,FALSE),"") -> 14A | E136: Paul Fontaine | G136: 14A - Paul Fontaine | L136: 24A
A137: =IFERROR(VLOOKUP("Sub26",$B$7:$B$107,1,FALSE),"") -> Sub26 | B137: Ann Goodwin | D137: =IFERROR(VLOOKUP("14B",$B$7:$B$107,1,FALSE),"") -> 14B | E137: Ralph Romano III | G137: 14B - Ralph Romano III | L137: 24B
A138: =IFERROR(VLOOKUP("Sub27",$B$7:$B$107,1,FALSE),"") -> Sub27 | B138: Gary Bittner | D138: =IFERROR(VLOOKUP("15A",$B$7:$B$107,1,FALSE),"") -> 15A | E138: Gary Leavenworth | G138: 15A - Gary Leavenworth | L138: 25A
A139: =IFERROR(VLOOKUP("Sub28",$B$7:$B$107,1,FALSE),"") -> Sub28 | B139: Scott Leavenworth | D139: =IFERROR(VLOOKUP("15B",$B$7:$B$107,1,FALSE),"") -> 15B | E139: Patty Leavenworth | G139: 15B - Patty Leavenworth | L139: 25B
A140: =IFERROR(VLOOKUP("Sub29",$B$7:$B$107,1,FALSE),"") -> Sub29 | B140: Dave DiGiovanni | D140: =IFERROR(VLOOKUP("16A",$B$7:$B$107,1,FALSE),"") -> 16A | E140: Kevin O'Loughlin | G140: 16A - Kevin O'Loughlin | L140: 26A | M140: =IFERROR(VLOOKUP(L140,$F$8:$F$105,2,FALSE),"") -> 
A141: =IFERROR(VLOOKUP("Sub30",$B$7:$B$107,1,FALSE),"") -> Sub30 | B141: Alessandro Conte | D141: =IFERROR(VLOOKUP("16B",$B$7:$B$107,1,FALSE),"") -> 16B | E141: Mike Romano | G141: 16B - Mike Romano | L141: 26B
A142: =IFERROR(VLOOKUP("1A",$B$7:$B$107,1,FALSE),"") -> 1A | B142: John Normandin | D142: =IFERROR(VLOOKUP("17A",$B$7:$B$107,1,FALSE),"") -> 17A | E142: Carol Ekstrom | G142: 17A - Carol Ekstrom | L142: 27A
A143: =IFERROR(VLOOKUP("1B",$B$7:$B$107,1,FALSE),"") -> 1B | B143: Pete Normandin | D143: =IFERROR(VLOOKUP("17B",$B$7:$B$107,1,FALSE),"") -> 17B | E143: Mike Dauphinais | G143: 17B - Mike Dauphinais | L143: 27B
A144: =IFERROR(VLOOKUP("2A",$B$7:$B$107,1,FALSE),"") -> 2A | B144: Jono Normandin | D144: =IFERROR(VLOOKUP("18A",$B$7:$B$107,1,FALSE),"") -> 18A | E144: Norm Gamache | G144: 18A - Norm Gamache | L144: 28A
A145: =IFERROR(VLOOKUP("2B",$B$7:$B$107,1,FALSE),"") -> 2B | B145: Nathan Wallace | D145: =IFERROR(VLOOKUP("18B",$B$7:$B$107,1,FALSE),"") -> 18B | E145: Michelle Bouvier | G145: 18B - Michelle Bouvier | L145: 28B
A146: =IFERROR(VLOOKUP("3A",$B$7:$B$107,1,FALSE),"") -> 3A | B146: Pete Romano | D146: =IFERROR(VLOOKUP("19A",$B$7:$B$107,1,FALSE),"") -> 19A | E146: John Pavone | G146: 19A - John Pavone | L146: 29A
A147: =IFERROR(VLOOKUP("3B",$B$7:$B$107,1,FALSE),"") -> 3B | B147: Don Frigoletto | D147: =IFERROR(VLOOKUP("19B",$B$7:$B$107,1,FALSE),"") -> 19B | E147: Ernie Beliveau | G147: 19B - Ernie Beliveau | L147: 29B
A148: =IFERROR(VLOOKUP("4A",$B$7:$B$107,1,FALSE),"") -> 4A | B148: Peg Romano | D148: =IFERROR(VLOOKUP("20A",$B$7:$B$107,1,FALSE),"") -> 20A | E148: Sheila Sundstrom | G148: 20A - Sheila Sundstrom | L148: 30A
A149: =IFERROR(VLOOKUP("4B",$B$7:$B$107,1,FALSE),"") -> 4B | B149: Lynn Laroche | D149: =IFERROR(VLOOKUP("20B",$B$7:$B$107,1,FALSE),"") -> 20B | E149: Ray Hoy | G149: 20B - Ray Hoy | L149: 30B
A150: =IFERROR(VLOOKUP("5A",$B$7:$B$107,1,FALSE),"") -> 5A | B150: Dennis Normandin | D150: =IFERROR(VLOOKUP("Sub1",$B$7:$B$107,1,FALSE),"") -> Sub1 | E150: P.J. Romano | G150: Sub1 - P.J. Romano | L150: 31A
A151: =IFERROR(VLOOKUP("5B",$B$7:$B$107,1,FALSE),"") -> 5B | B151: Mark Normandin | D151: =IFERROR(VLOOKUP("Sub2",$B$7:$B$107,1,FALSE),"") -> Sub2 | E151: PJ Fontaine | G151: Sub2 - PJ Fontaine | L151: 31B
A152: =IFERROR(VLOOKUP("6A",$B$7:$B$107,1,FALSE),"") -> 6A | B152: Vance Butterfield | D152: =IFERROR(VLOOKUP("Sub3",$B$7:$B$107,1,FALSE),"") -> Sub3 | E152: Jim Hedlund | G152: Sub3 - Jim Hedlund | L152: 32A
A153: =IFERROR(VLOOKUP("6B",$B$7:$B$107,1,FALSE),"") -> 6B | B153: Bob Schleyer | D153: =IFERROR(VLOOKUP("Sub4",$B$7:$B$107,1,FALSE),"") -> Sub4 | E153: Don Shank | G153: Sub4 - Don Shank | L153: 32B
A154: =IFERROR(VLOOKUP("7A",$B$7:$B$107,1,FALSE),"") -> 7A | B154: John Fairbanks | D154: =IFERROR(VLOOKUP("Sub5",$B$7:$B$107,1,FALSE),"") -> Sub5 | E154: Tom Farias | G154: Sub5 - Tom Farias | L154: 33A
A155: =IFERROR(VLOOKUP("7B",$B$7:$B$107,1,FALSE),"") -> 7B | B155: Debbie Fairbanks | D155: =IFERROR(VLOOKUP("Sub6",$B$7:$B$107,1,FALSE),"") -> Sub6 | E155: Joe Pearson | G155: Sub6 - Joe Pearson | L155: 33B
A156: =IFERROR(VLOOKUP("8A",$B$7:$B$107,1,FALSE),"") -> 8A | B156: Steve Lawrence | D156: =IFERROR(VLOOKUP("Sub7",$B$7:$B$107,1,FALSE),"") -> Sub7 | E156: Dennis St. Jean | G156: Sub7 - Dennis St. Jean | L156: 34A
A157: =IFERROR(VLOOKUP("8B",$B$7:$B$107,1,FALSE),"") -> 8B | B157: Mike Benson | D157: =IFERROR(VLOOKUP("Sub8",$B$7:$B$107,1,FALSE),"") -> Sub8 | E157: Joe Fratticelli | G157: Sub8 - Joe Fratticelli | L157: 34B
A158: =IFERROR(VLOOKUP("9A",$B$7:$B$107,1,FALSE),"") -> 9A | B158: Mike Doane | D158: =IFERROR(VLOOKUP("Sub9",$B$7:$B$107,1,FALSE),"") -> Sub9 | E158: Pete Collette | G158: Sub9 - Pete Collette | L158: 35A
A159: =IFERROR(VLOOKUP("9B",$B$7:$B$107,1,FALSE),"") -> 9B | B159: John Cassin | D159: =IFERROR(VLOOKUP("Sub10",$B$7:$B$107,1,FALSE),"") -> Sub10 | E159: Ray Henderson | G159: Sub10 - Ray Henderson | L159: 35B
A160: =IFERROR(VLOOKUP("10A",$B$7:$B$107,1,FALSE),"") -> 10A | B160: Ron Ekstrom | D160: =IFERROR(VLOOKUP("Sub11",$B$7:$B$107,1,FALSE),"") -> Sub11 | E160: Pete K Normandin | G160: Sub11 - Pete K Normandin | L160: 36A
A161: =IFERROR(VLOOKUP("10B",$B$7:$B$107,1,FALSE),"") -> 10B | B161: Beth Romano | D161: =IFERROR(VLOOKUP("Sub12",$B$7:$B$107,1,FALSE),"") -> Sub12 | E161: Ron Brassard | G161: Sub12 - Ron Brassard | L161: 36B
A162: =IFERROR(VLOOKUP("11A",$B$7:$B$107,1,FALSE),"") -> 11A | B162: Jim Haskins | D162: =IFERROR(VLOOKUP("Sub13",$B$7:$B$107,1,FALSE),"") -> Sub13 | E162: Genie Ray Richard | G162: Sub13 - Genie Ray Richard
A163: =IFERROR(VLOOKUP("11B",$B$7:$B$107,1,FALSE),"") -> 11B | B163: Anthony Conte | D163: =IFERROR(VLOOKUP("Sub14",$B$7:$B$107,1,FALSE),"") -> Sub14 | E163: John MacDonald | G163: Sub14 - John MacDonald
A164: =IFERROR(VLOOKUP("12A",$B$7:$B$107,1,FALSE),"") -> 12A | B164: Sal Ciufetti | D164: =IFERROR(VLOOKUP("Sub15",$B$7:$B$107,1,FALSE),"") -> Sub15 | E164: Darryl Gagne | G164: Sub15 - Darryl Gagne
A165: =IFERROR(VLOOKUP("12B",$B$7:$B$107,1,FALSE),"") -> 12B | B165: Kevin Nivala | D165: =IFERROR(VLOOKUP("Sub16",$B$7:$B$107,1,FALSE),"") -> Sub16 | E165: Becky Bartkus | G165: Sub16 - Becky Bartkus
A166: =IFERROR(VLOOKUP("13A",$B$7:$B$107,1,FALSE),"") -> 13A | B166: Tim Hurley | D166: =IFERROR(VLOOKUP("Sub17",$B$7:$B$107,1,FALSE),"") -> Sub17 | E166: Dave Cormier | G166: Sub17 - Dave Cormier
A167: =IFERROR(VLOOKUP("13B",$B$7:$B$107,1,FALSE),"") -> 13B | B167: Walter Drake | D167: =IFERROR(VLOOKUP("Sub18",$B$7:$B$107,1,FALSE),"") -> Sub18 | E167: Doug Cormier | G167: Sub18 - Doug Cormier
A168: =IFERROR(VLOOKUP("14A",$B$7:$B$107,1,FALSE),"") -> 14A | B168: Paul Fontaine | D168: =IFERROR(VLOOKUP("Sub19",$B$7:$B$107,1,FALSE),"") -> Sub19 | E168: Ed Robbins | G168: Sub19 - Ed Robbins
A169: =IFERROR(VLOOKUP("14B",$B$7:$B$107,1,FALSE),"") -> 14B | B169: Ralph Romano III | D169: =IFERROR(VLOOKUP("Sub20",$B$7:$B$107,1,FALSE),"") -> Sub20 | E169: Mark Louney | G169: Sub20 - Mark Louney
A170: =IFERROR(VLOOKUP("15A",$B$7:$B$107,1,FALSE),"") -> 15A | B170: Gary Leavenworth | D170: =IFERROR(VLOOKUP("Sub21",$B$7:$B$107,1,FALSE),"") -> Sub21 | E170: Paul Stedman | G170: Sub21 - Paul Stedman
A171: =IFERROR(VLOOKUP("15B",$B$7:$B$107,1,FALSE),"") -> 15B | B171: Patty Leavenworth | D171: =IFERROR(VLOOKUP("Sub22",$B$7:$B$107,1,FALSE),"") -> Sub22 | E171: Jan Hedlund | G171: Sub22 - Jan Hedlund
A172: =IFERROR(VLOOKUP("16A",$B$7:$B$107,1,FALSE),"") -> 16A | B172: Kevin O'Loughlin | D172: =IFERROR(VLOOKUP("Sub23",$B$7:$B$107,1,FALSE),"") -> Sub23 | E172: Brenda Louney | G172: Sub23 - Brenda Louney
A173: =IFERROR(VLOOKUP("16B",$B$7:$B$107,1,FALSE),"") -> 16B | B173: Mike Romano | D173: =IFERROR(VLOOKUP("Sub24",$B$7:$B$107,1,FALSE),"") -> Sub24 | E173: Kyle Butterfield | G173: Sub24 - Kyle Butterfield
A174: =IFERROR(VLOOKUP("17A",$B$7:$B$107,1,FALSE),"") -> 17A | B174: Carol Ekstrom | D174: =IFERROR(VLOOKUP("Sub25",$B$7:$B$107,1,FALSE),"") -> Sub25 | E174: =IFERROR(VLOOKUP(D174,$B$7:$F$107,5,FALSE),"") -> Dave Flood | G174: Sub25 - Dave Flood
A175: =IFERROR(VLOOKUP("17B",$B$7:$B$107,1,FALSE),"") -> 17B | B175: =IFERROR(VLOOKUP(A175,$B$7:$F$107,5,FALSE),"") -> Mike Dauphinais | D175: =IFERROR(VLOOKUP("Sub26",$B$7:$B$107,1,FALSE),"") -> Sub26 | E175: Ann Goodwin | G175: =D175 & " - " & E175 -> Sub26 - Ann Goodwin
A176: =IFERROR(VLOOKUP("18A",$B$7:$B$107,1,FALSE),"") -> 18A | B176: Norm Gamache | D176: =IFERROR(VLOOKUP("Sub27",$B$7:$B$107,1,FALSE),"") -> Sub27 | E176: Gary Bittner | G176: =D176 & " - " & E176 -> Sub27 - Gary Bittner
A177: =IFERROR(VLOOKUP("18B",$B$7:$B$107,1,FALSE),"") -> 18B | B177: Michelle Bouvier | D177: =IFERROR(VLOOKUP("Sub28",$B$7:$B$107,1,FALSE),"") -> Sub28 | E177: Scott Leavenworth | G177: =D177 & " - " & E177 -> Sub28 - Scott Leavenworth
A178: =IFERROR(VLOOKUP("19A",$B$7:$B$107,1,FALSE),"") -> 19A | B178: John Pavone | D178: =IFERROR(VLOOKUP("Sub29",$B$7:$B$107,1,FALSE),"") -> Sub29 | E178: Dave DiGiovanni | G178: =D178 & " - " & E178 -> Sub29 - Dave DiGiovanni
A179: =IFERROR(VLOOKUP("19B",$B$7:$B$107,1,FALSE),"") -> 19B | B179: Ernie Beliveau | D179: =IFERROR(VLOOKUP("Sub30",$B$7:$B$107,1,FALSE),"") -> Sub30 | E179: Alessandro Conte | G179: =D179 & " - " & E179 -> Sub30 - Alessandro Conte
A180: =IFERROR(VLOOKUP("20A",$B$7:$B$107,1,FALSE),"") -> 20A | B180: Sheila Sundstrom
A181: =IFERROR(VLOOKUP("20B",$B$7:$B$107,1,FALSE),"") -> 20B | B181: Ray Hoy
A182: =IFERROR(VLOOKUP("21A",$B$7:$B$107,1,FALSE),"") -> 
A183: =IFERROR(VLOOKUP("21B",$B$7:$B$107,1,FALSE),"") -> 
A184: =IFERROR(VLOOKUP("22A",$B$7:$B$107,1,FALSE),"") -> 
A185: =IFERROR(VLOOKUP("22B",$B$7:$B$107,1,FALSE),"") -> 
A186: =IFERROR(VLOOKUP("23A",$B$7:$B$107,1,FALSE),"") -> 
A187: =IFERROR(VLOOKUP("23B",$B$7:$B$107,1,FALSE),"") -> 
A188: =IFERROR(VLOOKUP("24A",$B$7:$B$107,1,FALSE),"") -> 
A189: =IFERROR(VLOOKUP("24B",$B$7:$B$107,1,FALSE),"") -> 
A190: =IFERROR(VLOOKUP("25A",$B$7:$B$107,1,FALSE),"") -> 
A191: =IFERROR(VLOOKUP("25B",$B$7:$B$107,1,FALSE),"") -> 
A192: =IFERROR(VLOOKUP("26A",$B$7:$B$107,1,FALSE),"") -> 
A193: =IFERROR(VLOOKUP("26B",$B$7:$B$107,1,FALSE),"") -> 
A194: =IFERROR(VLOOKUP("27A",$B$7:$B$107,1,FALSE),"") -> 
A195: =IFERROR(VLOOKUP("27B",$B$7:$B$107,1,FALSE),"") -> 
A196: =IFERROR(VLOOKUP("28A",$B$7:$B$107,1,FALSE),"") -> 
A197: =IFERROR(VLOOKUP("28B",$B$7:$B$107,1,FALSE),"") -> 
A198: =IFERROR(VLOOKUP("29A",$B$7:$B$107,1,FALSE),"") -> 
A199: =IFERROR(VLOOKUP("29B",$B$7:$B$107,1,FALSE),"") -> 
A200: =IFERROR(VLOOKUP("30A",$B$7:$B$107,1,FALSE),"") ->  | D200: 1A
... 50 more rows

Sheet TEAM ROSTERS & SUB LIST
Z1: =ROUND(Y1/0.8+36,0) -> 36 | AF1: ="("&LEFT(AB1, 3)&") "&RIGHT(LEFT(AB1,6),3)&"-"&RIGHT(AB1,4) -> () - | AH1: 9999999999
W2: Next Sub No. | X2: 31 | AB2: =VALUE(AB1) -> 0
B6: Team Rosters | H6: Sub List
B7: Team | C7: Player No. | D7: Name | E7: Player No. | F7: Name | H7: Sub No. | I7: Sub Name | J7: Telephone | K7: Handicap
B8: Team 01 | C8: 1A | D8: =IFERROR(VLOOKUP(C8,'LEAGUE MEMBERSHIP'!$B$8:$Q$100,5,FALSE),"") -> John Normandin | E8: 1B | F8: =IFERROR(VLOOKUP(E8,'LEAGUE MEMBERSHIP'!$B$8:$Q$100,5,FALSE),"") -> Pete Normandin | H8: Sub1 | I8: =IFERROR(VLOOKUP($H8,'LEAGUE MEMBERSHIP'!$B$8:$Q$105,5,FALSE),"") -> P.J. Romano | J8: =IFERROR(VLOOKUP($H8,'LEAGUE MEMBERSHIP'!$B$8:$Q$105,9,FALSE),"") -> 9788271453 | K8: =IFERROR(VLOOKUP($H8,'LEAGUE MEMBERSHIP'!$B$8:$Q$105,6,FALSE),"") -> 12
B9: Team 02 | C9: 2A | D9: =IFERROR(VLOOKUP(C9,'LEAGUE MEMBERSHIP'!$B$8:$Q$100,5,FALSE),"") -> Jono Normandin | E9: 2B | F9: =IFERROR(VLOOKUP(E9,'LEAGUE MEMBERSHIP'!$B$8:$Q$100,5,FALSE),"") -> Nathan Wallace | H9: Sub2 | I9: =IFERROR(VLOOKUP($H9,'LEAGUE MEMBERSHIP'!$B$8:$Q$105,5,FALSE),"") -> PJ Fontaine | J9: =IFERROR(VLOOKUP($H9,'LEAGUE MEMBERSHIP'!$B$8:$Q$105,9,FALSE),"") -> 9788553266 | K9: =IFERROR(VLOOKUP($H9,'LEAGUE MEMBERSHIP'!$B$8:$Q$105,6,FALSE),"") -> 1
B10: Team 03 | C10: 3A | D10: =IFERROR(VLOOKUP(C10,'LEAGUE MEMBERSHIP'!$B$8:$Q$100,5,FALSE),"") -> Pete Romano | E10: 3B | F10: =IFERROR(VLOOKUP(E10,'LEAGUE MEMBERSHIP'!$B$8:$Q$100,5,FALSE),"") -> Don Frigoletto | H10: Sub3 | I10: =IFERROR(VLOOKUP($H10,'LEAGUE MEMBERSHIP'!$B$8:$Q$105,5,FALSE),"") -> Jim Hedlund | J10: =IFERROR(VLOOKUP($H10,'LEAGUE MEMBERSHIP'!$B$8:$Q$105,9,FALSE),"") -> 9786685183 | K10: =IFERROR(VLOOKUP($H10,'LEAGUE MEMBERSHIP'!$B$8:$Q$105,6,FALSE),"") -> 16
B11: Team 04 | C11: 4A | D11: =IFERROR(VLOOKUP(C11,'LEAGUE MEMBERSHIP'!$B$8:$Q$100,5,FALSE),"") -> Peg Romano | E11: 4B | F11: =IFERROR(VLOOKUP(E11,'LEAGUE MEMBERSHIP'!$B$8:$Q$100,5,FALSE),"") -> Lynn Laroche | H11: Sub4 | I11: =IFERROR(VLOOKUP($H11,'LEAGUE MEMBERSHIP'!$B$8:$Q$105,5,FALSE),"") -> Don Shank | J11: =IFERROR(VLOOKUP($H11,'LEAGUE MEMBERSHIP'!$B$8:$Q$105,9,FALSE),"") -> 0 | K11: =IFERROR(VLOOKUP($H11,'LEAGUE MEMBERSHIP'!$B$8:$Q$105,6,FALSE),"") -> 4
B12: Team 05 | C12: 5A | D12: =IFERROR(VLOOKUP(C12,'LEAGUE MEMBERSHIP'!$B$8:$Q$100,5,FALSE),"") -> Dennis Normandin | E12: 5B | F12: =IFERROR(VLOOKUP(E12,'LEAGUE MEMBERSHIP'!$B$8:$Q$100,5,FALSE),"") -> Mark Normandin | H12: Sub5 | I12: =IFERROR(VLOOKUP($H12,'LEAGUE MEMBERSHIP'!$B$8:$Q$105,5,FALSE),"") -> Tom Farias | J12: =IFERROR(VLOOKUP($H12,'LEAGUE MEMBERSHIP'!$B$8:$Q$105,9,FALSE),"") -> 0 | K12: =IFERROR(VLOOKUP($H12,'LEAGUE MEMBERSHIP'!$B$8:$Q$105,6,FALSE),"") -> 6
B13: Team 06 | C13: 6A | D13: =IFERROR(VLOOKUP(C13,'LEAGUE MEMBERSHIP'!$B$8:$Q$100,5,FALSE),"") -> Vance Butterfield | E13: 6B | F13: =IFERROR(VLOOKUP(E13,'LEAGUE MEMBERSHIP'!$B$8:$Q$100,5,FALSE),"") -> Bob Schleyer | H13: Sub6 | I13: =IFERROR(VLOOKUP($H13,'LEAGUE MEMBERSHIP'!$B$8:$Q$105,5,FALSE),"") -> Joe Pearson | J13: =IFERROR(VLOOKUP($H13,'LEAGUE MEMBERSHIP'!$B$8:$Q$105,9,FALSE),"") -> 9783406277 | K13: =IFERROR(VLOOKUP($H13,'LEAGUE MEMBERSHIP'!$B$8:$Q$105,6,FALSE),"") -> 12
B14: Team 07 | C14: 7A | D14: =IFERROR(VLOOKUP(C14,'LEAGUE MEMBERSHIP'!$B$8:$Q$100,5,FALSE),"") -> John Fairbanks | E14: 7B | F14: =IFERROR(VLOOKUP(E14,'LEAGUE MEMBERSHIP'!$B$8:$Q$100,5,FALSE),"") -> Debbie Fairbanks | H14: Sub7 | I14: =IFERROR(VLOOKUP($H14,'LEAGUE MEMBERSHIP'!$B$8:$Q$105,5,FALSE),"") -> Dennis St. Jean | J14: =IFERROR(VLOOKUP($H14,'LEAGUE MEMBERSHIP'!$B$8:$Q$105,9,FALSE),"") -> 9788742835 | K14: =IFERROR(VLOOKUP($H14,'LEAGUE MEMBERSHIP'!$B$8:$Q$105,6,FALSE),"") -> 7
B15: Team 08 | C15: 8A | D15: =IFERROR(VLOOKUP(C15,'LEAGUE MEMBERSHIP'!$B$8:$Q$100,5,FALSE),"") -> Steve Lawrence | E15: 8B | F15: =IFERROR(VLOOKUP(E15,'LEAGUE MEMBERSHIP'!$B$8:$Q$100,5,FALSE),"") -> Mike Benson | H15: Sub8 | I15: =IFERROR(VLOOKUP($H15,'LEAGUE MEMBERSHIP'!$B$8:$Q$105,5,FALSE),"") -> Joe Fratticelli | J15: =IFERROR(VLOOKUP($H15,'LEAGUE MEMBERSHIP'!$B$8:$Q$105,9,FALSE),"") -> 0 | K15: =IFERROR(VLOOKUP($H15,'LEAGUE MEMBERSHIP'!$B$8:$Q$105,6,FALSE),"") -> 15
B16: Team 09 | C16: 9A | D16: =IFERROR(VLOOKUP(C16,'LEAGUE MEMBERSHIP'!$B$8:$Q$100,5,FALSE),"") -> Mike Doane | E16: 9B | F16: =IFERROR(VLOOKUP(E16,'LEAGUE MEMBERSHIP'!$B$8:$Q$100,5,FALSE),"") -> John Cassin | H16: Sub9 | I16: =IFERROR(VLOOKUP($H16,'LEAGUE MEMBERSHIP'!$B$8:$Q$105,5,FALSE),"") -> Pete Collette | J16: =IFERROR(VLOOKUP($H16,'LEAGUE MEMBERSHIP'!$B$8:$Q$105,9,FALSE),"") -> 0 | K16: =IFERROR(VLOOKUP($H16,'LEAGUE MEMBERSHIP'!$B$8:$Q$105,6,FALSE),"") -> 6
B17: Team 10 | C17: 10A | D17: =IFERROR(VLOOKUP(C17,'LEAGUE MEMBERSHIP'!$B$8:$Q$100,5,FALSE),"") -> Ron Ekstrom | E17: 10B | F17: =IFERROR(VLOOKUP(E17,'LEAGUE MEMBERSHIP'!$B$8:$Q$100,5,FALSE),"") -> Beth Romano | H17: Sub10 | I17: =IFERROR(VLOOKUP($H17,'LEAGUE MEMBERSHIP'!$B$8:$Q$105,5,FALSE),"") -> Ray Henderson | J17: =IFERROR(VLOOKUP($H17,'LEAGUE MEMBERSHIP'!$B$8:$Q$105,9,FALSE),"") -> 9786325543 | K17: =IFERROR(VLOOKUP($H17,'LEAGUE MEMBERSHIP'!$B$8:$Q$105,6,FALSE),"") -> 5
B18: Team 11 | C18: 11A | D18: =IFERROR(VLOOKUP(C18,'LEAGUE MEMBERSHIP'!$B$8:$Q$100,5,FALSE),"") -> Jim Haskins | E18: 11B | F18: =IFERROR(VLOOKUP(E18,'LEAGUE MEMBERSHIP'!$B$8:$Q$100,5,FALSE),"") -> Anthony Conte | H18: Sub11 | I18: =IFERROR(VLOOKUP($H18,'LEAGUE MEMBERSHIP'!$B$8:$Q$105,5,FALSE),"") -> Pete K Normandin | J18: =IFERROR(VLOOKUP($H18,'LEAGUE MEMBERSHIP'!$B$8:$Q$105,9,FALSE),"") -> 9788742642 | K18: =IFERROR(VLOOKUP($H18,'LEAGUE MEMBERSHIP'!$B$8:$Q$105,6,FALSE),"") -> 0
B19: Team 12 | C19: 12A | D19: =IFERROR(VLOOKUP(C19,'LEAGUE MEMBERSHIP'!$B$8:$Q$100,5,FALSE),"") -> Sal Ciufetti | E19: 12B | F19: =IFERROR(VLOOKUP(E19,'LEAGUE MEMBERSHIP'!$B$8:$Q$100,5,FALSE),"") -> Kevin Nivala | H19: Sub12 | I19: =IFERROR(VLOOKUP($H19,'LEAGUE MEMBERSHIP'!$B$8:$Q$105,5,FALSE),"") -> Ron Brassard | J19: =IFERROR(VLOOKUP($H19,'LEAGUE MEMBERSHIP'!$B$8:$Q$105,9,FALSE),"") -> 0 | K19: =IFERROR(VLOOKUP($H19,'LEAGUE MEMBERSHIP'!$B$8:$Q$105,6,FALSE),"") -> 7
B20: Team 13 | C20: 13A | D20: =IFERROR(VLOOKUP(C20,'LEAGUE MEMBERSHIP'!$B$8:$Q$100,5,FALSE),"") -> Tim Hurley | E20: 13B | F20: =IFERROR(VLOOKUP(E20,'LEAGUE MEMBERSHIP'!$B$8:$Q$100,5,FALSE),"") -> Walter Drake | H20: Sub13 | I20: =IFERROR(VLOOKUP($H20,'LEAGUE MEMBERSHIP'!$B$8:$Q$105,5,FALSE),"") -> Genie Ray Richard | J20: =IFERROR(VLOOKUP($H20,'LEAGUE MEMBERSHIP'!$B$8:$Q$105,9,FALSE),"") -> 0 | K20: =IFERROR(VLOOKUP($H20,'LEAGUE MEMBERSHIP'!$B$8:$Q$105,6,FALSE),"") -> 4
B21: Team 14 | C21: 14A | D21: =IFERROR(VLOOKUP(C21,'LEAGUE MEMBERSHIP'!$B$8:$Q$100,5,FALSE),"") -> Paul Fontaine | E21: 14B | F21: =IFERROR(VLOOKUP(E21,'LEAGUE MEMBERSHIP'!$B$8:$Q$100,5,FALSE),"") -> Ralph Romano III | H21: Sub14 | I21: =IFERROR(VLOOKUP($H21,'LEAGUE MEMBERSHIP'!$B$8:$Q$105,5,FALSE),"") -> John MacDonald | J21: =IFERROR(VLOOKUP($H21,'LEAGUE MEMBERSHIP'!$B$8:$Q$105,9,FALSE),"") -> 7812544212 | K21: =IFERROR(VLOOKUP($H21,'LEAGUE MEMBERSHIP'!$B$8:$Q$105,6,FALSE),"") -> 10
B22: Team 15 | C22: 15A | D22: =IFERROR(VLOOKUP(C22,'LEAGUE MEMBERSHIP'!$B$8:$Q$100,5,FALSE),"") -> Gary Leavenworth | E22: 15B | F22: =IFERROR(VLOOKUP(E22,'LEAGUE MEMBERSHIP'!$B$8:$Q$100,5,FALSE),"") -> Patty Leavenworth | H22: Sub15 | I22: =IFERROR(VLOOKUP($H22,'LEAGUE MEMBERSHIP'!$B$8:$Q$105,5,FALSE),"") -> Darryl Gagne | J22: =IFERROR(VLOOKUP($H22,'LEAGUE MEMBERSHIP'!$B$8:$Q$105,9,FALSE),"") -> 9784919071 | K22: =IFERROR(VLOOKUP($H22,'LEAGUE MEMBERSHIP'!$B$8:$Q$105,6,FALSE),"") -> 8
B23: Team 16 | C23: 16A | D23: =IFERROR(VLOOKUP(C23,'LEAGUE MEMBERSHIP'!$B$8:$Q$100,5,FALSE),"") -> Kevin O'Loughlin | E23: 16B | F23: =IFERROR(VLOOKUP(E23,'LEAGUE MEMBERSHIP'!$B$8:$Q$100,5,FALSE),"") -> Mike Romano | H23: Sub16 | I23: =IFERROR(VLOOKUP($H23,'LEAGUE MEMBERSHIP'!$B$8:$Q$105,5,FALSE),"") -> Becky Bartkus | J23: =IFERROR(VLOOKUP($H23,'LEAGUE MEMBERSHIP'!$B$8:$Q$105,9,FALSE),"") -> 9783407865 | K23: =IFERROR(VLOOKUP($H23,'LEAGUE MEMBERSHIP'!$B$8:$Q$105,6,FALSE),"") -> 9
B24: Team 17 | C24: 17A | D24: =IFERROR(VLOOKUP(C24,'LEAGUE MEMBERSHIP'!$B$8:$Q$100,5,FALSE),"") -> Carol Ekstrom | E24: 17B | F24: =IFERROR(VLOOKUP(E24,'LEAGUE MEMBERSHIP'!$B$8:$Q$100,5,FALSE),"") -> Mike Dauphinais | H24: Sub17 | I24: =IFERROR(VLOOKUP($H24,'LEAGUE MEMBERSHIP'!$B$8:$Q$105,5,FALSE),"") -> Dave Cormier | J24: =IFERROR(VLOOKUP($H24,'LEAGUE MEMBERSHIP'!$B$8:$Q$105,9,FALSE),"") -> 0 | K24: =IFERROR(VLOOKUP($H24,'LEAGUE MEMBERSHIP'!$B$8:$Q$105,6,FALSE),"") -> 7
B25: Team 18 | C25: 18A | D25: =IFERROR(VLOOKUP(C25,'LEAGUE MEMBERSHIP'!$B$8:$Q$100,5,FALSE),"") -> Norm Gamache | E25: 18B | F25: =IFERROR(VLOOKUP(E25,'LEAGUE MEMBERSHIP'!$B$8:$Q$100,5,FALSE),"") -> Michelle Bouvier | H25: Sub18 | I25: =IFERROR(VLOOKUP($H25,'LEAGUE MEMBERSHIP'!$B$8:$Q$105,5,FALSE),"") -> Doug Cormier | J25: =IFERROR(VLOOKUP($H25,'LEAGUE MEMBERSHIP'!$B$8:$Q$105,9,FALSE),"") -> 0 | K25: =IFERROR(VLOOKUP($H25,'LEAGUE MEMBERSHIP'!$B$8:$Q$105,6,FALSE),"") -> 8
B26: Team 19 | C26: 19A | D26: =IFERROR(VLOOKUP(C26,'LEAGUE MEMBERSHIP'!$B$8:$Q$100,5,FALSE),"") -> John Pavone | E26: 19B | F26: =IFERROR(VLOOKUP(E26,'LEAGUE MEMBERSHIP'!$B$8:$Q$100,5,FALSE),"") -> Ernie Beliveau | H26: Sub19 | I26: =IFERROR(VLOOKUP($H26,'LEAGUE MEMBERSHIP'!$B$8:$Q$105,5,FALSE),"") -> Ed Robbins | J26: =IFERROR(VLOOKUP($H26,'LEAGUE MEMBERSHIP'!$B$8:$Q$105,9,FALSE),"") -> 0 | K26: =IFERROR(VLOOKUP($H26,'LEAGUE MEMBERSHIP'!$B$8:$Q$105,6,FALSE),"") -> 1
B27: Team 20 | C27: 20A | D27: =IFERROR(VLOOKUP(C27,'LEAGUE MEMBERSHIP'!$B$8:$Q$100,5,FALSE),"") -> Sheila Sundstrom | E27: 20B | F27: =IFERROR(VLOOKUP(E27,'LEAGUE MEMBERSHIP'!$B$8:$Q$100,5,FALSE),"") -> Ray Hoy | H27: Sub20 | I27: =IFERROR(VLOOKUP($H27,'LEAGUE MEMBERSHIP'!$B$8:$Q$105,5,FALSE),"") -> Mark Louney | J27: =IFERROR(VLOOKUP($H27,'LEAGUE MEMBERSHIP'!$B$8:$Q$105,9,FALSE),"") -> 9783423503 | K27: =IFERROR(VLOOKUP($H27,'LEAGUE MEMBERSHIP'!$B$8:$Q$105,6,FALSE),"") -> 10
B28: Team 21 | C28: 21A | D28: =IFERROR(VLOOKUP(C28,'LEAGUE MEMBERSHIP'!$B$8:$Q$100,5,FALSE),"") ->  | E28: 21B | F28: =IFERROR(VLOOKUP(E28,'LEAGUE MEMBERSHIP'!$B$8:$Q$100,5,FALSE),"") ->  | H28: Sub21 | I28: =IFERROR(VLOOKUP($H28,'LEAGUE MEMBERSHIP'!$B$8:$Q$105,5,FALSE),"") -> Paul Stedman | J28: =IFERROR(VLOOKUP($H28,'LEAGUE MEMBERSHIP'!$B$8:$Q$105,9,FALSE),"") -> 0 | K28: =IFERROR(VLOOKUP($H28,'LEAGUE MEMBERSHIP'!$B$8:$Q$105,6,FALSE),"") -> 4
B29: Team 22 | C29: 22A | D29: =IFERROR(VLOOKUP(C29,'LEAGUE MEMBERSHIP'!$B$8:$Q$100,5,FALSE),"") ->  | E29: 22B | F29: =IFERROR(VLOOKUP(E29,'LEAGUE MEMBERSHIP'!$B$8:$Q$100,5,FALSE),"") ->  | H29: Sub22 | I29: =IFERROR(VLOOKUP($H29,'LEAGUE MEMBERSHIP'!$B$8:$Q$105,5,FALSE),"") -> Jan Hedlund | J29: =IFERROR(VLOOKUP($H29,'LEAGUE MEMBERSHIP'!$B$8:$Q$105,9,FALSE),"") -> 0 | K29: =IFERROR(VLOOKUP($H29,'LEAGUE MEMBERSHIP'!$B$8:$Q$105,6,FALSE),"") -> 15
B30: Team 23 | C30: 23A | D30: =IFERROR(VLOOKUP(C30,'LEAGUE MEMBERSHIP'!$B$8:$Q$100,5,FALSE),"") ->  | E30: 23B | F30: =IFERROR(VLOOKUP(E30,'LEAGUE MEMBERSHIP'!$B$8:$Q$100,5,FALSE),"") ->  | H30: Sub23 | I30: =IFERROR(VLOOKUP($H30,'LEAGUE MEMBERSHIP'!$B$8:$Q$105,5,FALSE),"") -> Brenda Louney | J30: =IFERROR(VLOOKUP($H30,'LEAGUE MEMBERSHIP'!$B$8:$Q$105,9,FALSE),"") -> 0 | K30: =IFERROR(VLOOKUP($H30,'LEAGUE MEMBERSHIP'!$B$8:$Q$105,6,FALSE),"") -> 13
B31: Team 24 | C31: 24A | D31: =IFERROR(VLOOKUP(C31,'LEAGUE MEMBERSHIP'!$B$8:$Q$100,5,FALSE),"") ->  | E31: 24B | F31: =IFERROR(VLOOKUP(E31,'LEAGUE MEMBERSHIP'!$B$8:$Q$100,5,FALSE),"") ->  | H31: Sub24 | I31: =IFERROR(VLOOKUP($H31,'LEAGUE MEMBERSHIP'!$B$8:$Q$105,5,FALSE),"") -> Kyle Butterfield | J31: =IFERROR(VLOOKUP($H31,'LEAGUE MEMBERSHIP'!$B$8:$Q$105,9,FALSE),"") -> 7743647442 | K31: =IFERROR(VLOOKUP($H31,'LEAGUE MEMBERSHIP'!$B$8:$Q$105,6,FALSE),"") -> 13
B32: Team 25 | C32: 25A | D32: =IFERROR(VLOOKUP(C32,'LEAGUE MEMBERSHIP'!$B$8:$Q$100,5,FALSE),"") ->  | E32: 25B | F32: =IFERROR(VLOOKUP(E32,'LEAGUE MEMBERSHIP'!$B$8:$Q$100,5,FALSE),"") ->  | H32: Sub25 | I32: =IFERROR(VLOOKUP($H32,'LEAGUE MEMBERSHIP'!$B$8:$Q$105,5,FALSE),"") -> Dave Flood | J32: =IFERROR(VLOOKUP($H32,'LEAGUE MEMBERSHIP'!$B$8:$Q$105,9,FALSE),"") -> 9785491525 | K32: =IFERROR(VLOOKUP($H32,'LEAGUE MEMBERSHIP'!$B$8:$Q$105,6,FALSE),"") -> 8
B33: Team 26 | C33: 26A | D33: =IFERROR(VLOOKUP(C33,'LEAGUE MEMBERSHIP'!$B$8:$Q$100,5,FALSE),"") ->  | E33: 26B | F33: =IFERROR(VLOOKUP(E33,'LEAGUE MEMBERSHIP'!$B$8:$Q$100,5,FALSE),"") ->  | H33: Sub26 | I33: =IFERROR(VLOOKUP($H33,'LEAGUE MEMBERSHIP'!$B$8:$Q$105,5,FALSE),"") -> Ann Goodwin | J33: =IFERROR(VLOOKUP($H33,'LEAGUE MEMBERSHIP'!$B$8:$Q$105,9,FALSE),"") -> 9788740880 | K33: =IFERROR(VLOOKUP($H33,'LEAGUE MEMBERSHIP'!$B$8:$Q$105,6,FALSE),"") -> 15
B34: Team 27 | C34: 27A | D34: =IFERROR(VLOOKUP(C34,'LEAGUE MEMBERSHIP'!$B$8:$Q$100,5,FALSE),"") ->  | E34: 27B | F34: =IFERROR(VLOOKUP(E34,'LEAGUE MEMBERSHIP'!$B$8:$Q$100,5,FALSE),"") ->  | H34: Sub27 | I34: =IFERROR(VLOOKUP($H34,'LEAGUE MEMBERSHIP'!$B$8:$Q$105,5,FALSE),"") -> Gary Bittner | J34: =IFERROR(VLOOKUP($H34,'LEAGUE MEMBERSHIP'!$B$8:$Q$105,9,FALSE),"") -> 9788742642 | K34: =IFERROR(VLOOKUP($H34,'LEAGUE MEMBERSHIP'!$B$8:$Q$105,6,FALSE),"") -> 12
B35: Team 28 | C35: 28A | D35: =IFERROR(VLOOKUP(C35,'LEAGUE MEMBERSHIP'!$B$8:$Q$100,5,FALSE),"") ->  | E35: 28B | F35: =IFERROR(VLOOKUP(E35,'LEAGUE MEMBERSHIP'!$B$8:$Q$100,5,FALSE),"") ->  | H35: Sub28 | I35: =IFERROR(VLOOKUP($H35,'LEAGUE MEMBERSHIP'!$B$8:$Q$105,5,FALSE),"") -> Scott Leavenworth | J35: =IFERROR(VLOOKUP($H35,'LEAGUE MEMBERSHIP'!$B$8:$Q$105,9,FALSE),"") -> 0 | K35: =IFERROR(VLOOKUP($H35,'LEAGUE MEMBERSHIP'!$B$8:$Q$105,6,FALSE),"") -> 18
B36: Team 29 | C36: 29A | D36: =IFERROR(VLOOKUP(C36,'LEAGUE MEMBERSHIP'!$B$8:$Q$100,5,FALSE),"") ->  | E36: 29B | F36: =IFERROR(VLOOKUP(E36,'LEAGUE MEMBERSHIP'!$B$8:$Q$100,5,FALSE),"") ->  | H36: Sub29 | I36: =IFERROR(VLOOKUP($H36,'LEAGUE MEMBERSHIP'!$B$8:$Q$105,5,FALSE),"") -> Dave DiGiovanni | J36: =IFERROR(VLOOKUP($H36,'LEAGUE MEMBERSHIP'!$B$8:$Q$105,9,FALSE),"") -> 0 | K36: =IFERROR(VLOOKUP($H36,'LEAGUE MEMBERSHIP'!$B$8:$Q$105,6,FALSE),"") -> 5
B37: Team 30 | C37: 30A | D37: =IFERROR(VLOOKUP(C37,'LEAGUE MEMBERSHIP'!$B$8:$Q$100,5,FALSE),"") ->  | E37: 30B | F37: =IFERROR(VLOOKUP(E37,'LEAGUE MEMBERSHIP'!$B$8:$Q$100,5,FALSE),"") ->  | H37: Sub30 | I37: =IFERROR(VLOOKUP($H37,'LEAGUE MEMBERSHIP'!$B$8:$Q$105,5,FALSE),"") -> Alessandro Conte | J37: =IFERROR(VLOOKUP($H37,'LEAGUE MEMBERSHIP'!$B$8:$Q$105,9,FALSE),"") -> 0 | K37: =IFERROR(VLOOKUP($H37,'LEAGUE MEMBERSHIP'!$B$8:$Q$105,6,FALSE),"") -> 6
B38: Team 31 | C38: 31A | D38: =IFERROR(VLOOKUP(C38,'LEAGUE MEMBERSHIP'!$B$8:$Q$100,5,FALSE),"") ->  | E38: 31B | F38: =IFERROR(VLOOKUP(E38,'LEAGUE MEMBERSHIP'!$B$8:$Q$100,5,FALSE),"") ->  | H38: Course | I38: =IFERROR(VLOOKUP($H38,'LEAGUE MEMBERSHIP'!$B$8:$Q$100,5,FALSE),"") -> 
B39: Team 32 | C39: 32A | D39: =IFERROR(VLOOKUP(C39,'LEAGUE MEMBERSHIP'!$B$8:$Q$100,5,FALSE),"") ->  | E39: 32B | F39: =IFERROR(VLOOKUP(E39,'LEAGUE MEMBERSHIP'!$B$8:$Q$100,5,FALSE),"") ->  | H39: DNP | I39: =IFERROR(VLOOKUP($H39,'LEAGUE MEMBERSHIP'!$B$8:$Q$100,5,FALSE),"") -> 
B40: Team 33 | C40: 33A | D40: =IFERROR(VLOOKUP(C40,'LEAGUE MEMBERSHIP'!$B$8:$Q$100,5,FALSE),"") ->  | E40: 33B | F40: =IFERROR(VLOOKUP(E40,'LEAGUE MEMBERSHIP'!$B$8:$Q$100,5,FALSE),"") ->  | H40: Sub1 | I40: =IFERROR(VLOOKUP($H40,'LEAGUE MEMBERSHIP'!$B$8:$Q$100,5,FALSE),"") -> P.J. Romano
B41: Team 34 | C41: 34A | D41: =IFERROR(VLOOKUP(C41,'LEAGUE MEMBERSHIP'!$B$8:$Q$100,5,FALSE),"") ->  | E41: 34B | F41: =IFERROR(VLOOKUP(E41,'LEAGUE MEMBERSHIP'!$B$8:$Q$100,5,FALSE),"") ->  | H41: Sub2 | I41: =IFERROR(VLOOKUP($H41,'LEAGUE MEMBERSHIP'!$B$8:$Q$100,5,FALSE),"") -> PJ Fontaine
H42: Sub3 | I42: =IFERROR(VLOOKUP($H42,'LEAGUE MEMBERSHIP'!$B$8:$Q$100,5,FALSE),"") -> Jim Hedlund
H43: Sub4 | I43: =IFERROR(VLOOKUP($H43,'LEAGUE MEMBERSHIP'!$B$8:$Q$100,5,FALSE),"") -> Don Shank
H44: Sub5 | I44: =IFERROR(VLOOKUP($H44,'LEAGUE MEMBERSHIP'!$B$8:$Q$100,5,FALSE),"") -> Tom Farias
H45: Sub6 | I45: =IFERROR(VLOOKUP($H45,'LEAGUE MEMBERSHIP'!$B$8:$Q$100,5,FALSE),"") -> Joe Pearson
H46: Sub7 | I46: =IFERROR(VLOOKUP($H46,'LEAGUE MEMBERSHIP'!$B$8:$Q$100,5,FALSE),"") -> Dennis St. Jean
H47: Sub8 | I47: =IFERROR(VLOOKUP($H47,'LEAGUE MEMBERSHIP'!$B$8:$Q$100,5,FALSE),"") -> Joe Fratticelli
H48: Sub9 | I48: =IFERROR(VLOOKUP($H48,'LEAGUE MEMBERSHIP'!$B$8:$Q$100,5,FALSE),"") -> Pete Collette
H49: Sub10 | I49: =IFERROR(VLOOKUP($H49,'LEAGUE MEMBERSHIP'!$B$8:$Q$100,5,FALSE),"") -> Ray Henderson
H50: Sub11 | I50: =IFERROR(VLOOKUP($H50,'LEAGUE MEMBERSHIP'!$B$8:$Q$100,5,FALSE),"") -> Pete K Normandin
H51: Sub12 | I51: =IFERROR(VLOOKUP($H51,'LEAGUE MEMBERSHIP'!$B$8:$Q$100,5,FALSE),"") -> Ron Brassard
H52: Sub13 | I52: =IFERROR(VLOOKUP($H52,'LEAGUE MEMBERSHIP'!$B$8:$Q$100,5,FALSE),"") -> Genie Ray Richard
H53: Sub14 | I53: =IFERROR(VLOOKUP($H53,'LEAGUE MEMBERSHIP'!$B$8:$Q$100,5,FALSE),"") -> John MacDonald
H54: Sub15 | I54: =IFERROR(VLOOKUP($H54,'LEAGUE MEMBERSHIP'!$B$8:$Q$100,5,FALSE),"") -> Darryl Gagne
H55: Sub16 | I55: =IFERROR(VLOOKUP($H55,'LEAGUE MEMBERSHIP'!$B$8:$Q$100,5,FALSE),"") -> Becky Bartkus
H56: Sub17 | I56: =IFERROR(VLOOKUP($H56,'LEAGUE MEMBERSHIP'!$B$8:$Q$100,5,FALSE),"") -> Dave Cormier
H57: Sub18 | I57: =IFERROR(VLOOKUP($H57,'LEAGUE MEMBERSHIP'!$B$8:$Q$100,5,FALSE),"") -> Doug Cormier
H58: Sub19 | I58: =IFERROR(VLOOKUP($H58,'LEAGUE MEMBERSHIP'!$B$8:$Q$100,5,FALSE),"") -> Ed Robbins
H59: Sub20 | I59: =IFERROR(VLOOKUP($H59,'LEAGUE MEMBERSHIP'!$B$8:$Q$100,5,FALSE),"") -> Mark Louney
H60: Sub21 | I60: =IFERROR(VLOOKUP($H60,'LEAGUE MEMBERSHIP'!$B$8:$Q$100,5,FALSE),"") -> Paul Stedman
H61: Sub22 | I61: =IFERROR(VLOOKUP($H61,'LEAGUE MEMBERSHIP'!$B$8:$Q$100,5,FALSE),"") -> Jan Hedlund
H62: Sub23 | I62: =IFERROR(VLOOKUP($H62,'LEAGUE MEMBERSHIP'!$B$8:$Q$100,5,FALSE),"") -> Brenda Louney
H63: Sub24 | I63: =IFERROR(VLOOKUP($H63,'LEAGUE MEMBERSHIP'!$B$8:$Q$100,5,FALSE),"") -> Kyle Butterfield
H64: Sub25 | I64: =IFERROR(VLOOKUP($H64,'LEAGUE MEMBERSHIP'!$B$8:$Q$100,5,FALSE),"") -> Dave Flood
H65: Sub26 | I65: =IFERROR(VLOOKUP($H65,'LEAGUE MEMBERSHIP'!$B$8:$Q$100,5,FALSE),"") -> Ann Goodwin
H66: Sub27 | I66: =IFERROR(VLOOKUP($H66,'LEAGUE MEMBERSHIP'!$B$8:$Q$100,5,FALSE),"") -> Gary Bittner
H67: Sub28 | I67: =IFERROR(VLOOKUP($H67,'LEAGUE MEMBERSHIP'!$B$8:$Q$100,5,FALSE),"") -> Scott Leavenworth
H68: Sub29 | I68: =IFERROR(VLOOKUP($H68,'LEAGUE MEMBERSHIP'!$B$8:$Q$100,5,FALSE),"") -> Dave DiGiovanni
H69: Sub30 | I69: =IFERROR(VLOOKUP($H69,'LEAGUE MEMBERSHIP'!$B$8:$Q$100,5,FALSE),"") -> Alessandro Conte
C91: Sub30 | D91: =IFERROR(VLOOKUP(C91,#REF!,2,FALSE),"") ->  | E91: 15B
C92: 1A | D92: =IFERROR(VLOOKUP(C92,#REF!,2,FALSE),"") ->  | E92: 16A
C93: 1B | D93: =IFERROR(VLOOKUP(C93,#REF!,2,FALSE),"") ->  | E93: 16B
C94: 2A | D94: =IFERROR(VLOOKUP(C94,#REF!,2,FALSE),"") ->  | E94: 17A
C95: 2B | D95: =IFERROR(VLOOKUP(C95,#REF!,2,FALSE),"") ->  | E95: 17B
C96: 3A | D96: =IFERROR(VLOOKUP(C96,#REF!,2,FALSE),"") ->  | E96: 18A
C97: 3B | D97: =IFERROR(VLOOKUP(C97,#REF!,2,FALSE),"") ->  | E97: 18B
C98: 4A | D98: =IFERROR(VLOOKUP(C98,#REF!,2,FALSE),"") ->  | E98: 19A
C99: 4B | D99: =IFERROR(VLOOKUP(C99,#REF!,2,FALSE),"") ->  | E99: 19B
C100: 5A | D100: =IFERROR(VLOOKUP(C100,#REF!,2,FALSE),"") ->  | E100: 20A
C101: 5B | D101: =IFERROR(VLOOKUP(C101,#REF!,2,FALSE),"") ->  | E101: 20B
C102: 6A | D102: =IFERROR(VLOOKUP(C102,#REF!,2,FALSE),"") ->  | E102: 21A
C103: 6B | D103: =IFERROR(VLOOKUP(C103,#REF!,2,FALSE),"") ->  | E103: 21B
C104: 7A | D104: =IFERROR(VLOOKUP(C104,#REF!,2,FALSE),"") ->  | E104: 22A
C105: 7B | D105: =IFERROR(VLOOKUP(C105,#REF!,2,FALSE),"") ->  | E105: 22B
C106: 8A | D106: =IFERROR(VLOOKUP(C106,#REF!,2,FALSE),"") -> 
C107: 8B | D107: =IFERROR(VLOOKUP(C107,#REF!,2,FALSE),"") -> 
C108: 9A | D108: =IFERROR(VLOOKUP(C108,#REF!,2,FALSE),"") -> 
K109: 9B | L109: =IFERROR(VLOOKUP(K109,#REF!,2,FALSE),"") -> 
K110: 10A | L110: =IFERROR(VLOOKUP(K110,#REF!,2,FALSE),"") -> 
K111: 10B | L111: =IFERROR(VLOOKUP(K111,#REF!,2,FALSE),"") -> 
K112: 11A | L112: =IFERROR(VLOOKUP(K112,#REF!,2,FALSE),"") -> 
K113: 11B | L113: =IFERROR(VLOOKUP(K113,#REF!,2,FALSE),"") -> 
K114: 12A | L114: =IFERROR(VLOOKUP(K114,#REF!,2,FALSE),"") -> 
K115: 12B | L115: =IFERROR(VLOOKUP(K115,#REF!,2,FALSE),"") -> 
K116: 13A | L116: =IFERROR(VLOOKUP(K116,#REF!,2,FALSE),"") -> 
K117: 13B | L117: =IFERROR(VLOOKUP(K117,#REF!,2,FALSE),"") -> 
K118: 14A | L118: =IFERROR(VLOOKUP(K118,#REF!,2,FALSE),"") -> 
K119: 14B | L119: =IFERROR(VLOOKUP(K119,#REF!,2,FALSE),"") -> 
K120: 15A | L120: =IFERROR(VLOOKUP(K120,#REF!,2,FALSE),"") -> 
K121: 15B | L121: =IFERROR(VLOOKUP(K121,#REF!,2,FALSE),"") -> 
K122: 16A | L122: =IFERROR(VLOOKUP(K122,#REF!,2,FALSE),"") -> 
K123: 16B | L123: =IFERROR(VLOOKUP(K123,#REF!,2,FALSE),"") -> 
K124: 17A | L124: =IFERROR(VLOOKUP(K124,#REF!,2,FALSE),"") -> 
K125: 17B | L125: =IFERROR(VLOOKUP(K125,#REF!,2,FALSE),"") -> 
K126: 18A | L126: =IFERROR(VLOOKUP(K126,#REF!,2,FALSE),"") -> 
K127: 18B | L127: =IFERROR(VLOOKUP(K127,#REF!,2,FALSE),"") -> 
K128: 19A | L128: =IFERROR(VLOOKUP(K128,#REF!,2,FALSE),"") -> 
K129: 19B | L129: =IFERROR(VLOOKUP(K129,#REF!,2,FALSE),"") -> 
K130: 20A | L130: =IFERROR(VLOOKUP(K130,#REF!,2,FALSE),"") -> 
K131: 20B | L131: =IFERROR(VLOOKUP(K131,#REF!,2,FALSE),"") -> 
K132: 21A | L132: =IFERROR(VLOOKUP(K132,#REF!,2,FALSE),"") -> 
K133: 21B | L133: =IFERROR(VLOOKUP(K133,#REF!,2,FALSE),"") -> 
K134: 22A | L134: =IFERROR(VLOOKUP(K134,#REF!,2,FALSE),"") -> 
K135: 22B | L135: =IFERROR(VLOOKUP(K135,#REF!,2,FALSE),"") -> 
K136: 23A | L136: =IFERROR(VLOOKUP(K136,#REF!,2,FALSE),"") -> 
K137: 23B | L137: =IFERROR(VLOOKUP(K137,#REF!,2,FALSE),"") -> 
K138: 24A | L138: =IFERROR(VLOOKUP(K138,#REF!,2,FALSE),"") -> 
K139: 24B | L139: =IFERROR(VLOOKUP(K139,#REF!,2,FALSE),"") -> 
K140: 25A | L140: =IFERROR(VLOOKUP(K140,#REF!,2,FALSE),"") -> 
K141: 25B | L141: =IFERROR(VLOOKUP(K141,#REF!,2,FALSE),"") -> 
K142: 26A | L142: =IFERROR(VLOOKUP(K142,#REF!,2,FALSE),"") -> 
K143: 26B | L143: =IFERROR(VLOOKUP(K143,#REF!,2,FALSE),"") -> 
K144: 27A | L144: =IFERROR(VLOOKUP(K144,#REF!,2,FALSE),"") -> 
K145: 27B | L145: =IFERROR(VLOOKUP(K145,#REF!,2,FALSE),"") -> 
K146: 28A | L146: =IFERROR(VLOOKUP(K146,#REF!,2,FALSE),"") -> 
K147: 28B | L147: =IFERROR(VLOOKUP(K147,#REF!,2,FALSE),"") -> 
K148: 29A | L148: =IFERROR(VLOOKUP(K148,#REF!,2,FALSE),"") -> 
K149: 29B | L149: =IFERROR(VLOOKUP(K149,#REF!,2,FALSE),"") -> 
K150: 30A | L150: =IFERROR(VLOOKUP(K150,#REF!,2,FALSE),"") -> 
K151: 30B | L151: =IFERROR(VLOOKUP(K151,#REF!,2,FALSE),"") -> 
K152: 31A | L152: =IFERROR(VLOOKUP(K152,#REF!,2,FALSE),"") -> 
K153: 31B | L153: =IFERROR(VLOOKUP(K153,#REF!,2,FALSE),"") -> 
K154: 32A | L154: =IFERROR(VLOOKUP(K154,#REF!,2,FALSE),"") -> 
K155: 32B | L155: =IFERROR(VLOOKUP(K155,#REF!,2,FALSE),"") -> 
K156: 33A | L156: =IFERROR(VLOOKUP(K156,#REF!,2,FALSE),"") -> 
K157: 33B | L157: =IFERROR(VLOOKUP(K157,#REF!,2,FALSE),"") -> 
K158: 34A | L158: =IFERROR(VLOOKUP(K158,#REF!,2,FALSE),"") -> 
K159: 34B | L159: =IFERROR(VLOOKUP(K159,#REF!,2,FALSE),"") -> 
K160: 35A | L160: =IFERROR(VLOOKUP(K160,#REF!,2,FALSE),"") -> 
K161: 35B | L161: =IFERROR(VLOOKUP(K161,#REF!,2,FALSE),"") -> 
K162: 36A | L162: =IFERROR(VLOOKUP(K162,#REF!,2,FALSE),"") -> 
K163: 36B | L163: =IFERROR(VLOOKUP(K163,#REF!,2,FALSE),"") -> 

Sheet SCORECARD
A1: ='COURSE & LEAGUE DETAILS'!$B$3 -> Woods at Westminster
A2: ='COURSE & LEAGUE DETAILS'!$B$2&" - "&N6&" - "&N8&" - "&TEXT(N7, "MMM dd, yyyy") -> Romano Golf League - Week 9 - FRONT - Aug 30, 2017
A4: HOLE | D4: =IF(LEFT($N$8)="F",1,IF(LEFT($N$8)="B",10,"ERROR")) -> 1 | E4: =IF(LEFT($N$8)="F",2,IF(LEFT($N$8)="B",11,"ERROR")) -> 2 | F4: =IF(LEFT($N$8)="F",3,IF(LEFT($N$8)="B",12,"ERROR")) -> 3 | G4: =IF(LEFT($N$8)="F",4,IF(LEFT($N$8)="B",13,"ERROR")) -> 4 | H4: =IF(LEFT($N$8)="F",5,IF(LEFT($N$8)="B",14,"ERROR")) -> 5 | I4: =IF(LEFT($N$8)="F",6,IF(LEFT($N$8)="B",15,"ERROR")) -> 6 | J4: =IF(LEFT($N$8)="F",7,IF(LEFT($N$8)="B",16,"ERROR")) -> 7 | K4: =IF(LEFT($N$8)="F",8,IF(LEFT($N$8)="B",17,"ERROR")) -> 8 | L4: =IF(LEFT($N$8)="F",9,IF(LEFT($N$8)="B",18,"ERROR")) -> 9 | M4: =IF(LEFT($N$8)="F","OUT",IF(LEFT($N$8)="B","IN","ERROR")) -> OUT
A5: WHITE | D5: =IF($D$4=1,'COURSE & LEAGUE DETAILS'!$B$6,IF($D$4=10,'COURSE & LEAGUE DETAILS'!$B$14,"ERROR")) -> 460 | E5: =IF($D$4=1,'COURSE & LEAGUE DETAILS'!$C$6,IF($D$4=10,'COURSE & LEAGUE DETAILS'!$C$14,"ERROR")) -> 275 | F5: =IF($D$4=1,'COURSE & LEAGUE DETAILS'!$D$6,IF($D$4=10,'COURSE & LEAGUE DETAILS'!$D$14,"ERROR")) -> 525 | G5: =IF($D$4=1,'COURSE & LEAGUE DETAILS'!$E$6,IF($D$4=10,'COURSE & LEAGUE DETAILS'!$E$14,"ERROR")) -> 295 | H5: =IF($D$4=1,'COURSE & LEAGUE DETAILS'!$F$6,IF($D$4=10,'COURSE & LEAGUE DETAILS'!$F$14,"ERROR")) -> 345 | I5: =IF($D$4=1,'COURSE & LEAGUE DETAILS'!$G$6,IF($D$4=10,'COURSE & LEAGUE DETAILS'!$G$14,"ERROR")) -> 175 | J5: =IF($D$4=1,'COURSE & LEAGUE DETAILS'!$H$6,IF($D$4=10,'COURSE & LEAGUE DETAILS'!$H$14,"ERROR")) -> 405 | K5: =IF($D$4=1,'COURSE & LEAGUE DETAILS'!$I$6,IF($D$4=10,'COURSE & LEAGUE DETAILS'!$I$14,"ERROR")) -> 145 | L5: =IF($D$4=1,'COURSE & LEAGUE DETAILS'!$J$6,IF($D$4=10,'COURSE & LEAGUE DETAILS'!$J$14,"ERROR")) -> 320 | M5: =IF($D$4=1,'COURSE & LEAGUE DETAILS'!$K$6,IF($D$4=10,'COURSE & LEAGUE DETAILS'!$K$14,"ERROR")) -> 2945
A6: MEN'S PAR | D6: =IF($D$4=1,'COURSE & LEAGUE DETAILS'!$B$7,IF($D$4=10,'COURSE & LEAGUE DETAILS'!$B$15,"ERROR")) -> 5 | E6: =IF($D$4=1,'COURSE & LEAGUE DETAILS'!$C$7,IF($D$4=10,'COURSE & LEAGUE DETAILS'!$C$15,"ERROR")) -> 4 | F6: =IF($D$4=1,'COURSE & LEAGUE DETAILS'!$D$7,IF($D$4=10,'COURSE & LEAGUE DETAILS'!$D$15,"ERROR")) -> 5 | G6: =IF($D$4=1,'COURSE & LEAGUE DETAILS'!$E$7,IF($D$4=10,'COURSE & LEAGUE DETAILS'!$E$15,"ERROR")) -> 4 | H6: =IF($D$4=1,'COURSE & LEAGUE DETAILS'!$F$7,IF($D$4=10,'COURSE & LEAGUE DETAILS'!$F$15,"ERROR")) -> 4 | I6: =IF($D$4=1,'COURSE & LEAGUE DETAILS'!$G$7,IF($D$4=10,'COURSE & LEAGUE DETAILS'!$G$15,"ERROR")) -> 3 | J6: =IF($D$4=1,'COURSE & LEAGUE DETAILS'!$H$7,IF($D$4=10,'COURSE & LEAGUE DETAILS'!$H$15,"ERROR")) -> 4 | K6: =IF($D$4=1,'COURSE & LEAGUE DETAILS'!$I$7,IF($D$4=10,'COURSE & LEAGUE DETAILS'!$I$15,"ERROR")) -> 3 | L6: =IF($D$4=1,'COURSE & LEAGUE DETAILS'!$J$7,IF($D$4=10,'COURSE & LEAGUE DETAILS'!$J$15,"ERROR")) -> 4 | M6: =IF($D$4=1,'COURSE & LEAGUE DETAILS'!$K$7,IF($D$4=10,'COURSE & LEAGUE DETAILS'!$K$15,"ERROR")) -> 36 | N6: =B176 -> Week 9
A7: MEN'S HCP | D7: =IF($D$4=1,'COURSE & LEAGUE DETAILS'!$B$8,IF($D$4=10,'COURSE & LEAGUE DETAILS'!$B$16,"ERROR")) -> 5 | E7: =IF($D$4=1,'COURSE & LEAGUE DETAILS'!$C$8,IF($D$4=10,'COURSE & LEAGUE DETAILS'!$C$16,"ERROR")) -> 7 | F7: =IF($D$4=1,'COURSE & LEAGUE DETAILS'!$D$8,IF($D$4=10,'COURSE & LEAGUE DETAILS'!$D$16,"ERROR")) -> 3 | G7: =IF($D$4=1,'COURSE & LEAGUE DETAILS'!$E$8,IF($D$4=10,'COURSE & LEAGUE DETAILS'!$E$16,"ERROR")) -> 9 | H7: =IF($D$4=1,'COURSE & LEAGUE DETAILS'!$F$8,IF($D$4=10,'COURSE & LEAGUE DETAILS'!$F$16,"ERROR")) -> 11 | I7: =IF($D$4=1,'COURSE & LEAGUE DETAILS'!$G$8,IF($D$4=10,'COURSE & LEAGUE DETAILS'!$G$16,"ERROR")) -> 17 | J7: =IF($D$4=1,'COURSE & LEAGUE DETAILS'!$H$8,IF($D$4=10,'COURSE & LEAGUE DETAILS'!$H$16,"ERROR")) -> 1 | K7: =IF($D$4=1,'COURSE & LEAGUE DETAILS'!$I$8,IF($D$4=10,'COURSE & LEAGUE DETAILS'!$I$16,"ERROR")) -> 15 | L7: =IF($D$4=1,'COURSE & LEAGUE DETAILS'!$J$8,IF($D$4=10,'COURSE & LEAGUE DETAILS'!$J$16,"ERROR")) -> 13 | N7: =B177 -> 2017-08-30
A8: RED | D8: =IF($D$4=1,'COURSE & LEAGUE DETAILS'!$B$9,IF($D$4=10,'COURSE & LEAGUE DETAILS'!$B$17,"ERROR")) -> 375 | E8: =IF($D$4=1,'COURSE & LEAGUE DETAILS'!$C$9,IF($D$4=10,'COURSE & LEAGUE DETAILS'!$C$17,"ERROR")) -> 250 | F8: =IF($D$4=1,'COURSE & LEAGUE DETAILS'!$D$9,IF($D$4=10,'COURSE & LEAGUE DETAILS'!$D$17,"ERROR")) -> 475 | G8: =IF($D$4=1,'COURSE & LEAGUE DETAILS'!$E$9,IF($D$4=10,'COURSE & LEAGUE DETAILS'!$E$17,"ERROR")) -> 255 | H8: =IF($D$4=1,'COURSE & LEAGUE DETAILS'!$F$9,IF($D$4=10,'COURSE & LEAGUE DETAILS'!$F$17,"ERROR")) -> 325 | I8: =IF($D$4=1,'COURSE & LEAGUE DETAILS'!$G$9,IF($D$4=10,'COURSE & LEAGUE DETAILS'!$G$17,"ERROR")) -> 155 | J8: =IF($D$4=1,'COURSE & LEAGUE DETAILS'!$H$9,IF($D$4=10,'COURSE & LEAGUE DETAILS'!$H$17,"ERROR")) -> 375 | K8: =IF($D$4=1,'COURSE & LEAGUE DETAILS'!$I$9,IF($D$4=10,'COURSE & LEAGUE DETAILS'!$I$17,"ERROR")) -> 130 | L8: =IF($D$4=1,'COURSE & LEAGUE DETAILS'!$J$9,IF($D$4=10,'COURSE & LEAGUE DETAILS'!$J$17,"ERROR")) -> 290 | M8: =IF($D$4=1,'COURSE & LEAGUE DETAILS'!$K$9,IF($D$4=10,'COURSE & LEAGUE DETAILS'!$K$17,"ERROR")) -> 2630 | N8: =B178 -> FRONT
A9: WOMEN'S PAR | D9: =IF($D$4=1,'COURSE & LEAGUE DETAILS'!$B$10,IF($D$4=10,'COURSE & LEAGUE DETAILS'!$B$18,"ERROR")) -> 5 | E9: =IF($D$4=1,'COURSE & LEAGUE DETAILS'!$C$10,IF($D$4=10,'COURSE & LEAGUE DETAILS'!$C$18,"ERROR")) -> 4 | F9: =IF($D$4=1,'COURSE & LEAGUE DETAILS'!$D$10,IF($D$4=10,'COURSE & LEAGUE DETAILS'!$D$18,"ERROR")) -> 5 | G9: =IF($D$4=1,'COURSE & LEAGUE DETAILS'!$E$10,IF($D$4=10,'COURSE & LEAGUE DETAILS'!$E$18,"ERROR")) -> 4 | H9: =IF($D$4=1,'COURSE & LEAGUE DETAILS'!$F$10,IF($D$4=10,'COURSE & LEAGUE DETAILS'!$F$18,"ERROR")) -> 4 | I9: =IF($D$4=1,'COURSE & LEAGUE DETAILS'!$G$10,IF($D$4=10,'COURSE & LEAGUE DETAILS'!$G$18,"ERROR")) -> 3 | J9: =IF($D$4=1,'COURSE & LEAGUE DETAILS'!$H$10,IF($D$4=10,'COURSE & LEAGUE DETAILS'!$H$18,"ERROR")) -> 5 | K9: =IF($D$4=1,'COURSE & LEAGUE DETAILS'!$I$10,IF($D$4=10,'COURSE & LEAGUE DETAILS'!$I$18,"ERROR")) -> 3 | L9: =IF($D$4=1,'COURSE & LEAGUE DETAILS'!$J$10,IF($D$4=10,'COURSE & LEAGUE DETAILS'!$J$18,"ERROR")) -> 4 | M9: =IF($D$4=1,'COURSE & LEAGUE DETAILS'!$K$10,IF($D$4=10,'COURSE & LEAGUE DETAILS'!$K$18,"ERROR")) -> 37 | N9: =B179 -> 16:00:00
A10: HCP | B10: TEAM | C10: WOMEN'S HCP | D10: =IF($D$4=1,'COURSE & LEAGUE DETAILS'!$B$11,IF($D$4=10,'COURSE & LEAGUE DETAILS'!$B$19,"ERROR")) -> 5 | E10: =IF($D$4=1,'COURSE & LEAGUE DETAILS'!$C$11,IF($D$4=10,'COURSE & LEAGUE DETAILS'!$C$19,"ERROR")) -> 7 | F10: =IF($D$4=1,'COURSE & LEAGUE DETAILS'!$D$11,IF($D$4=10,'COURSE & LEAGUE DETAILS'!$D$19,"ERROR")) -> 3 | G10: =IF($D$4=1,'COURSE & LEAGUE DETAILS'!$E$11,IF($D$4=10,'COURSE & LEAGUE DETAILS'!$E$19,"ERROR")) -> 9 | H10: =IF($D$4=1,'COURSE & LEAGUE DETAILS'!$F$11,IF($D$4=10,'COURSE & LEAGUE DETAILS'!$F$19,"ERROR")) -> 11 | I10: =IF($D$4=1,'COURSE & LEAGUE DETAILS'!$G$11,IF($D$4=10,'COURSE & LEAGUE DETAILS'!$G$19,"ERROR")) -> 17 | J10: =IF($D$4=1,'COURSE & LEAGUE DETAILS'!$H$11,IF($D$4=10,'COURSE & LEAGUE DETAILS'!$H$19,"ERROR")) -> 1 | K10: =IF($D$4=1,'COURSE & LEAGUE DETAILS'!$I$11,IF($D$4=10,'COURSE & LEAGUE DETAILS'!$I$19,"ERROR")) -> 15 | L10: =IF($D$4=1,'COURSE & LEAGUE DETAILS'!$J$11,IF($D$4=10,'COURSE & LEAGUE DETAILS'!$J$19,"ERROR")) -> 13 | N10: =B175 -> 17 v 4
D11: =D56 -> 1 | E11: 1 | F11: 1 | G11: 1 | H11: 0 | I11: 0 | J11: 1 | K11: 0 | L11: 0 | M11: =IF(B12="Course","",IF(B12="DNP","",SUM(D11:L11))) -> 5
A12: =IF(B12="DNP",IF(B14="DNP","ERROR",""),IF(B12="COURSE",0,VLOOKUP(B12,'LEAGUE MEMBERSHIP'!B:K,6,FALSE))) -> 14 | B12: =$N$12&"A" -> 17A | C12: =VLOOKUP(B12,'LEAGUE MEMBERSHIP'!$B$8:$K$107,5,FALSE) -> Carol Ekstrom | N12: =LEFT(SUBSTITUTE(N10," v ",","),FIND(",",SUBSTITUTE(N10," v ",","))-1) -> 17
D13: =D57 -> 0 | E13: 0 | F13: 0 | G13: 0 | H13: 0 | I13: 0 | J13: 0 | K13: 0 | L13: 0 | M13: =IF(B14="Course","",IF(B14="DNP","",SUM(D13:L13))) -> 0
A14: =IF(B14="DNP",IF(B12="DNP","ERROR",""),IF(B14="COURSE",0,VLOOKUP(B14,'LEAGUE MEMBERSHIP'!B:K,6,FALSE))) -> 9 | B14: =$N$12&"B" -> 17B | C14: =VLOOKUP(B14,'LEAGUE MEMBERSHIP'!$B$8:$K$107,5,FALSE) -> Mike Dauphinais
C15: +/-
D17: =D59 -> 1 | E17: 1 | F17: 1 | G17: 0 | H17: 0 | I17: 0 | J17: 1 | K17: 0 | L17: 0 | M17: =IF(B18="Course","",IF(B18="DNP","",SUM(D17:L17))) -> 4
A18: =IF(B18="DNP",IF(B20="DNP","ERROR",""),IF(B18="COURSE",0,VLOOKUP(B18,'LEAGUE MEMBERSHIP'!B:K,6,FALSE))) -> 13 | B18: =$N$18&"A" -> 4A | C18: =VLOOKUP(B18,'LEAGUE MEMBERSHIP'!$B$8:$K$107,5,FALSE) -> Peg Romano | N18: =RIGHT(SUBSTITUTE(N10," v ",","),LEN(SUBSTITUTE(N10," v ",","))-FIND(",",SUBSTITUTE(N10," v ",","))) -> 4
D19: =D60 -> 1 | E19: 1 | F19: 2 | G19: 1 | H19: 1 | I19: 0 | J19: 2 | K19: 0 | L19: 1 | M19: =IF(B20="Course","",IF(B20="DNP","",SUM(D19:L19))) -> 9
A20: =IF(B20="DNP",IF(B22="DNP","ERROR",""),IF(B20="COURSE",0,VLOOKUP(B20,'LEAGUE MEMBERSHIP'!B:K,6,FALSE))) -> 18 | B20: =$N$18&"B" -> 4B | C20: =VLOOKUP(B20,'LEAGUE MEMBERSHIP'!$B$8:$K$107,5,FALSE) -> Lynn Laroche
A22: =CONCATENATE("TEE TIME: ",TEXT(N9,"h:mm AM/PM")) -> TEE TIME: 4:00 PM
A24: =MAIN!F8 -> Standings After Week of 08/23/17
A26: Rank | B26: Team | F26: Points
A27: =MAIN!F11 -> 1 | B27: =MAIN!G11&" "&MAIN!H11 -> Team 10 - Ron Ekstrom / Beth Romano | F27: =MAIN!L11 -> 44
A28: =MAIN!F12 -> 2T | B28: =MAIN!G12&" "&MAIN!H12 -> Team 11 - Jim Haskins / Anthony Conte | F28: =MAIN!L12 -> 37
A29: =MAIN!F13 -> 2T | B29: =MAIN!G13&" "&MAIN!H13 -> Team 14 - Paul Fontaine / Ralph Romano III | F29: =MAIN!L13 -> 37
A30: =MAIN!F14 -> 4T | B30: =MAIN!G14&" "&MAIN!H14 -> Team 07 - John Fairbanks / Debbie Fairbanks | F30: =MAIN!L14 -> 36.5
A31: =MAIN!F15 -> 4T | B31: =MAIN!G15&" "&MAIN!H15 -> Team 15 - Gary Leavenworth / Patty Leavenworth | F31: =MAIN!L15 -> 36.5
A32: =MAIN!F16 -> 6T | B32: =MAIN!G16&" "&MAIN!H16 -> Team 08 - Steve Lawrence / Mike Benson | F32: =MAIN!L16 -> 32
A33: =MAIN!F17 -> 6T | B33: =MAIN!G17&" "&MAIN!H17 -> Team 13 - Tim Hurley / Walter Drake | F33: =MAIN!L17 -> 32
A34: =MAIN!F18 -> 6T | B34: =MAIN!G18&" "&MAIN!H18 -> Team 20 - Sheila Sundstrom / Ray Hoy | F34: =MAIN!L18 -> 32
A35: =MAIN!F19 -> 9 | B35: =MAIN!G19&" "&MAIN!H19 -> Team 06 - Vance Butterfield / Bob Schleyer | F35: =MAIN!L19 -> 31.5
A36: =MAIN!F20 -> 10T | B36: =MAIN!G20&" "&MAIN!H20 -> Team 03 - Pete Romano / Don Frigoletto | F36: =MAIN!L20 -> 31
A37: =MAIN!F21 -> 10T | B37: =MAIN!G21&" "&MAIN!H21 -> Team 05 - Dennis Normandin / Mark Normandin | F37: =MAIN!L21 -> 31
A38: =MAIN!F22 -> 12 | B38: =MAIN!G22&" "&MAIN!H22 -> Team 17 - Carol Ekstrom / Mike Dauphinais | F38: =MAIN!L22 -> 28.5
A39: =MAIN!F23 -> 13 | B39: =MAIN!G23&" "&MAIN!H23 -> Team 02 - Jono Normandin / Nathan Wallace | F39: =MAIN!L23 -> 28
A40: =MAIN!F24 -> 14T | B40: =MAIN!G24&" "&MAIN!H24 -> Team 01 - John Normandin / Pete Normandin | F40: =MAIN!L24 -> 27.5
A41: =MAIN!F25 -> 14T | B41: =MAIN!G25&" "&MAIN!H25 -> Team 16 - Kevin O'Loughlin / Mike Romano | F41: =MAIN!L25 -> 27.5
A42: =MAIN!F26 -> 16T | B42: =MAIN!G26&" "&MAIN!H26 -> Team 09 - Mike Doane / John Cassin | F42: =MAIN!L26 -> 26.5
A43: =MAIN!F27 -> 16T | B43: =MAIN!G27&" "&MAIN!H27 -> Team 19 - John Pavone / Ernie Beliveau | F43: =MAIN!L27 -> 26.5
A44: =MAIN!F28 -> 18 | B44: =MAIN!G28&" "&MAIN!H28 -> Team 04 - Peg Romano / Lynn Laroche | F44: =MAIN!L28 -> 26
A45: =MAIN!F29 -> 19 | B45: =MAIN!G29&" "&MAIN!H29 -> Team 18 - Norm Gamache / Michelle Bouvier | F45: =MAIN!L29 -> 24.5
A46: =MAIN!F30 -> 20 | B46: =MAIN!G30&" "&MAIN!H30 -> Team 12 - Sal Ciufetti / Kevin Nivala | F46: =MAIN!L30 -> 13
A47: =MAIN!F31 -> 0 | B47: =MAIN!G31 -> 0 | F47: =MAIN!L31 -> 0
A48: =MAIN!#REF! ->  | B48: =MAIN!#REF! ->  | F48: =MAIN!L32 -> 0
A49: ='COURSE & LEAGUE DETAILS'!A49 -> To view scores, handicaps, etc., go to http://www.rromano.com and click on the Romano Golf League 2017 Spreadsheet
N53: # non-par 3s
C54: Men's Hcp. Rank | D54: =IF(D6<>3,RANK(D7,$D$7:$L$7,1),"") -> 3 | E54: =IF(E6<>3,RANK(E7,$D$7:$L$7,1),"") -> 4 | F54: 2 | G54: 5 | H54: 6 | J54: 1 | L54: 7 | N54: =COUNTIF(D6:L6,"<>"&3) -> 7
C55: Women's Hcp. Rank | D55: =IF(D9<>3,RANK(D10,$D$10:$L$10,1),"") -> 3 | E55: =IF(E9<>3,RANK(E10,$D$10:$L$10,1),"") -> 4 | F55: 2 | G55: 5 | H55: 6 | J55: 1 | L55: 7 | N55: =COUNTIF(D9:L9,"<>"&3) -> 7
A56: =MIN(A12:A20) -> 9 | B56: =IF(A12<>"",A12-A56,"") -> 5 | C56: =VLOOKUP(B12,'LEAGUE MEMBERSHIP'!B:K,4,FALSE) -> F | D56: =IF($B56="","",IF($C56="M",IF(D$6=3,0,IF($B56-$N$54>=D$54,2,IF($B56>=D$54,1,0))),IF($C56="F",IF(D$9=3,0,IF($B56-$N$55>=D$55,2,IF($B56>=D$55,1,0)))))) -> 1 | E56: =IF($B56="","",IF($C56="M",IF(E$6=3,0,IF($B56-$N$54>=E$54,2,IF($B56>=E$54,1,0))),IF($C56="F",IF(E$9=3,0,IF($B56-$N$55>=E$55,2,IF($B56>=E$55,1,0)))))) -> 1 | F56: 1 | G56: 1 | H56: 0 | I56: 0 | J56: 1 | K56: 0 | L56: 0
B57: =IF(A14<>"",A14-A56,"") -> 0 | C57: =VLOOKUP(B14,'LEAGUE MEMBERSHIP'!B:K,4,FALSE) -> M | D57: =IF($B57="","",IF($C57="M",IF(D$6=3,0,IF($B57-$N$54>=D$54,2,IF($B57>=D$54,1,0))),IF($C57="F",IF(D$9=3,0,IF($B57-$N$55>=D$55,2,IF($B57>=D$55,1,0)))))) -> 0 | E57: 0 | F57: 0 | G57: 0 | H57: 0 | I57: 0 | J57: 0 | K57: 0 | L57: 0
B59: =IF(A18<>"",A18-A56,"") -> 4 | C59: =VLOOKUP(B18,'LEAGUE MEMBERSHIP'!B:K,4,FALSE) -> F | D59: =IF($B59="","",IF($C59="M",IF(D$6=3,0,IF($B59-$N$54>=D$54,2,IF($B59>=D$54,1,0))),IF($C59="F",IF(D$9=3,0,IF($B59-$N$55>=D$55,2,IF($B59>=D$55,1,0)))))) -> 1 | E59: 1 | F59: 1 | G59: 0 | H59: 0 | I59: 0 | J59: 1 | K59: 0 | L59: 0
B60: =IF(A20<>"",A20-A56,"") -> 9 | C60: =VLOOKUP(B20,'LEAGUE MEMBERSHIP'!B:K,4,FALSE) -> F | D60: 1 | E60: 1 | F60: 2 | G60: 1 | H60: 1 | I60: 0 | J60: 2 | K60: 0 | L60: 1
B76: =$N$12&"A" -> 17A
B78: =$N$12&"B" -> 17B
B82: =$N$18&"A" -> 4A
B84: =$N$18&"B" -> 4B
B90: =IFERROR(B12&" - "&VLOOKUP(B12,'LEAGUE MEMBERSHIP'!B:J,5,FALSE),"") -> 17A - Carol Ekstrom
B91: =IFERROR(B14&" - "&VLOOKUP(B14,'LEAGUE MEMBERSHIP'!B:J,5,FALSE),"") -> 17B - Mike Dauphinais
B92: =IFERROR(B18&" - "&VLOOKUP(B18,'LEAGUE MEMBERSHIP'!B:J,5,FALSE),"") -> 4A - Peg Romano
B93: =IFERROR(B20&" - "&VLOOKUP(B20,'LEAGUE MEMBERSHIP'!B:J,5,FALSE),"") -> 4B - Lynn Laroche
S98: Change
N99: Change? | O99: Player 1 | P99: Player 2 | Q99: Player 3 | R99: Player 4 | S99: Player 1 | T99: Player 2 | U99: Player 3 | V99: Player 4
A100: 16:00:00 | B100: 17 v 4 | C100: =IFERROR(IF(FIND(" v",B100)=2,"0" & LEFT(B100,1),LEFT(B100,2)),"") -> 17 | D100: =IFERROR(IF(LEN(RIGHT(B100,LEN(B100)-FIND("v ",B100)-1))=1,"0"&RIGHT(B100,LEN(B100)-FIND("v ",B100)-1),RIGHT(B100,LEN(B100)-FIND("v ",B100)-1)),"") -> 04 | E100: ="Team "&C100 -> Team 17 | F100: ="Team "&D100 -> Team 04 | G100: =VLOOKUP(E100,'TEAM ROSTERS & SUB LIST'!$B:$G,3,FALSE)&" / "&VLOOKUP(E100,'TEAM ROSTERS & SUB LIST'!$B:$G,5,FALSE) -> Carol Ekstrom / Mike Dauphinais | J100: =VLOOKUP(F100,'TEAM ROSTERS & SUB LIST'!$B:$G,3,FALSE)&" / "&VLOOKUP(F100,'TEAM ROSTERS & SUB LIST'!$B:$G,5,FALSE) -> Peg Romano / Lynn Laroche | M100: =E100&" - "&G100&" v "&F100&" - "&J100 -> Team 17 - Carol Ekstrom / Mike Dauphinais v Team 04 - Peg Romano / Lynn Laroche | O100: =IFERROR(VLOOKUP(E100,'TEAM ROSTERS & SUB LIST'!$B:$G,2,FALSE)&" - "&VLOOKUP(E100,'TEAM ROSTERS & SUB LIST'!$B:$G,3,FALSE),"") -> 17A - Carol Ekstrom | P100: =IFERROR(VLOOKUP(E100,'TEAM ROSTERS & SUB LIST'!$B:$G,4,FALSE)&" - "&VLOOKUP(E100,'TEAM ROSTERS & SUB LIST'!$B:$G,5,FALSE),"") -> 17B - Mike Dauphinais | Q100: =IFERROR(VLOOKUP(F100,'TEAM ROSTERS & SUB LIST'!$B:$G,2,FALSE)&" - "&VLOOKUP(F100,'TEAM ROSTERS & SUB LIST'!$B:$G,3,FALSE),"") -> 4A - Peg Romano | R100: =IFERROR(VLOOKUP(F100,'TEAM ROSTERS & SUB LIST'!$B:$G,4,FALSE)&" - "&VLOOKUP(F100,'TEAM ROSTERS & SUB LIST'!$B:$G,5,FALSE),"") -> 4B - Lynn Laroche
A101: 16:08:00 | B101: 1 v 9 | C101: =IFERROR(IF(FIND(" v",B101)=2,"0" & LEFT(B101,1),LEFT(B101,2)),"") -> 01 | D101: =IFERROR(IF(LEN(RIGHT(B101,LEN(B101)-FIND("v ",B101)-1))=1,"0"&RIGHT(B101,LEN(B101)-FIND("v ",B101)-1),RIGHT(B101,LEN(B101)-FIND("v ",B101)-1)),"") -> 09 | E101: ="Team "&C101 -> Team 01 | F101: Team 09 | G101: =VLOOKUP(E101,'TEAM ROSTERS & SUB LIST'!$B:$G,3,FALSE)&" / "&VLOOKUP(E101,'TEAM ROSTERS & SUB LIST'!$B:$G,5,FALSE) -> John Normandin / Pete Normandin | J101: =VLOOKUP(F101,'TEAM ROSTERS & SUB LIST'!$B:$G,3,FALSE)&" / "&VLOOKUP(F101,'TEAM ROSTERS & SUB LIST'!$B:$G,5,FALSE) -> Mike Doane / John Cassin | M101: Team 01 - John Normandin / Pete Normandin v Team 09 - Mike Doane / John Cassin | O101: =IFERROR(VLOOKUP(E101,'TEAM ROSTERS & SUB LIST'!$B:$G,2,FALSE)&" - "&VLOOKUP(E101,'TEAM ROSTERS & SUB LIST'!$B:$G,3,FALSE),"") -> 1A - John Normandin | P101: =IFERROR(VLOOKUP(E101,'TEAM ROSTERS & SUB LIST'!$B:$G,4,FALSE)&" - "&VLOOKUP(E101,'TEAM ROSTERS & SUB LIST'!$B:$G,5,FALSE),"") -> 1B - Pete Normandin | Q101: =IFERROR(VLOOKUP(F101,'TEAM ROSTERS & SUB LIST'!$B:$G,2,FALSE)&" - "&VLOOKUP(F101,'TEAM ROSTERS & SUB LIST'!$B:$G,3,FALSE),"") -> 9A - Mike Doane | R101: =IFERROR(VLOOKUP(F101,'TEAM ROSTERS & SUB LIST'!$B:$G,4,FALSE)&" - "&VLOOKUP(F101,'TEAM ROSTERS & SUB LIST'!$B:$G,5,FALSE),"") -> 9B - John Cassin
A102: 16:16:00 | B102: 19 v 6 | C102: 19 | D102: 06 | E102: Team 19 | F102: Team 06 | G102: =VLOOKUP(E102,'TEAM ROSTERS & SUB LIST'!$B:$G,3,FALSE)&" / "&VLOOKUP(E102,'TEAM ROSTERS & SUB LIST'!$B:$G,5,FALSE) -> John Pavone / Ernie Beliveau | J102: =VLOOKUP(F102,'TEAM ROSTERS & SUB LIST'!$B:$G,3,FALSE)&" / "&VLOOKUP(F102,'TEAM ROSTERS & SUB LIST'!$B:$G,5,FALSE) -> Vance Butterfield / Bob Schleyer | M102: Team 19 - John Pavone / Ernie Beliveau v Team 06 - Vance Butterfield / Bob Schleyer | O102: =IFERROR(VLOOKUP(E102,'TEAM ROSTERS & SUB LIST'!$B:$G,2,FALSE)&" - "&VLOOKUP(E102,'TEAM ROSTERS & SUB LIST'!$B:$G,3,FALSE),"") -> 19A - John Pavone | P102: =IFERROR(VLOOKUP(E102,'TEAM ROSTERS & SUB LIST'!$B:$G,4,FALSE)&" - "&VLOOKUP(E102,'TEAM ROSTERS & SUB LIST'!$B:$G,5,FALSE),"") -> 19B - Ernie Beliveau | Q102: =IFERROR(VLOOKUP(F102,'TEAM ROSTERS & SUB LIST'!$B:$G,2,FALSE)&" - "&VLOOKUP(F102,'TEAM ROSTERS & SUB LIST'!$B:$G,3,FALSE),"") -> 6A - Vance Butterfield | R102: =IFERROR(VLOOKUP(F102,'TEAM ROSTERS & SUB LIST'!$B:$G,4,FALSE)&" - "&VLOOKUP(F102,'TEAM ROSTERS & SUB LIST'!$B:$G,5,FALSE),"") -> 6B - Bob Schleyer
A103: 16:24:00 | B103: 18 v 5 | C103: 18 | D103: 05 | E103: Team 18 | F103: Team 05 | G103: =VLOOKUP(E103,'TEAM ROSTERS & SUB LIST'!$B:$G,3,FALSE)&" / "&VLOOKUP(E103,'TEAM ROSTERS & SUB LIST'!$B:$G,5,FALSE) -> Norm Gamache / Michelle Bouvier | J103: =VLOOKUP(F103,'TEAM ROSTERS & SUB LIST'!$B:$G,3,FALSE)&" / "&VLOOKUP(F103,'TEAM ROSTERS & SUB LIST'!$B:$G,5,FALSE) -> Dennis Normandin / Mark Normandin | M103: Team 18 - Norm Gamache / Michelle Bouvier v Team 05 - Dennis Normandin / Mark Normandin | O103: =IFERROR(VLOOKUP(E103,'TEAM ROSTERS & SUB LIST'!$B:$G,2,FALSE)&" - "&VLOOKUP(E103,'TEAM ROSTERS & SUB LIST'!$B:$G,3,FALSE),"") -> 18A - Norm Gamache | P103: =IFERROR(VLOOKUP(E103,'TEAM ROSTERS & SUB LIST'!$B:$G,4,FALSE)&" - "&VLOOKUP(E103,'TEAM ROSTERS & SUB LIST'!$B:$G,5,FALSE),"") -> 18B - Michelle Bouvier | Q103: =IFERROR(VLOOKUP(F103,'TEAM ROSTERS & SUB LIST'!$B:$G,2,FALSE)&" - "&VLOOKUP(F103,'TEAM ROSTERS & SUB LIST'!$B:$G,3,FALSE),"") -> 5A - Dennis Normandin | R103: =IFERROR(VLOOKUP(F103,'TEAM ROSTERS & SUB LIST'!$B:$G,4,FALSE)&" - "&VLOOKUP(F103,'TEAM ROSTERS & SUB LIST'!$B:$G,5,FALSE),"") -> 5B - Mark Normandin
A104: 16:32:00 | B104: 15 v 2 | C104: 15 | D104: 02 | E104: Team 15 | F104: Team 02 | G104: =VLOOKUP(E104,'TEAM ROSTERS & SUB LIST'!$B:$G,3,FALSE)&" / "&VLOOKUP(E104,'TEAM ROSTERS & SUB LIST'!$B:$G,5,FALSE) -> Gary Leavenworth / Patty Leavenworth | J104: =VLOOKUP(F104,'TEAM ROSTERS & SUB LIST'!$B:$G,3,FALSE)&" / "&VLOOKUP(F104,'TEAM ROSTERS & SUB LIST'!$B:$G,5,FALSE) -> Jono Normandin / Nathan Wallace | M104: Team 15 - Gary Leavenworth / Patty Leavenworth v Team 02 - Jono Normandin / Nathan Wallace | O104: =IFERROR(VLOOKUP(E104,'TEAM ROSTERS & SUB LIST'!$B:$G,2,FALSE)&" - "&VLOOKUP(E104,'TEAM ROSTERS & SUB LIST'!$B:$G,3,FALSE),"") -> 15A - Gary Leavenworth | P104: =IFERROR(VLOOKUP(E104,'TEAM ROSTERS & SUB LIST'!$B:$G,4,FALSE)&" - "&VLOOKUP(E104,'TEAM ROSTERS & SUB LIST'!$B:$G,5,FALSE),"") -> 15B - Patty Leavenworth | Q104: =IFERROR(VLOOKUP(F104,'TEAM ROSTERS & SUB LIST'!$B:$G,2,FALSE)&" - "&VLOOKUP(F104,'TEAM ROSTERS & SUB LIST'!$B:$G,3,FALSE),"") -> 2A - Jono Normandin | R104: =IFERROR(VLOOKUP(F104,'TEAM ROSTERS & SUB LIST'!$B:$G,4,FALSE)&" - "&VLOOKUP(F104,'TEAM ROSTERS & SUB LIST'!$B:$G,5,FALSE),"") -> 2B - Nathan Wallace
A105: 16:40:00 | B105: 14 v 11 | C105: 14 | D105: 11 | E105: Team 14 | F105: Team 11 | G105: =VLOOKUP(E105,'TEAM ROSTERS & SUB LIST'!$B:$G,3,FALSE)&" / "&VLOOKUP(E105,'TEAM ROSTERS & SUB LIST'!$B:$G,5,FALSE) -> Paul Fontaine / Ralph Romano III | J105: =VLOOKUP(F105,'TEAM ROSTERS & SUB LIST'!$B:$G,3,FALSE)&" / "&VLOOKUP(F105,'TEAM ROSTERS & SUB LIST'!$B:$G,5,FALSE) -> Jim Haskins / Anthony Conte | M105: Team 14 - Paul Fontaine / Ralph Romano III v Team 11 - Jim Haskins / Anthony Conte | O105: =IFERROR(VLOOKUP(E105,'TEAM ROSTERS & SUB LIST'!$B:$G,2,FALSE)&" - "&VLOOKUP(E105,'TEAM ROSTERS & SUB LIST'!$B:$G,3,FALSE),"") -> 14A - Paul Fontaine | P105: =IFERROR(VLOOKUP(E105,'TEAM ROSTERS & SUB LIST'!$B:$G,4,FALSE)&" - "&VLOOKUP(E105,'TEAM ROSTERS & SUB LIST'!$B:$G,5,FALSE),"") -> 14B - Ralph Romano III | Q105: =IFERROR(VLOOKUP(F105,'TEAM ROSTERS & SUB LIST'!$B:$G,2,FALSE)&" - "&VLOOKUP(F105,'TEAM ROSTERS & SUB LIST'!$B:$G,3,FALSE),"") -> 11A - Jim Haskins | R105: =IFERROR(VLOOKUP(F105,'TEAM ROSTERS & SUB LIST'!$B:$G,4,FALSE)&" - "&VLOOKUP(F105,'TEAM ROSTERS & SUB LIST'!$B:$G,5,FALSE),"") -> 11B - Anthony Conte
A106: 16:48:00 | B106: 16 v 3 | C106: 16 | D106: 03 | E106: Team 16 | F106: Team 03 | G106: =VLOOKUP(E106,'TEAM ROSTERS & SUB LIST'!$B:$G,3,FALSE)&" / "&VLOOKUP(E106,'TEAM ROSTERS & SUB LIST'!$B:$G,5,FALSE) -> Kevin O'Loughlin / Mike Romano | J106: =VLOOKUP(F106,'TEAM ROSTERS & SUB LIST'!$B:$G,3,FALSE)&" / "&VLOOKUP(F106,'TEAM ROSTERS & SUB LIST'!$B:$G,5,FALSE) -> Pete Romano / Don Frigoletto | M106: Team 16 - Kevin O'Loughlin / Mike Romano v Team 03 - Pete Romano / Don Frigoletto | O106: =IFERROR(VLOOKUP(E106,'TEAM ROSTERS & SUB LIST'!$B:$G,2,FALSE)&" - "&VLOOKUP(E106,'TEAM ROSTERS & SUB LIST'!$B:$G,3,FALSE),"") -> 16A - Kevin O'Loughlin | P106: =IFERROR(VLOOKUP(E106,'TEAM ROSTERS & SUB LIST'!$B:$G,4,FALSE)&" - "&VLOOKUP(E106,'TEAM ROSTERS & SUB LIST'!$B:$G,5,FALSE),"") -> 16B - Mike Romano | Q106: =IFERROR(VLOOKUP(F106,'TEAM ROSTERS & SUB LIST'!$B:$G,2,FALSE)&" - "&VLOOKUP(F106,'TEAM ROSTERS & SUB LIST'!$B:$G,3,FALSE),"") -> 3A - Pete Romano | R106: =IFERROR(VLOOKUP(F106,'TEAM ROSTERS & SUB LIST'!$B:$G,4,FALSE)&" - "&VLOOKUP(F106,'TEAM ROSTERS & SUB LIST'!$B:$G,5,FALSE),"") -> 3B - Don Frigoletto
A107: 16:56:00 | B107: 13 v 12 | C107: 13 | D107: 12 | E107: =IF(C107<>"","Team "&C107,"") -> Team 13 | F107: Team 12 | G107: =IFERROR(VLOOKUP(E107,'TEAM ROSTERS & SUB LIST'!$B:$G,3,FALSE)&" / "&VLOOKUP(E107,'TEAM ROSTERS & SUB LIST'!$B:$G,5,FALSE),"") -> Tim Hurley / Walter Drake | J107: =IFERROR(VLOOKUP(F107,'TEAM ROSTERS & SUB LIST'!$B:$G,3,FALSE)&" / "&VLOOKUP(F107,'TEAM ROSTERS & SUB LIST'!$B:$G,5,FALSE),"") -> Sal Ciufetti / Kevin Nivala | M107: =IF(B107<>"",E107&" - "&G107&" v "&F107&" - "&J107,"") -> Team 13 - Tim Hurley / Walter Drake v Team 12 - Sal Ciufetti / Kevin Nivala | O107: =IFERROR(VLOOKUP(E107,'TEAM ROSTERS & SUB LIST'!$B:$G,2,FALSE)&" - "&VLOOKUP(E107,'TEAM ROSTERS & SUB LIST'!$B:$G,3,FALSE),"") -> 13A - Tim Hurley | P107: =IFERROR(VLOOKUP(E107,'TEAM ROSTERS & SUB LIST'!$B:$G,4,FALSE)&" - "&VLOOKUP(E107,'TEAM ROSTERS & SUB LIST'!$B:$G,5,FALSE),"") -> 13B - Walter Drake | Q107: =IFERROR(VLOOKUP(F107,'TEAM ROSTERS & SUB LIST'!$B:$G,2,FALSE)&" - "&VLOOKUP(F107,'TEAM ROSTERS & SUB LIST'!$B:$G,3,FALSE),"") -> 12A - Sal Ciufetti | R107: =IFERROR(VLOOKUP(F107,'TEAM ROSTERS & SUB LIST'!$B:$G,4,FALSE)&" - "&VLOOKUP(F107,'TEAM ROSTERS & SUB LIST'!$B:$G,5,FALSE),"") -> 12B - Kevin Nivala
A108: 17:04:00 | B108: 20 v 7 | C108: 20 | D108: 07 | E108: Team 20 | F108: Team 07 | G108: =IFERROR(VLOOKUP(E108,'TEAM ROSTERS & SUB LIST'!$B:$G,3,FALSE)&" / "&VLOOKUP(E108,'TEAM ROSTERS & SUB LIST'!$B:$G,5,FALSE),"") -> Sheila Sundstrom / Ray Hoy | J108: =IFERROR(VLOOKUP(F108,'TEAM ROSTERS & SUB LIST'!$B:$G,3,FALSE)&" / "&VLOOKUP(F108,'TEAM ROSTERS & SUB LIST'!$B:$G,5,FALSE),"") -> John Fairbanks / Debbie Fairbanks | M108: Team 20 - Sheila Sundstrom / Ray Hoy v Team 07 - John Fairbanks / Debbie Fairbanks | O108: =IFERROR(VLOOKUP(E108,'TEAM ROSTERS & SUB LIST'!$B:$G,2,FALSE)&" - "&VLOOKUP(E108,'TEAM ROSTERS & SUB LIST'!$B:$G,3,FALSE),"") -> 20A - Sheila Sundstrom | P108: =IFERROR(VLOOKUP(E108,'TEAM ROSTERS & SUB LIST'!$B:$G,4,FALSE)&" - "&VLOOKUP(E108,'TEAM ROSTERS & SUB LIST'!$B:$G,5,FALSE),"") -> 20B - Ray Hoy | Q108: =IFERROR(VLOOKUP(F108,'TEAM ROSTERS & SUB LIST'!$B:$G,2,FALSE)&" - "&VLOOKUP(F108,'TEAM ROSTERS & SUB LIST'!$B:$G,3,FALSE),"") -> 7A - John Fairbanks | R108: =IFERROR(VLOOKUP(F108,'TEAM ROSTERS & SUB LIST'!$B:$G,4,FALSE)&" - "&VLOOKUP(F108,'TEAM ROSTERS & SUB LIST'!$B:$G,5,FALSE),"") -> 7B - Debbie Fairbanks
A109: 17:12:00 | B109: 10 v 8 | C109: 10 | D109: 08 | E109: Team 10 | F109: Team 08 | G109: =IFERROR(VLOOKUP(E109,'TEAM ROSTERS & SUB LIST'!$B:$G,3,FALSE)&" / "&VLOOKUP(E109,'TEAM ROSTERS & SUB LIST'!$B:$G,5,FALSE),"") -> Ron Ekstrom / Beth Romano | J109: =IFERROR(VLOOKUP(F109,'TEAM ROSTERS & SUB LIST'!$B:$G,3,FALSE)&" / "&VLOOKUP(F109,'TEAM ROSTERS & SUB LIST'!$B:$G,5,FALSE),"") -> Steve Lawrence / Mike Benson | M109: Team 10 - Ron Ekstrom / Beth Romano v Team 08 - Steve Lawrence / Mike Benson | O109: =IFERROR(VLOOKUP(E109,'TEAM ROSTERS & SUB LIST'!$B:$G,2,FALSE)&" - "&VLOOKUP(E109,'TEAM ROSTERS & SUB LIST'!$B:$G,3,FALSE),"") -> 10A - Ron Ekstrom | P109: =IFERROR(VLOOKUP(E109,'TEAM ROSTERS & SUB LIST'!$B:$G,4,FALSE)&" - "&VLOOKUP(E109,'TEAM ROSTERS & SUB LIST'!$B:$G,5,FALSE),"") -> 10B - Beth Romano | Q109: =IFERROR(VLOOKUP(F109,'TEAM ROSTERS & SUB LIST'!$B:$G,2,FALSE)&" - "&VLOOKUP(F109,'TEAM ROSTERS & SUB LIST'!$B:$G,3,FALSE),"") -> 8A - Steve Lawrence | R109: =IFERROR(VLOOKUP(F109,'TEAM ROSTERS & SUB LIST'!$B:$G,4,FALSE)&" - "&VLOOKUP(F109,'TEAM ROSTERS & SUB LIST'!$B:$G,5,FALSE),"") -> 8B - Mike Benson
G110: =IFERROR(VLOOKUP(E110,'TEAM ROSTERS & SUB LIST'!$B:$G,3,FALSE)&" / "&VLOOKUP(E110,'TEAM ROSTERS & SUB LIST'!$B:$G,5,FALSE),"") ->  | J110: =IFERROR(VLOOKUP(F110,'TEAM ROSTERS & SUB LIST'!$B:$G,3,FALSE)&" / "&VLOOKUP(F110,'TEAM ROSTERS & SUB LIST'!$B:$G,5,FALSE),"") ->  | O110: =IFERROR(VLOOKUP(E110,'TEAM ROSTERS & SUB LIST'!$B:$G,2,FALSE)&" - "&VLOOKUP(E110,'TEAM ROSTERS & SUB LIST'!$B:$G,3,FALSE),"") ->  | P110: =IFERROR(VLOOKUP(E110,'TEAM ROSTERS & SUB LIST'!$B:$G,4,FALSE)&" - "&VLOOKUP(E110,'TEAM ROSTERS & SUB LIST'!$B:$G,5,FALSE),"") ->  | Q110: =IFERROR(VLOOKUP(F110,'TEAM ROSTERS & SUB LIST'!$B:$G,2,FALSE)&" - "&VLOOKUP(F110,'TEAM ROSTERS & SUB LIST'!$B:$G,3,FALSE),"") ->  | R110: =IFERROR(VLOOKUP(F110,'TEAM ROSTERS & SUB LIST'!$B:$G,4,FALSE)&" - "&VLOOKUP(F110,'TEAM ROSTERS & SUB LIST'!$B:$G,5,FALSE),"") -> 
G111: =IFERROR(VLOOKUP(E111,'TEAM ROSTERS & SUB LIST'!$B:$G,3,FALSE)&" / "&VLOOKUP(E111,'TEAM ROSTERS & SUB LIST'!$B:$G,5,FALSE),"") ->  | J111: =IFERROR(VLOOKUP(F111,'TEAM ROSTERS & SUB LIST'!$B:$G,3,FALSE)&" / "&VLOOKUP(F111,'TEAM ROSTERS & SUB LIST'!$B:$G,5,FALSE),"") ->  | O111: =IFERROR(VLOOKUP(E111,'TEAM ROSTERS & SUB LIST'!$B:$G,2,FALSE)&" - "&VLOOKUP(E111,'TEAM ROSTERS & SUB LIST'!$B:$G,3,FALSE),"") ->  | P111: =IFERROR(VLOOKUP(E111,'TEAM ROSTERS & SUB LIST'!$B:$G,4,FALSE)&" - "&VLOOKUP(E111,'TEAM ROSTERS & SUB LIST'!$B:$G,5,FALSE),"") ->  | Q111: =IFERROR(VLOOKUP(F111,'TEAM ROSTERS & SUB LIST'!$B:$G,2,FALSE)&" - "&VLOOKUP(F111,'TEAM ROSTERS & SUB LIST'!$B:$G,3,FALSE),"") ->  | R111: =IFERROR(VLOOKUP(F111,'TEAM ROSTERS & SUB LIST'!$B:$G,4,FALSE)&" - "&VLOOKUP(F111,'TEAM ROSTERS & SUB LIST'!$B:$G,5,FALSE),"") -> 
G112: =IFERROR(VLOOKUP(E112,'TEAM ROSTERS & SUB LIST'!$B:$G,3,FALSE)&" / "&VLOOKUP(E112,'TEAM ROSTERS & SUB LIST'!$B:$G,5,FALSE),"") ->  | J112: =IFERROR(VLOOKUP(F112,'TEAM ROSTERS & SUB LIST'!$B:$G,3,FALSE)&" / "&VLOOKUP(F112,'TEAM ROSTERS & SUB LIST'!$B:$G,5,FALSE),"") ->  | O112: =IFERROR(VLOOKUP(E112,'TEAM ROSTERS & SUB LIST'!$B:$G,2,FALSE)&" - "&VLOOKUP(E112,'TEAM ROSTERS & SUB LIST'!$B:$G,3,FALSE),"") ->  | P112: =IFERROR(VLOOKUP(E112,'TEAM ROSTERS & SUB LIST'!$B:$G,4,FALSE)&" - "&VLOOKUP(E112,'TEAM ROSTERS & SUB LIST'!$B:$G,5,FALSE),"") ->  | Q112: =IFERROR(VLOOKUP(F112,'TEAM ROSTERS & SUB LIST'!$B:$G,2,FALSE)&" - "&VLOOKUP(F112,'TEAM ROSTERS & SUB LIST'!$B:$G,3,FALSE),"") ->  | R112: =IFERROR(VLOOKUP(F112,'TEAM ROSTERS & SUB LIST'!$B:$G,4,FALSE)&" - "&VLOOKUP(F112,'TEAM ROSTERS & SUB LIST'!$B:$G,5,FALSE),"") -> 
G113: =IFERROR(VLOOKUP(E113,'TEAM ROSTERS & SUB LIST'!$B:$G,3,FALSE)&" / "&VLOOKUP(E113,'TEAM ROSTERS & SUB LIST'!$B:$G,5,FALSE),"") ->  | J113: =IFERROR(VLOOKUP(F113,'TEAM ROSTERS & SUB LIST'!$B:$G,3,FALSE)&" / "&VLOOKUP(F113,'TEAM ROSTERS & SUB LIST'!$B:$G,5,FALSE),"") ->  | O113: =IFERROR(VLOOKUP(E113,'TEAM ROSTERS & SUB LIST'!$B:$G,2,FALSE)&" - "&VLOOKUP(E113,'TEAM ROSTERS & SUB LIST'!$B:$G,3,FALSE),"") ->  | P113: =IFERROR(VLOOKUP(E113,'TEAM ROSTERS & SUB LIST'!$B:$G,4,FALSE)&" - "&VLOOKUP(E113,'TEAM ROSTERS & SUB LIST'!$B:$G,5,FALSE),"") ->  | Q113: =IFERROR(VLOOKUP(F113,'TEAM ROSTERS & SUB LIST'!$B:$G,2,FALSE)&" - "&VLOOKUP(F113,'TEAM ROSTERS & SUB LIST'!$B:$G,3,FALSE),"") ->  | R113: =IFERROR(VLOOKUP(F113,'TEAM ROSTERS & SUB LIST'!$B:$G,4,FALSE)&" - "&VLOOKUP(F113,'TEAM ROSTERS & SUB LIST'!$B:$G,5,FALSE),"") -> 
G114: =IFERROR(VLOOKUP(E114,'TEAM ROSTERS & SUB LIST'!$B:$G,3,FALSE)&" / "&VLOOKUP(E114,'TEAM ROSTERS & SUB LIST'!$B:$G,5,FALSE),"") ->  | J114: =IFERROR(VLOOKUP(F114,'TEAM ROSTERS & SUB LIST'!$B:$G,3,FALSE)&" / "&VLOOKUP(F114,'TEAM ROSTERS & SUB LIST'!$B:$G,5,FALSE),"") ->  | O114: =IFERROR(VLOOKUP(E114,'TEAM ROSTERS & SUB LIST'!$B:$G,2,FALSE)&" - "&VLOOKUP(E114,'TEAM ROSTERS & SUB LIST'!$B:$G,3,FALSE),"") ->  | P114: =IFERROR(VLOOKUP(E114,'TEAM ROSTERS & SUB LIST'!$B:$G,4,FALSE)&" - "&VLOOKUP(E114,'TEAM ROSTERS & SUB LIST'!$B:$G,5,FALSE),"") ->  | Q114: =IFERROR(VLOOKUP(F114,'TEAM ROSTERS & SUB LIST'!$B:$G,2,FALSE)&" - "&VLOOKUP(F114,'TEAM ROSTERS & SUB LIST'!$B:$G,3,FALSE),"") ->  | R114: =IFERROR(VLOOKUP(F114,'TEAM ROSTERS & SUB LIST'!$B:$G,4,FALSE)&" - "&VLOOKUP(F114,'TEAM ROSTERS & SUB LIST'!$B:$G,5,FALSE),"") -> 
G115: =IFERROR(VLOOKUP(E115,'TEAM ROSTERS & SUB LIST'!$B:$G,3,FALSE)&" / "&VLOOKUP(E115,'TEAM ROSTERS & SUB LIST'!$B:$G,5,FALSE),"") ->  | J115: =IFERROR(VLOOKUP(F115,'TEAM ROSTERS & SUB LIST'!$B:$G,3,FALSE)&" / "&VLOOKUP(F115,'TEAM ROSTERS & SUB LIST'!$B:$G,5,FALSE),"") ->  | O115: =IFERROR(VLOOKUP(E115,'TEAM ROSTERS & SUB LIST'!$B:$G,2,FALSE)&" - "&VLOOKUP(E115,'TEAM ROSTERS & SUB LIST'!$B:$G,3,FALSE),"") ->  | P115: =IFERROR(VLOOKUP(E115,'TEAM ROSTERS & SUB LIST'!$B:$G,4,FALSE)&" - "&VLOOKUP(E115,'TEAM ROSTERS & SUB LIST'!$B:$G,5,FALSE),"") ->  | Q115: =IFERROR(VLOOKUP(F115,'TEAM ROSTERS & SUB LIST'!$B:$G,2,FALSE)&" - "&VLOOKUP(F115,'TEAM ROSTERS & SUB LIST'!$B:$G,3,FALSE),"") ->  | R115: =IFERROR(VLOOKUP(F115,'TEAM ROSTERS & SUB LIST'!$B:$G,4,FALSE)&" - "&VLOOKUP(F115,'TEAM ROSTERS & SUB LIST'!$B:$G,5,FALSE),"") -> 
G116: =IFERROR(VLOOKUP(E116,'TEAM ROSTERS & SUB LIST'!$B:$G,3,FALSE)&" / "&VLOOKUP(E116,'TEAM ROSTERS & SUB LIST'!$B:$G,5,FALSE),"") ->  | J116: =IFERROR(VLOOKUP(F116,'TEAM ROSTERS & SUB LIST'!$B:$G,3,FALSE)&" / "&VLOOKUP(F116,'TEAM ROSTERS & SUB LIST'!$B:$G,5,FALSE),"") ->  | O116: =IFERROR(VLOOKUP(E116,'TEAM ROSTERS & SUB LIST'!$B:$G,2,FALSE)&" - "&VLOOKUP(E116,'TEAM ROSTERS & SUB LIST'!$B:$G,3,FALSE),"") ->  | P116: =IFERROR(VLOOKUP(E116,'TEAM ROSTERS & SUB LIST'!$B:$G,4,FALSE)&" - "&VLOOKUP(E116,'TEAM ROSTERS & SUB LIST'!$B:$G,5,FALSE),"") ->  | Q116: =IFERROR(VLOOKUP(F116,'TEAM ROSTERS & SUB LIST'!$B:$G,2,FALSE)&" - "&VLOOKUP(F116,'TEAM ROSTERS & SUB LIST'!$B:$G,3,FALSE),"") ->  | R116: =IFERROR(VLOOKUP(F116,'TEAM ROSTERS & SUB LIST'!$B:$G,4,FALSE)&" - "&VLOOKUP(F116,'TEAM ROSTERS & SUB LIST'!$B:$G,5,FALSE),"") -> 
G117: =IFERROR(VLOOKUP(E117,'TEAM ROSTERS & SUB LIST'!$B:$G,3,FALSE)&" / "&VLOOKUP(E117,'TEAM ROSTERS & SUB LIST'!$B:$G,5,FALSE),"") ->  | J117: =IFERROR(VLOOKUP(F117,'TEAM ROSTERS & SUB LIST'!$B:$G,3,FALSE)&" / "&VLOOKUP(F117,'TEAM ROSTERS & SUB LIST'!$B:$G,5,FALSE),"") ->  | O117: =IFERROR(VLOOKUP(E117,'TEAM ROSTERS & SUB LIST'!$B:$G,2,FALSE)&" - "&VLOOKUP(E117,'TEAM ROSTERS & SUB LIST'!$B:$G,3,FALSE),"") ->  | P117: =IFERROR(VLOOKUP(E117,'TEAM ROSTERS & SUB LIST'!$B:$G,4,FALSE)&" - "&VLOOKUP(E117,'TEAM ROSTERS & SUB LIST'!$B:$G,5,FALSE),"") ->  | Q117: =IFERROR(VLOOKUP(F117,'TEAM ROSTERS & SUB LIST'!$B:$G,2,FALSE)&" - "&VLOOKUP(F117,'TEAM ROSTERS & SUB LIST'!$B:$G,3,FALSE),"") ->  | R117: =IFERROR(VLOOKUP(F117,'TEAM ROSTERS & SUB LIST'!$B:$G,4,FALSE)&" - "&VLOOKUP(F117,'TEAM ROSTERS & SUB LIST'!$B:$G,5,FALSE),"") -> 
G118: =IFERROR(VLOOKUP(E118,'TEAM ROSTERS & SUB LIST'!$B:$G,3,FALSE)&" / "&VLOOKUP(E118,'TEAM ROSTERS & SUB LIST'!$B:$G,5,FALSE),"") ->  | J118: =IFERROR(VLOOKUP(F118,'TEAM ROSTERS & SUB LIST'!$B:$G,3,FALSE)&" / "&VLOOKUP(F118,'TEAM ROSTERS & SUB LIST'!$B:$G,5,FALSE),"") ->  | O118: =IFERROR(VLOOKUP(E118,'TEAM ROSTERS & SUB LIST'!$B:$G,2,FALSE)&" - "&VLOOKUP(E118,'TEAM ROSTERS & SUB LIST'!$B:$G,3,FALSE),"") ->  | P118: =IFERROR(VLOOKUP(E118,'TEAM ROSTERS & SUB LIST'!$B:$G,4,FALSE)&" - "&VLOOKUP(E118,'TEAM ROSTERS & SUB LIST'!$B:$G,5,FALSE),"") ->  | Q118: =IFERROR(VLOOKUP(F118,'TEAM ROSTERS & SUB LIST'!$B:$G,2,FALSE)&" - "&VLOOKUP(F118,'TEAM ROSTERS & SUB LIST'!$B:$G,3,FALSE),"") ->  | R118: =IFERROR(VLOOKUP(F118,'TEAM ROSTERS & SUB LIST'!$B:$G,4,FALSE)&" - "&VLOOKUP(F118,'TEAM ROSTERS & SUB LIST'!$B:$G,5,FALSE),"") -> 
G119: =IFERROR(VLOOKUP(E119,'TEAM ROSTERS & SUB LIST'!$B:$G,3,FALSE)&" / "&VLOOKUP(E119,'TEAM ROSTERS & SUB LIST'!$B:$G,5,FALSE),"") ->  | J119: =IFERROR(VLOOKUP(F119,'TEAM ROSTERS & SUB LIST'!$B:$G,3,FALSE)&" / "&VLOOKUP(F119,'TEAM ROSTERS & SUB LIST'!$B:$G,5,FALSE),"") ->  | O119: =IFERROR(VLOOKUP(E119,'TEAM ROSTERS & SUB LIST'!$B:$G,2,FALSE)&" - "&VLOOKUP(E119,'TEAM ROSTERS & SUB LIST'!$B:$G,3,FALSE),"") ->  | P119: =IFERROR(VLOOKUP(E119,'TEAM ROSTERS & SUB LIST'!$B:$G,4,FALSE)&" - "&VLOOKUP(E119,'TEAM ROSTERS & SUB LIST'!$B:$G,5,FALSE),"") ->  | Q119: =IFERROR(VLOOKUP(F119,'TEAM ROSTERS & SUB LIST'!$B:$G,2,FALSE)&" - "&VLOOKUP(F119,'TEAM ROSTERS & SUB LIST'!$B:$G,3,FALSE),"") ->  | R119: =IFERROR(VLOOKUP(F119,'TEAM ROSTERS & SUB LIST'!$B:$G,4,FALSE)&" - "&VLOOKUP(F119,'TEAM ROSTERS & SUB LIST'!$B:$G,5,FALSE),"") -> 
G120: =IFERROR(VLOOKUP(E120,'TEAM ROSTERS & SUB LIST'!$B:$G,3,FALSE)&" / "&VLOOKUP(E120,'TEAM ROSTERS & SUB LIST'!$B:$G,5,FALSE),"") ->  | J120: =IFERROR(VLOOKUP(F120,'TEAM ROSTERS & SUB LIST'!$B:$G,3,FALSE)&" / "&VLOOKUP(F120,'TEAM ROSTERS & SUB LIST'!$B:$G,5,FALSE),"") ->  | O120: =IFERROR(VLOOKUP(E120,'TEAM ROSTERS & SUB LIST'!$B:$G,2,FALSE)&" - "&VLOOKUP(E120,'TEAM ROSTERS & SUB LIST'!$B:$G,3,FALSE),"") ->  | P120: =IFERROR(VLOOKUP(E120,'TEAM ROSTERS & SUB LIST'!$B:$G,4,FALSE)&" - "&VLOOKUP(E120,'TEAM ROSTERS & SUB LIST'!$B:$G,5,FALSE),"") ->  | Q120: =IFERROR(VLOOKUP(F120,'TEAM ROSTERS & SUB LIST'!$B:$G,2,FALSE)&" - "&VLOOKUP(F120,'TEAM ROSTERS & SUB LIST'!$B:$G,3,FALSE),"") ->  | R120: =IFERROR(VLOOKUP(F120,'TEAM ROSTERS & SUB LIST'!$B:$G,4,FALSE)&" - "&VLOOKUP(F120,'TEAM ROSTERS & SUB LIST'!$B:$G,5,FALSE),"") -> 
E129: =B76 -> 17A | F129: =B78 -> 17B | G129: =B82 -> 4A | H129: =B84 -> 4B
B130: ='TEAM ROSTERS & SUB LIST'!H38 -> Course | E130: ='LEAGUE MEMBERSHIP'!$A110 -> Course | F130: ='LEAGUE MEMBERSHIP'!$A110 -> Course | G130: ='LEAGUE MEMBERSHIP'!$A110 -> Course | H130: ='LEAGUE MEMBERSHIP'!$A110 -> Course
B131: ='TEAM ROSTERS & SUB LIST'!H39 -> DNP | E131: ='LEAGUE MEMBERSHIP'!$A111 -> DNP | F131: ='LEAGUE MEMBERSHIP'!$A111 -> DNP | G131: ='LEAGUE MEMBERSHIP'!$A111 -> DNP | H131: ='LEAGUE MEMBERSHIP'!$A111 -> DNP
B132: ='TEAM ROSTERS & SUB LIST'!H40&" - "&'TEAM ROSTERS & SUB LIST'!I40 -> Sub1 - P.J. Romano | E132: ='LEAGUE MEMBERSHIP'!$A112 -> Sub1 | F132: ='LEAGUE MEMBERSHIP'!$A112 -> Sub1 | G132: ='LEAGUE MEMBERSHIP'!$A112 -> Sub1 | H132: ='LEAGUE MEMBERSHIP'!$A112 -> Sub1
B133: ='TEAM ROSTERS & SUB LIST'!H41&" - "&'TEAM ROSTERS & SUB LIST'!I41 -> Sub2 - PJ Fontaine | E133: ='LEAGUE MEMBERSHIP'!$A113 -> Sub2 | F133: ='LEAGUE MEMBERSHIP'!$A113 -> Sub2 | G133: ='LEAGUE MEMBERSHIP'!$A113 -> Sub2 | H133: ='LEAGUE MEMBERSHIP'!$A113 -> Sub2
B134: ='TEAM ROSTERS & SUB LIST'!H42&" - "&'TEAM ROSTERS & SUB LIST'!I42 -> Sub3 - Jim Hedlund | E134: ='LEAGUE MEMBERSHIP'!$A114 -> Sub3 | F134: ='LEAGUE MEMBERSHIP'!$A114 -> Sub3 | G134: ='LEAGUE MEMBERSHIP'!$A114 -> Sub3 | H134: ='LEAGUE MEMBERSHIP'!$A114 -> Sub3
B135: ='TEAM ROSTERS & SUB LIST'!H43&" - "&'TEAM ROSTERS & SUB LIST'!I43 -> Sub4 - Don Shank | E135: ='LEAGUE MEMBERSHIP'!$A115 -> Sub4 | F135: ='LEAGUE MEMBERSHIP'!$A115 -> Sub4 | G135: ='LEAGUE MEMBERSHIP'!$A115 -> Sub4 | H135: ='LEAGUE MEMBERSHIP'!$A115 -> Sub4
B136: ='TEAM ROSTERS & SUB LIST'!H44&" - "&'TEAM ROSTERS & SUB LIST'!I44 -> Sub5 - Tom Farias | E136: ='LEAGUE MEMBERSHIP'!$A116 -> Sub5 | F136: ='LEAGUE MEMBERSHIP'!$A116 -> Sub5 | G136: ='LEAGUE MEMBERSHIP'!$A116 -> Sub5 | H136: ='LEAGUE MEMBERSHIP'!$A116 -> Sub5
B137: ='TEAM ROSTERS & SUB LIST'!H45&" - "&'TEAM ROSTERS & SUB LIST'!I45 -> Sub6 - Joe Pearson | E137: ='LEAGUE MEMBERSHIP'!$A117 -> Sub6 | F137: ='LEAGUE MEMBERSHIP'!$A117 -> Sub6 | G137: ='LEAGUE MEMBERSHIP'!$A117 -> Sub6 | H137: ='LEAGUE MEMBERSHIP'!$A117 -> Sub6
B138: ='TEAM ROSTERS & SUB LIST'!H46&" - "&'TEAM ROSTERS & SUB LIST'!I46 -> Sub7 - Dennis St. Jean | E138: ='LEAGUE MEMBERSHIP'!$A118 -> Sub7 | F138: ='LEAGUE MEMBERSHIP'!$A118 -> Sub7 | G138: ='LEAGUE MEMBERSHIP'!$A118 -> Sub7 | H138: ='LEAGUE MEMBERSHIP'!$A118 -> Sub7
B139: ='TEAM ROSTERS & SUB LIST'!H47&" - "&'TEAM ROSTERS & SUB LIST'!I47 -> Sub8 - Joe Fratticelli | E139: ='LEAGUE MEMBERSHIP'!$A119 -> Sub8 | F139: ='LEAGUE MEMBERSHIP'!$A119 -> Sub8 | G139: ='LEAGUE MEMBERSHIP'!$A119 -> Sub8 | H139: ='LEAGUE MEMBERSHIP'!$A119 -> Sub8
B140: ='TEAM ROSTERS & SUB LIST'!H48&" - "&'TEAM ROSTERS & SUB LIST'!I48 -> Sub9 - Pete Collette | E140: ='LEAGUE MEMBERSHIP'!$A120 -> Sub9 | F140: ='LEAGUE MEMBERSHIP'!$A120 -> Sub9 | G140: ='LEAGUE MEMBERSHIP'!$A120 -> Sub9 | H140: ='LEAGUE MEMBERSHIP'!$A120 -> Sub9
B141: ='TEAM ROSTERS & SUB LIST'!H49&" - "&'TEAM ROSTERS & SUB LIST'!I49 -> Sub10 - Ray Henderson | E141: ='LEAGUE MEMBERSHIP'!$A121 -> Sub10 | F141: ='LEAGUE MEMBERSHIP'!$A121 -> Sub10 | G141: ='LEAGUE MEMBERSHIP'!$A121 -> Sub10 | H141: ='LEAGUE MEMBERSHIP'!$A121 -> Sub10
B142: ='TEAM ROSTERS & SUB LIST'!H50&" - "&'TEAM ROSTERS & SUB LIST'!I50 -> Sub11 - Pete K Normandin | E142: ='LEAGUE MEMBERSHIP'!$A122 -> Sub11 | F142: ='LEAGUE MEMBERSHIP'!$A122 -> Sub11 | G142: ='LEAGUE MEMBERSHIP'!$A122 -> Sub11 | H142: ='LEAGUE MEMBERSHIP'!$A122 -> Sub11
B143: ='TEAM ROSTERS & SUB LIST'!H51&" - "&'TEAM ROSTERS & SUB LIST'!I51 -> Sub12 - Ron Brassard | E143: ='LEAGUE MEMBERSHIP'!$A123 -> Sub12 | F143: ='LEAGUE MEMBERSHIP'!$A123 -> Sub12 | G143: ='LEAGUE MEMBERSHIP'!$A123 -> Sub12 | H143: ='LEAGUE MEMBERSHIP'!$A123 -> Sub12
B144: ='TEAM ROSTERS & SUB LIST'!H52&" - "&'TEAM ROSTERS & SUB LIST'!I52 -> Sub13 - Genie Ray Richard | E144: ='LEAGUE MEMBERSHIP'!$A124 -> Sub13 | F144: ='LEAGUE MEMBERSHIP'!$A124 -> Sub13 | G144: ='LEAGUE MEMBERSHIP'!$A124 -> Sub13 | H144: ='LEAGUE MEMBERSHIP'!$A124 -> Sub13
B145: ='TEAM ROSTERS & SUB LIST'!H53&" - "&'TEAM ROSTERS & SUB LIST'!I53 -> Sub14 - John MacDonald | E145: ='LEAGUE MEMBERSHIP'!$A125 -> Sub14 | F145: ='LEAGUE MEMBERSHIP'!$A125 -> Sub14 | G145: ='LEAGUE MEMBERSHIP'!$A125 -> Sub14 | H145: ='LEAGUE MEMBERSHIP'!$A125 -> Sub14
B146: ='TEAM ROSTERS & SUB LIST'!H54&" - "&'TEAM ROSTERS & SUB LIST'!I54 -> Sub15 - Darryl Gagne | E146: ='LEAGUE MEMBERSHIP'!$A126 -> Sub15 | F146: ='LEAGUE MEMBERSHIP'!$A126 -> Sub15 | G146: ='LEAGUE MEMBERSHIP'!$A126 -> Sub15 | H146: ='LEAGUE MEMBERSHIP'!$A126 -> Sub15
B147: ='TEAM ROSTERS & SUB LIST'!H55&" - "&'TEAM ROSTERS & SUB LIST'!I55 -> Sub16 - Becky Bartkus | E147: ='LEAGUE MEMBERSHIP'!$A127 -> Sub16 | F147: ='LEAGUE MEMBERSHIP'!$A127 -> Sub16 | G147: ='LEAGUE MEMBERSHIP'!$A127 -> Sub16 | H147: ='LEAGUE MEMBERSHIP'!$A127 -> Sub16
B148: ='TEAM ROSTERS & SUB LIST'!H56&" - "&'TEAM ROSTERS & SUB LIST'!I56 -> Sub17 - Dave Cormier | E148: ='LEAGUE MEMBERSHIP'!$A128 -> Sub17 | F148: ='LEAGUE MEMBERSHIP'!$A128 -> Sub17 | G148: ='LEAGUE MEMBERSHIP'!$A128 -> Sub17 | H148: ='LEAGUE MEMBERSHIP'!$A128 -> Sub17
B149: ='TEAM ROSTERS & SUB LIST'!H57&" - "&'TEAM ROSTERS & SUB LIST'!I57 -> Sub18 - Doug Cormier | E149: ='LEAGUE MEMBERSHIP'!$A129 -> Sub18 | F149: ='LEAGUE MEMBERSHIP'!$A129 -> Sub18 | G149: ='LEAGUE MEMBERSHIP'!$A129 -> Sub18 | H149: ='LEAGUE MEMBERSHIP'!$A129 -> Sub18
B150: ='TEAM ROSTERS & SUB LIST'!H58&" - "&'TEAM ROSTERS & SUB LIST'!I58 -> Sub19 - Ed Robbins | E150: ='LEAGUE MEMBERSHIP'!$A130 -> Sub19 | F150: ='LEAGUE MEMBERSHIP'!$A130 -> Sub19 | G150: ='LEAGUE MEMBERSHIP'!$A130 -> Sub19 | H150: ='LEAGUE MEMBERSHIP'!$A130 -> Sub19
B151: ='TEAM ROSTERS & SUB LIST'!H59&" - "&'TEAM ROSTERS & SUB LIST'!I59 -> Sub20 - Mark Louney | E151: ='LEAGUE MEMBERSHIP'!$A131 -> Sub20 | F151: ='LEAGUE MEMBERSHIP'!$A131 -> Sub20 | G151: ='LEAGUE MEMBERSHIP'!$A131 -> Sub20 | H151: ='LEAGUE MEMBERSHIP'!$A131 -> Sub20
B152: ='TEAM ROSTERS & SUB LIST'!H60&" - "&'TEAM ROSTERS & SUB LIST'!I60 -> Sub21 - Paul Stedman | E152: ='LEAGUE MEMBERSHIP'!$A132 -> Sub21 | F152: ='LEAGUE MEMBERSHIP'!$A132 -> Sub21 | G152: ='LEAGUE MEMBERSHIP'!$A132 -> Sub21 | H152: ='LEAGUE MEMBERSHIP'!$A132 -> Sub21
B153: ='TEAM ROSTERS & SUB LIST'!H61&" - "&'TEAM ROSTERS & SUB LIST'!I61 -> Sub22 - Jan Hedlund | E153: ='LEAGUE MEMBERSHIP'!$A133 -> Sub22 | F153: ='LEAGUE MEMBERSHIP'!$A133 -> Sub22 | G153: ='LEAGUE MEMBERSHIP'!$A133 -> Sub22 | H153: ='LEAGUE MEMBERSHIP'!$A133 -> Sub22
B154: ='TEAM ROSTERS & SUB LIST'!H62&" - "&'TEAM ROSTERS & SUB LIST'!I62 -> Sub23 - Brenda Louney | E154: ='LEAGUE MEMBERSHIP'!$A134 -> Sub23 | F154: ='LEAGUE MEMBERSHIP'!$A134 -> Sub23 | G154: ='LEAGUE MEMBERSHIP'!$A134 -> Sub23 | H154: ='LEAGUE MEMBERSHIP'!$A134 -> Sub23
B155: ='TEAM ROSTERS & SUB LIST'!H63&" - "&'TEAM ROSTERS & SUB LIST'!I63 -> Sub24 - Kyle Butterfield | E155: ='LEAGUE MEMBERSHIP'!$A135 -> Sub24 | F155: ='LEAGUE MEMBERSHIP'!$A135 -> Sub24 | G155: ='LEAGUE MEMBERSHIP'!$A135 -> Sub24 | H155: ='LEAGUE MEMBERSHIP'!$A135 -> Sub24
B156: ='TEAM ROSTERS & SUB LIST'!H64&" - "&'TEAM ROSTERS & SUB LIST'!I64 -> Sub25 - Dave Flood | E156: ='LEAGUE MEMBERSHIP'!$A136 -> Sub25 | F156: ='LEAGUE MEMBERSHIP'!$A136 -> Sub25 | G156: ='LEAGUE MEMBERSHIP'!$A136 -> Sub25 | H156: ='LEAGUE MEMBERSHIP'!$A136 -> Sub25
B157: ='TEAM ROSTERS & SUB LIST'!H65&" - "&'TEAM ROSTERS & SUB LIST'!I65 -> Sub26 - Ann Goodwin | E157: ='LEAGUE MEMBERSHIP'!$A137 -> Sub26 | F157: ='LEAGUE MEMBERSHIP'!$A137 -> Sub26 | G157: ='LEAGUE MEMBERSHIP'!$A137 -> Sub26 | H157: ='LEAGUE MEMBERSHIP'!$A137 -> Sub26
B158: ='TEAM ROSTERS & SUB LIST'!H66&" - "&'TEAM ROSTERS & SUB LIST'!I66 -> Sub27 - Gary Bittner | E158: ='LEAGUE MEMBERSHIP'!$A138 -> Sub27 | F158: ='LEAGUE MEMBERSHIP'!$A138 -> Sub27 | G158: ='LEAGUE MEMBERSHIP'!$A138 -> Sub27 | H158: ='LEAGUE MEMBERSHIP'!$A138 -> Sub27
B159: ='TEAM ROSTERS & SUB LIST'!H67&" - "&'TEAM ROSTERS & SUB LIST'!I67 -> Sub28 - Scott Leavenworth | E159: ='LEAGUE MEMBERSHIP'!$A139 -> Sub28 | F159: ='LEAGUE MEMBERSHIP'!$A139 -> Sub28 | G159: ='LEAGUE MEMBERSHIP'!$A139 -> Sub28 | H159: ='LEAGUE MEMBERSHIP'!$A139 -> Sub28
B160: ='TEAM ROSTERS & SUB LIST'!H68&" - "&'TEAM ROSTERS & SUB LIST'!I68 -> Sub29 - Dave DiGiovanni | E160: ='LEAGUE MEMBERSHIP'!$A140 -> Sub29 | F160: ='LEAGUE MEMBERSHIP'!$A140 -> Sub29 | G160: ='LEAGUE MEMBERSHIP'!$A140 -> Sub29 | H160: ='LEAGUE MEMBERSHIP'!$A140 -> Sub29
B161: ='TEAM ROSTERS & SUB LIST'!H69&" - "&'TEAM ROSTERS & SUB LIST'!I69 -> Sub30 - Alessandro Conte | E161: ='LEAGUE MEMBERSHIP'!$A141 -> Sub30 | F161: ='LEAGUE MEMBERSHIP'!$A141 -> Sub30 | G161: ='LEAGUE MEMBERSHIP'!$A141 -> Sub30 | H161: ='LEAGUE MEMBERSHIP'!$A141 -> Sub30
B175: 17 v 4
B176: Week 9
B177: 2017-08-30
B178: FRONT
B179: 16:00:00
B180: =LEFT(SUBSTITUTE(B175," v ",","),FIND(",",SUBSTITUTE(B175," v ",","))-1) -> 17
B181: =RIGHT(SUBSTITUTE(B175," v ",","),LEN(SUBSTITUTE(B175," v ",","))-FIND(",",SUBSTITUTE(B175," v ",","))) -> 4
B182: ="Team "&B180&" v Team "&B181 -> Team 17 v Team 4

Sheet SCHEDULE
A96: No. Weeks
A97: 19
A98: No. Teams | H98: x
A99: 20 | B99: 10 | H99: x | I99: =TEXT(G99, "mm/dd/yy") -> 01/00/00
B100: Team2 | H100: x
H101: x
F102: =D102&" v "&E102 -> v
F103: v
F104: v
F105: v
F106: v
F107: v
F108: v
F109: v
F110: v
F111: v
F112: v
F113: =D113&" v "&E113 -> v
F114: v
F115: v
F116: v
A117: AM or PM | F117: v
A118: AM | F118: v
A119: PM | F119: v
A121: Start Date | B121: 2017-04-26
A123: Tee Time Spacing | G123: Week
A124: 8 | B124: 00:08:00 | G124: Date
A125: 10 | B125: 00:10:00 | G125: Side
A126: 12 | B126: 00:12:00 | G126: Tee Time
A127: 14 | B127: 00:14:00
A128: 15 | B128: 00:15:00
A129: Interval | B129: 8
A130: Halves? | B130: Yes
A131: Yes
A132: No
A133: Side | B133: FRONT
A134: FRONT
A135: BACK
A137: First Tee Tiime | B137: 04:00:00
A138: PM or AM | B138: PM
A139: Adj. Tee Time | B139: =IF(B138="PM",IF(B137<0.5,B137+0.5,B137),B137) -> 16:00:00
A140: Match 2 | B140: =B139+VLOOKUP($B$129,$A$124:$B$128,2,FALSE) -> 16:08:00
A141: Match 3 | B141: 16:16:00
A142: Match 4 | B142: 16:24:00
A143: Match 5 | B143: 16:32:00
A144: Match 6 | B144: 16:40:00
A145: Match 7 | B145: 16:48:00
A146: Match 8 | B146: 16:56:00
A147: Match 9 | B147: 17:04:00
A148: Match 10 | B148: 17:12:00
A149: Match 11 | B149: 17:20:00
A150: Match 12 | B150: 17:28:00
A151: Match 13 | B151: 17:36:00
A152: Match 14 | B152: 17:44:00
A153: Match 15 | B153: 17:52:00
A154: Match 16 | B154: 18:00:00
A155: Match 17 | B155: 18:08:00
A156: Match 18 | B156: 18:16:00
B175: 8 v 12
B176: Week 4
B177: 2015-07-03
B178: BACK
B179: 0.71875

Sheet SCHEDULE (2)
L1: 1st Half
L2: 2nd Half
B9: ``
B10: Week | C10: Week 1 | D10: Week 2 | E10: Week 3 | F10: Week 4 | G10: Week 5 | H10: Week 6 | I10: Week 7 | J10: Week 8 | K10: Week 9 | L10: Week 10
B11: Date | C11: 04/26/17 | D11: 05/03/17 | E11: 05/10/17 | F11: 05/17/17 | G11: 05/24/17 | H11: 05/31/17 | I11: 06/07/17 | J11: 06/14/17 | K11: 06/21/17 | L11: 06/28/17
B12: Side | C12: FRONT | D12: BACK | E12: FRONT | F12: BACK | G12: FRONT | H12: BACK | I12: FRONT | J12: BACK | K12: FRONT | L12: BACK
B13: Tee Time
B14: 16:00:00 | C14: 1 v 12 | D14: 12 v 5 | E14: 1 v 14 | F14: 3 v 6 | G14: 12 v 20 | H14: 4 v 9 | I14: 17 v 19 | J14: 8 v 9 | K14: 18 v 9 | L14: 6 v 16
B15: 16:08:00 | C15: 2 v 14 | D15: 14 v 7 | E15: 12 v 16 | F15: 2 v 7 | G15: 5 v 6 | H15: 14 v 16 | I15: 14 v 9 | J15: 5 v 19 | K15: 16 v 7 | L15: 3 v 13
B16: 16:16:00 | C16: 6 v 18 | D16: 11 v 4 | E16: 13 v 15 | F16: 14 v 20 | G16: 1 v 16 | H16: 5 v 8 | I16: 16 v 20 | J16: 4 v 18 | K16: 13 v 4 | L16: 10 v 20
B17: 16:24:00 | C17: 4 v 16 | D17: 18 v 20 | E17: 7 v 8 | F17: 12 v 9 | G17: 13 v 19 | H17: 13 v 17 | I17: 13 v 8 | J17: 1 v 13 | K17: 1 v 20 | L17: 4 v 14
B18: 16:32:00 | C18: 11 v 13 | D18: 13 v 6 | E18: 2 v 18 | F18: 11 v 8 | G18: 14 v 18 | H18: 12 v 18 | I18: 11 v 6 | J18: 6 v 20 | K18: 14 v 5 | L18: 9 v 19
B19: 16:40:00 | C19: 8 v 20 | D19: 2 v 3 | E19: 3 v 19 | F19: 4 v 5 | G19: 3 v 8 | H19: 3 v 10 | I19: 2 v 5 | J19: 12 v 14 | K19: 11 v 2 | L19: 5 v 15
B20: 16:48:00 | C20: 9 v 10 | D20: 16 v 9 | E20: 6 v 9 | F20: 13 v 10 | G20: 2 v 9 | H20: 6 v 7 | I20: 1 v 18 | J20: 2 v 16 | K20: 19 v 10 | L20: 8 v 18
B21: 16:56:00 | C21: 7 v 19 | D21: 17 v 10 | E21: 5 v 10 | F21: 1 v 17 | G21: 4 v 7 | H21: 11 v 19 | I21: 3 v 4 | J21: 3 v 17 | K21: 15 v 6 | L21: 2 v 12
B22: 17:04:00 | C22: 3 v 15 | D22: 1 v 19 | E22: 4 v 20 | F22: 15 v 19 | G22: 15 v 17 | H22: 2 v 20 | I22: 15 v 10 | J22: 7 v 10 | K22: 17 v 8 | L22: 7 v 17
B23: 17:12:00 | C23: 5 v 17 | D23: 15 v 8 | E23: 11 v 17 | F23: 16 v 18 | G23: 11 v 10 | H23: 1 v 15 | I23: 12 v 7 | J23: 11 v 15 | K23: 12 v 3 | L23: 1 v 11
B26: Schedule - 2017 - Second Half
B27: Week | C27: Week 1 | D27: Week 2 | E27: Week 3 | F27: Week 4 | G27: Week 5 | H27: Week 6 | I27: Week 7 | J27: Week 8 | K27: Week 9
B28: Date | C28: 07/05/17 | D28: 07/12/17 | E28: 07/19/17 | F28: 07/26/17 | G28: 08/02/17 | H28: 08/09/17 | I28: 08/16/17 | J28: 08/23/17 | K28: 08/30/17
B29: Side | C29: FRONT | D29: BACK | E29: FRONT | F29: BACK | G29: FRONT | H29: BACK | I29: FRONT | J29: BACK | K29: FRONT
B30: Tee Time
B31: 16:00:00 | C31: 14 v 3 | D31: 5 v 13 | E31: 9 v 7 | F31: 7 v 11 | G31: 10 v 4 | H31: 17 v 14 | I31: 17 v 16 | J31: 19 v 18 | K31: 17 v 4
B32: 16:08:00 | C32: 1 v 10 | D32: 7 v 15 | E32: 1 v 8 | F32: 18 v 17 | G32: 16 v 13 | H32: 20 v 11 | I32: 10 v 12 | J32: 5 v 11 | K32: 1 v 9
B33: 16:16:00 | C33: 12 v 11 | D33: 3 v 11 | E33: 10 v 6 | F33: 20 v 15 | G33: 9 v 5 | H33: 18 v 13 | I33: 1 v 5 | J33: 8 v 14 | K33: 19 v 6
B34: 16:24:00 | C34: 19 v 8 | D34: 10 v 18 | E34: 15 v 12 | F34: 5 v 3 | G34: 18 v 11 | H34: 8 v 4 | I34: 19 v 14 | J34: 9 v 15 | K34: 18 v 5
B35: 16:32:00 | C35: 18 v 7 | D35: 8 v 16 | E35: 18 v 3 | F35: 10 v 14 | G35: 1 v 7 | H35: 10 v 2 | I35: 9 v 11 | J35: 10 v 16 | K35: 15 v 2
B36: 16:40:00 | C36: 15 v 4 | D36: 1 v 2 | E36: 16 v 11 | F36: 8 v 12 | G36: 8 v 6 | H36: 16 v 15 | I36: 20 v 13 | J36: 4 v 2 | K36: 14 v 11
B37: 16:48:00 | C37: 13 v 2 | D37: 6 v 14 | E37: 20 v 5 | F37: 1 v 4 | G37: 15 v 14 | H37: 1 v 6 | I37: 18 v 15 | J37: 7 v 13 | K37: 16 v 3
B38: 16:56:00 | C38: 17 v 6 | D38: 20 v 19 | E38: 14 v 13 | F38: 19 v 16 | G38: 19 v 2 | H38: 9 v 3 | I38: 6 v 4 | J38: 1 v 3 | K38: 13 v 12
B39: 17:04:00 | C39: 20 v 9 | D39: 9 v 17 | E39: 17 v 2 | F39: 9 v 13 | G39: 17 v 12 | H39: 19 v 12 | I39: 7 v 3 | J39: 20 v 17 | K39: 20 v 7
B40: 17:12:00 | C40: 16 v 5 | D40: 4 v 12 | E40: 19 v 4 | F40: 6 v 2 | G40: 20 v 3 | H40: 7 v 5 | I40: 8 v 2 | J40: 6 v 12 | K40: 10 v 8
A73: 1st Half
A74: 2nd Half
A75: Week 1 | B75: $I$31 | C75: $I$35 | D75: 7 v 3
A76: Week 2 | B76: $I$40 | C76: $I$39 | D76: 9 v 11
A77: Week 3
A78: Week 4
A79: Week 5
A80: Week 6
A81: Week 7
A82: Week 8
A83: Week 9
A84: Week 10
A150: 1 v 7
A151: 1st Half
A152: 2015-07-24
A153: 1st Half | B153: Week 7
A154: 0.625

Sheet ARCHIVED HCPS
J1: Inactive Members
J2: ='COURSE & LEAGUE DETAILS'!B2&" - "&'COURSE & LEAGUE DETAILS'!F2 -> Romano Golf League - 2017
A7: Last Name | B7: First Name | C7: M / F | D7: TelNo | E7: Hcp. | F7: Prior Scores
A8: Dyment | B8: Mark | C8: M | E8: 10 | F8: 2009-09-02 | G8: 2009-08-26 | H8: 2009-08-05 | I8: 2009-07-29 | J8: 2009-07-15 | K8: =B8&" "&A8 -> Mark Dyment
F9: 56 | G9: 43 | H9: 47 | I9: 50 | J9: 49
A10: Money | B10: David | C10: M | E10: 15 | F10: 2009-08-26 | G10: 2009-08-19 | H10: 2009-08-12 | I10: 2009-08-05 | J10: 2009-07-29 | K10: David Money
F11: 58 | G11: 57 | H11: 51 | I11: 55 | J11: 55
A12: Normandin, Jr. | B12: Pete | C12: M | E12: 11 | F12: 2009-07-29 | G12: 2009-07-22 | H12: 2009-07-15 | I12: 2009-07-08 | J12: 2009-06-24 | K12: Pete Normandin, Jr.
F13: 47 | G13: 48 | H13: 47 | I13: 54 | J13: 52
A14: Robinson | B14: Doug | C14: M | E14: 10 | F14: 2009-09-09 | G14: 2009-09-02 | H14: 2009-08-26 | I14: 2009-08-19 | J14: 2009-08-12 | K14: Doug Robinson
F15: 50 | G15: 47 | H15: 48 | I15: 50 | J15: 48
A16: Baker | B16: Bruce | C16: M | E16: 14 | F16: '08 Score | G16: '08 Score | H16: '08 Score | I16: '08 Score | J16: '08 Score | K16: Bruce Baker
F17: 58 | G17: 54 | H17: 53 | I17: 50 | J17: 54
A18: Fisher | B18: Frank | C18: M | E18: 7 | F18: 2011-08-24 | G18: 2011-08-17 | H18: 2011-08-10 | I18: 2011-08-03 | J18: 2011-07-27 | K18: Frank Fisher
F19: 41 | G19: 40 | H19: 55 | I19: 41 | J19: 45
A20: Buhts | B20: Chris | C20: M | E20: 8 | F20: 2011-08-24 | G20: 2011-08-17 | H20: 2011-08-10 | I20: 2011-08-03 | J20: 2011-07-20 | K20: Chris Buhts
F21: 51 | G21: 47 | H21: 46 | I21: 45 | J21: 43
A22: Vitone | B22: Dan | C22: M | E22: 12 | F22: 2011-08-17 | G22: 2011-08-03 | H22: 2011-06-29 | I22: 2011-06-15 | J22: 2011-06-08 | K22: Dan Vitone
F23: 55 | G23: 48 | H23: 53 | I23: 54 | J23: 48
A24: Bowes | B24: Jack | C24: M | E24: 18 | F24: 2009-05-20 | G24: 2009-05-13 | H24: 2009-05-06 | I24: 2009-04-29 | J24: Calc. | K24: Jack Bowes
F25: 60 | G25: 60 | H25: 53 | I25: 63 | J25: 56
A26: Baker | B26: Cindy | C26: F | E26: 16 | F26: 2010-07-28 | G26: 2010-06-23 | H26: 2010-05-05 | I26: '08 Score | J26: '08 Score | K26: Cindy Baker
F27: 52 | G27: 60 | H27: 57 | I27: 51 | J27: 58
A28: Bobusia | B28: Mike | C28: M | E28: 6 | F28: 2010-08-25 | G28: 2010-08-18 | H28: 2010-08-11 | I28: 2010-08-04 | J28: 2010-07-28 | K28: Mike Bobusia
F29: 42 | G29: 42 | H29: 49 | I29: 44 | J29: 40
A30: Gamache | B30: Mike | C30: M | E30: 12 | F30: 2011-08-24 | G30: 2011-08-17 | H30: 2011-08-10 | I30: 2011-07-27 | J30: 2011-07-20 | K30: Mike Gamache
F31: 52 | G31: 55 | H31: 45 | I31: 52 | J31: 50
A32: Stedmab | B32: Paul | C32: M | E32: 0 | F32: Calc. | G32: Calc. | H32: Calc. | I32: Calc. | J32: Calc. | K32: Paul Stedmab
F33: 36 | G33: 36 | H33: 36 | I33: 36 | J33: 36
A34: Henderson | B34: Zack | C34: M | E34: 8 | F34: 2012-08-29 | G34: 2012-08-01 | H34: 2012-06-20 | I34: Calc. | J34: Calc. | K34: Calc.
F35: 55 | G35: 53 | H35: 51 | I35: 36 | J35: 36 | K35: 36
A36: Currier | B36: Kyle | C36: M | E36: 6 | F36: Calc. | G36: Calc. | H36: Calc. | I36: Calc. | J36: Calc. | K36: =B36&" "&A36 -> Kyle Currier
F37: 44 | G37: 44 | H37: 44 | I37: 44 | J37: 44 | K37: =B37&" "&A37 -> 
A38: Boisvert | B38: Norman | C38: M | E38: 20 | F38: 2011-07-06 | G38: 2010-08-18 | H38: 2010-08-11 | I38: 2010-08-04 | J38: 2010-07-21 | K38: =B38&" "&A38 -> Norman Boisvert | L38: Calc. | M38: Calc.
F39: 65 | G39: 60 | H39: 60 | I39: 60 | J39: 61 | K39: =B39&" "&A39 ->  | L39: 36 | M39: 36
A40: Candelet | B40: Gary | C40: M | E40: 9 | F40: 2012-08-22 | G40: 2012-08-15 | H40: 2012-08-08 | I40: 2012-08-01 | J40: 2012-07-18 | K40: 41073 | L40: 2012-05-23 | M40: 2012-05-16 | N40: 2012-05-09 | O40: 2011-08-24 | P40: 2011-08-17 | Q40: 2011-08-10 | R40: 2011-08-03 | S40: 2011-07-20
F41: 47 | G41: 49 | H41: 51 | I41: 41 | J41: 48 | K41: 46 | L41: 49 | M41: 50 | N41: 52 | O41: 47 | P41: 54 | Q41: 59 | R41: 54 | S41: 48
A42: Egan | B42: Rick | C42: M | E42: 14 | F42: 2009-06-17 | G42: '08 Score | H42: '08 Score | I42: '08 Score | J42: '08 Score | K42: =B42&" "&A42 -> Rick Egan
F43: 53 | G43: 50 | H43: 58 | I43: 50 | J43: 55 | K43: =B43&" "&A43 -> 
A44: Hyre | B44: Dave | C44: M | E44: 9 | F44: 2012-08-01 | G44: 2012-07-25 | H44: 2012-07-18 | I44: 2012-07-11 | J44: 2012-06-27 | K44: 41080 | L44: 2012-06-13 | M44: 2012-05-30 | N44: 2012-05-23 | O44: 2012-05-16 | P44: 2012-05-09 | Q44: 2012-05-02 | R44: 2012-04-25 | S44: 2011-08-24 | T44: 2011-08-17 | U44: 2011-08-10 | V44: 2011-07-27 | W44: 2011-07-20
F45: 46 | G45: 56 | H45: 45 | I45: 48 | J45: 41 | K45: 51 | L45: 47 | M45: 45 | N45: 46 | O45: 44 | P45: 45 | Q45: 42 | R45: 53 | S45: 49 | T45: 43 | U45: 60 | V45: 54 | W45: 45
A46: Scapparone | B46: Steve | C46: M | E46: 10 | F46: 2012-08-01 | G46: 2012-07-25 | H46: 2012-07-18 | I46: 2012-07-11 | J46: 2012-06-27 | K46: 41073 | L46: 2012-05-30 | M46: 2012-05-23 | N46: 2012-05-16 | O46: 2012-05-09 | P46: 2012-05-02 | Q46: 2012-04-25 | R46: 2011-08-24 | S46: 2011-08-17 | T46: 2011-08-10 | U46: 2011-08-03 | V46: 2011-07-27
F47: 50 | G47: 48 | H47: 45 | I47: 55 | J47: 46 | K47: 45 | L47: 47 | M47: 53 | N47: 47 | O47: 53 | P47: 51 | Q47: 50 | R47: 46 | S47: 48 | T47: 53 | U47: 52 | V47: 52
A48: DiPasquale | B48: Yogi | C48: M | E48: 7 | F48: 2009-07-22 | G48: 2009-07-15 | H48: Calc. | I48: Calc. | J48: Calc. | K48: =B48&" "&A48 -> Yogi DiPasquale
F49: 46 | G49: 40 | H49: 45 | I49: 45 | J49: 45 | K49: =B49&" "&A49 -> 
A50: Romano, Jr. | B50: Ralph | C50: M | E50: 19 | F50: 2013-08-21 | G50: 2013-08-07 | H50: 2013-07-31 | I50: 2013-07-24 | J50: 2013-07-03 | K50: 41451 | L50: 2013-06-19 | M50: 2013-06-05 | N50: 2013-05-29 | O50: 2013-05-22 | P50: 2013-05-15 | Q50: 2013-05-01 | R50: 2009-09-09 | S50: 2009-09-02 | T50: 2009-08-26 | U50: 2009-08-19 | V50: 2009-08-12
F51: 64 | G51: 55 | H51: 61 | I51: 56 | J51: 63 | K51: 49 | L51: 58 | M51: 58 | N51: 54 | O51: 57 | P51: 62 | Q51: 57 | R51: 58 | S51: 57 | T51: 55 | U51: 58 | V51: 47
A52: St. Jean | B52: David | C52: M | E52: 10 | F52: 2012-09-05 | G52: 2012-08-29 | H52: 2012-08-22 | I52: 2012-08-15 | J52: 2012-08-08 | K52: 41122 | L52: 2012-07-25 | M52: 2012-07-11 | N52: 2012-06-27 | O52: 2012-06-20 | P52: 2012-06-13 | Q52: 2012-05-30 | R52: 2012-05-23 | S52: 2012-05-16 | T52: 2012-05-09 | U52: 2012-05-02 | V52: 2012-04-25 | W52: 2011-08-24 | X52: 2011-08-17 | Y52: 2011-08-10 | Z52: 2011-08-03 | AA52: 2011-07-27
F53: 46 | G53: 46 | H53: 47 | I53: 53 | J53: 51 | K53: 38 | L53: 48 | M53: 46 | N53: 43 | O53: 46 | P53: 43 | Q53: 44 | R53: 46 | S53: 53 | T53: 44 | U53: 49 | V53: 57 | W53: 51 | X53: 53 | Y53: 52 | Z53: 46 | AA53: 43
A54: Normandin | B54: Pete Jr. | C54: M | E54: 0 | F54: Calc. | G54: Calc. | H54: Calc. | I54: Calc. | J54: Calc. | K54: =B54&" "&A54 -> Pete Jr. Normandin
F55: 36 | G55: 36 | H55: 36 | I55: 36 | J55: 36 | K55: =B55&" "&A55 -> 
A56: Lee | B56: Matt | C56: M | E56: 1 | F56: 2013-08-07 | G56: Calc. | H56: Calc. | I56: Calc. | J56: Calc. | K56: Calc.
F57: 43 | G57: 36 | H57: 36 | I57: 36 | J57: 36 | K57: 36
A58: Melansom | B58: Jay | C58: M | E58: 1 | F58: 2013-08-21 | G58: Calc. | H58: Calc. | I58: Calc. | J58: Calc. | K58: Calc.
F59: 40 | G59: 36 | H59: 36 | I59: 36 | J59: 36 | K59: 36
A60: McCarthy | B60: Shane | C60: M | E60: 4 | F60: 2013-07-03 | G60: Calc. | H60: Calc. | I60: Calc. | J60: Calc. | K60: Calc.
F61: 51 | G61: 39 | H61: 39 | I61: 39 | J61: 39 | K61: 39
A62: Lockhart | B62: Lester | C62: M | E62: 9 | F62: 2013-08-07 | G62: 2013-07-31 | H62: 2013-07-24 | I62: 2013-07-17 | J62: 2013-07-03 | K62: 41451 | L62: 2013-06-19 | M62: 2013-06-12 | N62: 2013-06-05 | O62: 2013-05-29 | P62: 2013-05-22 | Q62: 2013-05-15 | R62: 2012-09-05 | S62: 2012-08-29 | T62: 2012-08-15 | U62: 2012-08-08 | V62: 2012-08-01 | W62: 2012-07-25 | X62: 2012-07-18 | Y62: 2012-07-11 | Z62: 2012-06-27 | AA62: 2012-06-20 | AB62: 2012-06-13 | AC62: 2012-05-30 | AD62: 2012-05-23 | AE62: 2012-05-16 | AF62: 2012-05-09 | AG62: 2012-05-02 | AH62: 2011-08-17 | AI62: 2011-08-10 | AJ62: 2011-08-03 | AK62: 2011-07-27 | AL62: 2011-07-20
F63: 48 | G63: 47 | H63: 45 | I63: 48 | J63: 51 | K63: 46 | L63: 48 | M63: 44 | N63: 48 | O63: 47 | P63: 47 | Q63: 44 | R63: 47 | S63: 43 | T63: 44 | U63: 44 | V63: 48 | W63: 47 | X63: 44 | Y63: 46 | Z63: 40 | AA63: 48 | AB63: 47 | AC63: 48 | AD63: 52 | AE63: 46 | AF63: 44 | AG63: 44 | AH63: 45 | AI63: 52 | AJ63: 50 | AK63: 48 | AL63: 46
A64: Bittner | B64: Gary | C64: M | E64: 5 | F64: 2013-08-28 | G64: 2013-08-21 | H64: 2013-08-07 | I64: 2013-07-31 | J64: 2013-07-24 | K64: 41472 | L64: 2013-07-03 | M64: 2013-06-26 | N64: 2013-06-19 | O64: 2013-06-12 | P64: 2013-06-05 | Q64: 2013-05-29 | R64: 2013-05-22 | S64: 2013-05-15 | T64: 2013-05-01 | U64: 2012-09-05 | V64: 2012-08-29 | W64: 2012-08-22 | X64: 2012-08-15 | Y64: 2012-08-08 | Z64: 2012-07-25 | AA64: 2012-07-18 | AB64: 2012-07-11 | AC64: 2012-06-27 | AD64: 2012-06-20 | AE64: 2012-06-13 | AF64: 2012-05-30 | AG64: 2012-05-23 | AH64: 2012-05-16 | AI64: 2012-05-09 | AJ64: 2012-05-02 | AK64: 2012-04-25 | AL64: 2011-08-24 | AM64: 2011-08-10 | AN64: 2011-08-03 | AO64: 2011-07-27 | AP64: 2011-07-20
F65: 43 | G65: 38 | H65: 42 | I65: 43 | J65: 45 | K65: 44 | L65: 49 | M65: 45 | N65: 47 | O65: 43 | P65: 50 | Q65: 43 | R65: 46 | S65: 45 | T65: 50 | U65: 48 | V65: 42 | W65: 45 | X65: 49 | Y65: 48 | Z65: 45 | AA65: 42 | AB65: 43 | AC65: 45 | AD65: 48 | AE65: 46 | AF65: 44 | AG65: 47 | AH65: 47 | AI65: 49 | AJ65: 42 | AK65: 50 | AL65: 49 | AM65: 47 | AN65: 51 | AO65: 46 | AP65: 51
A66: DeCarolis | B66: Joey | C66: M | E66: 6 | F66: 2013-08-28 | G66: 2013-08-21 | H66: 2013-08-14 | I66: 2013-08-07 | J66: 2013-07-31 | K66: 41479 | L66: 2013-07-17 | M66: 2013-07-03 | N66: 2013-06-26 | O66: 2013-06-19 | P66: 2013-06-12 | Q66: 2013-06-05 | R66: 2013-05-29 | S66: 2013-05-22 | T66: 2013-05-15 | U66: 2013-05-01 | V66: 2012-09-05 | W66: 2012-08-29 | X66: 2012-08-22 | Y66: 2012-08-15 | Z66: 2012-08-08 | AA66: 2012-08-01 | AB66: 2012-07-25 | AC66: 2012-07-18 | AD66: 2012-07-11 | AE66: 2012-06-27 | AF66: 2012-06-20 | AG66: 2012-06-13 | AH66: 2012-05-30 | AI66: 2012-05-23 | AJ66: 2012-05-16 | AK66: Calc. | AL66: Calc. | AM66: Calc. | AN66: Calc. | AO66: Calc.
F67: 42 | G67: 44 | H67: 42 | I67: 45 | J67: 45 | K67: 41 | L67: 46 | M67: 45 | N67: 47 | O67: 44 | P67: 50 | Q67: 47 | R67: 42 | S67: 40 | T67: 37 | U67: 50 | V67: 43 | W67: 38 | X67: 39 | Y67: 52 | Z67: 47 | AA67: 46 | AB67: 51 | AC67: 49 | AD67: 44 | AE67: 43 | AF67: 48 | AG67: 41 | AH67: 45 | AI67: 44 | AJ67: 37 | AK67: 46 | AL67: 46 | AM67: 46 | AN67: 46 | AO67: 46
A68: Sunderland | B68: Debbie | C68: F | E68: 10 | F68: 2013-08-28 | G68: 2013-08-21 | H68: 2013-08-14 | I68: 2013-07-31 | J68: 2013-07-24 | K68: 41472 | L68: 2013-07-03 | M68: 2013-06-26 | N68: 2013-06-19 | O68: 2013-06-12 | P68: 2013-06-05 | Q68: 2013-05-22 | R68: 2013-05-15 | S68: 2013-05-01 | T68: 2012-09-05 | U68: 2012-08-29 | V68: 2012-08-22 | W68: 2012-08-15 | X68: 2012-08-08 | Y68: 2012-08-01 | Z68: 2012-07-25 | AA68: 2012-07-18 | AB68: 2012-06-27 | AC68: 2012-06-20 | AD68: 2012-06-13 | AE68: 2012-05-30 | AF68: 2012-05-23 | AG68: 2012-05-16 | AH68: 2012-05-09 | AI68: 2012-05-02 | AJ68: 2012-04-25 | AK68: 2011-08-24 | AL68: 2011-08-17 | AM68: 2011-07-27 | AN68: 2011-07-20 | AO68: 2011-07-06
F69: 49 | G69: 47 | H69: 50 | I69: 48 | J69: 50 | K69: 47 | L69: 48 | M69: 41 | N69: 42 | O69: 46 | P69: 47 | Q69: 46 | R69: 46 | S69: 48 | T69: 49 | U69: 42 | V69: 48 | W69: 49 | X69: 50 | Y69: 43 | Z69: 51 | AA69: 47 | AB69: 47 | AC69: 50 | AD69: 52 | AE69: 46 | AF69: 46 | AG69: 47 | AH69: 47 | AI69: 49 | AJ69: 52 | AK69: 48 | AL69: 50 | AM69: 52 | AN69: 46 | AO69: 44
A70: Sunderland | B70: Mike | C70: M | E70: 5 | F70: 2013-08-28 | G70: 2013-08-21 | H70: 2013-08-14 | I70: 2013-07-31 | J70: 2013-07-24 | K70: 41472 | L70: 2013-07-03 | M70: 2013-06-26 | N70: 2013-06-19 | O70: 2013-06-12 | P70: 2013-06-05 | Q70: 2013-05-22 | R70: 2013-05-15 | S70: 2013-05-01 | T70: 2012-09-05 | U70: 2012-08-29 | V70: 2012-08-22 | W70: 2012-08-15 | X70: 2012-08-08 | Y70: 2012-08-01 | Z70: 2012-07-25 | AA70: 2012-07-18 | AB70: 2012-06-27 | AC70: 2012-06-20 | AD70: 2012-06-13 | AE70: 2012-05-30 | AF70: 2012-05-23 | AG70: 2012-05-16 | AH70: 2012-05-09 | AI70: 2012-05-02 | AJ70: 2012-04-25 | AK70: 2011-08-24 | AL70: 2011-08-17 | AM70: 2011-08-03 | AN70: 2011-07-27 | AO70: 2011-07-20
F71: 43 | G71: 36 | H71: 48 | I71: 41 | J71: 45 | K71: 43 | L71: 42 | M71: 40 | N71: 49 | O71: 41 | P71: 43 | Q71: 41 | R71: 47 | S71: 41 | T71: 43 | U71: 41 | V71: 42 | W71: 45 | X71: 41 | Y71: 43 | Z71: 43 | AA71: 44 | AB71: 43 | AC71: 42 | AD71: 45 | AE71: 41 | AF71: 44 | AG71: 47 | AH71: 45 | AI71: 44 | AJ71: 40 | AK71: 47 | AL71: 51 | AM71: 41 | AN71: 46 | AO71: 46
A72: Szewczyk | B72: Victor | C72: M | E72: 8 | F72: 2011-07-20 | G72: 2011-07-13 | H72: 2011-07-06 | I72: 2011-06-29 | J72: 2011-06-15 | K72: =B72&" "&A72 -> Victor Szewczyk
F73: 46 | G73: 49 | H73: 45 | I73: 46 | J73: 47
A74: Soucy | B74: Mark | C74: M | E74: 11 | F74: 2015-05-06 | G74: 2015-04-29 | H74: Calc. | I74: Calc. | J74: Calc. | K74: Calc. | L74: Calc.
F75: 54 | G75: 56 | H75: 47 | I75: 47 | J75: 47 | K75: 47 | L75: 47
A76: Stedman | B76: Paul | C76: M | E76: 4 | F76: 2012-08-22 | G76: 2012-08-15 | H76: 2012-08-08 | I76: 2012-07-25 | J76: 2012-07-18 | K76: 41101 | L76: 41087 | M76: 41080 | N76: 41073 | O76: Calc.
F77: 41 | G77: 40 | H77: 40 | I77: 39 | J77: 43 | K77: 39 | L77: 42 | M77: 49 | N77: 39 | O77: 36
A78: Passios | B78: Deb | C78: F | E78: 15 | F78: 2012-08-29 | G78: 2012-08-22 | H78: 2012-08-15 | I78: 2012-08-08 | J78: 2012-08-01 | K78: 41115 | L78: 41108 | M78: 41101 | N78: 41087 | O78: 41080
F79: 56 | G79: 59 | H79: 55 | I79: 55 | J79: 51 | K79: 60 | L79: 55 | M79: 55 | N79: 60 | O79: 61
A80: DeCarolis | B80: Deb | C80: F | E80: 10 | F80: 2015-05-06 | G80: 2015-04-29 | H80: 2013-08-28 | I80: 2013-08-21 | J80: 2013-08-14 | K80: 41493 | L80: 41486 | M80: 41479 | N80: 41472 | O80: 41458
F81: 53 | G81: 46 | H81: 48 | I81: 45 | J81: 50 | K81: 46 | L81: 51 | M81: 38 | N81: 57 | O81: 47
A82: Lawrence | B82: Steve | C82: M | E82: 12 | F82: Calc | G82: Calc | H82: Calc | I82: Calc | J82: Calc
F83: 51 | G83: 51 | H83: 51 | I83: 51 | J83: 51
A84: Normandin | B84: Jono | C84: M | E84: 5 | F84: 2013-05-01 | G84: 2012-08-15 | H84: 2012-08-08 | I84: 2012-08-01 | J84: 2012-06-27 | K84: 40352 | L84: 39981 | M84: Calc. | N84: Calc. | O84: Calc.
F85: 41 | G85: 44 | H85: 44 | I85: 42 | J85: 41 | K85: 49 | L85: 46 | M85: 45 | N85: 45 | O85: 45
A86: Barry | B86: Chris | C86: M | E86: 11 | F86: 2011-08-03 | G86: 2011-06-15 | H86: 2011-05-25 | I86: Calc. | J86: Calc.
F87: 60 | G87: 56 | H87: 62 | I87: 36 | J87: 36
A88: Currier | B88: Kyle | C88: M | E88: 9 | F88: 2013-08-28 | G88: 2013-08-14 | H88: 2013-08-07 | I88: 2013-07-17 | J88: 2013-06-26 | K88: 41444 | L88: 41437 | M88: 41430 | N88: 41423 | O88: 41416
F89: 52 | G89: 48 | H89: 47 | I89: 44 | J89: 43 | K89: 43 | L89: 49 | M89: 44 | N89: 48 | O89: 46
A90: Williamson | B90: Adam | C90: M | E90: 2 | F90: 2013-08-28 | G90: 2013-08-14 | H90: 2013-08-07 | I90: 2013-07-31 | J90: 2013-07-24 | K90: 41451 | L90: 41444 | M90: 41437 | N90: 41430 | O90: 41423
F91: 37 | G91: 43 | H91: 39 | I91: 38 | J91: 38 | K91: 40 | L91: 40 | M91: 37 | N91: 45 | O91: 36
A92: Lawrence | B92: Steve | C92: M | E92: 8 | F92: Calc | G92: Calc | H92: Calc | I92: Calc | J92: Calc
F93: 46 | G93: 46 | H93: 46 | I93: 46 | J93: 46
A94: Duffy | B94: Basrry | C94: M | E94: 9 | F94: Calc | G94: Calc | H94: Calc | I94: Calc | J94: Calc
F95: 47 | G95: 47 | H95: 47 | I95: 47 | J95: 47
A96: Duffy | B96: Barry | C96: M | E96: 9 | F96: Calc | G96: Calc | H96: Calc | I96: Calc | J96: Calc
F97: 47 | G97: 47 | H97: 47 | I97: 47 | J97: 47
A98: LeBlanc | B98: Paul | C98: M | E98: 8 | F98: 2015-09-02 | G98: 2015-08-19 | H98: 2015-08-12 | I98: 2015-08-05 | J98: 2015-07-29 | K98: 42207 | L98: 42200 | M98: 42193 | N98: 42186 | O98: 42179
F99: 42 | G99: 41 | H99: 51 | I99: 53 | J99: 46 | K99: 49 | L99: 50 | M99: 43 | N99: 46 | O99: 43
A100: Henderson | B100: Audrey | C100: F | E100: 15 | F100: 2013-06-19 | G100: 2012-09-05 | H100: 2012-08-22 | I100: 2012-08-15 | J100: 2012-08-08 | K100: 41087 | L100: 41059 | M100: 41052 | N100: 41045 | O100: 41038
F101: 58 | G101: 52 | H101: 61 | I101: 51 | J101: 53 | K101: 54 | L101: 58 | M101: 57 | N101: 53 | O101: 65
A102: Forbes | B102: Mike | C102: M | E102: 12 | F102: 2009-04-29 | G102: '08 Score | H102: '08 Score | I102: '08 Score | J102: '08 Score
F103: 61 | G103: 47 | H103: 43 | I103: 56 | J103: 47
A104: DePasquale | B104: Yogi | C104: M | E104: 7 | F104: Calc. | G104: Calc. | H104: Calc. | I104: Calc. | J104: Calc.
F105: 45 | G105: 45 | H105: 45 | I105: 45 | J105: 45
A106: Elie | B106: John | C106: M | E106: 15 | F106: 2013-08-28 | G106: 2013-08-21 | H106: 2013-08-14 | I106: 2013-08-07 | J106: 2013-07-31 | K106: 41479 | L106: 41472 | M106: 41458 | N106: 41451 | O106: 41444
F107: 61 | G107: 57 | H107: 50 | I107: 53 | J107: 55 | K107: 50 | L107: 57 | M107: 54 | N107: 45 | O107: 66
A108: Friberg | B108: Jon | C108: M | E108: 7 | F108: 2012-07-25 | G108: 2012-07-11 | H108: 2010-08-25 | I108: 2010-08-18 | J108: 2010-08-11 | K108: 40387 | L108: 40380
F109: 44 | G109: 44 | H109: 49 | I109: 43 | J109: 45 | K109: 44 | L109: 51
A110: Louney | B110: Brenda | C110: F | E110: 10 | F110: Calc. | G110: Calc. | H110: Calc. | I110: Calc. | J110: Calc.
F111: 49 | G111: 49 | H111: 49 | I111: 49 | J111: 49
A112: Duffy | B112: Barry | C112: M | E112: 17 | F112: 08/31/16 | G112: 08/24/16 | H112: 08/17/16 | I112: 08/10/16 | J112: 08/03/16 | K112: 07/13/16 | L112: 06/29/16 | M112: 06/22/16 | N112: 06/15/16 | O112: 06/01/16
F113: 62 | G113: 46 | H113: 61 | I113: 57 | J113: 59 | K113: 59 | L113: 51 | M113: 54 | N113: 52 | O113: 63
A114: Jordan | B114: Shayne | C114: M | E114: 5 | F114: 08/31/16 | G114: 08/24/16 | H114: 08/17/16 | I114: 08/10/16 | J114: 07/27/16 | K114: 07/20/16 | L114: 07/13/16 | M114: 07/06/16 | N114: 06/29/16 | O114: 06/22/16
F115: 47 | G115: 39 | H115: 49 | I115: 36 | J115: 43 | K115: 39 | L115: 43 | M115: 46 | N115: 42 | O115: 44
A116: Cuifetti | B116: Sal | C116: M | E116: 12 | F116: 08/31/16 | G116: 08/24/16 | H116: 08/17/16 | I116: 08/10/16 | J116: 08/03/16 | K116: 07/27/16 | L116: 07/20/16 | M116: 07/13/16 | N116: 07/06/16 | O116: 06/29/16
F117: 52 | G117: 50 | H117: 50 | I117: 49 | J117: 54 | K117: 52 | L117: 53 | M117: 57 | N117: 45 | O117: 47
A118: Eckstrom | B118: Carol | C118: F | E118: 18 | F118: 08/31/16 | G118: 08/24/16 | H118: 08/17/16 | I118: 08/10/16 | J118: 08/03/16 | K118: 07/27/16 | L118: 07/20/16 | M118: 07/13/16 | N118: 06/29/16 | O118: 06/22/16
F119: 58 | G119: 53 | H119: 60 | I119: 52 | J119: 67 | K119: 62 | L119: 63 | M119: 52 | N119: 54 | O119: 62
A120: Eckstrom | B120: Ron | C120: M | E120: 2 | F120: 08/31/16 | G120: 08/24/16 | H120: 08/17/16 | I120: 08/10/16 | J120: 08/03/16 | K120: 07/27/16 | L120: 07/20/16 | M120: 07/13/16 | N120: 06/29/16 | O120: 06/22/16
F121: 42 | G121: 35 | H121: 38 | I121: 39 | J121: 39 | K121: 36 | L121: 45 | M121: 36 | N121: 41 | O121: 37
A122: Erskine | B122: Jeff | C122: M | E122: 8 | F122: 2013-08-14 | G122: 2012-09-05 | H122: 2012-08-01 | I122: 2012-06-20 | J122: 2012-05-30 | K122: 41052 | L122: 41031 | M122: 40779 | N122: 40772 | O122: 40758
F123: 48 | G123: 46 | H123: 42 | I123: 51 | J123: 45 | K123: 47 | L123: 43 | M123: 52 | N123: 49 | O123: 49
A124: Wallace | B124: Zachary | C124: M | E124: 12 | F124: 2013-08-28 | G124: 2013-08-21 | H124: 2013-08-14 | I124: 2013-08-07 | J124: 2013-07-31 | K124: 41479 | L124: 41472 | M124: 41458 | N124: 41451 | O124: 41437
F125: 51 | G125: 57 | H125: 50 | I125: 43 | J125: 53 | K125: 45 | L125: 45 | M125: 52 | N125: 43 | O125: 42
A126: Lockhart | B126: Lester | C126: M | E126: 13 | F126: 08/31/16 | G126: 08/24/16 | H126: 08/17/16 | I126: 08/10/16 | J126: 08/03/16 | K126: 07/20/16 | L126: 07/13/16 | M126: 07/06/16 | N126: 06/29/16 | O126: 06/22/16
F127: 50 | G127: 56 | H127: 54 | I127: 51 | J127: 50 | K127: 55 | L127: 56 | M127: 55 | N127: 46 | O127: 49
A128: DiGiovasnni | B128: Dave | C128: M | E128: 5 | F128: 05/24/17 | G128: Calc | H128: Calc | I128: Calc | J128: Calc | K128: Calc
F129: 44 | G129: 42 | H129: 42 | I129: 42 | J129: 42 | K129: 42
A130: Richard | B130: Jeff | C130: M | E130: 13 | F130: 2015-06-17 | G130: 2015-05-27 | H130: 2013-08-21 | I130: 2013-05-29 | J130: 2012-08-29 | K130: 41129 | L130: 41122 | M130: 41115 | N130: 41108 | O130: 41080
F131: 55 | G131: 52 | H131: 54 | I131: 49 | J131: 53 | K131: 56 | L131: 56 | M131: 56 | N131: 57 | O131: 58
K132: =B132&" "&A132 -> 
K188: =B188&" "&A188 -> 
K252: =B252&" "&A252 -> 
K316: =B316&" "&A316 -> 
K380: =B380&" "&A380 -> 
K425: =B425&" "&A425 -> 

Sheet STANDINGS - 2017
G2: 08/23/17
F7: Standings - First Half - 2017
C11: =RANK(J11,$J$11:$J$45) -> 1 | D11: =IF(C11=C10,C11&"T",IF(C11=C12,C11&"T",C11)) -> 1 | E11: Team 08 | F11: ="- "&VLOOKUP(E11,'TEAM ROSTERS & SUB LIST'!B:F,3,FALSE)&" / "&VLOOKUP(E11,'TEAM ROSTERS & SUB LIST'!B:F,5,FALSE) -> - Steve Lawrence / Mike Benson | J11: =VLOOKUP(E11,'POINTS - 2017'!$B$11:$D$44,2,FALSE) -> 49
C12: =RANK(J12,$J$11:$J$45) -> 2 | D12: =IF(C12=C11,C12&"T",IF(C12=C13,C12&"T",C12)) -> 2 | E12: Team 02 | F12: ="- "&VLOOKUP(E12,'TEAM ROSTERS & SUB LIST'!B:F,3,FALSE)&" / "&VLOOKUP(E12,'TEAM ROSTERS & SUB LIST'!B:F,5,FALSE) -> - Jono Normandin / Nathan Wallace | J12: =VLOOKUP(E12,'POINTS - 2017'!$B$11:$D$44,2,FALSE) -> 48.5
C13: 3 | D13: 3 | E13: Team 15 | F13: ="- "&VLOOKUP(E13,'TEAM ROSTERS & SUB LIST'!B:F,3,FALSE)&" / "&VLOOKUP(E13,'TEAM ROSTERS & SUB LIST'!B:F,5,FALSE) -> - Gary Leavenworth / Patty Leavenworth | J13: =VLOOKUP(E13,'POINTS - 2017'!$B$11:$D$44,2,FALSE) -> 44.5
C14: 4 | D14: 4 | E14: Team 03 | F14: ="- "&VLOOKUP(E14,'TEAM ROSTERS & SUB LIST'!B:F,3,FALSE)&" / "&VLOOKUP(E14,'TEAM ROSTERS & SUB LIST'!B:F,5,FALSE) -> - Pete Romano / Don Frigoletto | J14: =VLOOKUP(E14,'POINTS - 2017'!$B$11:$D$44,2,FALSE) -> 44
C15: 5 | D15: 5T | E15: Team 06 | F15: ="- "&VLOOKUP(E15,'TEAM ROSTERS & SUB LIST'!B:F,3,FALSE)&" / "&VLOOKUP(E15,'TEAM ROSTERS & SUB LIST'!B:F,5,FALSE) -> - Vance Butterfield / Bob Schleyer | J15: =VLOOKUP(E15,'POINTS - 2017'!$B$11:$D$44,2,FALSE) -> 42.5
C16: 5 | D16: 5T | E16: Team 14 | F16: ="- "&VLOOKUP(E16,'TEAM ROSTERS & SUB LIST'!B:F,3,FALSE)&" / "&VLOOKUP(E16,'TEAM ROSTERS & SUB LIST'!B:F,5,FALSE) -> - Paul Fontaine / Ralph Romano III | J16: =VLOOKUP(E16,'POINTS - 2017'!$B$11:$D$44,2,FALSE) -> 42.5
C17: 7 | D17: 7 | E17: Team 20 | F17: ="- "&VLOOKUP(E17,'TEAM ROSTERS & SUB LIST'!B:F,3,FALSE)&" / "&VLOOKUP(E17,'TEAM ROSTERS & SUB LIST'!B:F,5,FALSE) -> - Sheila Sundstrom / Ray Hoy | J17: =VLOOKUP(E17,'POINTS - 2017'!$B$11:$D$44,2,FALSE) -> 42
C18: 8 | D18: 8 | E18: Team 18 | F18: ="- "&VLOOKUP(E18,'TEAM ROSTERS & SUB LIST'!B:F,3,FALSE)&" / "&VLOOKUP(E18,'TEAM ROSTERS & SUB LIST'!B:F,5,FALSE) -> - Norm Gamache / Michelle Bouvier | J18: =VLOOKUP(E18,'POINTS - 2017'!$B$11:$D$44,2,FALSE) -> 41
C19: 9 | D19: 9T | E19: Team 11 | F19: ="- "&VLOOKUP(E19,'TEAM ROSTERS & SUB LIST'!B:F,3,FALSE)&" / "&VLOOKUP(E19,'TEAM ROSTERS & SUB LIST'!B:F,5,FALSE) -> - Jim Haskins / Anthony Conte | J19: =VLOOKUP(E19,'POINTS - 2017'!$B$11:$D$44,2,FALSE) -> 40.5
C20: 9 | D20: 9T | E20: Team 12 | F20: ="- "&VLOOKUP(E20,'TEAM ROSTERS & SUB LIST'!B:F,3,FALSE)&" / "&VLOOKUP(E20,'TEAM ROSTERS & SUB LIST'!B:F,5,FALSE) -> - Sal Ciufetti / Kevin Nivala | J20: =VLOOKUP(E20,'POINTS - 2017'!$B$11:$D$44,2,FALSE) -> 40.5
C21: 11 | D21: 11 | E21: Team 07 | F21: ="- "&VLOOKUP(E21,'TEAM ROSTERS & SUB LIST'!B:F,3,FALSE)&" / "&VLOOKUP(E21,'TEAM ROSTERS & SUB LIST'!B:F,5,FALSE) -> - John Fairbanks / Debbie Fairbanks | J21: =VLOOKUP(E21,'POINTS - 2017'!$B$11:$D$44,2,FALSE) -> 40
C22: 12 | D22: 12 | E22: Team 10 | F22: ="- "&VLOOKUP(E22,'TEAM ROSTERS & SUB LIST'!B:F,3,FALSE)&" / "&VLOOKUP(E22,'TEAM ROSTERS & SUB LIST'!B:F,5,FALSE) -> - Ron Ekstrom / Beth Romano | J22: =VLOOKUP(E22,'POINTS - 2017'!$B$11:$D$44,2,FALSE) -> 39
C23: 13 | D23: 13 | E23: Team 04 | F23: ="- "&VLOOKUP(E23,'TEAM ROSTERS & SUB LIST'!B:F,3,FALSE)&" / "&VLOOKUP(E23,'TEAM ROSTERS & SUB LIST'!B:F,5,FALSE) -> - Peg Romano / Lynn Laroche | J23: =VLOOKUP(E23,'POINTS - 2017'!$B$11:$D$44,2,FALSE) -> 38.5
C24: 14 | D24: 14 | E24: Team 17 | F24: ="- "&VLOOKUP(E24,'TEAM ROSTERS & SUB LIST'!B:F,3,FALSE)&" / "&VLOOKUP(E24,'TEAM ROSTERS & SUB LIST'!B:F,5,FALSE) -> - Carol Ekstrom / Mike Dauphinais | J24: =VLOOKUP(E24,'POINTS - 2017'!$B$11:$D$44,2,FALSE) -> 37
C25: 15 | D25: 15 | E25: Team 13 | F25: ="- "&VLOOKUP(E25,'TEAM ROSTERS & SUB LIST'!B:F,3,FALSE)&" / "&VLOOKUP(E25,'TEAM ROSTERS & SUB LIST'!B:F,5,FALSE) -> - Tim Hurley / Walter Drake | J25: =VLOOKUP(E25,'POINTS - 2017'!$B$11:$D$44,2,FALSE) -> 36.5
C26: 16 | D26: 16 | E26: Team 09 | F26: ="- "&VLOOKUP(E26,'TEAM ROSTERS & SUB LIST'!B:F,3,FALSE)&" / "&VLOOKUP(E26,'TEAM ROSTERS & SUB LIST'!B:F,5,FALSE) -> - Mike Doane / John Cassin | J26: =VLOOKUP(E26,'POINTS - 2017'!$B$11:$D$44,2,FALSE) -> 36
C27: 17 | D27: 17 | E27: Team 05 | F27: ="- "&VLOOKUP(E27,'TEAM ROSTERS & SUB LIST'!B:F,3,FALSE)&" / "&VLOOKUP(E27,'TEAM ROSTERS & SUB LIST'!B:F,5,FALSE) -> - Dennis Normandin / Mark Normandin | J27: =VLOOKUP(E27,'POINTS - 2017'!$B$11:$D$44,2,FALSE) -> 35.5
C28: 18 | D28: 18 | E28: Team 01 | F28: ="- "&VLOOKUP(E28,'TEAM ROSTERS & SUB LIST'!B:F,3,FALSE)&" / "&VLOOKUP(E28,'TEAM ROSTERS & SUB LIST'!B:F,5,FALSE) -> - John Normandin / Pete Normandin | J28: =VLOOKUP(E28,'POINTS - 2017'!$B$11:$D$44,2,FALSE) -> 33.5
C29: 19 | D29: 19 | E29: Team 16 | F29: ="- "&VLOOKUP(E29,'TEAM ROSTERS & SUB LIST'!B:F,3,FALSE)&" / "&VLOOKUP(E29,'TEAM ROSTERS & SUB LIST'!B:F,5,FALSE) -> - Kevin O'Loughlin / Mike Romano | J29: =VLOOKUP(E29,'POINTS - 2017'!$B$11:$D$44,2,FALSE) -> 32.5
C30: 20 | D30: 20 | E30: Team 19 | F30: ="- "&VLOOKUP(E30,'TEAM ROSTERS & SUB LIST'!B:F,3,FALSE)&" / "&VLOOKUP(E30,'TEAM ROSTERS & SUB LIST'!B:F,5,FALSE) -> - John Pavone / Ernie Beliveau | J30: =VLOOKUP(E30,'POINTS - 2017'!$B$11:$D$44,2,FALSE) -> 31.5
F47: Standings - Second Half - 2017
C50: =RANK(J50,$J$50:$J$84) -> 1 | D50: =IF(C50=C49,C50&"T",IF(C50=C51,C50&"T",C50)) -> 1 | E50: Team 10 | F50: ="- "&VLOOKUP(E50,'TEAM ROSTERS & SUB LIST'!B:F,3,FALSE)&" / "&VLOOKUP(E50,'TEAM ROSTERS & SUB LIST'!B:F,5,FALSE) -> - Ron Ekstrom / Beth Romano | J50: =VLOOKUP(E50,'POINTS - 2017'!$B$11:$D$44,3,FALSE) -> 44
C51: =RANK(J51,$J$50:$J$84) -> 2 | D51: =IF(C51=C50,C51&"T",IF(C51=C52,C51&"T",C51)) -> 2T | E51: Team 11 | F51: ="- "&VLOOKUP(E51,'TEAM ROSTERS & SUB LIST'!B:F,3,FALSE)&" / "&VLOOKUP(E51,'TEAM ROSTERS & SUB LIST'!B:F,5,FALSE) -> - Jim Haskins / Anthony Conte | J51: =VLOOKUP(E51,'POINTS - 2017'!$B$11:$D$44,3,FALSE) -> 37
C52: 2 | D52: 2T | E52: Team 14 | F52: ="- "&VLOOKUP(E52,'TEAM ROSTERS & SUB LIST'!B:F,3,FALSE)&" / "&VLOOKUP(E52,'TEAM ROSTERS & SUB LIST'!B:F,5,FALSE) -> - Paul Fontaine / Ralph Romano III | J52: =VLOOKUP(E52,'POINTS - 2017'!$B$11:$D$44,3,FALSE) -> 37
C53: 4 | D53: 4T | E53: Team 07 | F53: ="- "&VLOOKUP(E53,'TEAM ROSTERS & SUB LIST'!B:F,3,FALSE)&" / "&VLOOKUP(E53,'TEAM ROSTERS & SUB LIST'!B:F,5,FALSE) -> - John Fairbanks / Debbie Fairbanks | J53: =VLOOKUP(E53,'POINTS - 2017'!$B$11:$D$44,3,FALSE) -> 36.5
C54: 4 | D54: 4T | E54: Team 15 | F54: ="- "&VLOOKUP(E54,'TEAM ROSTERS & SUB LIST'!B:F,3,FALSE)&" / "&VLOOKUP(E54,'TEAM ROSTERS & SUB LIST'!B:F,5,FALSE) -> - Gary Leavenworth / Patty Leavenworth | J54: =VLOOKUP(E54,'POINTS - 2017'!$B$11:$D$44,3,FALSE) -> 36.5
C55: 6 | D55: 6T | E55: Team 08 | F55: ="- "&VLOOKUP(E55,'TEAM ROSTERS & SUB LIST'!B:F,3,FALSE)&" / "&VLOOKUP(E55,'TEAM ROSTERS & SUB LIST'!B:F,5,FALSE) -> - Steve Lawrence / Mike Benson | J55: =VLOOKUP(E55,'POINTS - 2017'!$B$11:$D$44,3,FALSE) -> 32
C56: 6 | D56: 6T | E56: Team 13 | F56: ="- "&VLOOKUP(E56,'TEAM ROSTERS & SUB LIST'!B:F,3,FALSE)&" / "&VLOOKUP(E56,'TEAM ROSTERS & SUB LIST'!B:F,5,FALSE) -> - Tim Hurley / Walter Drake | J56: =VLOOKUP(E56,'POINTS - 2017'!$B$11:$D$44,3,FALSE) -> 32
C57: 6 | D57: 6T | E57: Team 20 | F57: ="- "&VLOOKUP(E57,'TEAM ROSTERS & SUB LIST'!B:F,3,FALSE)&" / "&VLOOKUP(E57,'TEAM ROSTERS & SUB LIST'!B:F,5,FALSE) -> - Sheila Sundstrom / Ray Hoy | J57: =VLOOKUP(E57,'POINTS - 2017'!$B$11:$D$44,3,FALSE) -> 32
C58: 9 | D58: 9 | E58: Team 06 | F58: ="- "&VLOOKUP(E58,'TEAM ROSTERS & SUB LIST'!B:F,3,FALSE)&" / "&VLOOKUP(E58,'TEAM ROSTERS & SUB LIST'!B:F,5,FALSE) -> - Vance Butterfield / Bob Schleyer | J58: =VLOOKUP(E58,'POINTS - 2017'!$B$11:$D$44,3,FALSE) -> 31.5
C59: 10 | D59: 10T | E59: Team 03 | F59: ="- "&VLOOKUP(E59,'TEAM ROSTERS & SUB LIST'!B:F,3,FALSE)&" / "&VLOOKUP(E59,'TEAM ROSTERS & SUB LIST'!B:F,5,FALSE) -> - Pete Romano / Don Frigoletto | J59: =VLOOKUP(E59,'POINTS - 2017'!$B$11:$D$44,3,FALSE) -> 31
C60: 10 | D60: 10T | E60: Team 05 | F60: ="- "&VLOOKUP(E60,'TEAM ROSTERS & SUB LIST'!B:F,3,FALSE)&" / "&VLOOKUP(E60,'TEAM ROSTERS & SUB LIST'!B:F,5,FALSE) -> - Dennis Normandin / Mark Normandin | J60: =VLOOKUP(E60,'POINTS - 2017'!$B$11:$D$44,3,FALSE) -> 31
C61: 12 | D61: 12 | E61: Team 17 | F61: ="- "&VLOOKUP(E61,'TEAM ROSTERS & SUB LIST'!B:F,3,FALSE)&" / "&VLOOKUP(E61,'TEAM ROSTERS & SUB LIST'!B:F,5,FALSE) -> - Carol Ekstrom / Mike Dauphinais | J61: =VLOOKUP(E61,'POINTS - 2017'!$B$11:$D$44,3,FALSE) -> 28.5
C62: 13 | D62: 13 | E62: Team 02 | F62: ="- "&VLOOKUP(E62,'TEAM ROSTERS & SUB LIST'!B:F,3,FALSE)&" / "&VLOOKUP(E62,'TEAM ROSTERS & SUB LIST'!B:F,5,FALSE) -> - Jono Normandin / Nathan Wallace | J62: =VLOOKUP(E62,'POINTS - 2017'!$B$11:$D$44,3,FALSE) -> 28
C63: 14 | D63: 14T | E63: Team 01 | F63: ="- "&VLOOKUP(E63,'TEAM ROSTERS & SUB LIST'!B:F,3,FALSE)&" / "&VLOOKUP(E63,'TEAM ROSTERS & SUB LIST'!B:F,5,FALSE) -> - John Normandin / Pete Normandin | J63: =VLOOKUP(E63,'POINTS - 2017'!$B$11:$D$44,3,FALSE) -> 27.5
C64: 14 | D64: 14T | E64: Team 16 | F64: ="- "&VLOOKUP(E64,'TEAM ROSTERS & SUB LIST'!B:F,3,FALSE)&" / "&VLOOKUP(E64,'TEAM ROSTERS & SUB LIST'!B:F,5,FALSE) -> - Kevin O'Loughlin / Mike Romano | J64: =VLOOKUP(E64,'POINTS - 2017'!$B$11:$D$44,3,FALSE) -> 27.5
C65: 16 | D65: 16T | E65: Team 09 | F65: ="- "&VLOOKUP(E65,'TEAM ROSTERS & SUB LIST'!B:F,3,FALSE)&" / "&VLOOKUP(E65,'TEAM ROSTERS & SUB LIST'!B:F,5,FALSE) -> - Mike Doane / John Cassin | J65: =VLOOKUP(E65,'POINTS - 2017'!$B$11:$D$44,3,FALSE) -> 26.5
C66: 16 | D66: 16T | E66: Team 19 | F66: ="- "&VLOOKUP(E66,'TEAM ROSTERS & SUB LIST'!B:F,3,FALSE)&" / "&VLOOKUP(E66,'TEAM ROSTERS & SUB LIST'!B:F,5,FALSE) -> - John Pavone / Ernie Beliveau | J66: =VLOOKUP(E66,'POINTS - 2017'!$B$11:$D$44,3,FALSE) -> 26.5
C67: 18 | D67: 18 | E67: Team 04 | F67: ="- "&VLOOKUP(E67,'TEAM ROSTERS & SUB LIST'!B:F,3,FALSE)&" / "&VLOOKUP(E67,'TEAM ROSTERS & SUB LIST'!B:F,5,FALSE) -> - Peg Romano / Lynn Laroche | J67: =VLOOKUP(E67,'POINTS - 2017'!$B$11:$D$44,3,FALSE) -> 26
C68: 19 | D68: 19 | E68: Team 18 | F68: ="- "&VLOOKUP(E68,'TEAM ROSTERS & SUB LIST'!B:F,3,FALSE)&" / "&VLOOKUP(E68,'TEAM ROSTERS & SUB LIST'!B:F,5,FALSE) -> - Norm Gamache / Michelle Bouvier | J68: =VLOOKUP(E68,'POINTS - 2017'!$B$11:$D$44,3,FALSE) -> 24.5
C69: 20 | D69: 20 | E69: Team 12 | F69: ="- "&VLOOKUP(E69,'TEAM ROSTERS & SUB LIST'!B:F,3,FALSE)&" / "&VLOOKUP(E69,'TEAM ROSTERS & SUB LIST'!B:F,5,FALSE) -> - Sal Ciufetti / Kevin Nivala | J69: =VLOOKUP(E69,'POINTS - 2017'!$B$11:$D$44,3,FALSE) -> 13

Sheet POINTS - 2017
A1: ='SCORE ENTRY WORKSHEET'!N13 -> 08/23/17
A2: ='SCORE ENTRY WORKSHEET'!C21 -> Team 19
A3: ='SCORE ENTRY WORKSHEET'!M21 -> 0 | G3: POINTS - 2017
A4: ='SCORE ENTRY WORKSHEET'!C22 -> Team 18
A5: ='SCORE ENTRY WORKSHEET'!M22 -> 0
B10: Team No. | C10: Total Points - H1 | D10: Total Points - H2 | E10: 04/26/17 | F10: 05/03/17 | G10: 05/10/17 | H10: 05/17/17 | I10: 05/24/17 | J10: 05/31/17 | K10: 06/07/17 | L10: 06/14/17 | M10: 06/21/17 | N10: 06/28/17 | O10: 07/05/17 | P10: 07/12/17 | Q10: 07/19/17 | R10: 07/26/17 | S10: 08/02/17 | T10: 08/09/17 | U10: 08/16/17 | V10: 08/23/17 | W10: 08/30/17
B11: Team 01 | C11: =SUM(E11:N11) -> 33.5 | D11: =SUM(O11:W11) -> 27.5 | F11: 3.5 | G11: 4 | H11: 2 | I11: 4 | J11: 5 | K11: 3 | L11: 4.5 | M11: 3.5 | N11: 4 | O11: 2.5 | P11: 4 | Q11: 3.5 | R11: 5.5 | T11: 3.5 | U11: 3 | V11: 5.5
B12: Team 02 | C12: =SUM(E12:N12) -> 48.5 | D12: =SUM(O12:W12) -> 28 | F12: 4.5 | G12: 4.5 | H12: 3.5 | I12: 5.5 | J12: 6 | K12: 7.5 | L12: 6 | M12: 6 | N12: 5 | O12: 5 | P12: 5 | Q12: 4.5 | R12: 4.5 | T12: 2.5 | U12: 0.5 | V12: 6
B13: Team 03 | C13: 44 | D13: 31 | F13: 4.5 | G13: 4.5 | H13: 5.5 | I13: 4 | J13: 4.5 | K13: 7.5 | L13: 4.5 | M13: 4 | N13: 5 | O13: 2 | P13: 4 | Q13: 6 | R13: 8 | T13: 4 | U13: 3.5 | V13: 3.5
B14: Team 04 | C14: 38.5 | D14: 26 | F14: 4 | G14: 4 | H14: 5 | I14: 4.5 | J14: 4.5 | K14: 1.5 | L14: 8 | M14: 2.5 | N14: 4.5 | O14: 4 | P14: 4.5 | Q14: 2 | R14: 3.5 | T14: 6.5 | U14: 2.5 | V14: 3
B15: Team 05 | C15: 35.5 | D15: 31 | F15: 4 | G15: 5 | H15: 4 | I15: 5 | J15: 4 | K15: 1.5 | L15: 4 | M15: 3.5 | N15: 4.5 | O15: 4.5 | P15: 5.5 | Q15: 5.5 | R15: 1 | T15: 5.5 | U15: 6 | V15: 3
B16: Team 06 | C16: 42.5 | D16: 31.5 | F16: 4 | G16: 6.5 | H16: 3.5 | I16: 4 | J16: 5 | K16: 5 | L16: 6 | M16: 3.5 | N16: 5 | O16: 4 | P16: 2 | Q16: 4 | R16: 4.5 | T16: 5.5 | U16: 6.5 | V16: 5
B17: Team 07 | C17: 40 | D17: 36.5 | F17: 5 | G17: 2 | H17: 5.5 | I17: 4.5 | J17: 4 | K17: 5 | L17: 4 | M17: 5.5 | N17: 4.5 | O17: 5 | P17: 5 | Q17: 6 | R17: 5 | T17: 3.5 | U17: 5.5 | V17: 6.5
B18: Team 08 | C18: 49 | D18: 32 | F18: 6 | G18: 7 | H18: 5 | I18: 5 | J18: 5 | K18: 6.5 | L18: 3.5 | M18: 5.5 | N18: 5.5 | O18: 5.5 | P18: 3 | Q18: 5.5 | R18: 5.5 | T18: 2.5 | U18: 8.5 | V18: 1.5
B19: Team 09 | C19: 36 | D19: 26.5 | F19: 6 | G19: 2.5 | H19: 4.5 | I19: 3.5 | J19: 4.5 | K19: 4 | L19: 5.5 | M19: 0 | N19: 5.5 | O19: 3 | P19: 5 | Q19: 3 | R19: 5 | T19: 5 | U19: 4 | V19: 1.5
B20: Team 10 | C20: 39 | D20: 44 | F20: 3.5 | G20: 4 | H20: 5.5 | I20: 3.5 | J20: 4.5 | K20: 3.5 | L20: 5 | M20: 5.5 | N20: 4 | O20: 6.5 | P20: 5.5 | Q20: 5 | R20: 7 | T20: 6.5 | U20: 6 | V20: 7.5
B21: Team 11 | C21: 40.5 | D21: 37 | F21: 5 | G21: 5.5 | H21: 4 | I21: 5.5 | J21: 6 | K21: 4 | L21: 2.5 | M21: 3 | N21: 5 | O21: 5 | P21: 5 | Q21: 7.5 | R21: 4 | T21: 4.5 | U21: 5 | V21: 6
B22: Team 12 | C22: 40.5 | D22: 13 | F22: 5 | G22: 7 | H22: 4.5 | I22: 3.5 | J22: 5 | K22: 4 | L22: 2.5 | M22: 5 | N22: 4 | O22: 4 | P22: 4.5 | Q22: 4.5 | R22: 0 | T22: 0 | U22: 0 | V22: 0
B23: Team 13 | C23: 36.5 | D23: 32 | F23: 5 | G23: 5.5 | H23: 3.5 | I23: 0 | J23: 5 | K23: 2.5 | L23: 4.5 | M23: 6.5 | N23: 4 | O23: 4 | P23: 3.5 | Q23: 6.5 | R23: 4 | T23: 6 | U23: 5.5 | V23: 2.5
B24: Team 14 | C24: 42.5 | D24: 37 | F24: 4 | G24: 5 | H24: 2.5 | I24: 5 | J24: 4.5 | K24: 5 | L24: 6.5 | M24: 5.5 | N24: 4.5 | O24: 7 | P24: 7 | Q24: 2.5 | R24: 2 | T24: 4.5 | U24: 6.5 | V24: 7.5
B25: Team 15 | C25: 44.5 | D25: 36.5 | F25: 3 | G25: 3.5 | H25: 7.5 | I25: 4.5 | J25: 4 | K25: 5.5 | L25: 6.5 | M25: 5.5 | N25: 4.5 | O25: 5 | P25: 4 | Q25: 4.5 | R25: 7 | T25: 3.5 | U25: 5 | V25: 7.5
B26: Team 16 | C26: 32.5 | D26: 27.5 | F26: 3 | G26: 2 | H26: 2.5 | I26: 5 | J26: 4.5 | K26: 5 | L26: 3 | M26: 3.5 | N26: 4 | O26: 4.5 | P26: 6 | Q26: 1.5 | R26: 2.5 | T26: 5.5 | U26: 6 | V26: 1.5
B27: Team 17 | C27: 37 | D27: 28.5 | F27: 5.5 | G27: 3.5 | H27: 7 | I27: 4.5 | J27: 4 | K27: 4.5 | L27: 0 | M27: 3.5 | N27: 4.5 | O27: 5 | P27: 4 | Q27: 4.5 | R27: 4 | T27: 4.5 | U27: 3 | V27: 3.5
B28: Team 18 | C28: 41 | D28: 24.5 | F28: 4.5 | G28: 4.5 | H28: 6.5 | I28: 4 | J28: 4 | K28: 6 | L28: 1 | M28: 7 | N28: 3.5 | O28: 0 | P28: 3.5 | Q28: 3 | R28: 5 | T28: 3 | U28: 4 | V28: 6
B29: Team 19 | C29: 31.5 | D29: 26.5 | F29: 5.5 | G29: 4.5 | H29: 1.5 | I29: 5 | J29: 3 | K29: 0 | L29: 5 | M29: 3.5 | N29: 3.5 | O29: 3.5 | P29: 2 | Q29: 7 | R29: 6.5 | T29: 2 | U29: 2.5 | V29: 3
B30: Team 20 | C30: 42 | D30: 32 | F30: 4.5 | G30: 5 | H30: 6.5 | I30: 5.5 | J30: 3 | K30: 4 | L30: 3 | M30: 5.5 | N30: 5 | O30: 6 | P30: 7 | Q30: 3.5 | R30: 2 | T30: 4.5 | U30: 3.5 | V30: 5.5

Sheet MATCH RESULTS - 2017
A1: ='SCORE ENTRY WORKSHEET'!N13 -> 08/23/17
A2: ='SCORE ENTRY WORKSHEET'!N15 -> 5:12 PM
A3: =RIGHT(VLOOKUP('SCORE ENTRY WORKSHEET'!$C$21,'TEAM ROSTERS & SUB LIST'!$B$8:$F$41,3,FALSE),LEN(VLOOKUP('SCORE ENTRY WORKSHEET'!$C$21,'TEAM ROSTERS & SUB LIST'!$B$8:$F$41,3,FALSE))-FIND(" ",VLOOKUP('SCORE ENTRY WORKSHEET'!$C$21,'TEAM ROSTERS & SUB LIST'!$B$8:$F$41,3,FALSE)))&"/"&RIGHT(VLOOKUP('SCORE ENTRY WORKSHEET'!$C$21,'TEAM ROSTERS & SUB LIST'!$B$8:$F$41,5,FALSE),LEN(VLOOKUP('SCORE ENTRY WORKSHEET'!$C$21,'TEAM ROSTERS & SUB LIST'!$B$8:$F$41,5,FALSE))-FIND(" ",VLOOKUP('SCORE ENTRY WORKSHEET'!$C$21,'TEAM ROSTERS & SUB LIST'!$B$8:$F$41,5,FALSE))) -> Pavone/Beliveau | D3: MATCH RESULTS - 2017
A4: ='SCORE ENTRY WORKSHEET'!M21 -> 0
A5: =RIGHT(VLOOKUP('SCORE ENTRY WORKSHEET'!$C$22,'TEAM ROSTERS & SUB LIST'!$B$8:$F$41,3,FALSE),LEN(VLOOKUP('SCORE ENTRY WORKSHEET'!$C$22,'TEAM ROSTERS & SUB LIST'!$B$8:$F$41,3,FALSE))-FIND(" ",VLOOKUP('SCORE ENTRY WORKSHEET'!$C$22,'TEAM ROSTERS & SUB LIST'!$B$8:$F$41,3,FALSE)))&"/"&RIGHT(VLOOKUP('SCORE ENTRY WORKSHEET'!$C$22,'TEAM ROSTERS & SUB LIST'!$B$8:$F$41,5,FALSE),LEN(VLOOKUP('SCORE ENTRY WORKSHEET'!$C$22,'TEAM ROSTERS & SUB LIST'!$B$8:$F$41,5,FALSE))-FIND(" ",VLOOKUP('SCORE ENTRY WORKSHEET'!$C$22,'TEAM ROSTERS & SUB LIST'!$B$8:$F$41,5,FALSE))) -> Gamache/Bouvier
A6: ='SCORE ENTRY WORKSHEET'!M22 -> 0
A7: =IF($A$4=$A$6,$A$3&" & "&$A$5&", tie "&TEXT($A$4,"0.0")&" - "&TEXT($A$6,"0.0"),IF($A$4>$A$6,$A$3&" d. "&$A$5&", "&TEXT($A$4,"0.0")&" - "&TEXT($A$6,"0.0"),IF($A$6>$A$4,$A$5&" d. "&$A$3&", "&TEXT($A$6,"0.0")&" - "&TEXT($A$4,"0.0")))) -> Pavone/Beliveau & Gamache/Bouvier, tie 0.0 - 0.0
B10: Date | C10: 04/26/17 | D10: 05/03/17 | E10: 05/10/17 | F10: 05/17/17 | G10: 05/24/17 | H10: 05/31/17 | I10: 06/07/17 | J10: 06/14/17 | K10: 06/21/17 | L10: 06/28/17 | M10: 07/05/17 | N10: 07/12/17 | O10: 07/19/17 | P10: 07/26/17 | Q10: 08/02/17 | R10: 08/09/17 | S10: 08/16/17 | T10: 08/23/17 | U10: 08/30/17
B11: 4:00 PM | D11: Ciufetti/Nivala d. Normandin/Normandin, 5.0 - 4.0 | E11: Fontaine/Romano III d. Normandin/Normandin, 5.0 - 4.0 | F11: Romano/Frigoletto d. Butterfield/Schleyer, 5.5 - 3.5 | G11: Sundstrom/Hoy d. Ciufetti/Nivala, 5.5 - 3.5 | H11: Romano/Laroche & Doane/Cassin, tie 4.5 - 4.5 | I11: Ekstrom/Dauphinais d. Pavone/Beliveau, 4.5 - 0.0 | J11: Doane/Cassin d. Lawrence/Benson, 5.5 - 3.5 | K11: Gamache/Bouvier d. Doane/Cassin, 7.0 - 0.0 | L11: Butterfield/Schleyer d. O'Loughlin/Romano, 5.0 - 4.0 | M11: Fontaine/Romano III d. Romano/Frigoletto, 7.0 - 2.0 | N11: Normandin/Normandin d. Hurley/Drake, 5.5 - 3.5 | O11: Fairbanks/Fairbanks d. Doane/Cassin, 6.0 - 3.0 | P11: Fairbanks/Fairbanks d. Haskins/Conte, 5.0 - 4.0 | R11: Ekstrom/Dauphinais & Fontaine/Romano III, tie 4.5 - 4.5 | S11: O'Loughlin/Romano d. Ekstrom/Dauphinais, 6.0 - 3.0 | T11: Gamache/Bouvier d. Pavone/Beliveau, 6.0 - 3.0
B12: 4:08 PM | D12: Fairbanks/Fairbanks d. Fontaine/Romano III, 5.0 - 4.0 | E12: Ciufetti/Nivala d. O'Loughlin/Romano, 7.0 - 2.0 | F12: Fairbanks/Fairbanks d. Normandin/Wallace, 5.5 - 3.5 | G12: Normandin/Normandin d. Butterfield/Schleyer, 5.0 - 4.0 | H12: Fontaine/Romano III & O'Loughlin/Romano, tie 4.5 - 4.5 | I12: Fontaine/Romano III d. Doane/Cassin, 5.0 - 4.0 | J12: Pavone/Beliveau d. Normandin/Normandin, 5.0 - 4.0 | K12: Fairbanks/Fairbanks d. O'Loughlin/Romano, 5.5 - 3.5 | L12: Romano/Frigoletto d. Hurley/Drake, 5.0 - 4.0 | M12: Ekstrom/Romano d. Normandin/Normandin, 6.5 - 2.5 | N12: Fairbanks/Fairbanks d. Leavenworth/Leavenworth, 5.0 - 4.0 | O12: Lawrence/Benson d. Normandin/Normandin, 5.5 - 3.5 | P12: Gamache/Bouvier d. Ekstrom/Dauphinais, 5.0 - 4.0 | R12: Sundstrom/Hoy & Haskins/Conte, tie 4.5 - 4.5 | S12: Ekstrom/Romano d. Ciufetti/Nivala, 6.0 - 0.0 | T12: Haskins/Conte d. Normandin/Normandin, 6.0 - 3.0
B13: 4:16 PM | D13: Haskins/Conte d. Romano/Laroche, 5.0 - 4.0 | E13: Hurley/Drake d. Leavenworth/Leavenworth, 5.5 - 3.5 | F13: Sundstrom/Hoy d. Fontaine/Romano III, 6.5 - 2.5 | G13: O'Loughlin/Romano d. Normandin/Normandin, 5.0 - 4.0 | H13: Lawrence/Benson d. Normandin/Normandin, 5.0 - 4.0 | I13: O'Loughlin/Romano d. Sundstrom/Hoy, 5.0 - 4.0 | J13: Romano/Laroche d. Gamache/Bouvier, 8.0 - 1.0 | K13: Hurley/Drake d. Romano/Laroche, 6.5 - 2.5 | L13: Sundstrom/Hoy d. Ekstrom/Romano, 5.0 - 4.0 | M13: Haskins/Conte d. Ciufetti/Nivala, 5.0 - 4.0 | N13: Haskins/Conte d. Romano/Frigoletto, 5.0 - 4.0 | O13: Ekstrom/Romano d. Butterfield/Schleyer, 5.0 - 4.0 | P13: Leavenworth/Leavenworth d. Sundstrom/Hoy, 7.0 - 2.0 | R13: Hurley/Drake d. Gamache/Bouvier, 6.0 - 3.0 | S13: Normandin/Normandin d. Normandin/Normandin, 6.0 - 3.0 | T13: Fontaine/Romano III d. Lawrence/Benson, 7.5 - 1.5
B14: 4:24 PM | D14: Gamache/Bouvier & Sundstrom/Hoy, tie 4.5 - 4.5 | E14: Lawrence/Benson d. Fairbanks/Fairbanks, 7.0 - 2.0 | F14: Ciufetti/Nivala & Doane/Cassin, tie 4.5 - 4.5 | G14: Pavone/Beliveau d. Hurley/Drake, 5.0 - 0.0 | H14: Hurley/Drake d. Ekstrom/Dauphinais, 5.0 - 4.0 | I14: Lawrence/Benson d. Hurley/Drake, 6.5 - 2.5 | J14: Normandin/Normandin & Hurley/Drake, tie 4.5 - 4.5 | K14: Sundstrom/Hoy d. Normandin/Normandin, 5.5 - 3.5 | L14: Romano/Laroche & Fontaine/Romano III, tie 4.5 - 4.5 | M14: Lawrence/Benson d. Pavone/Beliveau, 5.5 - 3.5 | N14: Ekstrom/Romano d. Gamache/Bouvier, 5.5 - 3.5 | O14: Leavenworth/Leavenworth & Ciufetti/Nivala, tie 4.5 - 4.5 | P14: Romano/Frigoletto d. Normandin/Normandin, 8.0 - 1.0 | R14: Romano/Laroche d. Lawrence/Benson, 6.5 - 2.5 | S14: Fontaine/Romano III d. Pavone/Beliveau, 6.5 - 2.5 | T14: Leavenworth/Leavenworth d. Doane/Cassin, 7.5 - 1.5
B15: 4:32 PM | D15: Hurley/Drake d. Butterfield/Schleyer, 5.0 - 4.0 | E15: Normandin/Wallace & Gamache/Bouvier, tie 4.5 - 4.5 | F15: Lawrence/Benson d. Haskins/Conte, 5.0 - 4.0 | G15: Fontaine/Romano III d. Gamache/Bouvier, 5.0 - 4.0 | H15: Ciufetti/Nivala d. Gamache/Bouvier, 5.0 - 4.0 | I15: Butterfield/Schleyer d. Haskins/Conte, 5.0 - 4.0 | J15: Butterfield/Schleyer d. Sundstrom/Hoy, 6.0 - 3.0 | K15: Fontaine/Romano III d. Normandin/Normandin, 5.5 - 3.5 | L15: Doane/Cassin d. Pavone/Beliveau, 5.5 - 3.5 | M15: Fairbanks/Fairbanks d. Gamache/Bouvier, 5.0 - 0.0 | N15: O'Loughlin/Romano d. Lawrence/Benson, 6.0 - 3.0 | O15: Romano/Frigoletto d. Gamache/Bouvier, 6.0 - 3.0 | P15: Ekstrom/Romano d. Fontaine/Romano III, 7.0 - 2.0 | R15: Ekstrom/Romano d. Normandin/Wallace, 6.5 - 2.5 | S15: Haskins/Conte d. Doane/Cassin, 5.0 - 4.0 | T15: Ekstrom/Romano d. O'Loughlin/Romano, 7.5 - 1.5
B16: 4:40 PM | D16: Normandin/Wallace & Romano/Frigoletto, tie 4.5 - 4.5 | E16: Romano/Frigoletto & Pavone/Beliveau, tie 4.5 - 4.5 | F16: Romano/Laroche d. Normandin/Normandin, 5.0 - 4.0 | G16: Lawrence/Benson d. Romano/Frigoletto, 5.0 - 4.0 | H16: Romano/Frigoletto & Ekstrom/Romano, tie 4.5 - 4.5 | I16: Normandin/Wallace d. Normandin/Normandin, 7.5 - 1.5 | J16: Fontaine/Romano III d. Ciufetti/Nivala, 6.5 - 2.5 | K16: Normandin/Wallace d. Haskins/Conte, 6.0 - 3.0 | L16: Normandin/Normandin & Leavenworth/Leavenworth, tie 4.5 - 4.5 | M16: Leavenworth/Leavenworth d. Romano/Laroche, 5.0 - 4.0 | N16: Normandin/Wallace d. Normandin/Normandin, 5.0 - 4.0 | O16: Haskins/Conte d. O'Loughlin/Romano, 7.5 - 1.5 | P16: Lawrence/Benson d. Ciufetti/Nivala, 5.5 - 0.0 | R16: O'Loughlin/Romano d. Leavenworth/Leavenworth, 5.5 - 3.5 | S16: Hurley/Drake d. Sundstrom/Hoy, 5.5 - 3.5 | T16: Normandin/Wallace d. Romano/Laroche, 6.0 - 3.0
B17: 4:48 PM | D17: Doane/Cassin d. O'Loughlin/Romano, 6.0 - 3.0 | E17: Butterfield/Schleyer d. Doane/Cassin, 6.5 - 2.5 | F17: Ekstrom/Romano d. Hurley/Drake, 5.5 - 3.5 | G17: Normandin/Wallace d. Doane/Cassin, 5.5 - 3.5 | H17: Butterfield/Schleyer d. Fairbanks/Fairbanks, 5.0 - 4.0 | I17: Gamache/Bouvier d. Normandin/Normandin, 6.0 - 3.0 | J17: Normandin/Wallace d. O'Loughlin/Romano, 6.0 - 3.0 | K17: Ekstrom/Romano d. Pavone/Beliveau, 5.5 - 3.5 | L17: Lawrence/Benson d. Gamache/Bouvier, 5.5 - 3.5 | M17: Normandin/Wallace d. Hurley/Drake, 5.0 - 4.0 | N17: Fontaine/Romano III d. Butterfield/Schleyer, 7.0 - 2.0 | O17: Normandin/Normandin d. Sundstrom/Hoy, 5.5 - 3.5 | P17: Normandin/Normandin d. Romano/Laroche, 5.5 - 3.5 | R17: Butterfield/Schleyer d. Normandin/Normandin, 5.5 - 3.5 | S17: Leavenworth/Leavenworth d. Gamache/Bouvier, 5.0 - 4.0 | T17: Fairbanks/Fairbanks d. Hurley/Drake, 6.5 - 2.5
B18: 4:56 PM | D18: Ekstrom/Dauphinais d. Ekstrom/Romano, 5.5 - 3.5 | E18: Normandin/Normandin d. Ekstrom/Romano, 5.0 - 4.0 | F18: Ekstrom/Dauphinais d. Normandin/Normandin, 7.0 - 2.0 | G18: Romano/Laroche & Fairbanks/Fairbanks, tie 4.5 - 4.5 | H18: Haskins/Conte d. Pavone/Beliveau, 6.0 - 3.0 | I18: Romano/Frigoletto d. Romano/Laroche, 7.5 - 1.5 | J18: Romano/Frigoletto d. Ekstrom/Dauphinais, 4.5 - 0.0 | K18: Leavenworth/Leavenworth d. Butterfield/Schleyer, 5.5 - 3.5 | L18: Normandin/Wallace d. Ciufetti/Nivala, 5.0 - 4.0 | M18: Ekstrom/Dauphinais d. Butterfield/Schleyer, 5.0 - 4.0 | N18: Sundstrom/Hoy d. Pavone/Beliveau, 7.0 - 2.0 | O18: Hurley/Drake d. Fontaine/Romano III, 6.5 - 2.5 | P18: Pavone/Beliveau d. O'Loughlin/Romano, 6.5 - 2.5 | R18: Doane/Cassin d. Romano/Frigoletto, 5.0 - 4.0 | S18: Butterfield/Schleyer d. Romano/Laroche, 6.5 - 2.5 | T18: Normandin/Normandin d. Romano/Frigoletto, 5.5 - 3.5
B19: 5:04 PM | D19: Pavone/Beliveau d. Normandin/Normandin, 5.5 - 3.5 | E19: Sundstrom/Hoy d. Romano/Laroche, 5.0 - 4.0 | F19: Leavenworth/Leavenworth d. Pavone/Beliveau, 7.5 - 1.5 | G19: Leavenworth/Leavenworth & Ekstrom/Dauphinais, tie 4.5 - 4.5 | H19: Normandin/Wallace d. Sundstrom/Hoy, 6.0 - 3.0 | I19: Leavenworth/Leavenworth d. Ekstrom/Romano, 5.5 - 3.5 | J19: Ekstrom/Romano d. Fairbanks/Fairbanks, 5.0 - 4.0 | K19: Lawrence/Benson d. Ekstrom/Dauphinais, 5.5 - 3.5 | L19: Fairbanks/Fairbanks & Ekstrom/Dauphinais, tie 4.5 - 4.5 | M19: Sundstrom/Hoy d. Doane/Cassin, 6.0 - 3.0 | N19: Doane/Cassin d. Ekstrom/Dauphinais, 5.0 - 4.0 | O19: Ekstrom/Dauphinais & Normandin/Wallace, tie 4.5 - 4.5 | P19: Doane/Cassin d. Hurley/Drake, 5.0 - 4.0 | R19: Pavone/Beliveau d. Ciufetti/Nivala, 2.0 - 0.0 | S19: Fairbanks/Fairbanks d. Romano/Frigoletto, 5.5 - 3.5 | T19: Sundstrom/Hoy d. Ekstrom/Dauphinais, 5.5 - 3.5
B20: 5:12 PM | D20: Lawrence/Benson d. Leavenworth/Leavenworth, 6.0 - 3.0 | E20: Haskins/Conte d. Ekstrom/Dauphinais, 5.5 - 3.5 | F20: Gamache/Bouvier d. O'Loughlin/Romano, 6.5 - 2.5 | G20: Haskins/Conte d. Ekstrom/Romano, 5.5 - 3.5 | H20: Normandin/Normandin d. Leavenworth/Leavenworth, 5.0 - 4.0 | I20: Fairbanks/Fairbanks d. Ciufetti/Nivala, 5.0 - 4.0 | J20: Leavenworth/Leavenworth d. Haskins/Conte, 6.5 - 2.5 | K20: Ciufetti/Nivala d. Romano/Frigoletto, 5.0 - 4.0 | L20: Haskins/Conte d. Normandin/Normandin, 5.0 - 4.0 | M20: O'Loughlin/Romano & Normandin/Normandin, tie 4.5 - 4.5 | N20: Romano/Laroche & Ciufetti/Nivala, tie 4.5 - 4.5 | O20: Pavone/Beliveau d. Romano/Laroche, 7.0 - 2.0 | P20: Butterfield/Schleyer & Normandin/Wallace, tie 4.5 - 4.5 | R20: Normandin/Normandin d. Fairbanks/Fairbanks, 5.5 - 3.5 | S20: Lawrence/Benson d. Normandin/Wallace, 8.5 - 0.5 | T20: Butterfield/Schleyer d. Ciufetti/Nivala, 5.0 - 0.0

Sheet STANDINGS - 2016
G2: 08/31/16
F7: Standings - First Half - 2016
C11: =RANK(J11,$J$11:$J$45) -> 1 | D11: =IF(C11=C10,C11&"T",IF(C11=C12,C11&"T",C11)) -> 1 | E11: Team 14 | F11: ="- "&VLOOKUP(E11,'TEAM ROSTERS & SUB LIST'!B:F,3,FALSE)&" / "&VLOOKUP(E11,'TEAM ROSTERS & SUB LIST'!B:F,5,FALSE) -> - Paul Fontaine / Ralph Romano III | J11: =VLOOKUP(E11,'POINTS - 2016'!$B$11:$D$44,2,FALSE) -> 53.5
C12: =RANK(J12,$J$11:$J$45) -> 2 | D12: =IF(C12=C11,C12&"T",IF(C12=C13,C12&"T",C12)) -> 2 | E12: Team 11 | F12: ="- "&VLOOKUP(E12,'TEAM ROSTERS & SUB LIST'!B:F,3,FALSE)&" / "&VLOOKUP(E12,'TEAM ROSTERS & SUB LIST'!B:F,5,FALSE) -> - Jim Haskins / Anthony Conte | J12: =VLOOKUP(E12,'POINTS - 2016'!$B$11:$D$44,2,FALSE) -> 50.5
C13: 3 | D13: 3 | E13: Team 10 | F13: ="- "&VLOOKUP(E13,'TEAM ROSTERS & SUB LIST'!B:F,3,FALSE)&" / "&VLOOKUP(E13,'TEAM ROSTERS & SUB LIST'!B:F,5,FALSE) -> - Ron Ekstrom / Beth Romano | J13: =VLOOKUP(E13,'POINTS - 2016'!$B$11:$D$44,2,FALSE) -> 50
C14: 4 | D14: 4 | E14: Team 19 | F14: ="- "&VLOOKUP(E14,'TEAM ROSTERS & SUB LIST'!B:F,3,FALSE)&" / "&VLOOKUP(E14,'TEAM ROSTERS & SUB LIST'!B:F,5,FALSE) -> - John Pavone / Ernie Beliveau | J14: =VLOOKUP(E14,'POINTS - 2016'!$B$11:$D$44,2,FALSE) -> 49
C15: 5 | D15: 5 | E15: Team 03 | F15: ="- "&VLOOKUP(E15,'TEAM ROSTERS & SUB LIST'!B:F,3,FALSE)&" / "&VLOOKUP(E15,'TEAM ROSTERS & SUB LIST'!B:F,5,FALSE) -> - Pete Romano / Don Frigoletto | J15: =VLOOKUP(E15,'POINTS - 2016'!$B$11:$D$44,2,FALSE) -> 47.5
C16: 6 | D16: 6T | E16: Team 02 | F16: ="- "&VLOOKUP(E16,'TEAM ROSTERS & SUB LIST'!B:F,3,FALSE)&" / "&VLOOKUP(E16,'TEAM ROSTERS & SUB LIST'!B:F,5,FALSE) -> - Jono Normandin / Nathan Wallace | J16: =VLOOKUP(E16,'POINTS - 2016'!$B$11:$D$44,2,FALSE) -> 46
C17: 6 | D17: 6T | E17: Team 09 | F17: ="- "&VLOOKUP(E17,'TEAM ROSTERS & SUB LIST'!B:F,3,FALSE)&" / "&VLOOKUP(E17,'TEAM ROSTERS & SUB LIST'!B:F,5,FALSE) -> - Mike Doane / John Cassin | J17: =VLOOKUP(E17,'POINTS - 2016'!$B$11:$D$44,2,FALSE) -> 46
C18: 6 | D18: 6T | E18: Team 15 | F18: ="- "&VLOOKUP(E18,'TEAM ROSTERS & SUB LIST'!B:F,3,FALSE)&" / "&VLOOKUP(E18,'TEAM ROSTERS & SUB LIST'!B:F,5,FALSE) -> - Gary Leavenworth / Patty Leavenworth | J18: =VLOOKUP(E18,'POINTS - 2016'!$B$11:$D$44,2,FALSE) -> 46
C19: 9 | D19: 9 | E19: Team 20 | F19: ="- "&VLOOKUP(E19,'TEAM ROSTERS & SUB LIST'!B:F,3,FALSE)&" / "&VLOOKUP(E19,'TEAM ROSTERS & SUB LIST'!B:F,5,FALSE) -> - Sheila Sundstrom / Ray Hoy | J19: =VLOOKUP(E19,'POINTS - 2016'!$B$11:$D$44,2,FALSE) -> 44.5
C20: 10 | D20: 10T | E20: Team 16 | F20: ="- "&VLOOKUP(E20,'TEAM ROSTERS & SUB LIST'!B:F,3,FALSE)&" / "&VLOOKUP(E20,'TEAM ROSTERS & SUB LIST'!B:F,5,FALSE) -> - Kevin O'Loughlin / Mike Romano | J20: =VLOOKUP(E20,'POINTS - 2016'!$B$11:$D$44,2,FALSE) -> 44
C21: 10 | D21: 10T | E21: Team 17 | F21: ="- "&VLOOKUP(E21,'TEAM ROSTERS & SUB LIST'!B:F,3,FALSE)&" / "&VLOOKUP(E21,'TEAM ROSTERS & SUB LIST'!B:F,5,FALSE) -> - Carol Ekstrom / Mike Dauphinais | J21: =VLOOKUP(E21,'POINTS - 2016'!$B$11:$D$44,2,FALSE) -> 44
C22: 12 | D22: 12 | E22: Team 06 | F22: ="- "&VLOOKUP(E22,'TEAM ROSTERS & SUB LIST'!B:F,3,FALSE)&" / "&VLOOKUP(E22,'TEAM ROSTERS & SUB LIST'!B:F,5,FALSE) -> - Vance Butterfield / Bob Schleyer | J22: =VLOOKUP(E22,'POINTS - 2016'!$B$11:$D$44,2,FALSE) -> 43
C23: 13 | D23: 13 | E23: Team 13 | F23: ="- "&VLOOKUP(E23,'TEAM ROSTERS & SUB LIST'!B:F,3,FALSE)&" / "&VLOOKUP(E23,'TEAM ROSTERS & SUB LIST'!B:F,5,FALSE) -> - Tim Hurley / Walter Drake | J23: =VLOOKUP(E23,'POINTS - 2016'!$B$11:$D$44,2,FALSE) -> 42
C24: 14 | D24: 14 | E24: Team 05 | F24: ="- "&VLOOKUP(E24,'TEAM ROSTERS & SUB LIST'!B:F,3,FALSE)&" / "&VLOOKUP(E24,'TEAM ROSTERS & SUB LIST'!B:F,5,FALSE) -> - Dennis Normandin / Mark Normandin | J24: =VLOOKUP(E24,'POINTS - 2016'!$B$11:$D$44,2,FALSE) -> 41
C25: 15 | D25: 15 | E25: Team 18 | F25: ="- "&VLOOKUP(E25,'TEAM ROSTERS & SUB LIST'!B:F,3,FALSE)&" / "&VLOOKUP(E25,'TEAM ROSTERS & SUB LIST'!B:F,5,FALSE) -> - Norm Gamache / Michelle Bouvier | J25: =VLOOKUP(E25,'POINTS - 2016'!$B$11:$D$44,2,FALSE) -> 40
C26: 16 | D26: 16T | E26: Team 04 | F26: ="- "&VLOOKUP(E26,'TEAM ROSTERS & SUB LIST'!B:F,3,FALSE)&" / "&VLOOKUP(E26,'TEAM ROSTERS & SUB LIST'!B:F,5,FALSE) -> - Peg Romano / Lynn Laroche | J26: =VLOOKUP(E26,'POINTS - 2016'!$B$11:$D$44,2,FALSE) -> 39.5
C27: 16 | D27: 16T | E27: Team 08 | F27: ="- "&VLOOKUP(E27,'TEAM ROSTERS & SUB LIST'!B:F,3,FALSE)&" / "&VLOOKUP(E27,'TEAM ROSTERS & SUB LIST'!B:F,5,FALSE) -> - Steve Lawrence / Mike Benson | J27: =VLOOKUP(E27,'POINTS - 2016'!$B$11:$D$44,2,FALSE) -> 39.5
C28: 16 | D28: 16T | E28: Team 12 | F28: ="- "&VLOOKUP(E28,'TEAM ROSTERS & SUB LIST'!B:F,3,FALSE)&" / "&VLOOKUP(E28,'TEAM ROSTERS & SUB LIST'!B:F,5,FALSE) -> - Sal Ciufetti / Kevin Nivala | J28: =VLOOKUP(E28,'POINTS - 2016'!$B$11:$D$44,2,FALSE) -> 39.5
C29: 19 | D29: 19 | E29: Team 07 | F29: ="- "&VLOOKUP(E29,'TEAM ROSTERS & SUB LIST'!B:F,3,FALSE)&" / "&VLOOKUP(E29,'TEAM ROSTERS & SUB LIST'!B:F,5,FALSE) -> - John Fairbanks / Debbie Fairbanks | J29: =VLOOKUP(E29,'POINTS - 2016'!$B$11:$D$44,2,FALSE) -> 39
C30: 20 | D30: 20 | E30: Team 01 | F30: ="- "&VLOOKUP(E30,'TEAM ROSTERS & SUB LIST'!B:F,3,FALSE)&" / "&VLOOKUP(E30,'TEAM ROSTERS & SUB LIST'!B:F,5,FALSE) -> - John Normandin / Pete Normandin | J30: =VLOOKUP(E30,'POINTS - 2016'!$B$11:$D$44,2,FALSE) -> 36.5
F47: Standings - Second Half - 2016
C50: =RANK(J50,$J$50:$J$84) -> 1 | D50: =IF(C50=C49,C50&"T",IF(C50=C51,C50&"T",C50)) -> 1 | E50: Team 10 | F50: ="- "&VLOOKUP(E50,'TEAM ROSTERS & SUB LIST'!B:F,3,FALSE)&" / "&VLOOKUP(E50,'TEAM ROSTERS & SUB LIST'!B:F,5,FALSE) -> - Ron Ekstrom / Beth Romano | J50: =VLOOKUP(E50,'POINTS - 2016'!$B$11:$D$44,3,FALSE) -> 48
C51: =RANK(J51,$J$50:$J$84) -> 2 | D51: =IF(C51=C50,C51&"T",IF(C51=C52,C51&"T",C51)) -> 2 | E51: Team 14 | F51: ="- "&VLOOKUP(E51,'TEAM ROSTERS & SUB LIST'!B:F,3,FALSE)&" / "&VLOOKUP(E51,'TEAM ROSTERS & SUB LIST'!B:F,5,FALSE) -> - Paul Fontaine / Ralph Romano III | J51: =VLOOKUP(E51,'POINTS - 2016'!$B$11:$D$44,3,FALSE) -> 47.5
C52: 3 | D52: 3 | E52: Team 17 | F52: ="- "&VLOOKUP(E52,'TEAM ROSTERS & SUB LIST'!B:F,3,FALSE)&" / "&VLOOKUP(E52,'TEAM ROSTERS & SUB LIST'!B:F,5,FALSE) -> - Carol Ekstrom / Mike Dauphinais | J52: =VLOOKUP(E52,'POINTS - 2016'!$B$11:$D$44,3,FALSE) -> 47
C53: 4 | D53: 4 | E53: Team 15 | F53: ="- "&VLOOKUP(E53,'TEAM ROSTERS & SUB LIST'!B:F,3,FALSE)&" / "&VLOOKUP(E53,'TEAM ROSTERS & SUB LIST'!B:F,5,FALSE) -> - Gary Leavenworth / Patty Leavenworth | J53: =VLOOKUP(E53,'POINTS - 2016'!$B$11:$D$44,3,FALSE) -> 46.5
C54: 5 | D54: 5 | E54: Team 07 | F54: ="- "&VLOOKUP(E54,'TEAM ROSTERS & SUB LIST'!B:F,3,FALSE)&" / "&VLOOKUP(E54,'TEAM ROSTERS & SUB LIST'!B:F,5,FALSE) -> - John Fairbanks / Debbie Fairbanks | J54: =VLOOKUP(E54,'POINTS - 2016'!$B$11:$D$44,3,FALSE) -> 43
C55: 6 | D55: 6 | E55: Team 11 | F55: ="- "&VLOOKUP(E55,'TEAM ROSTERS & SUB LIST'!B:F,3,FALSE)&" / "&VLOOKUP(E55,'TEAM ROSTERS & SUB LIST'!B:F,5,FALSE) -> - Jim Haskins / Anthony Conte | J55: =VLOOKUP(E55,'POINTS - 2016'!$B$11:$D$44,3,FALSE) -> 42.5
C56: 7 | D56: 7 | E56: Team 05 | F56: ="- "&VLOOKUP(E56,'TEAM ROSTERS & SUB LIST'!B:F,3,FALSE)&" / "&VLOOKUP(E56,'TEAM ROSTERS & SUB LIST'!B:F,5,FALSE) -> - Dennis Normandin / Mark Normandin | J56: =VLOOKUP(E56,'POINTS - 2016'!$B$11:$D$44,3,FALSE) -> 42
C57: 8 | D57: 8 | E57: Team 12 | F57: ="- "&VLOOKUP(E57,'TEAM ROSTERS & SUB LIST'!B:F,3,FALSE)&" / "&VLOOKUP(E57,'TEAM ROSTERS & SUB LIST'!B:F,5,FALSE) -> - Sal Ciufetti / Kevin Nivala | J57: =VLOOKUP(E57,'POINTS - 2016'!$B$11:$D$44,3,FALSE) -> 40.5
C58: 9 | D58: 9T | E58: Team 16 | F58: ="- "&VLOOKUP(E58,'TEAM ROSTERS & SUB LIST'!B:F,3,FALSE)&" / "&VLOOKUP(E58,'TEAM ROSTERS & SUB LIST'!B:F,5,FALSE) -> - Kevin O'Loughlin / Mike Romano | J58: =VLOOKUP(E58,'POINTS - 2016'!$B$11:$D$44,3,FALSE) -> 40
C59: 9 | D59: 9T | E59: Team 18 | F59: ="- "&VLOOKUP(E59,'TEAM ROSTERS & SUB LIST'!B:F,3,FALSE)&" / "&VLOOKUP(E59,'TEAM ROSTERS & SUB LIST'!B:F,5,FALSE) -> - Norm Gamache / Michelle Bouvier | J59: =VLOOKUP(E59,'POINTS - 2016'!$B$11:$D$44,3,FALSE) -> 40
C60: 11 | D60: 11 | E60: Team 20 | F60: ="- "&VLOOKUP(E60,'TEAM ROSTERS & SUB LIST'!B:F,3,FALSE)&" / "&VLOOKUP(E60,'TEAM ROSTERS & SUB LIST'!B:F,5,FALSE) -> - Sheila Sundstrom / Ray Hoy | J60: =VLOOKUP(E60,'POINTS - 2016'!$B$11:$D$44,3,FALSE) -> 39.5
C61: 12 | D61: 12T | E61: Team 03 | F61: ="- "&VLOOKUP(E61,'TEAM ROSTERS & SUB LIST'!B:F,3,FALSE)&" / "&VLOOKUP(E61,'TEAM ROSTERS & SUB LIST'!B:F,5,FALSE) -> - Pete Romano / Don Frigoletto | J61: =VLOOKUP(E61,'POINTS - 2016'!$B$11:$D$44,3,FALSE) -> 38.5
C62: 12 | D62: 12T | E62: Team 04 | F62: ="- "&VLOOKUP(E62,'TEAM ROSTERS & SUB LIST'!B:F,3,FALSE)&" / "&VLOOKUP(E62,'TEAM ROSTERS & SUB LIST'!B:F,5,FALSE) -> - Peg Romano / Lynn Laroche | J62: =VLOOKUP(E62,'POINTS - 2016'!$B$11:$D$44,3,FALSE) -> 38.5
C63: 14 | D63: 14 | E63: Team 08 | F63: ="- "&VLOOKUP(E63,'TEAM ROSTERS & SUB LIST'!B:F,3,FALSE)&" / "&VLOOKUP(E63,'TEAM ROSTERS & SUB LIST'!B:F,5,FALSE) -> - Steve Lawrence / Mike Benson | J63: =VLOOKUP(E63,'POINTS - 2016'!$B$11:$D$44,3,FALSE) -> 37.5
C64: 15 | D64: 15 | E64: Team 09 | F64: ="- "&VLOOKUP(E64,'TEAM ROSTERS & SUB LIST'!B:F,3,FALSE)&" / "&VLOOKUP(E64,'TEAM ROSTERS & SUB LIST'!B:F,5,FALSE) -> - Mike Doane / John Cassin | J64: =VLOOKUP(E64,'POINTS - 2016'!$B$11:$D$44,3,FALSE) -> 37
C65: 16 | D65: 16 | E65: Team 01 | F65: ="- "&VLOOKUP(E65,'TEAM ROSTERS & SUB LIST'!B:F,3,FALSE)&" / "&VLOOKUP(E65,'TEAM ROSTERS & SUB LIST'!B:F,5,FALSE) -> - John Normandin / Pete Normandin | J65: =VLOOKUP(E65,'POINTS - 2016'!$B$11:$D$44,3,FALSE) -> 36.5
C66: 17 | D66: 17 | E66: Team 06 | F66: ="- "&VLOOKUP(E66,'TEAM ROSTERS & SUB LIST'!B:F,3,FALSE)&" / "&VLOOKUP(E66,'TEAM ROSTERS & SUB LIST'!B:F,5,FALSE) -> - Vance Butterfield / Bob Schleyer | J66: =VLOOKUP(E66,'POINTS - 2016'!$B$11:$D$44,3,FALSE) -> 36
C67: 18 | D67: 18 | E67: Team 13 | F67: ="- "&VLOOKUP(E67,'TEAM ROSTERS & SUB LIST'!B:F,3,FALSE)&" / "&VLOOKUP(E67,'TEAM ROSTERS & SUB LIST'!B:F,5,FALSE) -> - Tim Hurley / Walter Drake | J67: =VLOOKUP(E67,'POINTS - 2016'!$B$11:$D$44,3,FALSE) -> 34.5
C68: 19 | D68: 19 | E68: Team 19 | F68: ="- "&VLOOKUP(E68,'TEAM ROSTERS & SUB LIST'!B:F,3,FALSE)&" / "&VLOOKUP(E68,'TEAM ROSTERS & SUB LIST'!B:F,5,FALSE) -> - John Pavone / Ernie Beliveau | J68: =VLOOKUP(E68,'POINTS - 2016'!$B$11:$D$44,3,FALSE) -> 30
C69: 20 | D69: 20 | E69: Team 02 | F69: ="- "&VLOOKUP(E69,'TEAM ROSTERS & SUB LIST'!B:F,3,FALSE)&" / "&VLOOKUP(E69,'TEAM ROSTERS & SUB LIST'!B:F,5,FALSE) -> - Jono Normandin / Nathan Wallace | J69: =VLOOKUP(E69,'POINTS - 2016'!$B$11:$D$44,3,FALSE) -> 28.5

Sheet POINTS - 2016
A1: ='SCORE ENTRY WORKSHEET'!N13 -> 08/23/17
A2: ='SCORE ENTRY WORKSHEET'!C21 -> Team 19
A3: ='SCORE ENTRY WORKSHEET'!M21 -> 0 | G3: POINTS - 2016
A4: ='SCORE ENTRY WORKSHEET'!C22 -> Team 18
A5: ='SCORE ENTRY WORKSHEET'!M22 -> 0
B10: Team No. | C10: Total Points - H1 | D10: Total Points - H2 | E10: 04/27/16 | F10: 05/04/16 | G10: 05/11/16 | H10: 05/18/16 | I10: 05/25/16 | J10: 06/01/16 | K10: 06/08/16 | L10: 06/15/16 | M10: 06/22/16 | N10: 06/29/16 | O10: 07/06/16 | P10: 07/13/16 | Q10: 07/20/16 | R10: 07/27/16 | S10: 08/03/16 | T10: 08/10/16 | U10: 08/17/16 | V10: 08/24/16 | W10: 08/31/16
B11: Team 01 | C11: =SUM(E11:N11) -> 36.5 | D11: =SUM(O11:W11) -> 36.5 | E11: 3 | F11: 4.5 | G11: 3 | H11: 3.5 | I11: 3.5 | J11: 3.5 | K11: 3 | L11: 1.5 | M11: 5.5 | N11: 5.5 | O11: 4.5 | P11: 5 | Q11: 4.5 | R11: 3 | S11: 4 | T11: 4.5 | U11: 3 | V11: 4 | W11: 4
B12: Team 02 | C12: =SUM(E12:N12) -> 46 | D12: =SUM(O12:W12) -> 28.5 | E12: 4.5 | F12: 4.5 | G12: 6.5 | H12: 5.5 | I12: 6 | J12: 2.5 | K12: 3 | L12: 5.5 | M12: 4.5 | N12: 3.5 | O12: 5.5 | P12: 2.5 | Q12: 0 | R12: 0 | S12: 5 | T12: 2.5 | U12: 4.5 | V12: 3.5 | W12: 5
B13: Team 03 | C13: 47.5 | D13: 38.5 | E13: 3.5 | F13: 4 | G13: 6 | H13: 7 | I13: 5.5 | J13: 3 | K13: 6 | L13: 2 | M13: 4.5 | N13: 6 | O13: 2 | P13: 6.5 | Q13: 5 | R13: 4.5 | S13: 3.5 | T13: 6 | U13: 6 | V13: 1.5 | W13: 3.5
B14: Team 04 | C14: 39.5 | D14: 38.5 | E14: 3.5 | F14: 2.5 | G14: 2.5 | H14: 5.5 | I14: 1 | J14: 5 | K14: 3.5 | L14: 5.5 | M14: 5 | N14: 5.5 | O14: 3.5 | P14: 4 | Q14: 4 | R14: 4 | S14: 4 | T14: 4 | U14: 6.5 | V14: 5 | W14: 3.5
B15: Team 05 | C15: 41 | D15: 42 | E15: 5 | F15: 0 | G15: 3.5 | H15: 2 | I15: 5.5 | J15: 7.5 | K15: 5 | L15: 4.5 | M15: 4.5 | N15: 3.5 | O15: 4 | P15: 4 | Q15: 5 | R15: 5 | S15: 6 | T15: 3 | U15: 4 | V15: 5.5 | W15: 5.5
B16: Team 06 | C16: 43 | D16: 36 | E16: 3.5 | F16: 5.5 | G16: 3 | H16: 3.5 | I16: 8 | J16: 5.5 | K16: 4.5 | L16: 0 | M16: 4.5 | N16: 5 | O16: 3.5 | P16: 6 | Q16: 3.5 | R16: 4.5 | S16: 3 | T16: 3 | U16: 3.5 | V16: 4 | W16: 5
B17: Team 07 | C17: 39 | D17: 43 | E17: 3.5 | F17: 4.5 | G17: 4.5 | H17: 4.5 | I17: 3.5 | J17: 0 | K17: 6 | L17: 4 | M17: 4 | N17: 4.5 | O17: 3.5 | P17: 5.5 | Q17: 6.5 | R17: 4 | S17: 5 | T17: 6 | U17: 4.5 | V17: 2 | W17: 6
B18: Team 08 | C18: 39.5 | D18: 37.5 | E18: 5 | F18: 3 | G18: 1.5 | H18: 4 | I18: 3 | J18: 4 | K18: 4.5 | L18: 7.5 | M18: 4.5 | N18: 2.5 | O18: 3 | P18: 3.5 | Q18: 3 | R18: 4 | S18: 5.5 | T18: 6 | U18: 4.5 | V18: 2.5 | W18: 5.5
B19: Team 09 | C19: 46 | D19: 37 | E19: 5 | F19: 5.5 | G19: 5 | H19: 3.5 | I19: 4.5 | J19: 6 | K19: 4 | L19: 5 | M19: 3.5 | N19: 4 | O19: 4 | P19: 0 | Q19: 3 | R19: 5 | S19: 4 | T19: 5 | U19: 5.5 | V19: 6.5 | W19: 4
B20: Team 10 | C20: 50 | D20: 48 | E20: 5 | F20: 3.5 | G20: 5.5 | H20: 3.5 | I20: 7 | J20: 6.5 | K20: 5.5 | L20: 5.5 | M20: 4.5 | N20: 3.5 | O20: 6 | P20: 5.5 | Q20: 5 | R20: 6.5 | S20: 5 | T20: 3 | U20: 5 | V20: 7 | W20: 5
B21: Team 11 | C21: 50.5 | D21: 42.5 | E21: 6 | F21: 5 | G21: 5.5 | H21: 4.5 | I21: 4.5 | J21: 4.5 | K21: 5 | L21: 5 | M21: 4 | N21: 6.5 | O21: 3.5 | P21: 5 | Q21: 5.5 | R21: 5 | S21: 4 | T21: 5.5 | U21: 5 | V21: 4 | W21: 5
B22: Team 12 | C22: 39.5 | D22: 40.5 | E22: 4.5 | F22: 6.5 | G22: 6 | H22: 5 | I22: 2 | J22: 4 | K22: 2 | L22: 3.5 | M22: 3.5 | N22: 2.5 | O22: 7 | P22: 5 | Q22: 2.5 | R22: 4 | S22: 3.5 | T22: 3.5 | U22: 6 | V22: 4 | W22: 5
B23: Team 13 | C23: 42 | D23: 34.5 | E23: 5.5 | F23: 5 | G23: 4.5 | H23: 5.5 | I23: 2.5 | J23: 3.5 | K23: 4.5 | L23: 0 | M23: 5.5 | N23: 5.5 | O23: 5.5 | P23: 3 | Q23: 6 | R23: 2.5 | S23: 5.5 | T23: 0 | U23: 3 | V23: 5 | W23: 4
B24: Team 14 | C24: 53.5 | D24: 47.5 | E24: 5.5 | F24: 3.5 | G24: 7.5 | H24: 5.5 | I24: 4.5 | J24: 6.5 | K24: 5.5 | L24: 7 | M24: 5 | N24: 3 | O24: 5 | P24: 3.5 | Q24: 6 | R24: 7 | S24: 5 | T24: 6 | U24: 6 | V24: 5 | W24: 4
B25: Team 15 | C25: 46 | D25: 46.5 | E25: 4 | F25: 4.5 | G25: 4 | H25: 5.5 | I25: 6.5 | J25: 4.5 | K25: 3.5 | L25: 5.5 | M25: 4.5 | N25: 3.5 | O25: 5.5 | P25: 5.5 | Q25: 4 | R25: 6.5 | S25: 4 | T25: 4.5 | U25: 6 | V25: 5 | W25: 5.5
B26: Team 16 | C26: 44 | D26: 40 | E26: 5.5 | F26: 6 | G26: 3.5 | H26: 6 | I26: 0 | J26: 4.5 | K26: 4.5 | L26: 4 | M26: 4.5 | N26: 5.5 | O26: 5.5 | P26: 7 | Q26: 3.5 | R26: 5 | S26: 5 | T26: 0 | U26: 3 | V26: 5.5 | W26: 5.5
B27: Team 17 | C27: 44 | D27: 47 | E27: 5.5 | F27: 3.5 | G27: 4 | H27: 5 | I27: 5 | J27: 2.5 | K27: 7 | L27: 3.5 | M27: 4 | N27: 4 | O27: 6 | P27: 3.5 | Q27: 5 | R27: 6 | S27: 5 | T27: 6.5 | U27: 4 | V27: 7.5 | W27: 3.5
B28: Team 18 | C28: 40 | D28: 40 | E28: 4 | F28: 5.5 | G28: 2.5 | H28: 0 | I28: 2.5 | J28: 5.5 | K28: 4 | L28: 7 | M28: 4.5 | N28: 4.5 | O28: 5 | P28: 4.5 | Q28: 4.5 | R28: 4 | S28: 4 | T28: 5.5 | U28: 4.5 | V28: 4 | W28: 4
B29: Team 19 | C29: 49 | D29: 30 | E29: 4 | F29: 5.5 | G29: 6.5 | H29: 3 | I29: 4.5 | J29: 5 | K29: 6 | L29: 3.5 | M29: 4.5 | N29: 6.5 | O29: 3 | P29: 4 | Q29: 4 | R29: 2.5 | S29: 3.5 | T29: 3.5 | U29: 3 | V29: 3.5 | W29: 3
B30: Team 20 | C30: 44.5 | D30: 39.5 | E30: 4 | F30: 3.5 | G30: 5 | H30: 3.5 | I30: 6.5 | J30: 4.5 | K30: 3 | L30: 4.5 | M30: 5 | N30: 5 | O30: 4.5 | P30: 4.5 | Q30: 5.5 | R30: 2 | S30: 5.5 | T30: 6.5 | U30: 2.5 | V30: 5 | W30: 3.5

Sheet MATCH RESULTS - 2016
A1: ='SCORE ENTRY WORKSHEET'!N13 -> 08/23/17
A2: ='SCORE ENTRY WORKSHEET'!N15 -> 5:12 PM
A3: =RIGHT(VLOOKUP('SCORE ENTRY WORKSHEET'!$C$21,'TEAM ROSTERS & SUB LIST'!$B$8:$F$41,3,FALSE),LEN(VLOOKUP('SCORE ENTRY WORKSHEET'!$C$21,'TEAM ROSTERS & SUB LIST'!$B$8:$F$41,3,FALSE))-FIND(" ",VLOOKUP('SCORE ENTRY WORKSHEET'!$C$21,'TEAM ROSTERS & SUB LIST'!$B$8:$F$41,3,FALSE)))&"/"&RIGHT(VLOOKUP('SCORE ENTRY WORKSHEET'!$C$21,'TEAM ROSTERS & SUB LIST'!$B$8:$F$41,5,FALSE),LEN(VLOOKUP('SCORE ENTRY WORKSHEET'!$C$21,'TEAM ROSTERS & SUB LIST'!$B$8:$F$41,5,FALSE))-FIND(" ",VLOOKUP('SCORE ENTRY WORKSHEET'!$C$21,'TEAM ROSTERS & SUB LIST'!$B$8:$F$41,5,FALSE))) -> Pavone/Beliveau | D3: MATCH RESULTS - 2016
A4: ='SCORE ENTRY WORKSHEET'!M21 -> 0
A5: =RIGHT(VLOOKUP('SCORE ENTRY WORKSHEET'!$C$22,'TEAM ROSTERS & SUB LIST'!$B$8:$F$41,3,FALSE),LEN(VLOOKUP('SCORE ENTRY WORKSHEET'!$C$22,'TEAM ROSTERS & SUB LIST'!$B$8:$F$41,3,FALSE))-FIND(" ",VLOOKUP('SCORE ENTRY WORKSHEET'!$C$22,'TEAM ROSTERS & SUB LIST'!$B$8:$F$41,3,FALSE)))&"/"&RIGHT(VLOOKUP('SCORE ENTRY WORKSHEET'!$C$22,'TEAM ROSTERS & SUB LIST'!$B$8:$F$41,5,FALSE),LEN(VLOOKUP('SCORE ENTRY WORKSHEET'!$C$22,'TEAM ROSTERS & SUB LIST'!$B$8:$F$41,5,FALSE))-FIND(" ",VLOOKUP('SCORE ENTRY WORKSHEET'!$C$22,'TEAM ROSTERS & SUB LIST'!$B$8:$F$41,5,FALSE))) -> Gamache/Bouvier
A6: ='SCORE ENTRY WORKSHEET'!M22 -> 0
A7: =IF($A$4=$A$6,$A$3&" & "&$A$5&", tie "&TEXT($A$4,"0.0")&" - "&TEXT($A$6,"0.0"),IF($A$4>$A$6,$A$3&" d. "&$A$5&", "&TEXT($A$4,"0.0")&" - "&TEXT($A$6,"0.0"),IF($A$6>$A$4,$A$5&" d. "&$A$3&", "&TEXT($A$6,"0.0")&" - "&TEXT($A$4,"0.0")))) -> Pavone/Beliveau & Gamache/Bouvier, tie 0.0 - 0.0
B10: Date | C10: 04/27/16 | D10: 05/04/16 | E10: 05/11/16 | F10: 05/18/16 | G10: 05/25/16 | H10: 06/01/16 | I10: 06/08/16 | J10: 06/15/16 | K10: 06/22/16 | L10: 06/29/16 | M10: 07/06/16 | N10: 07/13/16 | O10: 07/20/16 | P10: 07/27/16 | Q10: 08/03/16 | R10: 08/10/16 | S10: 08/17/16 | T10: 08/24/16 | U10: 08/31/16
B11: 4:00 PM | C11: Haskins/Conte d. Lockhart/Normandin, 6.0 - 3.0 | D11: Butterfield/Schleyer d. Fontaine/Romano III, 5.5 - 3.5 | E11: Cuifetti/Nivala d. Butterfield/Schleyer, 6.0 - 3.0 | F11: Fairbanks/Fairbanks & Haskins/Conte, tie 4.5 - 4.5 | G11: Pavone/Beliveau & Fontaine/Romano III, tie 4.5 - 4.5 | H11: Romano/Laroche d. Lawrence/Benson, 5.0 - 4.0 | I11: Pavone/Beliveau d. Flood/Duffy, 6.0 - 3.0 | J11: Doane/Cassin d. Fairbanks/Fairbanks, 5.0 - 4.0 | K11: Fontaine/Romano III d. Haskins/Conte, 5.0 - 4.0 | L11: Jordan/Hoy d. Doane/Cassin, 5.0 - 4.0 | M11: Lockhart/Normandin & Jordan/Hoy, tie 4.5 - 4.5 | N11: Haskins/Conte d. Romano/Laroche, 5.0 - 4.0 | O11: Fairbanks/Fairbanks d. Cuifetti/Nivala, 6.5 - 2.5 | P11: Eckstrom/Dauphinais d. Lockhart/Normandin, 6.0 - 3.0 | Q11: Fairbanks/Fairbanks d. Romano/Laroche, 5.0 - 4.0 | R11: Fairbanks/Fairbanks d. Butterfield/Schleyer, 6.0 - 3.0 | S11: Flood/Duffy & Gamache/Bouvier, tie 4.5 - 4.5 | T11: Normandin/Normandin d. Pavone/Beliveau, 5.5 - 3.5 | U11: Cuifetti/Nivala d. Lockhart/Normandin, 5.0 - 4.0
B12: 4:08 PM | C12: Fontaine/Romano III d. Romano/Laroche, 5.5 - 3.5 | D12: Pavone/Beliveau d. Jordan/Hoy, 5.5 - 3.5 | E12: Fontaine/Romano III d. Lawrence/Benson, 7.5 - 1.5 | F12: Romano/Laroche d. Lockhart/Normandin, 5.5 - 3.5 | G12: Butterfield/Schleyer d. Romano/Laroche, 8.0 - 1.0 | H12: Butterfield/Schleyer d. Lockhart/Normandin, 5.5 - 3.5 | I12: Eckstrom/Dauphinais d. Cuifetti/Nivala, 7.0 - 2.0 | J12: Romano/Laroche d. Pavone/Beliveau, 5.5 - 3.5 | K12: Louney/Romano & Romano/Frigoletto, tie 4.5 - 4.5 | L12: Lockhart/Normandin d. Eckstrom/Romano, 5.5 - 3.5 | M12: Fontaine/Romano III d. Normandin/Normandin, 5.0 - 4.0 | N12: Louney/Romano d. Doane/Cassin, 7.0 - 0.0 | O12: Lockhart/Normandin & Gamache/Bouvier, tie 4.5 - 4.5 | P12: Fairbanks/Fairbanks d. Flood/Duffy, 4.0 - 0.0 | Q12: Normandin/Normandin d. Butterfield/Schleyer, 6.0 - 3.0 | R12: Lockhart/Normandin & Leavenworth/Leavenworth, tie 4.5 - 4.5 | S12: Fontaine/Romano III d. Lockhart/Normandin, 6.0 - 3.0 | T12: Jordan/Hoy d. Butterfield/Schleyer, 5.0 - 4.0 | U12: Louney/Romano d. Romano/Laroche, 5.5 - 3.5
B13: 4:16 PM | C13: Flood/Duffy & Cuifetti/Nivala, tie 4.5 - 4.5 | D13: Lockhart/Normandin & Flood/Duffy, tie 4.5 - 4.5 | E13: Romano/Frigoletto d. Lockhart/Normandin, 6.0 - 3.0 | F13: Eckstrom/Dauphinais d. Gamache/Bouvier, 5.0 - 0.0 | G13: Eckstrom/Dauphinais d. Louney/Romano, 5.0 - 0.0 | H13: Fontaine/Romano III d. Eckstrom/Dauphinais, 6.5 - 2.5 | I13: Fairbanks/Fairbanks d. Lockhart/Normandin, 6.0 - 3.0 | J13: Fontaine/Romano III d. Hurley/Drake, 7.0 - 0.0 | K13: Lockhart/Normandin d. Doane/Cassin, 5.5 - 3.5 | L13: Gamache/Bouvier & Fairbanks/Fairbanks, tie 4.5 - 4.5 | M13: Leavenworth/Leavenworth d. Butterfield/Schleyer, 5.5 - 3.5 | N13: Lockhart/Normandin d. Pavone/Beliveau, 5.0 - 4.0 | O13: Fontaine/Romano III d. Doane/Cassin, 6.0 - 3.0 | P13: Louney/Romano d. Gamache/Bouvier, 5.0 - 4.0 | Q13: Louney/Romano d. Lockhart/Normandin, 5.0 - 4.0 | R13: Gamache/Bouvier d. Cuifetti/Nivala, 5.5 - 3.5 | S13: Haskins/Conte d. Eckstrom/Dauphinais, 5.0 - 4.0 | T13: Fontaine/Romano III d. Cuifetti/Nivala, 5.0 - 4.0 | U13: Flood/Duffy d. Fontaine/Romano III, 5.0 - 4.0
B14: 4:24 PM | C14: Eckstrom/Romano d. Jordan/Hoy, 5.0 - 4.0 | D14: Doane/Cassin d. Eckstrom/Dauphinais, 5.5 - 3.5 | E14: Eckstrom/Romano d. Louney/Romano, 5.5 - 3.5 | F14: Flood/Duffy d. Butterfield/Schleyer, 5.5 - 3.5 | G14: Normandin/Normandin d. Lockhart/Normandin, 5.5 - 3.5 | H14: Eckstrom/Romano d. Flood/Duffy, 6.5 - 2.5 | I14: Normandin/Normandin d. Doane/Cassin, 5.0 - 4.0 | J14: Gamache/Bouvier d. Romano/Frigoletto, 7.0 - 2.0 | K14: Jordan/Hoy d. Fairbanks/Fairbanks, 5.0 - 4.0 | L14: Romano/Frigoletto d. Fontaine/Romano III, 6.0 - 3.0 | M14: Louney/Romano d. Fairbanks/Fairbanks, 5.5 - 3.5 | N14: Fairbanks/Fairbanks d. Fontaine/Romano III, 5.5 - 3.5 | O14: Haskins/Conte d. Butterfield/Schleyer, 5.5 - 3.5 | P14: Normandin/Normandin d. Romano/Laroche, 5.0 - 4.0 | Q14: Eckstrom/Romano d. Haskins/Conte, 5.0 - 4.0 | R14: Fontaine/Romano III d. Louney/Romano, 6.0 - 0.0 | S14: Romano/Laroche d. Jordan/Hoy, 6.5 - 2.5 | T14: Hurley/Drake d. Lockhart/Normandin, 5.0 - 4.0 | U14: Lawrence/Benson d. Jordan/Hoy, 5.5 - 3.5
B15: 4:32 PM | C15: Lawrence/Benson d. Gamache/Bouvier, 5.0 - 4.0 | D15: Hurley/Drake d. Normandin/Normandin, 5.0 - 0.0 | E15: Doane/Cassin d. Leavenworth/Leavenworth, 5.0 - 4.0 | F15: Fontaine/Romano III d. Eckstrom/Romano, 5.5 - 3.5 | G15: Eckstrom/Romano d. Cuifetti/Nivala, 7.0 - 2.0 | H15: Jordan/Hoy & Haskins/Conte, tie 4.5 - 4.5 | I15: Lawrence/Benson & Butterfield/Schleyer, tie 4.5 - 4.5 | J15: Haskins/Conte d. Louney/Romano, 5.0 - 4.0 | K15: Gamache/Bouvier & Normandin/Normandin, tie 4.5 - 4.5 | L15: Romano/Laroche d. Leavenworth/Leavenworth, 5.5 - 3.5 | M15: Hurley/Drake d. Romano/Laroche, 5.5 - 3.5 | N15: Gamache/Bouvier & Jordan/Hoy, tie 4.5 - 4.5 | O15: Hurley/Drake d. Lawrence/Benson, 6.0 - 3.0 | P15: Eckstrom/Romano d. Hurley/Drake, 6.5 - 2.5 | Q15: Hurley/Drake d. Pavone/Beliveau, 5.5 - 3.5 | R15: Doane/Cassin d. Romano/Laroche, 5.0 - 4.0 | S15: Leavenworth/Leavenworth d. Hurley/Drake, 6.0 - 3.0 | T15: Leavenworth/Leavenworth d. Haskins/Conte, 5.0 - 4.0 | U15: Eckstrom/Romano d. Doane/Cassin, 5.0 - 4.0
B16: 4:40 PM | C16: Normandin/Normandin d. Leavenworth/Leavenworth, 5.0 - 4.0 | D16: Fairbanks/Fairbanks & Leavenworth/Leavenworth, tie 4.5 - 4.5 | E16: Flood/Duffy d. Romano/Laroche, 6.5 - 2.5 | F16: Cuifetti/Nivala d. Lawrence/Benson, 5.0 - 4.0 | G16: Doane/Cassin & Haskins/Conte, tie 4.5 - 4.5 | H16: Doane/Cassin d. Romano/Frigoletto, 6.0 - 3.0 | I16: Fontaine/Romano III d. Leavenworth/Leavenworth, 5.5 - 3.5 | J16: Jordan/Hoy & Normandin/Normandin, tie 4.5 - 4.5 | K16: Romano/Laroche d. Eckstrom/Dauphinais, 5.0 - 4.0 | L16: Butterfield/Schleyer d. Eckstrom/Dauphinais, 5.0 - 4.0 | M16: Gamache/Bouvier d. Doane/Cassin, 5.0 - 4.0 | N16: Eckstrom/Romano d. Eckstrom/Dauphinais, 5.5 - 3.5 | O16: Jordan/Hoy d. Louney/Romano, 5.5 - 3.5 | P16: Doane/Cassin d. Cuifetti/Nivala, 5.0 - 4.0 | Q16: Fontaine/Romano III d. Gamache/Bouvier, 5.0 - 4.0 | R16: Eckstrom/Dauphinais d. Hurley/Drake, 6.5 - 0.0 | S16: Eckstrom/Romano d. Normandin/Normandin, 5.0 - 4.0 | T16: Eckstrom/Dauphinais d. Romano/Frigoletto, 7.5 - 1.5 | U16: Fairbanks/Fairbanks d. Pavone/Beliveau, 6.0 - 3.0
B17: 4:48 PM | C17: Hurley/Drake d. Romano/Frigoletto, 5.5 - 3.5 | D17: Cuifetti/Nivala d. Romano/Laroche, 6.5 - 2.5 | E17: Pavone/Beliveau d. Gamache/Bouvier, 6.5 - 2.5 | F17: Leavenworth/Leavenworth d. Jordan/Hoy, 5.5 - 3.5 | G17: Leavenworth/Leavenworth d. Gamache/Bouvier, 6.5 - 2.5 | H17: Louney/Romano & Leavenworth/Leavenworth, tie 4.5 - 4.5 | I17: Louney/Romano & Hurley/Drake, tie 4.5 - 4.5 | J17: Flood/Duffy d. Eckstrom/Dauphinais, 5.5 - 3.5 | K17: Leavenworth/Leavenworth & Flood/Duffy, tie 4.5 - 4.5 | L17: Hurley/Drake d. Flood/Duffy, 5.5 - 3.5 | M17: Flood/Duffy d. Haskins/Conte, 5.5 - 3.5 | N17: Leavenworth/Leavenworth d. Lawrence/Benson, 5.5 - 3.5 | O17: Normandin/Normandin d. Flood/Duffy, 5.0 - 0.0 | P17: Fontaine/Romano III d. Jordan/Hoy, 7.0 - 2.0 | Q17: Eckstrom/Dauphinais d. Leavenworth/Leavenworth, 5.0 - 4.0 | R17: Romano/Frigoletto d. Eckstrom/Romano, 6.0 - 3.0 | S17: Doane/Cassin d. Butterfield/Schleyer, 5.5 - 3.5 | T17: Doane/Cassin d. Lawrence/Benson, 6.5 - 2.5 | U17: Leavenworth/Leavenworth d. Romano/Frigoletto, 5.5 - 3.5
B18: 4:56 PM | C18: Eckstrom/Dauphinais d. Fairbanks/Fairbanks, 5.5 - 3.5 | D18: Louney/Romano d. Lawrence/Benson, 6.0 - 3.0 | E18: Fairbanks/Fairbanks & Hurley/Drake, tie 4.5 - 4.5 | F18: Hurley/Drake d. Doane/Cassin, 5.5 - 3.5 | G18: Romano/Frigoletto d. Fairbanks/Fairbanks, 5.5 - 3.5 | H18: Pavone/Beliveau d. Cuifetti/Nivala, 5.0 - 4.0 | I18: Haskins/Conte d. Gamache/Bouvier, 5.0 - 4.0 | J18: Eckstrom/Romano d. Butterfield/Schleyer, 5.5 - 0.0 | K18: Hurley/Drake d. Cuifetti/Nivala, 5.5 - 3.5 | L18: Louney/Romano d. Normandin/Normandin, 5.5 - 3.5 | M18: Eckstrom/Dauphinais d. Lawrence/Benson, 6.0 - 3.0 | N18: Butterfield/Schleyer d. Hurley/Drake, 6.0 - 3.0 | O18: Romano/Frigoletto d. Romano/Laroche, 5.0 - 4.0 | P18: Leavenworth/Leavenworth d. Pavone/Beliveau, 6.5 - 2.5 | Q18: Jordan/Hoy d. Cuifetti/Nivala, 5.5 - 3.5 | R18: Jordan/Hoy d. Flood/Duffy, 6.5 - 2.5 | S18: Fairbanks/Fairbanks & Lawrence/Benson, tie 4.5 - 4.5 | T18: Louney/Romano d. Flood/Duffy, 5.5 - 3.5 | U18: Butterfield/Schleyer d. Gamache/Bouvier, 5.0 - 4.0
B19: 5:04 PM | C19: Doane/Cassin d. Pavone/Beliveau, 5.0 - 4.0 | D19: Haskins/Conte d. Romano/Frigoletto, 5.0 - 4.0 | E19: Jordan/Hoy d. Eckstrom/Dauphinais, 5.0 - 4.0 | F19: Romano/Frigoletto d. Normandin/Normandin, 7.0 - 2.0 | G19: Jordan/Hoy d. Hurley/Drake, 6.5 - 2.5 | H19: Gamache/Bouvier d. Hurley/Drake, 5.5 - 3.5 | I19: Romano/Frigoletto d. Jordan/Hoy, 6.0 - 3.0 | J19: Lawrence/Benson d. Lockhart/Normandin, 7.5 - 1.5 | K19: Eckstrom/Romano & Lawrence/Benson, tie 4.5 - 4.5 | L19: Pavone/Beliveau d. Lawrence/Benson, 6.5 - 2.5 | M19: Cuifetti/Nivala d. Romano/Frigoletto, 7.0 - 2.0 | N19: Romano/Frigoletto d. Flood/Duffy, 6.5 - 2.5 | O19: Eckstrom/Dauphinais d. Pavone/Beliveau, 5.0 - 4.0 | P19: Haskins/Conte d. Lawrence/Benson, 5.0 - 4.0 | Q19: Lawrence/Benson d. Romano/Frigoletto, 5.5 - 3.5 | R19: Lawrence/Benson d. Normandin/Normandin, 6.0 - 3.0 | S19: Romano/Frigoletto d. Pavone/Beliveau, 6.0 - 3.0 | T19: Romano/Laroche d. Gamache/Bouvier, 5.0 - 4.0 | U19: Haskins/Conte d. Hurley/Drake, 5.0 - 4.0
B20: 5:12 PM | C20: Louney/Romano d. Butterfield/Schleyer, 5.5 - 3.5 | D20: Gamache/Bouvier d. Eckstrom/Romano, 5.5 - 3.5 | E20: Haskins/Conte d. Normandin/Normandin, 5.5 - 3.5 | F20: Louney/Romano d. Pavone/Beliveau, 6.0 - 3.0 | G20: Flood/Duffy d. Lawrence/Benson, 6.0 - 3.0 | H20: Normandin/Normandin d. Fairbanks/Fairbanks, 7.5 - 0.0 | I20: Eckstrom/Romano d. Romano/Laroche, 5.5 - 3.5 | J20: Leavenworth/Leavenworth d. Cuifetti/Nivala, 5.5 - 3.5 | K20: Pavone/Beliveau & Butterfield/Schleyer, tie 4.5 - 4.5 | L20: Haskins/Conte d. Cuifetti/Nivala, 6.5 - 2.5 | M20: Eckstrom/Romano d. Pavone/Beliveau, 6.0 - 3.0 | N20: Cuifetti/Nivala d. Normandin/Normandin, 5.0 - 4.0 | O20: Eckstrom/Romano d. Leavenworth/Leavenworth, 5.0 - 4.0 | P20: Romano/Frigoletto & Butterfield/Schleyer, tie 4.5 - 4.5 | Q20: Flood/Duffy d. Doane/Cassin, 5.0 - 4.0 | R20: Haskins/Conte d. Pavone/Beliveau, 5.5 - 3.5 | S20: Cuifetti/Nivala d. Louney/Romano, 6.0 - 3.0 | T20: Eckstrom/Romano d. Fairbanks/Fairbanks, 7.0 - 2.0 | U20: Normandin/Normandin d. Eckstrom/Dauphinais, 5.5 - 3.5

Sheet INDIVIDUAL SCORES
X7: =11-COUNTBLANK(N26:N42) -> -6 | AD7: Double-Click on Player Name
X8: =11-COUNTBLANK(AB26:AB42) -> -5 | AD8: =AI8&" - "&AJ8 -> 1A - John Normandin | AF8: =AK8&" - "&AL8 -> 1B - Pete Normandin | AI8: 1A | AJ8: =IFERROR(VLOOKUP(AI8,'TEAM ROSTERS & SUB LIST'!C$8:D$27,2,FALSE),"") -> John Normandin | AK8: 1B | AL8: =IFERROR(VLOOKUP(AK8,'TEAM ROSTERS & SUB LIST'!E$8:F$27,2,FALSE),"") -> Pete Normandin
AD9: 2A - Jono Normandin | AF9: 2B - Nathan Wallace | AI9: 2A | AJ9: =IFERROR(VLOOKUP(AI9,'TEAM ROSTERS & SUB LIST'!C$8:D$27,2,FALSE),"") -> Jono Normandin | AK9: 2B | AL9: =IFERROR(VLOOKUP(AK9,'TEAM ROSTERS & SUB LIST'!E$8:F$27,2,FALSE),"") -> Nathan Wallace
AD10: 3A - Pete Romano | AF10: 3B - Don Frigoletto | AI10: 3A | AJ10: =IFERROR(VLOOKUP(AI10,'TEAM ROSTERS & SUB LIST'!C$8:D$27,2,FALSE),"") -> Pete Romano | AK10: 3B | AL10: =IFERROR(VLOOKUP(AK10,'TEAM ROSTERS & SUB LIST'!E$8:F$27,2,FALSE),"") -> Don Frigoletto
AD11: 4A - Peg Romano | AF11: 4B - Lynn Laroche | AI11: 4A | AJ11: =IFERROR(VLOOKUP(AI11,'TEAM ROSTERS & SUB LIST'!C$8:D$27,2,FALSE),"") -> Peg Romano | AK11: 4B | AL11: =IFERROR(VLOOKUP(AK11,'TEAM ROSTERS & SUB LIST'!E$8:F$27,2,FALSE),"") -> Lynn Laroche
AD12: 5A - Dennis Normandin | AF12: 5B - Mark Normandin | AI12: 5A | AJ12: =IFERROR(VLOOKUP(AI12,'TEAM ROSTERS & SUB LIST'!C$8:D$27,2,FALSE),"") -> Dennis Normandin | AK12: 5B | AL12: =IFERROR(VLOOKUP(AK12,'TEAM ROSTERS & SUB LIST'!E$8:F$27,2,FALSE),"") -> Mark Normandin
AD13: 6A - Vance Butterfield | AF13: 6B - Bob Schleyer | AI13: 6A | AJ13: =IFERROR(VLOOKUP(AI13,'TEAM ROSTERS & SUB LIST'!C$8:D$27,2,FALSE),"") -> Vance Butterfield | AK13: 6B | AL13: =IFERROR(VLOOKUP(AK13,'TEAM ROSTERS & SUB LIST'!E$8:F$27,2,FALSE),"") -> Bob Schleyer
AD14: 7A - John Fairbanks | AF14: 7B - Debbie Fairbanks | AI14: 7A | AJ14: =IFERROR(VLOOKUP(AI14,'TEAM ROSTERS & SUB LIST'!C$8:D$27,2,FALSE),"") -> John Fairbanks | AK14: 7B | AL14: =IFERROR(VLOOKUP(AK14,'TEAM ROSTERS & SUB LIST'!E$8:F$27,2,FALSE),"") -> Debbie Fairbanks
AD15: 8A - Steve Lawrence | AF15: 8B - Mike Benson | AI15: 8A | AJ15: =IFERROR(VLOOKUP(AI15,'TEAM ROSTERS & SUB LIST'!C$8:D$27,2,FALSE),"") -> Steve Lawrence | AK15: 8B | AL15: =IFERROR(VLOOKUP(AK15,'TEAM ROSTERS & SUB LIST'!E$8:F$27,2,FALSE),"") -> Mike Benson
AD16: =AI16&" - "&AJ16 -> 9A - Mike Doane | AF16: 9B - John Cassin | AI16: 9A | AJ16: =IFERROR(VLOOKUP(AI16,'TEAM ROSTERS & SUB LIST'!C$8:D$27,2,FALSE),"") -> Mike Doane | AK16: 9B | AL16: =IFERROR(VLOOKUP(AK16,'TEAM ROSTERS & SUB LIST'!E$8:F$27,2,FALSE),"") -> John Cassin
AD17: =AI17&" - "&AJ17 -> 10A - Ron Ekstrom | AF17: 10B - Beth Romano | AI17: 10A | AJ17: =IFERROR(VLOOKUP(AI17,'TEAM ROSTERS & SUB LIST'!C$8:D$27,2,FALSE),"") -> Ron Ekstrom | AK17: 10B | AL17: =IFERROR(VLOOKUP(AK17,'TEAM ROSTERS & SUB LIST'!E$8:F$27,2,FALSE),"") -> Beth Romano
AD18: 11A - Jim Haskins | AF18: 11B - Anthony Conte | AI18: 11A | AJ18: =IFERROR(VLOOKUP(AI18,'TEAM ROSTERS & SUB LIST'!C$8:D$27,2,FALSE),"") -> Jim Haskins | AK18: 11B | AL18: =IFERROR(VLOOKUP(AK18,'TEAM ROSTERS & SUB LIST'!E$8:F$27,2,FALSE),"") -> Anthony Conte
AD19: 12A - Sal Ciufetti | AF19: 12B - Kevin Nivala | AI19: 12A | AJ19: =IFERROR(VLOOKUP(AI19,'TEAM ROSTERS & SUB LIST'!C$8:D$27,2,FALSE),"") -> Sal Ciufetti | AK19: 12B | AL19: =IFERROR(VLOOKUP(AK19,'TEAM ROSTERS & SUB LIST'!E$8:F$27,2,FALSE),"") -> Kevin Nivala
AD20: 13A - Tim Hurley | AF20: 13B - Walter Drake | AI20: 13A | AJ20: =IFERROR(VLOOKUP(AI20,'TEAM ROSTERS & SUB LIST'!C$8:D$27,2,FALSE),"") -> Tim Hurley | AK20: 13B | AL20: =IFERROR(VLOOKUP(AK20,'TEAM ROSTERS & SUB LIST'!E$8:F$27,2,FALSE),"") -> Walter Drake
AD21: 14A - Paul Fontaine | AF21: 14B - Ralph Romano III | AI21: 14A | AJ21: =IFERROR(VLOOKUP(AI21,'TEAM ROSTERS & SUB LIST'!C$8:D$27,2,FALSE),"") -> Paul Fontaine | AK21: 14B | AL21: =IFERROR(VLOOKUP(AK21,'TEAM ROSTERS & SUB LIST'!E$8:F$27,2,FALSE),"") -> Ralph Romano III
B22: Front | P22: Back | AD22: 15A - Gary Leavenworth | AF22: 15B - Patty Leavenworth | AI22: 15A | AJ22: =IFERROR(VLOOKUP(AI22,'TEAM ROSTERS & SUB LIST'!C$8:D$27,2,FALSE),"") -> Gary Leavenworth | AK22: 15B | AL22: =IFERROR(VLOOKUP(AK22,'TEAM ROSTERS & SUB LIST'!E$8:F$27,2,FALSE),"") -> Patty Leavenworth
B23: Date | C23: Hcp | D23: Side | E23: ='COURSE & LEAGUE DETAILS'!B5 -> 1 | F23: ='COURSE & LEAGUE DETAILS'!C5 -> 2 | G23: ='COURSE & LEAGUE DETAILS'!D5 -> 3 | H23: ='COURSE & LEAGUE DETAILS'!E5 -> 4 | I23: ='COURSE & LEAGUE DETAILS'!F5 -> 5 | J23: ='COURSE & LEAGUE DETAILS'!G5 -> 6 | K23: ='COURSE & LEAGUE DETAILS'!H5 -> 7 | L23: ='COURSE & LEAGUE DETAILS'!I5 -> 8 | M23: ='COURSE & LEAGUE DETAILS'!J5 -> 9 | N23: Total | P23: Date | Q23: Hcp | R23: Side | S23: ='COURSE & LEAGUE DETAILS'!B13 -> 10 | T23: ='COURSE & LEAGUE DETAILS'!C13 -> 11 | U23: ='COURSE & LEAGUE DETAILS'!D13 -> 12 | V23: ='COURSE & LEAGUE DETAILS'!E13 -> 13 | W23: ='COURSE & LEAGUE DETAILS'!F13 -> 14 | X23: ='COURSE & LEAGUE DETAILS'!G13 -> 15 | Y23: ='COURSE & LEAGUE DETAILS'!H13 -> 16 | Z23: ='COURSE & LEAGUE DETAILS'!I13 -> 17 | AA23: ='COURSE & LEAGUE DETAILS'!J13 -> 18 | AB23: Total | AD23: 16A - Kevin O'Loughlin | AF23: 16B - Mike Romano | AI23: 16A | AJ23: =IFERROR(VLOOKUP(AI23,'TEAM ROSTERS & SUB LIST'!C$8:D$27,2,FALSE),"") -> Kevin O'Loughlin | AK23: 16B | AL23: =IFERROR(VLOOKUP(AK23,'TEAM ROSTERS & SUB LIST'!E$8:F$27,2,FALSE),"") -> Mike Romano
B24: Men's Par | E24: ='COURSE & LEAGUE DETAILS'!B7 -> 5 | F24: ='COURSE & LEAGUE DETAILS'!C7 -> 4 | G24: ='COURSE & LEAGUE DETAILS'!D7 -> 5 | H24: ='COURSE & LEAGUE DETAILS'!E7 -> 4 | I24: ='COURSE & LEAGUE DETAILS'!F7 -> 4 | J24: ='COURSE & LEAGUE DETAILS'!G7 -> 3 | K24: ='COURSE & LEAGUE DETAILS'!H7 -> 4 | L24: ='COURSE & LEAGUE DETAILS'!I7 -> 3 | M24: ='COURSE & LEAGUE DETAILS'!J7 -> 4 | N24: ='COURSE & LEAGUE DETAILS'!K7 -> 36 | Q24: Men's Par | S24: ='COURSE & LEAGUE DETAILS'!B15 -> 5 | T24: ='COURSE & LEAGUE DETAILS'!C15 -> 4 | U24: ='COURSE & LEAGUE DETAILS'!D15 -> 4 | V24: ='COURSE & LEAGUE DETAILS'!E15 -> 5 | W24: ='COURSE & LEAGUE DETAILS'!F15 -> 3 | X24: ='COURSE & LEAGUE DETAILS'!G15 -> 4 | Y24: ='COURSE & LEAGUE DETAILS'!H15 -> 3 | Z24: ='COURSE & LEAGUE DETAILS'!I15 -> 4 | AA24: ='COURSE & LEAGUE DETAILS'!J15 -> 4 | AB24: ='COURSE & LEAGUE DETAILS'!K15 -> 36 | AD24: 17A - Carol Ekstrom | AF24: 17B - Mike Dauphinais | AI24: 17A | AJ24: =IFERROR(VLOOKUP(AI24,'TEAM ROSTERS & SUB LIST'!C$8:D$27,2,FALSE),"") -> Carol Ekstrom | AK24: 17B | AL24: =IFERROR(VLOOKUP(AK24,'TEAM ROSTERS & SUB LIST'!E$8:F$27,2,FALSE),"") -> Mike Dauphinais
B25: Women's Par | E25: ='COURSE & LEAGUE DETAILS'!B10 -> 5 | F25: ='COURSE & LEAGUE DETAILS'!C10 -> 4 | G25: ='COURSE & LEAGUE DETAILS'!D10 -> 5 | H25: ='COURSE & LEAGUE DETAILS'!E10 -> 4 | I25: ='COURSE & LEAGUE DETAILS'!F10 -> 4 | J25: ='COURSE & LEAGUE DETAILS'!G10 -> 3 | K25: ='COURSE & LEAGUE DETAILS'!H10 -> 5 | L25: ='COURSE & LEAGUE DETAILS'!I10 -> 3 | M25: ='COURSE & LEAGUE DETAILS'!J10 -> 4 | N25: ='COURSE & LEAGUE DETAILS'!K10 -> 37 | Q25: Women's Par | S25: ='COURSE & LEAGUE DETAILS'!B18 -> 4 | T25: ='COURSE & LEAGUE DETAILS'!C18 -> 4 | U25: ='COURSE & LEAGUE DETAILS'!D18 -> 4 | V25: ='COURSE & LEAGUE DETAILS'!E18 -> 5 | W25: ='COURSE & LEAGUE DETAILS'!F18 -> 3 | X25: ='COURSE & LEAGUE DETAILS'!G18 -> 4 | Y25: ='COURSE & LEAGUE DETAILS'!H18 -> 3 | Z25: ='COURSE & LEAGUE DETAILS'!I18 -> 4 | AA25: ='COURSE & LEAGUE DETAILS'!J18 -> 4 | AB25: ='COURSE & LEAGUE DETAILS'!K18 -> 35 | AD25: 18A - Norm Gamache | AF25: 18B - Michelle Bouvier | AI25: 18A | AJ25: =IFERROR(VLOOKUP(AI25,'TEAM ROSTERS & SUB LIST'!C$8:D$27,2,FALSE),"") -> Norm Gamache | AK25: 18B | AL25: =IFERROR(VLOOKUP(AK25,'TEAM ROSTERS & SUB LIST'!E$8:F$27,2,FALSE),"") -> Michelle Bouvier
P26: 05/03/17 | Q26: 2 | R26: Back | S26: 4 | T26: 4 | U26: 6 | V26: 5 | W26: 4 | X26: 5 | Y26: 3 | Z26: 4 | AA26: 6 | AB26: 41 | AD26: 19A - John Pavone | AF26: 19B - Ernie Beliveau | AI26: 19A | AJ26: =IFERROR(VLOOKUP(AI26,'TEAM ROSTERS & SUB LIST'!C$8:D$27,2,FALSE),"") -> John Pavone | AK26: 19B | AL26: =IFERROR(VLOOKUP(AK26,'TEAM ROSTERS & SUB LIST'!E$8:F$27,2,FALSE),"") -> Ernie Beliveau
AD27: =AI27&" - "&AJ27 -> 20A - Sheila Sundstrom | AF27: 20B - Ray Hoy | AI27: 20A | AJ27: =IFERROR(VLOOKUP(AI27,'TEAM ROSTERS & SUB LIST'!C$8:D$27,2,FALSE),"") -> Sheila Sundstrom | AK27: 20B | AL27: =IFERROR(VLOOKUP(AK27,'TEAM ROSTERS & SUB LIST'!E$8:F$27,2,FALSE),"") -> Ray Hoy
AI28: 21A | AJ28: =IFERROR(VLOOKUP(AI28,'TEAM ROSTERS & SUB LIST'!C$8:D$27,2,FALSE),"") ->  | AK28: 21B | AL28: =IFERROR(VLOOKUP(AK28,'TEAM ROSTERS & SUB LIST'!E$8:F$27,2,FALSE),"") -> 
AL29: =IFERROR(VLOOKUP(AK28,'TEAM ROSTERS & SUB LIST'!E$8:F$27,2,FALSE),"") -> 
AL30: =IFERROR(VLOOKUP(AK29,'TEAM ROSTERS & SUB LIST'!E$8:F$27,2,FALSE),"") -> 
AD31: =AI31&" - "&AJ31 -> Sub1 - P.J. Romano | AF31: =AK31&" - "&AL31 -> Sub16 - Becky Bartkus | AI31: Sub1 | AJ31: =IFERROR(VLOOKUP(AI31,'TEAM ROSTERS & SUB LIST'!H$8:I$50,2,FALSE),"") -> P.J. Romano | AK31: Sub16 | AL31: =IFERROR(VLOOKUP(AK31,'TEAM ROSTERS & SUB LIST'!H$8:I$50,2,FALSE),"") -> Becky Bartkus
AD32: =AI32&" - "&AJ32 -> Sub2 - PJ Fontaine | AF32: Sub17 - Dave Cormier | AI32: Sub2 | AJ32: =IFERROR(VLOOKUP(AI32,'TEAM ROSTERS & SUB LIST'!H$8:I$50,2,FALSE),"") -> PJ Fontaine | AK32: Sub17 | AL32: =IFERROR(VLOOKUP(AK32,'TEAM ROSTERS & SUB LIST'!H$8:I$50,2,FALSE),"") -> Dave Cormier
AD33: Sub3 - Jim Hedlund | AF33: Sub18 - Doug Cormier | AI33: Sub3 | AJ33: =IFERROR(VLOOKUP(AI33,'TEAM ROSTERS & SUB LIST'!H$8:I$50,2,FALSE),"") -> Jim Hedlund | AK33: Sub18 | AL33: =IFERROR(VLOOKUP(AK33,'TEAM ROSTERS & SUB LIST'!H$8:I$50,2,FALSE),"") -> Doug Cormier
AD34: Sub4 - Don Shank | AF34: Sub19 - Ed Robbins | AI34: Sub4 | AJ34: =IFERROR(VLOOKUP(AI34,'TEAM ROSTERS & SUB LIST'!H$8:I$50,2,FALSE),"") -> Don Shank | AK34: Sub19 | AL34: =IFERROR(VLOOKUP(AK34,'TEAM ROSTERS & SUB LIST'!H$8:I$50,2,FALSE),"") -> Ed Robbins
AD35: Sub5 - Tom Farias | AF35: Sub20 - Mark Louney | AI35: Sub5 | AJ35: =IFERROR(VLOOKUP(AI35,'TEAM ROSTERS & SUB LIST'!H$8:I$50,2,FALSE),"") -> Tom Farias | AK35: Sub20 | AL35: =IFERROR(VLOOKUP(AK35,'TEAM ROSTERS & SUB LIST'!H$8:I$50,2,FALSE),"") -> Mark Louney
AD36: Sub6 - Joe Pearson | AF36: Sub21 - Paul Stedman | AI36: Sub6 | AJ36: =IFERROR(VLOOKUP(AI36,'TEAM ROSTERS & SUB LIST'!H$8:I$50,2,FALSE),"") -> Joe Pearson | AK36: Sub21 | AL36: =IFERROR(VLOOKUP(AK36,'TEAM ROSTERS & SUB LIST'!H$8:I$50,2,FALSE),"") -> Paul Stedman
AD37: Sub7 - Dennis St. Jean | AF37: Sub22 - Jan Hedlund | AI37: Sub7 | AJ37: =IFERROR(VLOOKUP(AI37,'TEAM ROSTERS & SUB LIST'!H$8:I$50,2,FALSE),"") -> Dennis St. Jean | AK37: Sub22 | AL37: =IFERROR(VLOOKUP(AK37,'TEAM ROSTERS & SUB LIST'!H$8:I$50,2,FALSE),"") -> Jan Hedlund
AD38: Sub8 - Joe Fratticelli | AF38: Sub23 - Brenda Louney | AI38: Sub8 | AJ38: =IFERROR(VLOOKUP(AI38,'TEAM ROSTERS & SUB LIST'!H$8:I$50,2,FALSE),"") -> Joe Fratticelli | AK38: Sub23 | AL38: =IFERROR(VLOOKUP(AK38,'TEAM ROSTERS & SUB LIST'!H$8:I$50,2,FALSE),"") -> Brenda Louney
AD39: Sub9 - Pete Collette | AF39: Sub24 - Kyle Butterfield | AI39: Sub9 | AJ39: =IFERROR(VLOOKUP(AI39,'TEAM ROSTERS & SUB LIST'!H$8:I$50,2,FALSE),"") -> Pete Collette | AK39: Sub24 | AL39: =IFERROR(VLOOKUP(AK39,'TEAM ROSTERS & SUB LIST'!H$8:I$50,2,FALSE),"") -> Kyle Butterfield
AD40: Sub10 - Ray Henderson | AF40: Sub25 - Dave Flood | AI40: Sub10 | AJ40: =IFERROR(VLOOKUP(AI40,'TEAM ROSTERS & SUB LIST'!H$8:I$50,2,FALSE),"") -> Ray Henderson | AK40: Sub25 | AL40: =IFERROR(VLOOKUP(AK40,'TEAM ROSTERS & SUB LIST'!H$8:I$50,2,FALSE),"") -> Dave Flood
AD41: Sub11 - Pete K Normandin | AF41: Sub26 - Ann Goodwin | AI41: Sub11 | AJ41: =IFERROR(VLOOKUP(AI41,'TEAM ROSTERS & SUB LIST'!H$8:I$50,2,FALSE),"") -> Pete K Normandin | AK41: Sub26 | AL41: =IFERROR(VLOOKUP(AK41,'TEAM ROSTERS & SUB LIST'!H$8:I$50,2,FALSE),"") -> Ann Goodwin
AD42: Sub12 - Ron Brassard | AF42: Sub27 - Gary Bittner | AI42: Sub12 | AJ42: =IFERROR(VLOOKUP(AI42,'TEAM ROSTERS & SUB LIST'!H$8:I$50,2,FALSE),"") -> Ron Brassard | AK42: Sub27 | AL42: =IFERROR(VLOOKUP(AK42,'TEAM ROSTERS & SUB LIST'!H$8:I$50,2,FALSE),"") -> Gary Bittner
AD43: Sub13 - Genie Ray Richard | AF43: Sub28 - Scott Leavenworth | AI43: Sub13 | AJ43: =IFERROR(VLOOKUP(AI43,'TEAM ROSTERS & SUB LIST'!H$8:I$50,2,FALSE),"") -> Genie Ray Richard | AK43: Sub28 | AL43: =IFERROR(VLOOKUP(AK43,'TEAM ROSTERS & SUB LIST'!H$8:I$50,2,FALSE),"") -> Scott Leavenworth
B44: =VLOOKUP($H$47,'LEAGUE MEMBERSHIP'!$A:$P,6,FALSE)&" - Avg" -> Ron Ekstrom - Avg | E44: =IF(SUM(E26:E42)<>0,AVERAGE(E26:E42),"") ->  | F44: =IF(SUM(F26:F42)<>0,AVERAGE(F26:F42),"") ->  | N44: =IF(SUM(N26:N42)<>0,AVERAGE(N26:N42),"") ->  | P44: =VLOOKUP($H$47,'LEAGUE MEMBERSHIP'!$A:$P,6,FALSE)&" - Avg" -> Ron Ekstrom - Avg | S44: =IF(SUM(S26:S42)<>0,AVERAGE(S26:S42),"") -> 4 | T44: 4 | U44: 6 | V44: 5 | W44: 4 | X44: 5 | Y44: 3 | Z44: 4 | AA44: 6 | AB44: 41 | AD44: Sub14 - John MacDonald | AF44: Sub29 - Dave DiGiovanni | AI44: Sub14 | AJ44: =IFERROR(VLOOKUP(AI44,'TEAM ROSTERS & SUB LIST'!H$8:I$50,2,FALSE),"") -> John MacDonald | AK44: Sub29 | AL44: =IFERROR(VLOOKUP(AK44,'TEAM ROSTERS & SUB LIST'!H$8:I$50,2,FALSE),"") -> Dave DiGiovanni
B45: League Average | E45: =IFERROR(SUMIF('INDIVIDUAL SCORES DATA'!$D$18:$D$5605,"="&$B$22,'INDIVIDUAL SCORES DATA'!E18:E5605)/COUNTIF('INDIVIDUAL SCORES DATA'!$D$18:$D$5605,"="&$B$22),"") -> 7.365758755 | F45: =IFERROR(SUMIF('INDIVIDUAL SCORES DATA'!$D$18:$D$5605,"="&$B$22,'INDIVIDUAL SCORES DATA'!F18:F5605)/COUNTIF('INDIVIDUAL SCORES DATA'!$D$18:$D$5605,"="&$B$22),"") -> 5.789883268 | G45: =IFERROR(SUMIF('INDIVIDUAL SCORES DATA'!$D$18:$D$5605,"="&$B$22,'INDIVIDUAL SCORES DATA'!G18:G5605)/COUNTIF('INDIVIDUAL SCORES DATA'!$D$18:$D$5605,"="&$B$22),"") -> 7.229571984 | H45: =IFERROR(SUMIF('INDIVIDUAL SCORES DATA'!$D$18:$D$5605,"="&$B$22,'INDIVIDUAL SCORES DATA'!H18:H5605)/COUNTIF('INDIVIDUAL SCORES DATA'!$D$18:$D$5605,"="&$B$22),"") -> 5.704280156 | I45: =IFERROR(SUMIF('INDIVIDUAL SCORES DATA'!$D$18:$D$5605,"="&$B$22,'INDIVIDUAL SCORES DATA'!I18:I5605)/COUNTIF('INDIVIDUAL SCORES DATA'!$D$18:$D$5605,"="&$B$22),"") -> 5.13229572 | J45: =IFERROR(SUMIF('INDIVIDUAL SCORES DATA'!$D$18:$D$5605,"="&$B$22,'INDIVIDUAL SCORES DATA'!J18:J5605)/COUNTIF('INDIVIDUAL SCORES DATA'!$D$18:$D$5605,"="&$B$22),"") -> 4.163424125 | K45: =IFERROR(SUMIF('INDIVIDUAL SCORES DATA'!$D$18:$D$5605,"="&$B$22,'INDIVIDUAL SCORES DATA'!K18:K5605)/COUNTIF('INDIVIDUAL SCORES DATA'!$D$18:$D$5605,"="&$B$22),"") -> 6.73540856 | L45: =IFERROR(SUMIF('INDIVIDUAL SCORES DATA'!$D$18:$D$5605,"="&$B$22,'INDIVIDUAL SCORES DATA'!L18:L5605)/COUNTIF('INDIVIDUAL SCORES DATA'!$D$18:$D$5605,"="&$B$22),"") -> 4.175097276 | M45: =IFERROR(SUMIF('INDIVIDUAL SCORES DATA'!$D$18:$D$5605,"="&$B$22,'INDIVIDUAL SCORES DATA'!M18:M5605)/COUNTIF('INDIVIDUAL SCORES DATA'!$D$18:$D$5605,"="&$B$22),"") -> 5.509727626 | N45: =IFERROR(SUMIF('INDIVIDUAL SCORES DATA'!$D$18:$D$5605,"="&$B$22,'INDIVIDUAL SCORES DATA'!N18:N5603)/COUNTIF('INDIVIDUAL SCORES DATA'!$D$18:$D$5605,"="&$B$22),"") -> 51.80544747 | P45: League Average | S45: =IFERROR(SUMIF('INDIVIDUAL SCORES DATA'!$D$18:$D$5605,"="&$P$22,'INDIVIDUAL SCORES DATA'!E18:E5605)/COUNTIF('INDIVIDUAL SCORES DATA'!$D$18:$D$5605,"="&$P$22),"") -> 6.523255814 | T45: =IFERROR(SUMIF('INDIVIDUAL SCORES DATA'!$D$18:$D$5605,"="&$P$22,'INDIVIDUAL SCORES DATA'!F18:F5605)/COUNTIF('INDIVIDUAL SCORES DATA'!$D$18:$D$5605,"="&$P$22),"") -> 5.834302326 | U45: =IFERROR(SUMIF('INDIVIDUAL SCORES DATA'!$D$18:$D$5605,"="&$P$22,'INDIVIDUAL SCORES DATA'!G18:G5605)/COUNTIF('INDIVIDUAL SCORES DATA'!$D$18:$D$5605,"="&$P$22),"") -> 5.822674419 | V45: =IFERROR(SUMIF('INDIVIDUAL SCORES DATA'!$D$18:$D$5605,"="&$P$22,'INDIVIDUAL SCORES DATA'!H18:H5605)/COUNTIF('INDIVIDUAL SCORES DATA'!$D$18:$D$5605,"="&$P$22),"") -> 6.604651163 | W45: =IFERROR(SUMIF('INDIVIDUAL SCORES DATA'!$D$18:$D$5605,"="&$P$22,'INDIVIDUAL SCORES DATA'!I18:I5605)/COUNTIF('INDIVIDUAL SCORES DATA'!$D$18:$D$5605,"="&$P$22),"") -> 4.427325581 | X45: =IFERROR(SUMIF('INDIVIDUAL SCORES DATA'!$D$18:$D$5605,"="&$P$22,'INDIVIDUAL SCORES DATA'!J18:J5605)/COUNTIF('INDIVIDUAL SCORES DATA'!$D$18:$D$5605,"="&$P$22),"") -> 5.502906977 | Y45: =IFERROR(SUMIF('INDIVIDUAL SCORES DATA'!$D$18:$D$5605,"="&$P$22,'INDIVIDUAL SCORES DATA'!K18:K5605)/COUNTIF('INDIVIDUAL SCORES DATA'!$D$18:$D$5605,"="&$P$22),"") -> 4.465116279 | Z45: =IFERROR(SUMIF('INDIVIDUAL SCORES DATA'!$D$18:$D$5605,"="&$P$22,'INDIVIDUAL SCORES DATA'!L18:L5605)/COUNTIF('INDIVIDUAL SCORES DATA'!$D$18:$D$5605,"="&$P$22),"") -> 5.119186047 | AA45: =IFERROR(SUMIF('INDIVIDUAL SCORES DATA'!$D$18:$D$5605,"="&$P$22,'INDIVIDUAL SCORES DATA'!M18:M5605)/COUNTIF('INDIVIDUAL SCORES DATA'!$D$18:$D$5605,"="&$P$22),"") -> 5.726744186 | AB45: =IFERROR(SUMIF('INDIVIDUAL SCORES DATA'!$D$18:$D$5605,"="&$P$22,'INDIVIDUAL SCORES DATA'!N18:N5603)/COUNTIF('INDIVIDUAL SCORES DATA'!$D$18:$D$5605,"="&$P$22),"") -> 50.02616279 | AD45: Sub15 - Darryl Gagne | AF45: Sub30 - Alessandro Conte | AI45: Sub15 | AJ45: =IFERROR(VLOOKUP(AI45,'TEAM ROSTERS & SUB LIST'!H$8:I$50,2,FALSE),"") -> Darryl Gagne | AK45: Sub30 | AL45: =IFERROR(VLOOKUP(AK45,'TEAM ROSTERS & SUB LIST'!H$8:I$50,2,FALSE),"") -> Alessandro Conte
H47: =IFERROR(VLOOKUP(LEFT(H48,FIND(" ",H48)-1),'LEAGUE MEMBERSHIP'!B:I,8,FALSE),VLOOKUP("1A",'LEAGUE MEMBERSHIP'!B:I,8,FALSE)) -> RGL-050
H48: 10A - Ron Ekstrom
H49: =RIGHT(H48,LEN(H48)-(FIND("-",H48)+1)) -> Ron Ekstrom
H50: =IFERROR(VLOOKUP(H47&"F",'INDIVIDUAL SCORES DATA'!A18:P5603,16,FALSE),"") -> 1
M52: Need to update selection table @ right: Can table size be adjusted to fit no. of teams / subs exactly?)
M53: Need to update logic in Macro 2
B483: =IF(LEN(A484)=7,A484&"F",IF(RIGHT(A484,2)="12",LEFT(A484,7)&"B","")) -> 

Sheet INDIVIDUAL SCORES DATA
F6: 1/10 | G6: 2/11 | H6: 3/12 | I6: 4/13 | J6: 5/14 | K6: 6/15 | L6: 7/16 | M6: 8/17 | N6: 9/18 | O6: Total
A7: ='SCORE ENTRY WORKSHEET'!B18 -> 19A | B7: =VLOOKUP(A7,'LEAGUE MEMBERSHIP'!B$8:Q$107,8,FALSE) -> RGL-043 | C7: ='SCORE ENTRY WORKSHEET'!$N$13 -> 08/23/17 | D7: ='SCORE ENTRY WORKSHEET'!A18 -> 15 | E7: =IF('SCORE ENTRY WORKSHEET'!$N$14="BACK","Back",IF('SCORE ENTRY WORKSHEET'!$N$14="FRONT","Front","")) -> Back | F7: =IF('SCORE ENTRY WORKSHEET'!D18<>"",'SCORE ENTRY WORKSHEET'!D18,"") ->  | G7: =IF('SCORE ENTRY WORKSHEET'!E18<>"",'SCORE ENTRY WORKSHEET'!E18,"") ->  | H7: =IF('SCORE ENTRY WORKSHEET'!F18<>"",'SCORE ENTRY WORKSHEET'!F18,"") ->  | I7: =IF('SCORE ENTRY WORKSHEET'!G18<>"",'SCORE ENTRY WORKSHEET'!G18,"") ->  | J7: =IF('SCORE ENTRY WORKSHEET'!H18<>"",'SCORE ENTRY WORKSHEET'!H18,"") ->  | K7: =IF('SCORE ENTRY WORKSHEET'!I18<>"",'SCORE ENTRY WORKSHEET'!I18,"") ->  | L7: =IF('SCORE ENTRY WORKSHEET'!J18<>"",'SCORE ENTRY WORKSHEET'!J18,"") ->  | M7: =IF('SCORE ENTRY WORKSHEET'!K18<>"",'SCORE ENTRY WORKSHEET'!K18,"") ->  | N7: =IF('SCORE ENTRY WORKSHEET'!L18<>"",'SCORE ENTRY WORKSHEET'!L18,"") ->  | O7: =IF('SCORE ENTRY WORKSHEET'!M18<>"",'SCORE ENTRY WORKSHEET'!M18,"") -> 
A8: ='SCORE ENTRY WORKSHEET'!B20 -> 19B | B8: =VLOOKUP(A8,'LEAGUE MEMBERSHIP'!B$8:Q$107,8,FALSE) -> RGL-051 | C8: ='SCORE ENTRY WORKSHEET'!$N$13 -> 08/23/17 | D8: ='SCORE ENTRY WORKSHEET'!A20 -> 18 | E8: =IF('SCORE ENTRY WORKSHEET'!$N$14="BACK","Back",IF('SCORE ENTRY WORKSHEET'!$N$14="FRONT","Front","")) -> Back | F8: =IF('SCORE ENTRY WORKSHEET'!D20<>"",'SCORE ENTRY WORKSHEET'!D20,"") ->  | G8: =IF('SCORE ENTRY WORKSHEET'!E20<>"",'SCORE ENTRY WORKSHEET'!E20,"") ->  | H8: =IF('SCORE ENTRY WORKSHEET'!F20<>"",'SCORE ENTRY WORKSHEET'!F20,"") ->  | I8: =IF('SCORE ENTRY WORKSHEET'!G20<>"",'SCORE ENTRY WORKSHEET'!G20,"") ->  | J8: =IF('SCORE ENTRY WORKSHEET'!H20<>"",'SCORE ENTRY WORKSHEET'!H20,"") ->  | K8: =IF('SCORE ENTRY WORKSHEET'!I20<>"",'SCORE ENTRY WORKSHEET'!I20,"") ->  | L8: =IF('SCORE ENTRY WORKSHEET'!J20<>"",'SCORE ENTRY WORKSHEET'!J20,"") ->  | M8: =IF('SCORE ENTRY WORKSHEET'!K20<>"",'SCORE ENTRY WORKSHEET'!K20,"") ->  | N8: =IF('SCORE ENTRY WORKSHEET'!L20<>"",'SCORE ENTRY WORKSHEET'!L20,"") ->  | O8: =IF('SCORE ENTRY WORKSHEET'!M20<>"",'SCORE ENTRY WORKSHEET'!M20,"") ->  | R8: Note: The formula in cell O14 is copied to the left of each current hcp. cell (col. P) when a new round is entered.
A9: ='SCORE ENTRY WORKSHEET'!B24 -> 18A | B9: =VLOOKUP(A9,'LEAGUE MEMBERSHIP'!B$8:Q$107,8,FALSE) -> RGL-016 | C9: ='SCORE ENTRY WORKSHEET'!$N$13 -> 08/23/17 | D9: ='SCORE ENTRY WORKSHEET'!A24 -> 11 | E9: =IF('SCORE ENTRY WORKSHEET'!$N$14="BACK","Back",IF('SCORE ENTRY WORKSHEET'!$N$14="FRONT","Front","")) -> Back | F9: =IF('SCORE ENTRY WORKSHEET'!D24<>"",'SCORE ENTRY WORKSHEET'!D24,"") ->  | G9: =IF('SCORE ENTRY WORKSHEET'!E24<>"",'SCORE ENTRY WORKSHEET'!E24,"") ->  | H9: =IF('SCORE ENTRY WORKSHEET'!F24<>"",'SCORE ENTRY WORKSHEET'!F24,"") ->  | I9: =IF('SCORE ENTRY WORKSHEET'!G24<>"",'SCORE ENTRY WORKSHEET'!G24,"") ->  | J9: =IF('SCORE ENTRY WORKSHEET'!H24<>"",'SCORE ENTRY WORKSHEET'!H24,"") ->  | K9: =IF('SCORE ENTRY WORKSHEET'!I24<>"",'SCORE ENTRY WORKSHEET'!I24,"") ->  | L9: =IF('SCORE ENTRY WORKSHEET'!J24<>"",'SCORE ENTRY WORKSHEET'!J24,"") ->  | M9: =IF('SCORE ENTRY WORKSHEET'!K24<>"",'SCORE ENTRY WORKSHEET'!K24,"") ->  | N9: =IF('SCORE ENTRY WORKSHEET'!L24<>"",'SCORE ENTRY WORKSHEET'!L24,"") ->  | O9: =IF('SCORE ENTRY WORKSHEET'!M24<>"",'SCORE ENTRY WORKSHEET'!M24,"") ->  | R9: Using RGL #, this enables a Vlookup in the Sub List table that displays the last score the sub had and the date of that score
A10: ='SCORE ENTRY WORKSHEET'!B26 -> 18B | B10: =VLOOKUP(A10,'LEAGUE MEMBERSHIP'!B$8:Q$107,8,FALSE) -> RGL-045 | C10: ='SCORE ENTRY WORKSHEET'!$N$13 -> 08/23/17 | D10: ='SCORE ENTRY WORKSHEET'!A26 -> 23 | E10: =IF('SCORE ENTRY WORKSHEET'!$N$14="BACK","Back",IF('SCORE ENTRY WORKSHEET'!$N$14="FRONT","Front","")) -> Back | F10: =IF('SCORE ENTRY WORKSHEET'!D26<>"",'SCORE ENTRY WORKSHEET'!D26,"") ->  | G10: =IF('SCORE ENTRY WORKSHEET'!E26<>"",'SCORE ENTRY WORKSHEET'!E26,"") ->  | H10: =IF('SCORE ENTRY WORKSHEET'!F26<>"",'SCORE ENTRY WORKSHEET'!F26,"") ->  | I10: =IF('SCORE ENTRY WORKSHEET'!G26<>"",'SCORE ENTRY WORKSHEET'!G26,"") ->  | J10: =IF('SCORE ENTRY WORKSHEET'!H26<>"",'SCORE ENTRY WORKSHEET'!H26,"") ->  | K10: =IF('SCORE ENTRY WORKSHEET'!I26<>"",'SCORE ENTRY WORKSHEET'!I26,"") ->  | L10: =IF('SCORE ENTRY WORKSHEET'!J26<>"",'SCORE ENTRY WORKSHEET'!J26,"") ->  | M10: =IF('SCORE ENTRY WORKSHEET'!K26<>"",'SCORE ENTRY WORKSHEET'!K26,"") ->  | N10: =IF('SCORE ENTRY WORKSHEET'!L26<>"",'SCORE ENTRY WORKSHEET'!L26,"") ->  | O10: =IF('SCORE ENTRY WORKSHEET'!M26<>"",'SCORE ENTRY WORKSHEET'!M26,"") -> 
P13: 0.8 | R13: <- Romano League uses 80% of average of prior 5 rounds to determine Hcp.
O14: =IF(Q15<>"",Q15,"") ->  | P14: =IF(Q15<>"",ROUND($P$13*(AVERAGE(Q15:U15)-36),0),"") ->  | R14: This formula can be adjusted to accommodate a League's particular method of calculating hcp.
A16: Player # / Side | B16: Date / No. Rds. | C16: Handicap | D16: Side | E16: 1 / 10 | F16: 2 / 11 | G16: 3 / 12 | H16: 4 / 13 | I16: 5 / 14 | J16: 6 / 15 | K16: 7 / 16 | L16: 8 / 17 | M16: 9 / 18 | N16: Total | P16: Current Hcp | Q16: Sc. 1 | R16: Sc 2 | S16: Sc. 3 | T16: Sc. 4 | U16: Sc. 5 | V16: Sc. 6 | W16: Sc. 7 | X16: Sc. 8 | Y16: Sc. 9 | Z16: Sc. 10
A18: RGL-001F | B18: x | O18: =Q19 -> 58 | P18: =IF(Q19<>"",ROUND($P$13*(AVERAGE(Q19:U19)-36),0),"") -> 4 | Q18: 2015-07-08 | R18: Calc. | S18: Calc. | T18: Calc. | U18: Calc. | V18: Calc. | AH18: x
B19: x | Q19: 58 | R19: 36 | S19: 36 | T19: 36 | U19: 36 | V19: 36 | AH19: x
A21: RGL-001B | B21: x | AH21: x
B22: x | AH22: x
A24: RGL-002F | B24: x | O24: 49 | P24: =IF(Q25<>"",ROUND($P$13*(AVERAGE(Q25:U25)-36),0),"") -> 8 | Q24: 05/25/16 | R24: 05/18/16 | S24: 04/27/16 | T24: 2015-09-02 | U24: 2015-08-19 | V24: 2015-08-12 | W24: 2015-08-05 | X24: 2015-07-29 | AH24: x
B25: x | Q25: 49 | R25: 45 | S25: 46 | T25: 46 | U25: 46 | V25: 59 | W25: 55 | X25: 51 | AH25: x
A27: RGL-002B | B27: x | AH27: x
B28: x | AH28: x
A30: RGL-003F | B30: 7 | O30: 44 | P30: =IF(Q31<>"",ROUND($P$13*(AVERAGE(Q31:U31)-36),0),"") -> 5 | Q30: 08/23/17 | R30: 08/16/17 | S30: 08/09/17 | T30: 07/26/17 | U30: 07/19/17 | V30: 07/12/17 | W30: 07/05/17 | X30: 06/28/17 | Y30: 06/21/17 | Z30: 06/14/17 | AA30: 06/07/17 | AB30: 05/31/17 | AC30: 05/24/17 | AD30: 05/17/17 | AE30: 05/10/17 | AF30: 05/03/17 | AG30: 08/31/16 | AH30: x
B31: x | Q31: 44 | R31: 40 | S31: 46 | T31: 40 | U31: 42 | V31: 47 | W31: 47 | X31: 39 | Y31: 45 | Z31: 46 | AA31: 42 | AB31: 43 | AC31: 46 | AD31: 40 | AE31: 44 | AF31: 43 | AG31: 38 | AH31: x
B32: 05/10/17 | C32: 4 | D32: Front | E32: 6 | F32: 4 | G32: 6 | H32: 6 | I32: 6 | J32: 4 | K32: 4 | L32: 2 | M32: 6 | N32: 44
B33: 05/24/17 | C33: 4 | D33: Front | E33: 5 | F33: 4 | G33: 5 | H33: 6 | I33: 5 | J33: 4 | K33: 6 | L33: 4 | M33: 7 | N33: 46
B34: 06/07/17 | C34: 6 | D34: Front | E34: 6 | F34: 6 | G34: 6 | H34: 4 | I34: 4 | J34: 5 | K34: 4 | L34: 2 | M34: 5 | N34: 42
B35: 06/21/17 | C35: 6 | D35: Front | E35: 10 | F35: 6 | G35: 5 | H35: 4 | I35: 5 | J35: 4 | K35: 4 | L35: 3 | M35: 4 | N35: 45
B36: 07/05/17 | C36: 6 | D36: Front | E36: 5 | F36: 8 | G36: 6 | H36: 6 | I36: 6 | J36: 4 | K36: 5 | L36: 4 | M36: 3 | N36: 47
B37: 07/19/17 | C37: 7 | D37: Front | E37: 5 | F37: 6 | G37: 6 | H37: 4 | I37: 4 | J37: 3 | K37: 5 | L37: 4 | M37: 5 | N37: 42
B38: 08/16/17 | C38: 7 | D38: Front | E38: 5 | F38: 5 | G38: 5 | H38: 5 | I38: 4 | J38: 3 | K38: 6 | L38: 3 | M38: 4 | N38: 40
A40: RGL-003B | B40: 9 | AH40: x
B41: x | AH41: x
B42: 05/03/17 | C42: 4 | D42: Back | E42: 5 | F42: 6 | G42: 4 | H42: 6 | I42: 3 | J42: 4 | K42: 4 | L42: 5 | M42: 6 | N42: 43
B43: 05/17/17 | C43: 5 | D43: Back | E43: 8 | F43: 5 | G43: 4 | H43: 5 | I43: 3 | J43: 5 | K43: 2 | L43: 4 | M43: 4 | N43: 40
B44: 05/31/17 | C44: 5 | D44: Back | E44: 6 | F44: 6 | G44: 5 | H44: 5 | I44: 3 | J44: 4 | K44: 4 | L44: 4 | M44: 6 | N44: 43
B45: 06/14/17 | C45: 6 | D45: Back | E45: 6 | F45: 5 | G45: 6 | H45: 6 | I45: 4 | J45: 4 | K45: 5 | L45: 4 | M45: 6 | N45: 46
B46: 06/28/17 | C46: 7 | D46: Back | E46: 5 | F46: 5 | G46: 6 | H46: 6 | I46: 3 | J46: 4 | K46: 4 | L46: 2 | M46: 4 | N46: 39
B47: 07/12/17 | C47: 6 | D47: Back | E47: 5 | F47: 5 | G47: 7 | H47: 6 | I47: 4 | J47: 7 | K47: 5 | L47: 3 | M47: 5 | N47: 47
B48: 07/26/17 | C48: 6 | D48: Back | E48: 5 | F48: 5 | G48: 3 | H48: 5 | I48: 4 | J48: 5 | K48: 4 | L48: 4 | M48: 5 | N48: 40
B49: 08/09/17 | C49: 6 | D49: Back | E49: 7 | F49: 5 | G49: 6 | H49: 5 | I49: 3 | J49: 6 | K49: 4 | L49: 5 | M49: 5 | N49: 46
B50: 08/23/17 | C50: 6 | D50: Back | E50: 6 | F50: 5 | G50: 4 | H50: 7 | I50: 4 | J50: 5 | K50: 3 | L50: 5 | M50: 5 | N50: 44
A52: RGL-004F | B52: 1 | O52: 46 | P52: =IF(Q53<>"",ROUND($P$13*(AVERAGE(Q53:U53)-36),0),"") -> 5 | Q52: 07/19/17 | R52: Calc. | S52: Calc. | T52: Calc. | U52: Calc. | V52: Calc. | AC52: 06/15/16 | AD52: 06/01/16 | AE52: 05/25/16 | AF52: 05/18/16 | AG52: 05/11/16 | AH52: x
B53: x | Q53: 46 | R53: 42 | S53: 42 | T53: 42 | U53: 42 | V53: 42 | AC53: 50 | AD53: 44 | AE53: 49 | AF53: 47 | AG53: 54 | AH53: x
B54: 07/19/17 | C54: 5 | D54: Front | E54: 7 | F54: 5 | G54: 7 | H54: 3 | I54: 4 | J54: 5 | K54: 5 | L54: 4 | M54: 6 | N54: 46
A56: RGL-004B | B56: x | AH56: x
B57: x | AH57: x
A59: RGL-005F | B59: 5 | O59: 53 | P59: =IF(Q60<>"",ROUND($P$13*(AVERAGE(Q60:U60)-36),0),"") -> 10 | Q59: 08/23/17 | R59: 08/16/17 | S59: 08/09/17 | T59: 07/26/17 | U59: 07/19/17 | V59: 07/12/17 | W59: 06/28/17 | X59: 06/14/17 | Y59: 06/07/17 | Z59: 05/31/17 | AA59: 05/24/17 | AB59: 05/17/17 | AC59: 05/10/17 | AD59: 05/03/17 | AE59: 08/31/16 | AF59: 08/24/16 | AG59: 08/17/16 | AH59: x
B60: x | Q60: 53 | R60: 49 | S60: 44 | T60: 45 | U60: 49 | V60: 43 | W60: 44 | X60: 50 | Y60: 44 | Z60: 41 | AA60: 50 | AB60: 49 | AC60: 49 | AD60: 47 | AE60: 48 | AF60: 42 | AG60: 48 | AH60: x
B61: 05/10/17 | C61: 8 | D61: Front | E61: 7 | F61: 6 | G61: 8 | H61: 4 | I61: 4 | J61: 4 | K61: 8 | L61: 4 | M61: 4 | N61: 49
B62: 05/24/17 | C62: 9 | D62: Front | E62: 8 | F62: 6 | G62: 6 | H62: 4 | I62: 5 | J62: 4 | K62: 8 | L62: 4 | M62: 5 | N62: 50
B63: 06/07/17 | C63: 9 | D63: Front | E63: 6 | F63: 6 | G63: 5 | H63: 5 | I63: 4 | J63: 4 | K63: 5 | L63: 3 | M63: 6 | N63: 44
B64: 07/19/17 | C64: 7 | D64: Front | E64: 5 | F64: 7 | G64: 8 | H64: 4 | I64: 6 | J64: 4 | K64: 7 | L64: 3 | M64: 5 | N64: 49
B65: 08/16/17 | C65: 7 | D65: Front | E65: 8 | F65: 5 | G65: 7 | H65: 6 | I65: 6 | J65: 4 | K65: 5 | L65: 3 | M65: 5 | N65: 49
A67: RGL-005B | B67: 9 | AH67: x
B68: x | AH68: x
B69: 05/03/17 | C69: 9 | D69: Back | E69: 9 | F69: 5 | G69: 5 | H69: 4 | I69: 4 | J69: 5 | K69: 5 | L69: 5 | M69: 5 | N69: 47
B70: 05/17/17 | C70: 9 | D70: Back | E70: 5 | F70: 6 | G70: 6 | H70: 8 | I70: 4 | J70: 8 | K70: 3 | L70: 5 | M70: 4 | N70: 49
B71: 05/31/17 | C71: 10 | D71: Back | E71: 4 | F71: 5 | G71: 4 | H71: 5 | I71: 4 | J71: 6 | K71: 5 | L71: 2 | M71: 6 | N71: 41
B72: 06/14/17 | C72: 8 | D72: Back | E72: 6 | F72: 4 | G72: 7 | H72: 9 | I72: 3 | J72: 5 | K72: 3 | L72: 6 | M72: 7 | N72: 50
B73: 06/28/17 | C73: 9 | D73: Back | E73: 4 | F73: 6 | G73: 5 | H73: 7 | I73: 3 | J73: 6 | K73: 4 | L73: 3 | M73: 6 | N73: 44
B74: 07/12/17 | C74: 8 | D74: Back | E74: 5 | F74: 6 | G74: 5 | H74: 5 | I74: 4 | J74: 4 | K74: 4 | L74: 4 | M74: 6 | N74: 43
B75: 07/26/17 | C75: 8 | D75: Back | E75: 5 | F75: 5 | G75: 4 | H75: 6 | I75: 4 | J75: 5 | K75: 4 | L75: 6 | M75: 6 | N75: 45
B76: 08/09/17 | C76: 8 | D76: Back | E76: 5 | F76: 4 | G76: 5 | H76: 7 | I76: 5 | J76: 5 | K76: 3 | L76: 5 | M76: 5 | N76: 44
B77: 08/23/17 | C77: 8 | D77: Back | E77: 6 | F77: 5 | G77: 6 | H77: 8 | I77: 4 | J77: 6 | K77: 5 | L77: 5 | M77: 8 | N77: 53
A79: RGL-006F | B79: 7 | O79: 45 | P79: =IF(Q80<>"",ROUND($P$13*(AVERAGE(Q80:U80)-36),0),"") -> 6 | Q79: 08/23/17 | R79: 08/16/17 | S79: 08/09/17 | T79: 07/26/17 | U79: 07/19/17 | V79: 07/12/17 | W79: 07/05/17 | X79: 06/28/17 | Y79: 06/21/17 | Z79: 06/14/17 | AA79: 06/07/17 | AB79: 05/31/17 | AC79: 05/24/17 | AD79: 05/17/17 | AE79: 05/10/17 | AF79: 05/03/17 | AG79: 08/31/16 | AH79: x
B80: x | Q80: 45 | R80: 44 | S80: 42 | T80: 44 | U80: 40 | V80: 42 | W80: 47 | X80: 39 | Y80: 47 | Z80: 41 | AA80: 44 | AB80: 44 | AC80: 47 | AD80: 49 | AE80: 45 | AF80: 44 | AG80: 45 | AH80: x
B81: 05/10/17 | C81: 6 | D81: Front | E81: 5 | F81: 4 | G81: 6 | H81: 6 | I81: 5 | J81: 5 | K81: 5 | L81: 4 | M81: 5 | N81: 45
B82: 05/24/17 | C82: 7 | D82: Front | E82: 7 | F82: 4 | G82: 6 | H82: 4 | I82: 4 | J82: 4 | K82: 8 | L82: 5 | M82: 5 | N82: 47
B83: 06/07/17 | C83: 8 | D83: Front | E83: 7 | F83: 5 | G83: 5 | H83: 5 | I83: 4 | J83: 3 | K83: 5 | L83: 4 | M83: 6 | N83: 44
B84: 06/21/17 | C84: 7 | D84: Front | E84: 7 | F84: 6 | G84: 6 | H84: 5 | I84: 6 | J84: 4 | K84: 6 | L84: 4 | M84: 3 | N84: 47
B85: 07/05/17 | C85: 6 | D85: Front | E85: 7 | F85: 4 | G85: 7 | H85: 5 | I85: 5 | J85: 4 | K85: 6 | L85: 3 | M85: 6 | N85: 47
B86: 07/19/17 | C86: 6 | D86: Front | E86: 6 | F86: 5 | G86: 7 | H86: 3 | I86: 4 | J86: 4 | K86: 5 | L86: 3 | M86: 3 | N86: 40
B87: 08/16/17 | C87: 6 | D87: Front | E87: 6 | F87: 6 | G87: 6 | H87: 6 | I87: 4 | J87: 3 | K87: 5 | L87: 4 | M87: 4 | N87: 44
A89: RGL-006B | B89: 9 | AH89: x
B90: x | AH90: x
B91: 05/03/17 | C91: 6 | D91: Back | E91: 5 | F91: 6 | G91: 6 | H91: 7 | I91: 5 | J91: 5 | K91: 3 | L91: 4 | M91: 3 | N91: 44
B92: 05/17/17 | C92: 6 | D92: Back | E92: 8 | F92: 6 | G92: 4 | H92: 7 | I92: 5 | J92: 5 | K92: 4 | L92: 4 | M92: 6 | N92: 49
B93: 05/31/17 | C93: 8 | D93: Back | E93: 6 | F93: 5 | G93: 6 | H93: 5 | I93: 4 | J93: 3 | K93: 3 | L93: 6 | M93: 6 | N93: 44
B94: 06/14/17 | C94: 8 | D94: Back | E94: 4 | F94: 6 | G94: 6 | H94: 5 | I94: 4 | J94: 4 | K94: 3 | L94: 5 | M94: 4 | N94: 41
B95: 06/28/17 | C95: 7 | D95: Back | E95: 5 | F95: 5 | G95: 4 | H95: 5 | I95: 3 | J95: 4 | K95: 3 | L95: 5 | M95: 5 | N95: 39
B96: 07/12/17 | C96: 6 | D96: Back | E96: 6 | F96: 4 | G96: 3 | H96: 6 | I96: 4 | J96: 4 | K96: 4 | L96: 6 | M96: 5 | N96: 42
B97: 07/26/17 | C97: 6 | D97: Back | E97: 5 | F97: 3 | G97: 4 | H97: 7 | I97: 5 | J97: 6 | K97: 5 | L97: 5 | M97: 4 | N97: 44
B98: 08/09/17 | C98: 5 | D98: Back | E98: 6 | F98: 5 | G98: 4 | H98: 8 | I98: 5 | J98: 4 | K98: 3 | L98: 3 | M98: 4 | N98: 42
B99: 08/23/17 | C99: 5 | D99: Back | E99: 6 | F99: 6 | G99: 4 | H99: 5 | I99: 4 | J99: 4 | K99: 4 | L99: 7 | M99: 5 | N99: 45
A101: RGL-007F | B101: 6 | O101: 46 | P101: =IF(Q102<>"",ROUND($P$13*(AVERAGE(Q102:U102)-36),0),"") -> 10 | Q101: 07/19/17 | R101: 07/12/17 | S101: 07/05/17 | T101: 06/28/17 | U101: 06/21/17 | V101: 06/14/17 | W101: 06/07/17 | X101: 05/31/17 | Y101: 05/24/17 | Z101: 05/17/17 | AA101: 05/10/17 | AB101: 05/03/17 | AC101: 08/31/16 | AD101: 08/24/16 | AE101: 08/17/16 | AF101: 08/03/16 | AG101: 07/27/16 | AH101: x
B102: x | Q102: 46 | R102: 49 | S102: 52 | T102: 45 | U102: 48 | V102: 45 | W102: 46 | X102: 42 | Y102: 43 | Z102: 49 | AA102: 43 | AB102: 45 | AC102: 45 | AD102: 43 | AE102: 47 | AF102: 47 | AG102: 41 | AH102: x
B103: 05/10/17 | C103: 8 | D103: Front | E103: 6 | F103: 4 | G103: 5 | H103: 4 | I103: 5 | J103: 3 | K103: 7 | L103: 4 | M103: 5 | N103: 43
B104: 05/24/17 | C104: 7 | D104: Front | E104: 6 | F104: 4 | G104: 7 | H104: 5 | I104: 4 | J104: 3 | K104: 5 | L104: 4 | M104: 5 | N104: 43
B105: 06/07/17 | C105: 7 | D105: Front | E105: 7 | F105: 5 | G105: 4 | H105: 4 | I105: 6 | J105: 4 | K105: 7 | L105: 2 | M105: 7 | N105: 46
B106: 06/21/17 | C106: 7 | D106: Front | E106: 6 | F106: 4 | G106: 7 | H106: 5 | I106: 6 | J106: 5 | K106: 5 | L106: 5 | M106: 5 | N106: 48
B107: 07/05/17 | C107: 7 | D107: Front | E107: 8 | F107: 7 | G107: 6 | H107: 5 | I107: 4 | J107: 5 | K107: 5 | L107: 6 | M107: 6 | N107: 52
B108: 07/19/17 | C108: 9 | D108: Front | E108: 7 | F108: 6 | G108: 6 | H108: 6 | I108: 4 | J108: 4 | K108: 6 | L108: 4 | M108: 3 | N108: 46
A110: RGL-007B | B110: 6 | AH110: x
B111: x | AH111: x
B112: 05/03/17 | C112: 7 | D112: Back | E112: 7 | F112: 5 | G112: 5 | H112: 6 | I112: 3 | J112: 5 | K112: 5 | L112: 3 | M112: 6 | N112: 45
B113: 05/17/17 | C113: 7 | D113: Back | E113: 6 | F113: 5 | G113: 5 | H113: 7 | I113: 5 | J113: 5 | K113: 4 | L113: 5 | M113: 7 | N113: 49
B114: 05/31/17 | C114: 7 | D114: Back | E114: 7 | F114: 5 | G114: 5 | H114: 6 | I114: 3 | J114: 4 | K114: 4 | L114: 4 | M114: 4 | N114: 42
B115: 06/14/17 | C115: 7 | D115: Back | E115: 5 | F115: 5 | G115: 5 | H115: 6 | I115: 3 | J115: 6 | K115: 4 | L115: 5 | M115: 6 | N115: 45
B116: 06/28/17 | C116: 7 | D116: Back | E116: 5 | F116: 5 | G116: 4 | H116: 6 | I116: 5 | J116: 5 | K116: 3 | L116: 6 | M116: 6 | N116: 45
B117: 07/12/17 | C117: 9 | D117: Back | E117: 6 | F117: 7 | G117: 4 | H117: 6 | I117: 4 | J117: 5 | K117: 5 | L117: 7 | M117: 5 | N117: 49
A119: RGL-008F | B119: 1 | O119: 49 | P119: =IF(Q120<>"",ROUND($P$13*(AVERAGE(Q120:U120)-36),0),"") -> 7 | Q119: 08/23/17 | R119: 07/26/17 | S119: 06/21/17 | T119: 2015-09-02 | U119: 2015-08-26 | V119: 2015-08-19 | W119: 2015-08-12 | X119: 2015-08-05 | AH119: x
B120: x | Q120: 49 | R120: 42 | S120: 43 | T120: 45 | U120: 42 | V120: 39 | W120: 49 | X120: 47 | AH120: x
B121: 06/21/17 | C121: 7 | D121: Front | E121: 4 | F121: 5 | G121: 5 | H121: 6 | I121: 4 | J121: 3 | K121: 7 | L121: 4 | M121: 5 | N121: 43
A123: RGL-008B | B123: 2 | AH123: x
B124: x | AH124: x
B125: 07/26/17 | C125: 6 | D125: Back | E125: 6 | F125: 5 | G125: 3 | H125: 7 | I125: 4 | J125: 3 | K125: 4 | L125: 5 | M125: 5 | N125: 42
B126: 08/23/17 | C126: 5 | D126: Back | E126: 8 | F126: 5 | G126: 6 | H126: 8 | I126: 2 | J126: 6 | K126: 5 | L126: 4 | M126: 5 | N126: 49
A128: RGL-009F | B128: 7 | O128: 50 | P128: =IF(Q129<>"",ROUND($P$13*(AVERAGE(Q129:U129)-36),0),"") -> 9 | Q128: 08/23/17 | R128: 08/16/17 | S128: 08/09/17 | T128: 07/26/17 | U128: 07/19/17 | V128: 07/12/17 | W128: 07/05/17 | X128: 06/28/17 | Y128: 06/21/17 | Z128: 06/07/17 | AA128: 05/31/17 | AB128: 05/24/17 | AC128: 05/17/17 | AD128: 05/10/17 | AE128: 05/03/17 | AF128: 08/24/16 | AG128: 08/17/16 | AH128: x
B129: x | Q129: 50 | R129: 50 | S129: 46 | T129: 46 | U129: 47 | V129: 45 | W129: 42 | X129: 42 | Y129: 49 | Z129: 45 | AA129: 45 | AB129: 48 | AC129: 49 | AD129: 46 | AE129: 47 | AF129: 40 | AG129: 44 | AH129: x
B130: 05/10/17 | C130: 6 | D130: Front | E130: 6 | F130: 5 | G130: 7 | H130: 4 | I130: 4 | J130: 4 | K130: 7 | L130: 5 | M130: 4 | N130: 46
B131: 05/24/17 | C131: 7 | D131: Front | E131: 10 | F131: 2 | G131: 7 | H131: 6 | I131: 5 | J131: 2 | K131: 7 | L131: 4 | M131: 5 | N131: 48
B132: 06/07/17 | C132: 9 | D132: Front | E132: 6 | F132: 5 | G132: 5 | H132: 5 | I132: 5 | J132: 4 | K132: 7 | L132: 3 | M132: 5 | N132: 45
B133: 06/21/17 | C133: 8 | D133: Front | E133: 9 | F133: 5 | G133: 7 | H133: 5 | I133: 4 | J133: 4 | K133: 6 | L133: 4 | M133: 5 | N133: 49
B134: 07/05/17 | C134: 8 | D134: Front | E134: 7 | F134: 5 | G134: 6 | H134: 3 | I134: 4 | J134: 3 | K134: 6 | L134: 3 | M134: 5 | N134: 42
B135: 07/19/17 | C135: 7 | D135: Front | E135: 7 | F135: 7 | G135: 5 | H135: 4 | I135: 5 | J135: 4 | K135: 6 | L135: 4 | M135: 5 | N135: 47
B136: 08/16/17 | C136: 7 | D136: Front | E136: 6 | F136: 6 | G136: 6 | H136: 6 | I136: 5 | J136: 5 | K136: 7 | L136: 4 | M136: 5 | N136: 50
A138: RGL-009B | B138: 8 | AH138: x
B139: x | AH139: x
B140: 05/03/17 | C140: 6 | D140: Back | E140: 6 | F140: 4 | G140: 6 | H140: 7 | I140: 5 | J140: 6 | K140: 4 | L140: 5 | M140: 4 | N140: 47
B141: 05/17/17 | C141: 6 | D141: Back | E141: 7 | F141: 5 | G141: 5 | H141: 7 | I141: 4 | J141: 5 | K141: 5 | L141: 5 | M141: 6 | N141: 49
B142: 05/31/17 | C142: 8 | D142: Back | E142: 5 | F142: 7 | G142: 3 | H142: 6 | I142: 6 | J142: 4 | K142: 4 | L142: 5 | M142: 5 | N142: 45
B143: 06/28/17 | C143: 9 | D143: Back | E143: 5 | F143: 5 | G143: 5 | H143: 5 | I143: 3 | J143: 4 | K143: 3 | L143: 7 | M143: 5 | N143: 42
B144: 07/12/17 | C144: 7 | D144: Back | E144: 6 | F144: 6 | G144: 6 | H144: 5 | I144: 5 | J144: 6 | K144: 4 | L144: 3 | M144: 4 | N144: 45
B145: 07/26/17 | C145: 7 | D145: Back | E145: 5 | F145: 5 | G145: 4 | H145: 5 | I145: 4 | J145: 5 | K145: 5 | L145: 6 | M145: 7 | N145: 46
B146: 08/09/17 | C146: 7 | D146: Back | E146: 6 | F146: 6 | G146: 5 | H146: 7 | I146: 4 | J146: 3 | K146: 6 | L146: 4 | M146: 5 | N146: 46
B147: 08/23/17 | C147: 9 | D147: Back | E147: 7 | F147: 5 | G147: 7 | H147: 6 | I147: 5 | J147: 5 | K147: 5 | L147: 4 | M147: 6 | N147: 50
A149: RGL-010F | B149: 6 | O149: 60 | P149: =IF(Q150<>"",ROUND($P$13*(AVERAGE(Q150:U150)-36),0),"") -> 15 | Q149: 08/23/17 | R149: 08/16/17 | S149: 08/09/17 | T149: 07/26/17 | U149: 07/19/17 | V149: 07/12/17 | W149: 07/05/17 | X149: 06/28/17 | Y149: 06/21/17 | Z149: 06/14/17 | AA149: 06/07/17 | AB149: 05/31/17 | AC149: 05/17/17 | AD149: 05/10/17 | AE149: 05/03/17 | AF149: 08/31/16 | AG149: 08/24/16 | AH149: x
B150: x | Q150: 60 | R150: 54 | S150: 57 | T150: 51 | U150: 54 | V150: 57 | W150: 57 | X150: 57 | Y150: 58 | Z150: 61 | AA150: 61 | AB150: 49 | AC150: 58 | AD150: 60 | AE150: 57 | AF150: 58 | AG150: 56 | AH150: x
B151: 05/10/17 | C151: 17 | D151: Front | E151: 9 | F151: 4 | G151: 10 | H151: 8 | I151: 6 | J151: 4 | K151: 7 | L151: 5 | M151: 7 | N151: 60
B152: 06/07/17 | C152: 16 | D152: Front | E152: 10 | F152: 8 | G152: 9 | H152: 7 | I152: 6 | J152: 3 | K152: 8 | L152: 4 | M152: 6 | N152: 61
B153: 06/21/17 | C153: 17 | D153: Front | E153: 7 | F153: 7 | G153: 7 | H153: 5 | I153: 6 | J153: 5 | K153: 8 | L153: 5 | M153: 8 | N153: 58
B154: 07/05/17 | C154: 17 | D154: Front | E154: 8 | F154: 8 | G154: 7 | H154: 6 | I154: 6 | J154: 6 | K154: 7 | L154: 5 | M154: 4 | N154: 57
B155: 07/19/17 | C155: 18 | D155: Front | E155: 8 | F155: 6 | G155: 7 | H155: 6 | I155: 6 | J155: 3 | K155: 6 | L155: 4 | M155: 8 | N155: 54
B156: 08/16/17 | C156: 15 | D156: Front | E156: 6 | F156: 6 | G156: 7 | H156: 5 | I156: 6 | J156: 5 | K156: 7 | L156: 4 | M156: 8 | N156: 54
A158: RGL-010B | B158: 9 | AH158: x
B159: x | AH159: x
B160: 05/03/17 | C160: 16 | D160: Back | E160: 7 | F160: 8 | G160: 8 | H160: 7 | I160: 5 | J160: 6 | K160: 5 | L160: 5 | M160: 6 | N160: 57
B161: 05/17/17 | C161: 17 | D161: Back | E161: 7 | F161: 7 | G161: 8 | H161: 9 | I161: 5 | J161: 6 | K161: 5 | L161: 5 | M161: 6 | N161: 58
B162: 05/31/17 | C162: 17 | D162: Back | E162: 4 | F162: 6 | G162: 5 | H162: 7 | I162: 4 | J162: 7 | K162: 4 | L162: 4 | M162: 8 | N162: 49
B163: 06/14/17 | C163: 17 | D163: Back | E163: 7 | F163: 6 | G163: 8 | H163: 9 | I163: 6 | J163: 7 | K163: 6 | L163: 5 | M163: 7 | N163: 61
B164: 06/28/17 | C164: 17 | D164: Back | E164: 8 | F164: 8 | G164: 6 | H164: 5 | I164: 6 | J164: 8 | K164: 5 | L164: 5 | M164: 6 | N164: 57
B165: 07/12/17 | C165: 18 | D165: Back | E165: 7 | F165: 7 | G165: 8 | H165: 6 | I165: 5 | J165: 8 | K165: 6 | L165: 5 | M165: 5 | N165: 57
B166: 07/26/17 | C166: 16 | D166: Back | E166: 7 | F166: 5 | G166: 5 | H166: 5 | I166: 4 | J166: 8 | K166: 4 | L166: 7 | M166: 6 | N166: 51
B167: 08/09/17 | C167: 15 | D167: Back | E167: 9 | F167: 8 | G167: 8 | H167: 6 | I167: 4 | J167: 7 | K167: 6 | L167: 4 | M167: 5 | N167: 57
B168: 08/23/17 | C168: 15 | D168: Back | E168: 8 | F168: 8 | G168: 7 | H168: 8 | I168: 4 | J168: 6 | K168: 6 | L168: 7 | M168: 6 | N168: 60
A170: RGL-011F | B170: 1900-01-01 | O170: 47 | P170: =IF(Q171<>"",ROUND($P$13*(AVERAGE(Q171:U171)-36),0),"") -> 6 | Q170: 06/21/17 | R170: 2015-08-26 | S170: 2015-05-06 | T170: 2013-07-24 | U170: 2011-07-13 | V170: 2010-08-04 | W170: Calc. | X170: Calc. | Y170: Calc. | AH170: x
B171: x | Q171: 47 | R171: 41 | S171: 43 | T171: 43 | U171: 41 | V171: 34 | W171: 36 | X171: 36 | Y171: 36 | AH171: x
B172: 06/21/17 | C172: 4 | D172: Front | E172: 7 | F172: 6 | G172: 7 | H172: 5 | I172: 5 | J172: 3 | K172: 6 | L172: 5 | M172: 3 | N172: 47
A174: RGL-011B | B174: x | AH174: x
B175: x | AH175: x
A177: RGL-012F | B177: x | O177: 58 | P177: =IF(Q178<>"",ROUND($P$13*(AVERAGE(Q178:U178)-36),0),"") -> 15 | Q177: 07/06/16 | R177: Calc | S177: Calc | T177: Calc | U177: Calc | V177: Calc | AH177: x
B178: x | Q178: 58 | R178: 54 | S178: 54 | T178: 54 | U178: 54 | V178: 54 | AH178: x
A180: RGL-012B | B180: x | AH180: x
B181: x | AH181: x
A183: RGL-013F | B183: 1900-01-07 | O183: 49 | P183: =IF(Q184<>"",ROUND($P$13*(AVERAGE(Q184:U184)-36),0),"") -> 11 | Q183: 08/23/17 | R183: 08/16/17 | S183: 08/09/17 | T183: 07/26/17 | U183: 07/19/17 | V183: 07/12/17 | W183: 07/05/17 | X183: 06/28/17 | Y183: 06/21/17 | Z183: 06/14/17 | AA183: 06/07/17 | AB183: 05/31/17 | AC183: 05/24/17 | AD183: 05/17/17 | AE183: 05/10/17 | AF183: 05/03/17 | AG183: Calc | AH183: x
B184: x | Q184: 49 | R184: 54 | S184: 52 | T184: 44 | U184: 49 | V184: 49 | W184: 48 | X184: 51 | Y184: 53 | Z184: 52 | AA184: 50 | AB184: 55 | AC184: 51 | AD184: 57 | AE184: 57 | AF184: 58 | AG184: 47 | AH184: x
B185: 05/10/17 | C185: 11 | D185: Front | E185: 6 | F185: 7 | G185: 9 | H185: 7 | I185: 6 | J185: 5 | K185: 8 | L185: 5 | M185: 4 | N185: 57
B186: 05/24/17 | C186: 14 | D186: Front | E186: 8 | F186: 4 | G186: 8 | H186: 7 | I186: 4 | J186: 4 | K186: 6 | L186: 4 | M186: 6 | N186: 51
B187: 06/07/17 | C187: 16 | D187: Front | E187: 10 | F187: 6 | G187: 6 | H187: 5 | I187: 6 | J187: 3 | K187: 7 | L187: 3 | M187: 4 | N187: 50
B188: 06/21/17 | C188: 14 | D188: Front | E188: 8 | F188: 5 | G188: 8 | H188: 6 | I188: 5 | J188: 4 | K188: 8 | L188: 5 | M188: 4 | N188: 53
B189: 07/05/17 | C189: 13 | D189: Front | E189: 5 | F189: 7 | G189: 8 | H189: 6 | I189: 4 | J189: 5 | K189: 7 | L189: 3 | M189: 3 | N189: 48
B190: 07/19/17 | C190: 12 | D190: Front | E190: 8 | F190: 4 | G190: 6 | H190: 5 | I190: 5 | J190: 4 | K190: 7 | L190: 5 | M190: 5 | N190: 49
B191: 08/16/17 | C191: 10 | D191: Front | E191: 6 | F191: 7 | G191: 6 | H191: 6 | I191: 5 | J191: 5 | K191: 7 | L191: 6 | M191: 6 | N191: 54
A193: RGL-013B | B193: 9 | AH193: x
B194: x | AH194: x
B195: 05/03/17 | C195: 9 | D195: Back | E195: 10 | F195: 6 | G195: 4 | H195: 8 | I195: 5 | J195: 7 | K195: 6 | L195: 6 | M195: 6 | N195: 58
B196: 05/17/17 | C196: 12 | D196: Back | E196: 8 | F196: 7 | G196: 8 | H196: 8 | I196: 6 | J196: 5 | K196: 5 | L196: 3 | M196: 7 | N196: 57
B197: 05/31/17 | C197: 14 | D197: Back | E197: 7 | F197: 8 | G197: 4 | H197: 8 | I197: 4 | J197: 6 | K197: 3 | L197: 8 | M197: 7 | N197: 55
B198: 06/14/17 | C198: 14 | D198: Back | E198: 6 | F198: 4 | G198: 6 | H198: 7 | I198: 4 | J198: 8 | K198: 4 | L198: 6 | M198: 7 | N198: 52
B199: 06/28/17 | C199: 13 | D199: Back | E199: 7 | F199: 8 | G199: 4 | H199: 6 | I199: 4 | J199: 6 | K199: 4 | L199: 7 | M199: 5 | N199: 51
B200: 07/12/17 | C200: 12 | D200: Back | E200: 6 | F200: 7 | G200: 4 | H200: 9 | I200: 5 | J200: 4 | K200: 5 | L200: 4 | M200: 5 | N200: 49
B201: 07/26/17 | C201: 11 | D201: Back | E201: 6 | F201: 5 | G201: 6 | H201: 6 | I201: 4 | J201: 4 | K201: 3 | L201: 5 | M201: 5 | N201: 44
B202: 08/09/17 | C202: 10 | D202: Back | E202: 7 | F202: 5 | G202: 6 | H202: 7 | I202: 5 | J202: 5 | K202: 4 | L202: 6 | M202: 7 | N202: 52
B203: 08/23/17 | C203: 11 | D203: Back | E203: 4 | F203: 7 | G203: 6 | H203: 8 | I203: 5 | J203: 5 | K203: 4 | L203: 6 | M203: 4 | N203: 49
A205: RGL-014F | B205: 7 | O205: 54 | P205: =IF(Q206<>"",ROUND($P$13*(AVERAGE(Q206:U206)-36),0),"") -> 14 | Q205: 08/16/17 | R205: 08/09/17 | S205: 07/19/17 | T205: 07/05/17 | U205: 06/21/17 | V205: 06/14/17 | W205: 06/07/17 | X205: 05/31/17 | Y205: 05/24/17 | Z205: 05/17/17 | AA205: 05/10/17 | AB205: 05/03/17 | AC205: 08/31/16 | AD205: 08/24/16 | AE205: 08/17/16 | AF205: 08/10/16 | AG205: 08/03/16 | AH205: x
B206: x | Q206: 54 | R206: 48 | S206: 56 | T206: 59 | U206: 49 | V206: 47 | W206: 43 | X206: 44 | Y206: 49 | Z206: 48 | AA206: 45 | AB206: 44 | AC206: 49 | AD206: 52 | AE206: 45 | AF206: 40 | AG206: 49 | AH206: x
B207: 05/10/17 | C207: 8 | D207: Front | E207: 8 | F207: 6 | G207: 4 | H207: 5 | I207: 4 | J207: 3 | K207: 6 | L207: 5 | M207: 4 | N207: 45
B208: 05/24/17 | C208: 9 | D208: Front | E208: 8 | F208: 4 | G208: 8 | H208: 4 | I208: 5 | J208: 4 | K208: 8 | L208: 4 | M208: 4 | N208: 49
B209: 06/07/17 | C209: 8 | D209: Front | E209: 5 | F209: 4 | G209: 7 | H209: 4 | I209: 4 | J209: 3 | K209: 7 | L209: 4 | M209: 5 | N209: 43
B210: 06/21/17 | C210: 8 | D210: Front | E210: 8 | F210: 5 | G210: 6 | H210: 5 | I210: 3 | J210: 3 | K210: 8 | L210: 5 | M210: 6 | N210: 49
B211: 07/05/17 | C211: 8 | D211: Front | E211: 10 | F211: 5 | G211: 10 | H211: 6 | I211: 5 | J211: 5 | K211: 8 | L211: 4 | M211: 6 | N211: 59
B212: 07/19/17 | C212: 10 | D212: Front | E212: 7 | F212: 5 | G212: 8 | H212: 6 | I212: 6 | J212: 4 | K212: 7 | L212: 5 | M212: 8 | N212: 56
B213: 08/16/17 | C213: 13 | D213: Front | E213: 6 | F213: 7 | G213: 9 | H213: 8 | I213: 5 | J213: 4 | K213: 6 | L213: 4 | M213: 5 | N213: 54
A215: RGL-014B | B215: 5 | AH215: x
B216: x | AH216: x
B217: 05/03/17 | C217: 9 | D217: Back | E217: 5 | F217: 6 | G217: 5 | H217: 7 | I217: 4 | J217: 5 | K217: 3 | L217: 4 | M217: 5 | N217: 44
B218: 05/17/17 | C218: 9 | D218: Back | E218: 5 | F218: 4 | G218: 6 | H218: 9 | I218: 6 | J218: 4 | K218: 4 | L218: 5 | M218: 5 | N218: 48
B219: 05/31/17 | C219: 9 | D219: Back | E219: 5 | F219: 3 | G219: 4 | H219: 8 | I219: 4 | J219: 6 | K219: 5 | L219: 3 | M219: 6 | N219: 44
B220: 06/14/17 | C220: 8 | D220: Back | E220: 5 | F220: 6 | G220: 4 | H220: 9 | I220: 4 | J220: 5 | K220: 5 | L220: 4 | M220: 5 | N220: 47
B221: 08/09/17 | C221: 12 | D221: Back | E221: 4 | F221: 6 | G221: 5 | H221: 6 | I221: 6 | J221: 5 | K221: 6 | L221: 5 | M221: 5 | N221: 48
A223: RGL-015F | B223: 5 | O223: 62 | P223: =IF(Q224<>"",ROUND($P$13*(AVERAGE(Q224:U224)-36),0),"") -> 16 | Q223: 08/23/17 | R223: 08/16/17 | S223: 08/09/17 | T223: 07/26/17 | U223: 07/19/17 | V223: 07/12/17 | W223: 07/05/17 | X223: 06/28/17 | Y223: 06/14/17 | Z223: 06/07/17 | AA223: 05/31/17 | AB223: 05/24/17 | AC223: 05/17/17 | AD223: 05/03/17 | AE223: 08/31/16 | AF223: 08/24/16 | AG223: 08/17/16 | AH223: x
B224: x | Q224: 62 | R224: 54 | S224: 53 | T224: 56 | U224: 54 | V224: 49 | W224: 59 | X224: 57 | Y224: 47 | Z224: 53 | AA224: 52 | AB224: 52 | AC224: 54 | AD224: 52 | AE224: 57 | AF224: 54 | AG224: 58 | AH224: x
B225: 05/24/17 | C225: 15 | D225: Front | E225: 10 | F225: 5 | G225: 6 | H225: 4 | I225: 5 | J225: 4 | K225: 8 | L225: 2 | M225: 8 | N225: 52
B226: 06/07/17 | C226: 14 | D226: Front | E226: 10 | F226: 6 | G226: 6 | H226: 5 | I226: 4 | J226: 5 | K226: 8 | L226: 3 | M226: 6 | N226: 53
B227: 07/05/17 | C227: 13 | D227: Front | E227: 8 | F227: 6 | G227: 10 | H227: 5 | I227: 5 | J227: 4 | K227: 7 | L227: 6 | M227: 8 | N227: 59
B228: 07/19/17 | C228: 14 | D228: Front | E228: 9 | F228: 5 | G228: 6 | H228: 6 | I228: 5 | J228: 4 | K228: 8 | L228: 4 | M228: 7 | N228: 54
B229: 08/16/17 | C229: 15 | D229: Front | E229: 10 | F229: 8 | G229: 8 | H229: 4 | I229: 5 | J229: 3 | K229: 5 | L229: 5 | M229: 6 | N229: 54
A231: RGL-015B | B231: 9 | AH231: x
B232: x | AH232: x
B233: 05/03/17 | C233: 17 | D233: Back | E233: 8 | F233: 6 | G233: 6 | H233: 6 | I233: 6 | J233: 4 | K233: 4 | L233: 5 | M233: 7 | N233: 52
B234: 05/17/17 | C234: 15 | D234: Back | E234: 8 | F234: 7 | G234: 8 | H234: 8 | I234: 6 | J234: 3 | K234: 5 | L234: 5 | M234: 4 | N234: 54
B235: 05/31/17 | C235: 14 | D235: Back | E235: 8 | F235: 6 | G235: 7 | H235: 7 | I235: 4 | J235: 4 | K235: 5 | L235: 4 | M235: 7 | N235: 52
B236: 06/14/17 | C236: 13 | D236: Back | E236: 5 | F236: 5 | G236: 8 | H236: 7 | I236: 4 | J236: 5 | K236: 2 | L236: 5 | M236: 6 | N236: 47
B237: 06/28/17 | C237: 12 | D237: Back | E237: 7 | F237: 7 | G237: 7 | H237: 8 | I237: 6 | J237: 6 | K237: 6 | L237: 4 | M237: 6 | N237: 57
B238: 07/12/17 | C238: 14 | D238: Back | E238: 8 | F238: 5 | G238: 5 | H238: 5 | I238: 4 | J238: 5 | K238: 6 | L238: 4 | M238: 7 | N238: 49
... 809 more rows

Sheet SCORE ENTRY WORKSHEET
A1: 8 | T1: 1 | AI1: Tee Times To Be Loaded | AN1: Tee Times Loaded
AK6: =IF(AI6<>"",TEXT(AI6, "h:mm AM/PM")&" - "&AJ6,"") -> 
A7: ='COURSE & LEAGUE DETAILS'!$B$3 -> Woods at Westminster | O7: format
A8: ='COURSE & LEAGUE DETAILS'!$B$2&" - "&N12&" - "&N14&" - "&TEXT(N13, "MMM dd, yyyy") -> Romano Golf League - Week 8 - BACK - Aug 23, 2017
A10: HOLE | D10: =IF(LEFT($N$14)="F",1,IF(LEFT($N$14)="B",10,"ERROR")) -> 10 | E10: =IF(LEFT($N$14)="F",2,IF(LEFT($N$14)="B",11,"ERROR")) -> 11 | F10: =IF(LEFT($N$14)="F",3,IF(LEFT($N$14)="B",12,"ERROR")) -> 12 | G10: =IF(LEFT($N$14)="F",4,IF(LEFT($N$14)="B",13,"ERROR")) -> 13 | H10: =IF(LEFT($N$14)="F",5,IF(LEFT($N$14)="B",14,"ERROR")) -> 14 | I10: =IF(LEFT($N$14)="F",6,IF(LEFT($N$14)="B",15,"ERROR")) -> 15 | J10: =IF(LEFT($N$14)="F",7,IF(LEFT($N$14)="B",16,"ERROR")) -> 16 | K10: =IF(LEFT($N$14)="F",8,IF(LEFT($N$14)="B",17,"ERROR")) -> 17 | L10: =IF(LEFT($N$14)="F",9,IF(LEFT($N$14)="B",18,"ERROR")) -> 18 | M10: =IF(LEFT($N$14)="F","OUT",IF(LEFT($N$14)="B","IN","ERROR")) -> IN | AP10: =IF(AN468<>"",TEXT(AN468, "h:mm AM/PM")&" - "&AO10,"") -> 
A11: WHITE | D11: =IF($D$10=1,'COURSE & LEAGUE DETAILS'!$B$6,IF($D$10=10,'COURSE & LEAGUE DETAILS'!$B$14,"ERROR")) -> 345 | E11: =IF($D$10=1,'COURSE & LEAGUE DETAILS'!$C$6,IF($D$10=10,'COURSE & LEAGUE DETAILS'!$C$14,"ERROR")) -> 220 | F11: =IF($D$10=1,'COURSE & LEAGUE DETAILS'!$D$6,IF($D$10=10,'COURSE & LEAGUE DETAILS'!$D$14,"ERROR")) -> 330 | G11: =IF($D$10=1,'COURSE & LEAGUE DETAILS'!$E$6,IF($D$10=10,'COURSE & LEAGUE DETAILS'!$E$14,"ERROR")) -> 435 | H11: =IF($D$10=1,'COURSE & LEAGUE DETAILS'!$F$6,IF($D$10=10,'COURSE & LEAGUE DETAILS'!$F$14,"ERROR")) -> 145 | I11: =IF($D$10=1,'COURSE & LEAGUE DETAILS'!$G$6,IF($D$10=10,'COURSE & LEAGUE DETAILS'!$G$14,"ERROR")) -> 315 | J11: =IF($D$10=1,'COURSE & LEAGUE DETAILS'!$H$6,IF($D$10=10,'COURSE & LEAGUE DETAILS'!$H$14,"ERROR")) -> 130 | K11: =IF($D$10=1,'COURSE & LEAGUE DETAILS'!$I$6,IF($D$10=10,'COURSE & LEAGUE DETAILS'!$I$14,"ERROR")) -> 300 | L11: =IF($D$10=1,'COURSE & LEAGUE DETAILS'!$J$6,IF($D$10=10,'COURSE & LEAGUE DETAILS'!$J$14,"ERROR")) -> 340 | M11: =IF($D$10=1,'COURSE & LEAGUE DETAILS'!$K$6,IF($D$10=10,'COURSE & LEAGUE DETAILS'!$K$14,"ERROR")) -> 2560
A12: MEN'S PAR | D12: =IF($D$10=1,'COURSE & LEAGUE DETAILS'!$B$7,IF($D$10=10,'COURSE & LEAGUE DETAILS'!$B$15,"ERROR")) -> 5 | E12: =IF($D$10=1,'COURSE & LEAGUE DETAILS'!$C$7,IF($D$10=10,'COURSE & LEAGUE DETAILS'!$C$15,"ERROR")) -> 4 | F12: =IF($D$10=1,'COURSE & LEAGUE DETAILS'!$D$7,IF($D$10=10,'COURSE & LEAGUE DETAILS'!$D$15,"ERROR")) -> 4 | G12: =IF($D$10=1,'COURSE & LEAGUE DETAILS'!$E$7,IF($D$10=10,'COURSE & LEAGUE DETAILS'!$E$15,"ERROR")) -> 5 | H12: =IF($D$10=1,'COURSE & LEAGUE DETAILS'!$F$7,IF($D$10=10,'COURSE & LEAGUE DETAILS'!$F$15,"ERROR")) -> 3 | I12: =IF($D$10=1,'COURSE & LEAGUE DETAILS'!$G$7,IF($D$10=10,'COURSE & LEAGUE DETAILS'!$G$15,"ERROR")) -> 4 | J12: =IF($D$10=1,'COURSE & LEAGUE DETAILS'!$H$7,IF($D$10=10,'COURSE & LEAGUE DETAILS'!$H$15,"ERROR")) -> 3 | K12: =IF($D$10=1,'COURSE & LEAGUE DETAILS'!$I$7,IF($D$10=10,'COURSE & LEAGUE DETAILS'!$I$15,"ERROR")) -> 4 | L12: =IF($D$10=1,'COURSE & LEAGUE DETAILS'!$J$7,IF($D$10=10,'COURSE & LEAGUE DETAILS'!$J$15,"ERROR")) -> 4 | M12: =IF($D$10=1,'COURSE & LEAGUE DETAILS'!$K$7,IF($D$10=10,'COURSE & LEAGUE DETAILS'!$K$15,"ERROR")) -> 36 | N12: Week 8 | O12: =AJ4 -> 0
A13: MEN'S HCP | D13: =IF($D$10=1,'COURSE & LEAGUE DETAILS'!$B$8,IF($D$10=10,'COURSE & LEAGUE DETAILS'!$B$16,"ERROR")) -> 6 | E13: =IF($D$10=1,'COURSE & LEAGUE DETAILS'!$C$8,IF($D$10=10,'COURSE & LEAGUE DETAILS'!$C$16,"ERROR")) -> 10 | F13: =IF($D$10=1,'COURSE & LEAGUE DETAILS'!$D$8,IF($D$10=10,'COURSE & LEAGUE DETAILS'!$D$16,"ERROR")) -> 8 | G13: =IF($D$10=1,'COURSE & LEAGUE DETAILS'!$E$8,IF($D$10=10,'COURSE & LEAGUE DETAILS'!$E$16,"ERROR")) -> 4 | H13: =IF($D$10=1,'COURSE & LEAGUE DETAILS'!$F$8,IF($D$10=10,'COURSE & LEAGUE DETAILS'!$F$16,"ERROR")) -> 16 | I13: =IF($D$10=1,'COURSE & LEAGUE DETAILS'!$G$8,IF($D$10=10,'COURSE & LEAGUE DETAILS'!$G$16,"ERROR")) -> 12 | J13: =IF($D$10=1,'COURSE & LEAGUE DETAILS'!$H$8,IF($D$10=10,'COURSE & LEAGUE DETAILS'!$H$16,"ERROR")) -> 18 | K13: =IF($D$10=1,'COURSE & LEAGUE DETAILS'!$I$8,IF($D$10=10,'COURSE & LEAGUE DETAILS'!$I$16,"ERROR")) -> 14 | L13: =IF($D$10=1,'COURSE & LEAGUE DETAILS'!$J$8,IF($D$10=10,'COURSE & LEAGUE DETAILS'!$J$16,"ERROR")) -> 2 | N13: 08/23/17 | O13: =IF(AJ3<>"",TEXT(AJ3,"mm/dd/yy"),TEXT('SCORES LOAD STATUS'!C1,"mm/dd/yy")) -> 04/26/17
A14: RED | D14: =IF($D$10=1,'COURSE & LEAGUE DETAILS'!$B$9,IF($D$10=10,'COURSE & LEAGUE DETAILS'!$B$17,"ERROR")) -> 290 | E14: =IF($D$10=1,'COURSE & LEAGUE DETAILS'!$C$9,IF($D$10=10,'COURSE & LEAGUE DETAILS'!$C$17,"ERROR")) -> 200 | F14: =IF($D$10=1,'COURSE & LEAGUE DETAILS'!$D$9,IF($D$10=10,'COURSE & LEAGUE DETAILS'!$D$17,"ERROR")) -> 205 | G14: =IF($D$10=1,'COURSE & LEAGUE DETAILS'!$E$9,IF($D$10=10,'COURSE & LEAGUE DETAILS'!$E$17,"ERROR")) -> 350 | H14: =IF($D$10=1,'COURSE & LEAGUE DETAILS'!$F$9,IF($D$10=10,'COURSE & LEAGUE DETAILS'!$F$17,"ERROR")) -> 140 | I14: =IF($D$10=1,'COURSE & LEAGUE DETAILS'!$G$9,IF($D$10=10,'COURSE & LEAGUE DETAILS'!$G$17,"ERROR")) -> 290 | J14: =IF($D$10=1,'COURSE & LEAGUE DETAILS'!$H$9,IF($D$10=10,'COURSE & LEAGUE DETAILS'!$H$17,"ERROR")) -> 125 | K14: =IF($D$10=1,'COURSE & LEAGUE DETAILS'!$I$9,IF($D$10=10,'COURSE & LEAGUE DETAILS'!$I$17,"ERROR")) -> 255 | L14: =IF($D$10=1,'COURSE & LEAGUE DETAILS'!$J$9,IF($D$10=10,'COURSE & LEAGUE DETAILS'!$J$17,"ERROR")) -> 280 | M14: =IF($D$10=1,'COURSE & LEAGUE DETAILS'!$K$9,IF($D$10=10,'COURSE & LEAGUE DETAILS'!$K$17,"ERROR")) -> 2135 | N14: BACK | O14: =AJ5 -> 0
A15: WOMEN'S PAR | D15: =IF($D$10=1,'COURSE & LEAGUE DETAILS'!$B$10,IF($D$10=10,'COURSE & LEAGUE DETAILS'!$B$18,"ERROR")) -> 4 | E15: =IF($D$10=1,'COURSE & LEAGUE DETAILS'!$C$10,IF($D$10=10,'COURSE & LEAGUE DETAILS'!$C$18,"ERROR")) -> 4 | F15: =IF($D$10=1,'COURSE & LEAGUE DETAILS'!$D$10,IF($D$10=10,'COURSE & LEAGUE DETAILS'!$D$18,"ERROR")) -> 4 | G15: =IF($D$10=1,'COURSE & LEAGUE DETAILS'!$E$10,IF($D$10=10,'COURSE & LEAGUE DETAILS'!$E$18,"ERROR")) -> 5 | H15: =IF($D$10=1,'COURSE & LEAGUE DETAILS'!$F$10,IF($D$10=10,'COURSE & LEAGUE DETAILS'!$F$18,"ERROR")) -> 3 | I15: =IF($D$10=1,'COURSE & LEAGUE DETAILS'!$G$10,IF($D$10=10,'COURSE & LEAGUE DETAILS'!$G$18,"ERROR")) -> 4 | J15: =IF($D$10=1,'COURSE & LEAGUE DETAILS'!$H$10,IF($D$10=10,'COURSE & LEAGUE DETAILS'!$H$18,"ERROR")) -> 3 | K15: =IF($D$10=1,'COURSE & LEAGUE DETAILS'!$I$10,IF($D$10=10,'COURSE & LEAGUE DETAILS'!$I$18,"ERROR")) -> 4 | L15: =IF($D$10=1,'COURSE & LEAGUE DETAILS'!$J$10,IF($D$10=10,'COURSE & LEAGUE DETAILS'!$J$18,"ERROR")) -> 4 | M15: =IF($D$10=1,'COURSE & LEAGUE DETAILS'!$K$10,IF($D$10=10,'COURSE & LEAGUE DETAILS'!$K$18,"ERROR")) -> 35 | N15: 5:12 PM | O15: =IF(AI6<>"",TEXT(AI6,"h:mm AM/PM"),TEXT('SCORES LOAD STATUS'!A4,"h:mm AM/PM")) -> 4:00 PM
A16: HCP | B16: TEAM | C16: WOMEN'S HCP | D16: =IF($D$10=1,'COURSE & LEAGUE DETAILS'!$B$11,IF($D$10=10,'COURSE & LEAGUE DETAILS'!$B$19,"ERROR")) -> 4 | E16: =IF($D$10=1,'COURSE & LEAGUE DETAILS'!$C$11,IF($D$10=10,'COURSE & LEAGUE DETAILS'!$C$19,"ERROR")) -> 2 | F16: =IF($D$10=1,'COURSE & LEAGUE DETAILS'!$D$11,IF($D$10=10,'COURSE & LEAGUE DETAILS'!$D$19,"ERROR")) -> 8 | G16: =IF($D$10=1,'COURSE & LEAGUE DETAILS'!$E$11,IF($D$10=10,'COURSE & LEAGUE DETAILS'!$E$19,"ERROR")) -> 6 | H16: =IF($D$10=1,'COURSE & LEAGUE DETAILS'!$F$11,IF($D$10=10,'COURSE & LEAGUE DETAILS'!$F$19,"ERROR")) -> 16 | I16: =IF($D$10=1,'COURSE & LEAGUE DETAILS'!$G$11,IF($D$10=10,'COURSE & LEAGUE DETAILS'!$G$19,"ERROR")) -> 12 | J16: =IF($D$10=1,'COURSE & LEAGUE DETAILS'!$H$11,IF($D$10=10,'COURSE & LEAGUE DETAILS'!$H$19,"ERROR")) -> 18 | K16: =IF($D$10=1,'COURSE & LEAGUE DETAILS'!$I$11,IF($D$10=10,'COURSE & LEAGUE DETAILS'!$I$19,"ERROR")) -> 14 | L16: =IF($D$10=1,'COURSE & LEAGUE DETAILS'!$J$11,IF($D$10=10,'COURSE & LEAGUE DETAILS'!$J$19,"ERROR")) -> 10 | N16: =IFERROR(VLOOKUP($N$15,$AI:$AJ,2,FALSE),HLOOKUP($N$13,'SCORES LOAD STATUS'!C1:CI5,4,FALSE)) -> 19 v 18
D17: =D43 -> 1 | E17: =E43 -> 0 | F17: 1 | G17: 1 | H17: 0 | I17: 0 | J17: 0 | K17: 0 | L17: 1 | M17: =IF(B18="Course","",IF(B18="DNP","",SUM(D17:L17))) -> 4
A18: =IF(B18="DNP",IF(B20="DNP","ERROR",""),IF(B18="COURSE",0,VLOOKUP(B18,'LEAGUE MEMBERSHIP'!$B$8:$J$107,6,FALSE))) -> 15 | B18: =$N$18&"A" -> 19A | C18: =IFERROR(VLOOKUP(B18,'LEAGUE MEMBERSHIP'!$B$8:$G$107,5,FALSE),"") -> John Pavone | M18: =IF(SUM(D18:L18)=0,"",SUM(D18:L18)) ->  | N18: =IF(FIND("v",$N$16)=3,LEFT($N$16,1),LEFT($N$16,2)) -> 19 | O18: =COUNTBLANK(Player_1_Scores) -> 9
D19: =D44 -> 1 | E19: =E44 -> 1 | F19: 1 | G19: 1 | H19: 0 | I19: 1 | J19: 0 | K19: 1 | L19: 1 | M19: =IF(B20="Course","",IF(B20="DNP","",SUM(D19:L19))) -> 7
A20: =IF(B20="DNP",IF(B18="DNP","ERROR",""),IF(B20="COURSE",0,VLOOKUP(B20,'LEAGUE MEMBERSHIP'!$B$8:$J$107,6,FALSE))) -> 18 | B20: =$N$20&"B" -> 19B | C20: =IFERROR(VLOOKUP(B20,'LEAGUE MEMBERSHIP'!$B$8:$G$107,5,FALSE),"") -> Ernie Beliveau | M20: =IF(SUM(D20:L20)=0,"",SUM(D20:L20)) ->  | N20: =IF(FIND("v",$N$16)=3,LEFT($N$16,1),LEFT($N$16,2)) -> 19 | O20: =COUNTBLANK(Player_2_Scores) -> 9
C21: =IF(LEN(N18)=1,"Team 0"&N18,"Team "&N18) -> Team 19 | D21: =IF($B$24="Course",IF($B$26="Course",D56,D51),D51) ->  | E21: =IF($B$24="Course",IF($B$26="Course",E56,E51),E51) ->  | F21: =IF($B$24="Course",IF($B$26="Course",F56,F51),F51) ->  | M21: =SUM(D21:L21) -> 0
C22: =IF(N24="COURSE","Team 16",IF(LEN(N24)=1,"Team 0"&N24,"Team "&N24)) -> Team 18 | D22: =IF($B$18="Course",IF($B$20="Course",D65,D60),D60) ->  | E22: =IF($B$18="Course",IF($B$20="Course",E65,E60),E60) ->  | F22: =IF($B$18="Course",IF($B$20="Course",F65,F60),F60) ->  | M22: =SUM(D22:L22) -> 0
D23: =D46 -> 0 | E23: =E46 -> 0 | F23: 0 | G23: 0 | H23: 0 | I23: 0 | J23: 0 | K23: 0 | L23: 0 | M23: =IF(B24="Course","",IF(B24="DNP","",SUM(D23:L23))) -> 0
A24: =IF(B24="DNP",IF(B26="DNP","ERROR",""),IF(B24="COURSE",0,VLOOKUP(B24,'LEAGUE MEMBERSHIP'!$B$8:$J$107,6,FALSE))) -> 11 | B24: =$N$24&"A" -> 18A | C24: =IFERROR(VLOOKUP(B24,'LEAGUE MEMBERSHIP'!$B$8:$G$107,5,FALSE),"") -> Norm Gamache | M24: =IF(SUM(D24:L24)=0,"",SUM(D24:L24)) ->  | N24: =IF(LEN($N$16)-FIND("v",$N$16)=2,RIGHT($N$16,1),RIGHT($N$16,2)) -> 18 | O24: =COUNTBLANK(Player_3_Scores) -> 9
D25: =D47 -> 2 | E25: =E47 -> 2 | F25: 2 | G25: 2 | H25: 0 | I25: 1 | J25: 0 | K25: 1 | L25: 2 | M25: =IF(B26="Course","",IF(B26="DNP","",SUM(D25:L25))) -> 12
A26: =IF(B26="DNP",IF(B24="DNP","ERROR",""),IF(B26="COURSE",0,VLOOKUP(B26,'LEAGUE MEMBERSHIP'!$B$8:$J$107,6,FALSE))) -> 23 | B26: =$N$24&"B" -> 18B | C26: =IFERROR(VLOOKUP(B26,'LEAGUE MEMBERSHIP'!$B$8:$G$107,5,FALSE),"") -> Michelle Bouvier | M26: =IF(SUM(D26:L26)=0,"",SUM(D26:L26)) ->  | N26: =IF(LEN($N$16)-FIND("v",$N$16)=2,RIGHT($N$16,1),RIGHT($N$16,2)) -> 18 | O26: =COUNTBLANK(Player_4_Scores) -> 9
A28: =CONCATENATE("TEE TIME: ",TEXT(N15,"h:mm AM/PM")) -> TEE TIME: 5:12 PM
D30: =N13 -> 08/23/17
D32: =N15 -> 5:12 PM
F33: Not all scores entered. If needed, enter "Course" or "DNP" for absent team / player.
A34: Sub1 | B34: =IF(ISERROR(VLOOKUP(A34,'LEAGUE MEMBERSHIP'!$B$8:$J$107,5,FALSE)),"",VLOOKUP(A34,'LEAGUE MEMBERSHIP'!$B$8:$J$107,5,FALSE)) -> P.J. Romano | D34: Sub7 | E34: =IF(ISERROR(VLOOKUP(D34,'LEAGUE MEMBERSHIP'!$B$8:$J$107,5,FALSE)),"",VLOOKUP(D34,'LEAGUE MEMBERSHIP'!$B$8:$J$107,5,FALSE)) -> Dennis St. Jean | G34: Sub13 | H34: =IF(ISERROR(VLOOKUP(G34,'LEAGUE MEMBERSHIP'!$B$8:$J$107,5,FALSE)),"",VLOOKUP(G34,'LEAGUE MEMBERSHIP'!$B$8:$J$107,5,FALSE)) -> Genie Ray Richard | J34: Sub19 | K34: =IF(ISERROR(VLOOKUP(J34,'LEAGUE MEMBERSHIP'!$B$8:$J$107,5,FALSE)),"",VLOOKUP(J34,'LEAGUE MEMBERSHIP'!$B$8:$J$107,5,FALSE)) -> Ed Robbins | M34: Sub25 | N34: =IF(ISERROR(VLOOKUP(M34,'LEAGUE MEMBERSHIP'!$B$8:$J$107,5,FALSE)),"",VLOOKUP(M34,'LEAGUE MEMBERSHIP'!$B$8:$J$107,5,FALSE)) -> Dave Flood
A35: Sub2 | B35: =IF(ISERROR(VLOOKUP(A35,'LEAGUE MEMBERSHIP'!$B$8:$J$107,5,FALSE)),"",VLOOKUP(A35,'LEAGUE MEMBERSHIP'!$B$8:$J$107,5,FALSE)) -> PJ Fontaine | D35: Sub8 | E35: =IF(ISERROR(VLOOKUP(D35,'LEAGUE MEMBERSHIP'!$B$8:$J$107,5,FALSE)),"",VLOOKUP(D35,'LEAGUE MEMBERSHIP'!$B$8:$J$107,5,FALSE)) -> Joe Fratticelli | G35: Sub14 | H35: =IF(ISERROR(VLOOKUP(G35,'LEAGUE MEMBERSHIP'!$B$8:$J$107,5,FALSE)),"",VLOOKUP(G35,'LEAGUE MEMBERSHIP'!$B$8:$J$107,5,FALSE)) -> John MacDonald | J35: Sub20 | K35: =IF(ISERROR(VLOOKUP(J35,'LEAGUE MEMBERSHIP'!$B$8:$J$107,5,FALSE)),"",VLOOKUP(J35,'LEAGUE MEMBERSHIP'!$B$8:$J$107,5,FALSE)) -> Mark Louney | M35: Sub26 | N35: =IF(ISERROR(VLOOKUP(M35,'LEAGUE MEMBERSHIP'!$B$8:$J$107,5,FALSE)),"",VLOOKUP(M35,'LEAGUE MEMBERSHIP'!$B$8:$J$107,5,FALSE)) -> Ann Goodwin
A36: Sub3 | B36: =IF(ISERROR(VLOOKUP(A36,'LEAGUE MEMBERSHIP'!$B$8:$J$107,5,FALSE)),"",VLOOKUP(A36,'LEAGUE MEMBERSHIP'!$B$8:$J$107,5,FALSE)) -> Jim Hedlund | D36: Sub9 | E36: =IF(ISERROR(VLOOKUP(D36,'LEAGUE MEMBERSHIP'!$B$8:$J$107,5,FALSE)),"",VLOOKUP(D36,'LEAGUE MEMBERSHIP'!$B$8:$J$107,5,FALSE)) -> Pete Collette | G36: Sub15 | H36: =IF(ISERROR(VLOOKUP(G36,'LEAGUE MEMBERSHIP'!$B$8:$J$107,5,FALSE)),"",VLOOKUP(G36,'LEAGUE MEMBERSHIP'!$B$8:$J$107,5,FALSE)) -> Darryl Gagne | J36: Sub21 | K36: =IF(ISERROR(VLOOKUP(J36,'LEAGUE MEMBERSHIP'!$B$8:$J$107,5,FALSE)),"",VLOOKUP(J36,'LEAGUE MEMBERSHIP'!$B$8:$J$107,5,FALSE)) -> Paul Stedman | M36: Sub27 | N36: =IF(ISERROR(VLOOKUP(M36,'LEAGUE MEMBERSHIP'!$B$8:$J$107,5,FALSE)),"",VLOOKUP(M36,'LEAGUE MEMBERSHIP'!$B$8:$J$107,5,FALSE)) -> Gary Bittner
A37: Sub4 | B37: =IF(ISERROR(VLOOKUP(A37,'LEAGUE MEMBERSHIP'!$B$8:$J$107,5,FALSE)),"",VLOOKUP(A37,'LEAGUE MEMBERSHIP'!$B$8:$J$107,5,FALSE)) -> Don Shank | D37: Sub10 | E37: =IF(ISERROR(VLOOKUP(D37,'LEAGUE MEMBERSHIP'!$B$8:$J$107,5,FALSE)),"",VLOOKUP(D37,'LEAGUE MEMBERSHIP'!$B$8:$J$107,5,FALSE)) -> Ray Henderson | G37: Sub16 | H37: =IF(ISERROR(VLOOKUP(G37,'LEAGUE MEMBERSHIP'!$B$8:$J$107,5,FALSE)),"",VLOOKUP(G37,'LEAGUE MEMBERSHIP'!$B$8:$J$107,5,FALSE)) -> Becky Bartkus | J37: Sub22 | K37: =IF(ISERROR(VLOOKUP(J37,'LEAGUE MEMBERSHIP'!$B$8:$J$107,5,FALSE)),"",VLOOKUP(J37,'LEAGUE MEMBERSHIP'!$B$8:$J$107,5,FALSE)) -> Jan Hedlund | M37: Sub28 | N37: =IF(ISERROR(VLOOKUP(M37,'LEAGUE MEMBERSHIP'!$B$8:$J$107,5,FALSE)),"",VLOOKUP(M37,'LEAGUE MEMBERSHIP'!$B$8:$J$107,5,FALSE)) -> Scott Leavenworth | P37: =IF(ISERROR(VLOOKUP(O36,#REF!,2,FALSE)),"",VLOOKUP(O36,#REF!,2,FALSE)) -> 
A38: Sub5 | B38: =IF(ISERROR(VLOOKUP(A38,'LEAGUE MEMBERSHIP'!$B$8:$J$107,5,FALSE)),"",VLOOKUP(A38,'LEAGUE MEMBERSHIP'!$B$8:$J$107,5,FALSE)) -> Tom Farias | D38: Sub11 | E38: =IF(ISERROR(VLOOKUP(D38,'LEAGUE MEMBERSHIP'!$B$8:$J$107,5,FALSE)),"",VLOOKUP(D38,'LEAGUE MEMBERSHIP'!$B$8:$J$107,5,FALSE)) -> Pete K Normandin | G38: Sub17 | H38: =IF(ISERROR(VLOOKUP(G38,'LEAGUE MEMBERSHIP'!$B$8:$J$107,5,FALSE)),"",VLOOKUP(G38,'LEAGUE MEMBERSHIP'!$B$8:$J$107,5,FALSE)) -> Dave Cormier | J38: Sub23 | K38: =IF(ISERROR(VLOOKUP(J38,'LEAGUE MEMBERSHIP'!$B$8:$J$107,5,FALSE)),"",VLOOKUP(J38,'LEAGUE MEMBERSHIP'!$B$8:$J$107,5,FALSE)) -> Brenda Louney | M38: Sub29 | N38: =IF(ISERROR(VLOOKUP(M38,'LEAGUE MEMBERSHIP'!$B$8:$J$107,5,FALSE)),"",VLOOKUP(M38,'LEAGUE MEMBERSHIP'!$B$8:$J$107,5,FALSE)) -> Dave DiGiovanni | P38: =IF(ISERROR(VLOOKUP(O37,#REF!,2,FALSE)),"",VLOOKUP(O37,#REF!,2,FALSE)) -> 
A39: Sub6 | B39: =IF(ISERROR(VLOOKUP(A39,'LEAGUE MEMBERSHIP'!$B$8:$J$107,5,FALSE)),"",VLOOKUP(A39,'LEAGUE MEMBERSHIP'!$B$8:$J$107,5,FALSE)) -> Joe Pearson | D39: Sub12 | E39: =IF(ISERROR(VLOOKUP(D39,'LEAGUE MEMBERSHIP'!$B$8:$J$107,5,FALSE)),"",VLOOKUP(D39,'LEAGUE MEMBERSHIP'!$B$8:$J$107,5,FALSE)) -> Ron Brassard | G39: Sub18 | H39: =IF(ISERROR(VLOOKUP(G39,'LEAGUE MEMBERSHIP'!$B$8:$J$107,5,FALSE)),"",VLOOKUP(G39,'LEAGUE MEMBERSHIP'!$B$8:$J$107,5,FALSE)) -> Doug Cormier | J39: Sub24 | K39: =IF(ISERROR(VLOOKUP(J39,'LEAGUE MEMBERSHIP'!$B$8:$J$107,5,FALSE)),"",VLOOKUP(J39,'LEAGUE MEMBERSHIP'!$B$8:$J$107,5,FALSE)) -> Kyle Butterfield | M39: Sub30 | N39: =IF(ISERROR(VLOOKUP(M39,'LEAGUE MEMBERSHIP'!$B$8:$J$107,5,FALSE)),"",VLOOKUP(M39,'LEAGUE MEMBERSHIP'!$B$8:$J$107,5,FALSE)) -> Alessandro Conte | P39: =IF(ISERROR(VLOOKUP(O38,#REF!,2,FALSE)),"",VLOOKUP(O38,#REF!,2,FALSE)) -> 
N40: # non-par 3s | P40: =IF(ISERROR(VLOOKUP(O39,#REF!,2,FALSE)),"",VLOOKUP(O39,#REF!,2,FALSE)) -> 
C41: Men's Hcp. Rank | D41: =IF(D12<>3,RANK(D13,$D$13:$L$13,1),"") -> 3 | E41: =IF(E12<>3,RANK(E13,$D$13:$L$13,1),"") -> 5 | F41: 4 | G41: 2 | I41: 6 | K41: 7 | L41: 1 | N41: =COUNTIF(D12:L12,"<>"&3) -> 7
C42: Women's Hcp. Rank | D42: =IF(D15<>3,RANK(D16,$D$16:$L$16,1),"") -> 2 | E42: =IF(E15<>3,RANK(E16,$D$16:$L$16,1),"") -> 1 | F42: 4 | G42: 3 | I42: 6 | K42: 7 | L42: 5 | N42: =COUNTIF(D15:L15,"<>"&3) -> 7
A43: =MIN(A18:A26) -> 11 | B43: =IF(A18<>"",A18-$A$43,"") -> 4 | C43: =VLOOKUP(B18,'LEAGUE MEMBERSHIP'!B:E,4,FALSE) -> M | D43: =IF($B43="","",IF($C43="M",IF(D$12=3,0,IF($B43-$N$41>=D$41,2,IF($B43>=D$41,1,0))),IF($C43="F",IF(D$15=3,0,IF($B43-$N$42>=D$42,2,IF($B43>=D$42,1,0)))))) -> 1 | E43: =IF($B43="","",IF($C43="M",IF(E$12=3,0,IF($B43-$N$41>=E$41,2,IF($B43>=E$41,1,0))),IF($C43="F",IF(E$15=3,0,IF($B43-$N$42>=E$42,2,IF($B43>=E$42,1,0)))))) -> 0 | F43: 1 | G43: 1 | H43: 0 | I43: 0 | J43: 0 | K43: 0 | L43: 1
B44: =IF(A20<>"",A20-$A$43,"") -> 7 | C44: =VLOOKUP(B20,'LEAGUE MEMBERSHIP'!B:E,4,FALSE) -> M | D44: =IF($B44="","",IF($C44="M",IF(D$12=3,0,IF($B44-$N$41>=D$41,2,IF($B44>=D$41,1,0))),IF($C44="F",IF(D$15=3,0,IF($B44-$N$42>=D$42,2,IF($B44>=D$42,1,0)))))) -> 1 | E44: 1 | F44: 1 | G44: 1 | H44: 0 | I44: 1 | J44: 0 | K44: 1 | L44: 1
B46: =IF(A24<>"",A24-$A$43,"") -> 0 | C46: =VLOOKUP(B24,'LEAGUE MEMBERSHIP'!B:E,4,FALSE) -> M | D46: =IF($B46="","",IF($C46="M",IF(D$12=3,0,IF($B46-$N$41>=D$41,2,IF($B46>=D$41,1,0))),IF($C46="F",IF(D$15=3,0,IF($B46-$N$42>=D$42,2,IF($B46>=D$42,1,0)))))) -> 0 | E46: =IF($B46="","",IF($C46="M",IF(E$12=3,0,IF($B46-$N$41>=E$41,2,IF($B46>=E$41,1,0))),IF($C46="F",IF(E$15=3,0,IF($B46-$N$42>=E$42,2,IF($B46>=E$42,1,0)))))) -> 0 | F46: 0 | G46: 0 | H46: 0 | I46: 0 | J46: 0 | K46: 0 | L46: 0
B47: =IF(A26<>"",A26-$A$43,"") -> 12 | C47: =VLOOKUP(B26,'LEAGUE MEMBERSHIP'!B:E,4,FALSE) -> F | D47: =IF($B47="","",IF($C47="M",IF(D$12=3,0,IF($B47-$N$41>=D$41,2,IF($B47>=D$41,1,0))),IF($C47="F",IF(D$15=3,0,IF($B47-$N$42>=D$42,2,IF($B47>=D$42,1,0)))))) -> 2 | E47: 2 | F47: 2 | G47: 2 | H47: 0 | I47: 1 | J47: 0 | K47: 1 | L47: 2
C48: Player A | D48: =IF(D18<>"",D18-D17,"") -> 
C49: Player B | D49: =IF(D20<>"",D20-D19,"") -> 
C50: Score to Use | D50: =IF(D48<>"",IF(D49<>"",MIN(D48:D49),D48),D49) ->  | E50: =IF(E48<>"",IF(E49<>"",MIN(E48:E49),E48),E49) -> 
C51: Versus Team | D51: =IF(D50<>"",IF(D59<>"",IF(D50<D59,1,IF(D50=D59,1/2,0)),""),"") -> 
C52: Versus Course (Player A = M) | D52: =IF(D48<>"",IF($C43="M",IF(D48<D$12,1,IF(D48=D$12,1/2,0)),""),"") ->  | E52: =IF(E48<>"",IF($C43="M",IF(E48<E$12,1,IF(E48=E$12,1/2,0)),""),"") -> 
C53: Versus Course (Player B = M) | D53: =IF(D49<>"",IF($C44="M",IF(D49<D$12,1,IF(D49=D$12,1/2,0)),""),"") -> 
C54: Versus Course (Player A = F) | D54: =IF(D48<>"",IF($C43="F",IF(D48<D$15,1,IF(D48=D$15,1/2,0)),""),"") ->  | E54: =IF(E48<>"",IF($C43="F",IF(E48<E$15,1,IF(E48=E$15,1/2,0)),""),"") -> 
C55: Versus Course (Player B = F) | D55: =IF(D49<>"",IF($C44="F",IF(D49<D$15,1,IF(D49=D$15,1/2,0)),""),"") -> 
C56: Score to Use Versus Course | D56: =MAX(D52:D55) -> 0 | E56: 0 | F56: 0 | G56: 0 | H56: 0 | I56: 0 | J56: 0 | K56: 0 | L56: 0
C57: Player A | D57: =IF(D24<>"",D24-D23,"") -> 
C58: Player B | D58: =IF(D26<>"",D26-D25,"") -> 
B59: =$N$18&"A" -> 19A | C59: Score to Use | D59: =IF(D57<>"",IF(D58<>"",MIN(D57:D58),D57),D58) ->  | E59: =IF(E57<>"",IF(E58<>"",MIN(E57:E58),E57),E58) -> 
C60: Versus Team | D60: =IF(D59<>"",IF(D50<>"",IF(D59<D50,1,IF(D59=D50,1/2,0)),""),"") -> 
B61: =$N$20&"B" -> 19B | C61: Versus Course (Player A = M) | D61: =IF(D57<>"",IF($C46="M",IF(D57<D$12,1,IF(D57=D$12,1/2,0)),""),"") -> 
C62: Versus Course (Player B = M)
C63: Versus Course (Player A = F) | D63: =IF(D57<>"",IF($C46="F",IF(D57<D$15,1,IF(D57=D$15,1/2,0)),""),"") -> 
C64: Versus Course (Player B = F)
B65: =$N$24&"A" -> 18A | C65: Score to Use Versus Course | D65: =MAX(D61:D64) -> 0 | E65: =MAX(E61:E64) -> 0 | F65: 0 | G65: 0 | H65: 0 | I65: 0 | J65: 0 | K65: 0 | L65: 0
B67: =$N$24&"B" -> 18B
A69: =133-COUNTBLANK($A$34:$O$39) -> 103
A70: 6A | B70: 6B | C70: 12A | D70: 12B
A71: DNP | B71: DNP | C71: DNP | D71: DNP
A72: Course | B72: Course | C72: Course | D72: Course
A73: =IF($B34="","",$A34) -> Sub1 | B73: Sub1 | C73: Sub1 | D73: Sub1
A74: Sub2 | B74: Sub2 | C74: Sub2 | D74: Sub2
A75: Sub3 | B75: Sub3 | C75: Sub3 | D75: Sub3
A76: Sub4 | B76: Sub4 | C76: Sub4 | D76: Sub4
A77: Sub5 | B77: Sub5 | C77: Sub5 | D77: Sub5
A78: Sub6 | B78: Sub6 | C78: Sub6 | D78: Sub6
A79: =IF($E34="","",$D34) -> Sub7 | B79: Sub7 | C79: Sub7 | D79: Sub7
A80: Sub8 | B80: Sub8 | C80: Sub8 | D80: Sub8
A81: Sub9 | B81: Sub9 | C81: Sub9 | D81: Sub9
A82: Sub10 | B82: Sub10 | C82: Sub10 | D82: Sub10
A83: Sub11 | B83: Sub11 | C83: Sub11 | D83: Sub11
A84: Sub12 | B84: Sub12 | C84: Sub12 | D84: Sub12
A85: =IF($H34="","",$G34) -> Sub13 | B85: =IF($H34="","",$G34) -> Sub13 | C85: =IF($H34="","",$G34) -> Sub13 | D85: =IF($H34="","",$G34) -> Sub13
A86: =IF($H35="","",$G35) -> Sub14 | B86: Sub14 | C86: Sub14 | D86: Sub14
A87: Sub15 | B87: Sub15 | C87: Sub15 | D87: Sub15
A88: Sub16 | B88: Sub16 | C88: Sub16 | D88: Sub16
A89: Sub17 | B89: Sub17 | C89: Sub17 | D89: Sub17
A90: Sub18 | B90: Sub18 | C90: Sub18 | D90: Sub18
A91: =IF($K34="","",$J34) -> Sub19 | B91: =IF($K34="","",$J34) -> Sub19 | C91: =IF($K34="","",$J34) -> Sub19 | D91: =IF($K34="","",$J34) -> Sub19
A92: =IF($K35="","",$J35) -> Sub20 | B92: Sub20 | C92: Sub20 | D92: Sub20
A93: Sub21 | B93: Sub21 | C93: Sub21 | D93: Sub21
A94: Sub22 | B94: Sub22 | C94: Sub22 | D94: Sub22
A95: Sub23 | B95: Sub23 | C95: Sub23 | D95: Sub23
A96: Sub24 | B96: Sub24 | C96: Sub24 | D96: Sub24
A97: =IF($N34="","",$M34) -> Sub25 | B97: =IF($N34="","",$M34) -> Sub25 | C97: =IF($N34="","",$M34) -> Sub25 | D97: =IF($N34="","",$M34) -> Sub25
A98: =IF($N35="","",$M35) -> Sub26 | B98: Sub26 | C98: Sub26 | D98: Sub26
A99: Sub27 | B99: Sub27 | C99: Sub27 | D99: Sub27
A100: Sub28 | B100: Sub28 | C100: Sub28 | D100: Sub28
A101: Sub29 | B101: Sub29 | C101: Sub29 | D101: Sub29
A102: Sub30 | B102: Sub30 | C102: Sub30 | D102: Sub30

Sheet SCORES LOAD STATUS
A1: Date | C1: 04/26/17 | D1: 05/03/17 | E1: 05/10/17 | F1: 05/17/17 | G1: 05/24/17 | H1: 05/31/17 | I1: 06/07/17 | J1: 06/14/17 | K1: 06/21/17 | L1: 06/28/17 | M1: 07/05/17 | N1: 07/12/17 | O1: 07/19/17 | P1: 07/26/17 | Q1: 08/02/17 | R1: 08/09/17 | S1: 08/16/17 | T1: 08/23/17 | U1: 08/30/17
A2: Week | C2: Week 1 | D2: Week 2 | E2: Week 3 | F2: Week 4 | G2: Week 5 | H2: Week 6 | I2: Week 7 | J2: Week 8 | K2: Week 9 | L2: Week 10 | M2: Week 1 | N2: Week 2 | O2: Week 3 | P2: Week 4 | Q2: Week 5 | R2: Week 6 | S2: Week 7 | T2: Week 8 | U2: Week 9
A3: Side | C3: FRONT | D3: BACK | E3: FRONT | F3: BACK | G3: FRONT | H3: BACK | I3: FRONT | J3: BACK | K3: FRONT | L3: BACK | M3: FRONT | N3: BACK | O3: FRONT | P3: BACK | Q3: FRONT | R3: BACK | S3: FRONT | T3: BACK | U3: FRONT
A4: 4:00 PM | B4: ' | C4: 1 v 12 | D4: 12 v 5 | E4: 1 v 14 | F4: 3 v 6 | G4: 12 v 20 | H4: 4 v 9 | I4: 17 v 19 | J4: 8 v 9 | K4: 18 v 9 | L4: 6 v 16 | M4: 14 v 3 | N4: 5 v 13 | O4: 9 v 7 | P4: 7 v 11 | Q4: 10 v 4 | R4: 17 v 14 | S4: 17 v 16 | T4: 19 v 18 | U4: 17 v 4
A5: 4:08 PM | B5: ' | C5: 2 v 14 | D5: 14 v 7 | E5: 12 v 16 | F5: 2 v 7 | G5: 5 v 6 | H5: 14 v 16 | I5: 14 v 9 | J5: 5 v 19 | K5: 16 v 7 | L5: 3 v 13 | M5: 1 v 10 | N5: 7 v 15 | O5: 1 v 8 | P5: 18 v 17 | Q5: 16 v 13 | R5: 20 v 11 | S5: 10 v 12 | T5: 5 v 11 | U5: 1 v 9
A6: 4:16 PM | B6: ' | C6: 6 v 18 | D6: 11 v 4 | E6: 13 v 15 | F6: 14 v 20 | G6: 1 v 16 | H6: 5 v 8 | I6: 16 v 20 | J6: 4 v 18 | K6: 13 v 4 | L6: 10 v 20 | M6: 12 v 11 | N6: 3 v 11 | O6: 10 v 6 | P6: 20 v 15 | Q6: 9 v 5 | R6: 18 v 13 | S6: 1 v 5 | T6: 8 v 14 | U6: 19 v 6
A7: 4:24 PM | B7: ' | C7: 4 v 16 | D7: 18 v 20 | E7: 7 v 8 | F7: 12 v 9 | G7: 13 v 19 | H7: 13 v 17 | I7: 13 v 8 | J7: 1 v 13 | K7: 1 v 20 | L7: 4 v 14 | M7: 19 v 8 | N7: 10 v 18 | O7: 15 v 12 | P7: 5 v 3 | Q7: 18 v 11 | R7: 8 v 4 | S7: 19 v 14 | T7: 9 v 15 | U7: 18 v 5
A8: 4:32 PM | B8: ' | C8: 11 v 13 | D8: 13 v 6 | E8: 2 v 18 | F8: 11 v 8 | G8: 14 v 18 | H8: 12 v 18 | I8: 11 v 6 | J8: 6 v 20 | K8: 14 v 5 | L8: 9 v 19 | M8: 18 v 7 | N8: 8 v 16 | O8: 18 v 3 | P8: 10 v 14 | Q8: 1 v 7 | R8: 10 v 2 | S8: 9 v 11 | T8: 10 v 16 | U8: 15 v 2
A9: 4:40 PM | B9: ' | C9: 8 v 20 | D9: 2 v 3 | E9: 3 v 19 | F9: 4 v 5 | G9: 3 v 8 | H9: 3 v 10 | I9: 2 v 5 | J9: 12 v 14 | K9: 11 v 2 | L9: 5 v 15 | M9: 15 v 4 | N9: 1 v 2 | O9: 16 v 11 | P9: 8 v 12 | Q9: 8 v 6 | R9: 16 v 15 | S9: 20 v 13 | T9: 4 v 2 | U9: 14 v 11
A10: 4:48 PM | B10: ' | C10: 9 v 10 | D10: 16 v 9 | E10: 6 v 9 | F10: 13 v 10 | G10: 2 v 9 | H10: 6 v 7 | I10: 1 v 18 | J10: 2 v 16 | K10: 19 v 10 | L10: 8 v 18 | M10: 13 v 2 | N10: 6 v 14 | O10: 20 v 5 | P10: 1 v 4 | Q10: 15 v 14 | R10: 1 v 6 | S10: 18 v 15 | T10: 7 v 13 | U10: 16 v 3
A11: 4:56 PM | B11: ' | C11: 7 v 19 | D11: 17 v 10 | E11: 5 v 10 | F11: 1 v 17 | G11: 4 v 7 | H11: 11 v 19 | I11: 3 v 4 | J11: 3 v 17 | K11: 15 v 6 | L11: 2 v 12 | M11: 17 v 6 | N11: 20 v 19 | O11: 14 v 13 | P11: 19 v 16 | Q11: 19 v 2 | R11: 9 v 3 | S11: 6 v 4 | T11: 1 v 3 | U11: 13 v 12
A12: 5:04 PM | B12: ' | C12: 3 v 15 | D12: 1 v 19 | E12: 4 v 20 | F12: 15 v 19 | G12: 15 v 17 | H12: 2 v 20 | I12: 15 v 10 | J12: 7 v 10 | K12: 17 v 8 | L12: 7 v 17 | M12: 20 v 9 | N12: 9 v 17 | O12: 17 v 2 | P12: 9 v 13 | Q12: 17 v 12 | R12: 19 v 12 | S12: 7 v 3 | T12: 20 v 17 | U12: 20 v 7
A13: 5:12 PM | B13: ' | C13: 5 v 17 | D13: 15 v 8 | E13: 11 v 17 | F13: 16 v 18 | G13: 11 v 10 | H13: 1 v 15 | I13: 12 v 7 | J13: 11 v 15 | K13: 12 v 3 | L13: 1 v 11 | M13: 16 v 5 | N13: 4 v 12 | O13: 19 v 4 | P13: 6 v 2 | Q13: 20 v 3 | R13: 7 v 5 | S13: 8 v 2 | T13: 6 v 12 | U13: 10 v 8
A30: 04/26/17
A31: 05/03/17
A32: 05/10/17
A33: 05/17/17
A34: 05/24/17
A35: 05/31/17
A36: 06/07/17
A37: 06/14/17
A38: 06/21/17
A39: 06/28/17
A40: 07/05/17
A41: 07/12/17
A42: 07/19/17
A43: 07/26/17
A44: 08/02/17
A45: 08/09/17
A46: 08/16/17
A47: 08/23/17
A48: 08/30/17

Sheet MATCH HISTORY 1
B1: 17 v 10 | C1: =TEXT(A1, "mm/dd/yy")&B1 -> 01/00/0017 v 10 | L1: First Half | O1: First Half
L2: Second Half | O2: Second Half
C16: `` | O16: Team Members
C17: Week | D17: Week 1 | E17: Week 2 | F17: Week 3 | G17: Week 4 | H17: Week 5 | I17: Week 6 | J17: Week 7 | K17: Week 8 | L17: Week 9 | M17: Week 10 | O17: Team 01 | P17: =IF(VLOOKUP(O17,'TEAM ROSTERS & SUB LIST'!$B:$I,3,FALSE)<>"",VLOOKUP(O17,'TEAM ROSTERS & SUB LIST'!$B:$I,3,FALSE)&" / "&VLOOKUP(O17,'TEAM ROSTERS & SUB LIST'!$B:$I,5,FALSE),"") -> John Normandin / Pete Normandin
C18: Date | D18: 04/26/17 | E18: 05/03/17 | F18: 05/10/17 | G18: 05/17/17 | H18: 05/24/17 | I18: 05/31/17 | J18: 06/07/17 | K18: 06/14/17 | L18: 06/21/17 | M18: 06/28/17 | O18: Team 02 | P18: =IF(VLOOKUP(O18,'TEAM ROSTERS & SUB LIST'!$B:$I,3,FALSE)<>"",VLOOKUP(O18,'TEAM ROSTERS & SUB LIST'!$B:$I,3,FALSE)&" / "&VLOOKUP(O18,'TEAM ROSTERS & SUB LIST'!$B:$I,5,FALSE),"") -> Jono Normandin / Nathan Wallace
C19: Side | D19: FRONT | E19: BACK | F19: FRONT | G19: BACK | H19: FRONT | I19: BACK | J19: FRONT | K19: BACK | L19: FRONT | M19: BACK | O19: Team 03 | P19: =IF(VLOOKUP(O19,'TEAM ROSTERS & SUB LIST'!$B:$I,3,FALSE)<>"",VLOOKUP(O19,'TEAM ROSTERS & SUB LIST'!$B:$I,3,FALSE)&" / "&VLOOKUP(O19,'TEAM ROSTERS & SUB LIST'!$B:$I,5,FALSE),"") -> Pete Romano / Don Frigoletto
C20: Tee Time | O20: Team 04 | P20: =IF(VLOOKUP(O20,'TEAM ROSTERS & SUB LIST'!$B:$I,3,FALSE)<>"",VLOOKUP(O20,'TEAM ROSTERS & SUB LIST'!$B:$I,3,FALSE)&" / "&VLOOKUP(O20,'TEAM ROSTERS & SUB LIST'!$B:$I,5,FALSE),"") -> Peg Romano / Lynn Laroche
C21: 16:00:00 | D21: 1 v 12 | E21: 12 v 5 | F21: 1 v 14 | G21: 3 v 6 | H21: 12 v 20 | I21: 4 v 9 | J21: 17 v 19 | K21: 8 v 9 | L21: 18 v 9 | M21: 6 v 16 | O21: Team 05 | P21: =IF(VLOOKUP(O21,'TEAM ROSTERS & SUB LIST'!$B:$I,3,FALSE)<>"",VLOOKUP(O21,'TEAM ROSTERS & SUB LIST'!$B:$I,3,FALSE)&" / "&VLOOKUP(O21,'TEAM ROSTERS & SUB LIST'!$B:$I,5,FALSE),"") -> Dennis Normandin / Mark Normandin
C22: 16:08:00 | D22: 2 v 14 | E22: 14 v 7 | F22: 12 v 16 | G22: 2 v 7 | H22: 5 v 6 | I22: 14 v 16 | J22: 14 v 9 | K22: 5 v 19 | L22: 16 v 7 | M22: 3 v 13 | O22: Team 06 | P22: =IF(VLOOKUP(O22,'TEAM ROSTERS & SUB LIST'!$B:$I,3,FALSE)<>"",VLOOKUP(O22,'TEAM ROSTERS & SUB LIST'!$B:$I,3,FALSE)&" / "&VLOOKUP(O22,'TEAM ROSTERS & SUB LIST'!$B:$I,5,FALSE),"") -> Vance Butterfield / Bob Schleyer
C23: 16:16:00 | D23: 6 v 18 | E23: 11 v 4 | F23: 13 v 15 | G23: 14 v 20 | H23: 1 v 16 | I23: 5 v 8 | J23: 16 v 20 | K23: 4 v 18 | L23: 13 v 4 | M23: 10 v 20 | O23: Team 07 | P23: =IF(VLOOKUP(O23,'TEAM ROSTERS & SUB LIST'!$B:$I,3,FALSE)<>"",VLOOKUP(O23,'TEAM ROSTERS & SUB LIST'!$B:$I,3,FALSE)&" / "&VLOOKUP(O23,'TEAM ROSTERS & SUB LIST'!$B:$I,5,FALSE),"") -> John Fairbanks / Debbie Fairbanks
C24: 16:24:00 | D24: 4 v 16 | E24: 18 v 20 | F24: 7 v 8 | G24: 12 v 9 | H24: 13 v 19 | I24: 13 v 17 | J24: 13 v 8 | K24: 1 v 13 | L24: 1 v 20 | M24: 4 v 14 | O24: Team 08 | P24: =IF(VLOOKUP(O24,'TEAM ROSTERS & SUB LIST'!$B:$I,3,FALSE)<>"",VLOOKUP(O24,'TEAM ROSTERS & SUB LIST'!$B:$I,3,FALSE)&" / "&VLOOKUP(O24,'TEAM ROSTERS & SUB LIST'!$B:$I,5,FALSE),"") -> Steve Lawrence / Mike Benson
C25: 16:32:00 | D25: 11 v 13 | E25: 13 v 6 | F25: 2 v 18 | G25: 11 v 8 | H25: 14 v 18 | I25: 12 v 18 | J25: 11 v 6 | K25: 6 v 20 | L25: 14 v 5 | M25: 9 v 19 | O25: Team 09 | P25: =IF(VLOOKUP(O25,'TEAM ROSTERS & SUB LIST'!$B:$I,3,FALSE)<>"",VLOOKUP(O25,'TEAM ROSTERS & SUB LIST'!$B:$I,3,FALSE)&" / "&VLOOKUP(O25,'TEAM ROSTERS & SUB LIST'!$B:$I,5,FALSE),"") -> Mike Doane / John Cassin
C26: 16:40:00 | D26: 8 v 20 | E26: 2 v 3 | F26: 3 v 19 | G26: 4 v 5 | H26: 3 v 8 | I26: 3 v 10 | J26: 2 v 5 | K26: 12 v 14 | L26: 11 v 2 | M26: 5 v 15 | O26: Team 10 | P26: =IF(VLOOKUP(O26,'TEAM ROSTERS & SUB LIST'!$B:$I,3,FALSE)<>"",VLOOKUP(O26,'TEAM ROSTERS & SUB LIST'!$B:$I,3,FALSE)&" / "&VLOOKUP(O26,'TEAM ROSTERS & SUB LIST'!$B:$I,5,FALSE),"") -> Ron Ekstrom / Beth Romano
C27: 16:48:00 | D27: 9 v 10 | E27: 16 v 9 | F27: 6 v 9 | G27: 13 v 10 | H27: 2 v 9 | I27: 6 v 7 | J27: 1 v 18 | K27: 2 v 16 | L27: 19 v 10 | M27: 8 v 18 | O27: Team 11 | P27: =IF(VLOOKUP(O27,'TEAM ROSTERS & SUB LIST'!$B:$I,3,FALSE)<>"",VLOOKUP(O27,'TEAM ROSTERS & SUB LIST'!$B:$I,3,FALSE)&" / "&VLOOKUP(O27,'TEAM ROSTERS & SUB LIST'!$B:$I,5,FALSE),"") -> Jim Haskins / Anthony Conte
